Workbook

Sheet START
A1: =muni -> LIM353 Molemole

Sheet Instructions
D2: 2020
X4: Yes
X5: No
W7: Type of Entities Range: | X7: Parent Municipality
X8: Consolidated Information
W10: Date of Adjustment | X10: 14/07/2023
W19: MTREF Range: | X19: 2013
X20: 2014
X21: 2015
X22: 2016
X23: 2017
X24: 2018
X25: 2019
X26: 2020
X27: 2021
X28: 2022
X29: 2023
X30: 2024
X31: 2025
X32: 2026
W33: MTREF Linked:
W34: MTREF:
X35: 10
W36: Fin Year: | X36: =INDEX(X19:X33,X35,1) -> 2022
X38: =MTREF&"/"&RIGHT(MTREF,2)+1 -> 2022/23

Sheet Template names (hidden)
A1: Common sheet headings
A2: Head1 | B2: =HLOOKUP(MTREF,Headings,2) -> 2021/22 | C2: Prior year -1
A3: Head1A | B3: =HLOOKUP(MTREF,Headings,3) -> 2020/21 | C3: Prior year -2
A4: Head1B | B4: =HLOOKUP(MTREF,Headings,4) -> 2019/20 | C4: Prior year -3
A5: Head2 | B5: =HLOOKUP(MTREF,Headings,7) -> Budget Year 2022/23 | C5: Year of approved budget
A6: Head2A | B6: =HLOOKUP(MTREF,Headings,6) -> 2022/23 | C6: Approved budget year
A7: Head3 | B7: =HLOOKUP(MTREF,Headings,5) -> 2022/23 Medium Term Revenue & Expenditure Framework | C7: MTREF header name
A8: Head3A | B8: Medium Term Revenue and Expenditure Framework
A9: Head4 | B9: Current year
A10: Head5 | B10: Audited Outcome
A11: Head5A | B11: Outcome
A12: Head5B | B12: Pre-audit outcome
A13: Head6 | B13: Original Budget
A14: Head7 | B14: Adjusted Budget
A15: Head8 | B15: Full Year Forecast
A16: Head9 | B16: =HLOOKUP(MTREF,Headings,7) -> Budget Year 2022/23 | C16: 1st year of MTREF | D16: Year1
A17: Head10 | B17: =HLOOKUP(MTREF,Headings,8) -> Budget Year +1 2023/24 | C17: 2nd year of MTREF | D17: Year2
A18: Head11 | B18: =HLOOKUP(MTREF,Headings,9) -> Budget Year +2 2024/25 | C18: 3rd year of MTREF | D18: Year3
A19: Head24 | B19: Description | D19: Desc
A20: Head26 | B20: Vote Description | D20: VDesc
A21: Head27 | B21: Ref
A22: Head27a | B22: References
A23: Head28 | B23: Surplus/ (Deficit) for the year | D23: Result
A24: Head29 | B24: Annual target 2007/08
A25: Head30 | B25: Revised target 2007/08
A26: Head31 | B26: Quarter ended 30 September
A27: Head32 | B27: Quarter ended 31 December
A28: Head33 | B28: Quarter ended 31 March
A29: Head34 | B29: Quarter ended 30 June
A30: Head35 | B30: Variance explanation
A31: Head36 | B31: YTD Actual 31 Dec
A32: Head37 | B32: YTD Budget 31 Dec
A33: Head38 | B33: Monthly actual
A34: Head39 | B34: YearTD actual
A35: Head40 | B35: YearTD budget
A36: Head41 | B36: YTD variance
A37: Head42 | B37: Surplus/ (Deficit) for the yr/period
A38: Head43 | B38: =Head3&" Summary" -> 2022/23 Medium Term Revenue & Expenditure Framework Summary
A39: Head44 | B39: 2001 Census
A40: Head45 | B40: 2011 Census
A41: Head46 | B41: - Adjustments Budget - January 2007
A42: Head47 | B42: Previous target year to complete
A43: Head48 | B43: Present value
A44: Head49
A45: Head50 | B45: Other Adjusts.
A46: Head51 | B46: Accum. Funds
A47: Head52 | B47: Multi-year capital
A48: Head53 | B48: Unfore. Unavoid.
A49: Head54 | B49: Prior Adjusted
A50: Head55 | B50: Nat. or Prov. Govt
A51: Head56 | B51: Total Adjusts.
A52: Head57 | B52: Month DD, YYYY -
A53: Head58 | B53: Parent muni.
A54: Head59 | B54: Downward adjusts
A55: SFPerf1 | B55: Budgeted Financial Performance
A56: SFPerf2 | B56: Forecast Financial Performance
A57: SFPos1 | B57: Budgeted Financial Position
A58: SFPos2 | B58: Forecast Financial Position
A59: Cash1 | B59: Budget Cash Flow
A60: Cash2 | B60: Forecast Cash Flow
A61: RandM | B61: Expenditure includes repairs & maintenance of R'000
A62: Standard nomenclature
A63: Muni | B63: ='Lookup and lists'!B28 -> LIM353 Molemole
A64: Municipal Entities | B64: 2 | C64: Type of report: | D64: 1
A65: =IF((MuniEntities=1)*(MuniType=2),"YES","NO") -> NO | B65: Does this municipality have entities (consolidated budget and entity budgets required)? YES/NO
A66: Mid Year Review/Adjustment Budget schedules & tables | E66: Consolidated header | F66: Parent municipality header
A67: ADJSum | B67: =D67&IF(Consolques="YES",E67,F67) -> Table B1 Adjustments Budget Summary | D67: Table B1 | E67: ="Consolidated "&F67 -> Consolidated Adjustments Budget Summary | F67: ="Adjustments Budget Summary" -> Adjustments Budget Summary
A68: ADJ2 | B68: Table B3 Adjustments Budget Financial Performance (revenue and expenditure by municipal vote) | D68: Table B3 | E68: ="Consolidated "&F68 -> Consolidated Adjustments Budget Financial Performance (revenue and expenditure by municipal vote) | F68: ="Adjustments Budget Financial Performance (revenue and expenditure by municipal vote)" -> Adjustments Budget Financial Performance (revenue and expenditure by municipal vote)
A69: ADJ3 | B69: Table B2 Adjustments Budget Financial Performance (functional classification) | D69: Table B2 | E69: Consolidated Adjustments Budget Financial Performance (functional classification) | F69: ="Adjustments Budget Financial Performance (functional classification)" -> Adjustments Budget Financial Performance (functional classification)
A70: ADJ4 | B70: Table B4 Adjustments Budget Financial Performance (revenue and expenditure) | D70: Table B4 | E70: Consolidated Adjustments Budget Financial Performance (revenue and expenditure) | F70: ="Adjustments Budget Financial Performance (revenue and expenditure)" -> Adjustments Budget Financial Performance (revenue and expenditure)
A71: ADJ5 | B71: Table B5 Adjustments Capital Expenditure Budget by vote and funding | D71: Table B5 | E71: Consolidated Adjustments Capital Expenditure Budget by vote and funding | F71: ="Adjustments Capital Expenditure Budget by vote and funding" -> Adjustments Capital Expenditure Budget by vote and funding
A72: ADJ6 | B72: Table B6 Adjustments Budget Financial Position | D72: Table B6 | E72: Consolidated Adjustments Budget Financial Position | F72: ="Adjustments Budget Financial Position" -> Adjustments Budget Financial Position
A73: ADJ7 | B73: Table B7 Adjustments Budget Cash Flows | D73: Table B7 | E73: Consolidated Adjustments Budget Cash Flows | F73: ="Adjustments Budget Cash Flows" -> Adjustments Budget Cash Flows
A74: ADJ8 | B74: Table B8 Cash backed reserves/accumulated surplus reconciliation | D74: Table B8 | E74: Consolidated Cash backed reserves/accumulated surplus reconciliation | F74: ="Cash backed reserves/accumulated surplus reconciliation" -> Cash backed reserves/accumulated surplus reconciliation
A75: ADJ9 | B75: Table B9 Asset Management | D75: Table B9 | E75: Consolidated Asset Management | F75: ="Asset Management" -> Asset Management
A76: ADJ10 | B76: Table B10 Basic service delivery measurement | D76: Table B10 | E76: Consolidated Basic service delivery measurement | F76: ="Basic service delivery measurement" -> Basic service delivery measurement
A77: ADJB1 | B77: Supporting Table SB1 Supporting detail to 'Budgeted Financial Performance' | D77: =D101&"Table SB1 " -> Supporting Table SB1 | E77: Consolidated Supporting detail to 'Budgeted Financial Performance' | F77: ="Supporting detail to 'Budgeted Financial Performance'" -> Supporting detail to 'Budgeted Financial Performance'
A78: ADJB2 | B78: Supporting Table SB2 Supporting detail to 'Financial Position Budget' | D78: =D101&"Table SB2 " -> Supporting Table SB2 | E78: Consolidated Supporting detail to 'Financial Position Budget' | F78: ="Supporting detail to 'Financial Position Budget'" -> Supporting detail to 'Financial Position Budget'
A79: ADJB3 | B79: Supporting Table SB3 Adjustments to the SDBIP - performance objectives | D79: =D101&"Table SB3 " -> Supporting Table SB3 | E79: Consolidated Adjustments to the SDBIP - performance objectives | F79: ="Adjustments to the SDBIP - performance objectives" -> Adjustments to the SDBIP - performance objectives
A80: ADJB4 | B80: Supporting Table SB4 Adjustments to budgeted performance indicators and benchmarks | D80: =D101&"Table SB4 " -> Supporting Table SB4 | E80: Consolidated Adjustments to budgeted performance indicators and benchmarks | F80: ="Adjustments to budgeted performance indicators and benchmarks" -> Adjustments to budgeted performance indicators and benchmarks
A81: ADJB5 | B81: Supporting Table SB5 Adjustments Budget - social, economic and demographic statistics and assumptions | D81: =D101&"Table SB5 " -> Supporting Table SB5 | E81: Consolidated Adjustments Budget - social, economic and demographic statistics and assumptions | F81: ="Adjustments Budget - social, economic and demographic statistics and assumptions" -> Adjustments Budget - social, economic and demographic statistics and assumptions
A82: ADJB6 | B82: Supporting Table SB6 Adjustments Budget - funding measurement | D82: =D101&"Table SB6 " -> Supporting Table SB6 | E82: Consolidated Adjustments Budget - funding measurement | F82: ="Adjustments Budget - funding measurement" -> Adjustments Budget - funding measurement
A83: ADJB7 | B83: Supporting Table SB7 Adjustments Budget - transfers and grant receipts | D83: =D101&"Table SB7 " -> Supporting Table SB7 | E83: Consolidated Adjustments Budget - transfers and grant receipts | F83: ="Adjustments Budget - transfers and grant receipts" -> Adjustments Budget - transfers and grant receipts
A84: ADJB8 | B84: Supporting Table SB8 Adjustments Budget - expenditure on transfers and grant programme | D84: =D101&"Table SB8 " -> Supporting Table SB8 | E84: Consolidated Adjustments Budget - expenditure on transfers and grant programme | F84: ="Adjustments Budget - expenditure on transfers and grant programme" -> Adjustments Budget - expenditure on transfers and grant programme
A85: ADJB9 | B85: Supporting Table SB9 Adjustments Budget - reconciliation of transfers, grant receipts, and unspent funds | D85: =D101&"Table SB9 " -> Supporting Table SB9 | E85: Consolidated Adjustments Budget - reconciliation of transfers, grant receipts, and unspent funds | F85: ="Adjustments Budget - reconciliation of transfers, grant receipts, and unspent funds" -> Adjustments Budget - reconciliation of transfers, grant receipts, and unspent funds
A86: ADJB10 | B86: Supporting Table SB10 Adjustments Budget - transfers and grants made by the municipality | D86: =D101&"Table SB10 " -> Supporting Table SB10 | E86: Consolidated Adjustments Budget - transfers and grants made by the municipality | F86: ="Adjustments Budget - transfers and grants made by the municipality" -> Adjustments Budget - transfers and grants made by the municipality
A87: ADJB11 | B87: Supporting Table SB11 Adjustments Budget - councillor and staff benefits | D87: =D101&"Table SB11 " -> Supporting Table SB11 | E87: Consolidated Adjustments Budget - councillor and staff benefits | F87: ="Adjustments Budget - councillor and staff benefits" -> Adjustments Budget - councillor and staff benefits
A88: ADJB12 | B88: Supporting Table SB12 Adjustments Budget - monthly revenue and expenditure (municipal vote) | D88: =D101&"Table SB12 " -> Supporting Table SB12 | E88: Consolidated Adjustments Budget - monthly revenue and expenditure (municipal vote) | F88: ="Adjustments Budget - monthly revenue and expenditure (municipal vote)" -> Adjustments Budget - monthly revenue and expenditure (municipal vote)
A89: ADJB13 | B89: Supporting Table SB13 Adjustments Budget - monthly revenue and expenditure (functional classification) | D89: =D101&"Table SB13 " -> Supporting Table SB13 | E89: Consolidated Adjustments Budget - monthly revenue and expenditure (functional classification) | F89: ="Adjustments Budget - monthly revenue and expenditure (functional classification)" -> Adjustments Budget - monthly revenue and expenditure (functional classification)
A90: ADJB14 | B90: Supporting Table SB14 Adjustments Budget - monthly revenue and expenditure | D90: =D101&"Table SB14 " -> Supporting Table SB14 | E90: Consolidated Adjustments Budget - monthly revenue and expenditure | F90: ="Adjustments Budget - monthly revenue and expenditure" -> Adjustments Budget - monthly revenue and expenditure
A91: ADJB15 | B91: Supporting Table SB15 Adjustments Budget - monthly cash flow | D91: =D101&"Table SB15 " -> Supporting Table SB15 | E91: Consolidated Adjustments Budget - monthly cash flow | F91: ="Adjustments Budget - monthly cash flow" -> Adjustments Budget - monthly cash flow
A92: ADJB16 | B92: Supporting Table SB16 Adjustments Budget - monthly capital expenditure (municipal vote) | D92: =D101&"Table SB16 " -> Supporting Table SB16 | E92: Consolidated Adjustments Budget - monthly capital expenditure (municipal vote) | F92: ="Adjustments Budget - monthly capital expenditure (municipal vote)" -> Adjustments Budget - monthly capital expenditure (municipal vote)
A93: ADJB17 | B93: Supporting Table SB17 Adjustments Budget - monthly capital expenditure (functional classification) | D93: =D101&"Table SB17 " -> Supporting Table SB17 | E93: Consolidated Adjustments Budget - monthly capital expenditure (functional classification) | F93: ="Adjustments Budget - monthly capital expenditure (functional classification)" -> Adjustments Budget - monthly capital expenditure (functional classification)
A94: ADJB18a | B94: Supporting Table SB18a Adjustments Budget - capital expenditure on new assets by asset class | D94: =D101&"Table SB18a " -> Supporting Table SB18a | E94: Consolidated Adjustments Budget - capital expenditure on new assets by asset class | F94: ="Adjustments Budget - capital expenditure on new assets by asset class" -> Adjustments Budget - capital expenditure on new assets by asset class
A95: ADJB18b | B95: Supporting Table SB18b Adjustments Budget - capital expenditure on renewal of existing assets by asset class | D95: =D101&"Table SB18b " -> Supporting Table SB18b | E95: ="Consolidated "&F95 -> Consolidated Adjustments Budget - capital expenditure on renewal of existing assets by asset class | F95: ="Adjustments Budget - capital expenditure on renewal of existing assets by asset class" -> Adjustments Budget - capital expenditure on renewal of existing assets by asset class
A96: ADJB18c | B96: Supporting Table SB18c Adjustments Budget - expenditure on repairs and maintenance by asset class | D96: =D101&"Table SB18c " -> Supporting Table SB18c | E96: ="Consolidated "&F96 -> Consolidated Adjustments Budget - expenditure on repairs and maintenance by asset class | F96: ="Adjustments Budget - expenditure on repairs and maintenance by asset class" -> Adjustments Budget - expenditure on repairs and maintenance by asset class
A97: ADJB18d | B97: Supporting Table SB18d Adjustments Budget - depreciation by asset class | D97: =D101&"Table SB18d " -> Supporting Table SB18d | E97: ="Consolidated "&F97 -> Consolidated Adjustments Budget - depreciation by asset class | F97: ="Adjustments Budget - depreciation by asset class" -> Adjustments Budget - depreciation by asset class
A98: ADJB18e | B98: Supporting Table SB18e Adjustments Budget - capital expenditure on upgrading of existing assets by asset class | D98: =D101&"Table SB18e " -> Supporting Table SB18e | E98: ="Consolidated "&F98 -> Consolidated Adjustments Budget - capital expenditure on upgrading of existing assets by asset class | F98: ="Adjustments Budget - capital expenditure on upgrading of existing assets by asset class" -> Adjustments Budget - capital expenditure on upgrading of existing assets by asset class
A99: ADJB19 | B99: Supporting Table SB19 List of capital programmes and projects affected by Adjustments Budget | D99: =D101&"Table SB19 " -> Supporting Table SB19 | E99: Consolidated List of capital programmes and projects affected by Adjustments Budget | F99: ="List of capital programmes and projects affected by Adjustments Budget" -> List of capital programmes and projects affected by Adjustments Budget
A100: ADJB20 | B100: Supporting Table SB20 Not required | D100: =D101&"Table SB20 " -> Supporting Table SB20 | E100: ="Adjusted Budget Municipal Entity Performance Summary" -> Adjusted Budget Municipal Entity Performance Summary | F100: Not required
D101: Supporting

Sheet Lookup and lists (hidden)
A1: Description | B1: 2013 | C1: 2014 | D1: 2015 | E1: 2016 | F1: 2017 | G1: 2018 | H1: 2019 | I1: 2020 | J1: 2021 | K1: 2022 | L1: 2023 | M1: 2024 | N1: 2025 | O1: 2026 | Q1: Grants: | R1: National - opex | S1: Provincial - opex | T1: National - capex | U1: Provincial - capex | V1: YESNO
A2: ='Template names'!C2 -> Prior year -1 | B2: =B1-1&"/"&RIGHT(B1,2)-0 -> 2012/13 | C2: =C1-1&"/"&RIGHT(C1,2)-0 -> 2013/14 | D2: =D1-1&"/"&RIGHT(D1,2)-0 -> 2014/15 | E2: =E1-1&"/"&RIGHT(E1,2)-0 -> 2015/16 | F2: 2016/17 | G2: 2017/18 | H2: 2018/19 | I2: 2019/20 | J2: 2020/21 | K2: 2021/22 | L2: 2022/23 | M2: 2023/24 | N2: 2024/25 | O2: 2025/26 | R2: Local Government Equitable Share | S2: Health subsidy | T2: Municipal Infrastructure Grant (MIG) | U2: Agriculture | V2: Yes
A3: ='Template names'!C3 -> Prior year -2 | B3: =B1-2&"/"&RIGHT(B1,2)-1 -> 2011/12 | C3: =C1-2&"/"&RIGHT(C1,2)-1 -> 2012/13 | D3: =D1-2&"/"&RIGHT(D1,2)-1 -> 2013/14 | E3: =E1-2&"/"&RIGHT(E1,2)-1 -> 2014/15 | F3: 2015/16 | G3: 2016/17 | H3: 2017/18 | I3: 2018/19 | J3: 2019/20 | K3: 2020/21 | L3: 2021/22 | M3: 2022/23 | N3: 2023/24 | O3: 2024/25 | R3: RSC Levy Replacement | S3: Ambulance subsidy | T3: Public Transport and Systems | U3: Education | V3: No
A4: ='Template names'!C4 -> Prior year -3 | B4: =B1-3&"/"&RIGHT(B1,2)-2 -> 2010/11 | C4: =C1-3&"/"&RIGHT(C1,2)-2 -> 2011/12 | D4: =D1-3&"/"&RIGHT(D1,2)-2 -> 2012/13 | E4: =E1-3&"/"&RIGHT(E1,2)-2 -> 2013/14 | F4: 2014/15 | G4: 2015/16 | H4: 2016/17 | I4: 2017/18 | J4: 2018/19 | K4: 2019/20 | L4: 2020/21 | M4: 2021/22 | N4: 2022/23 | O4: 2023/24 | R4: Finance Management | S4: Housing | T4: Rural Transport Services and Infrastructure | U4: Health
A5: ='Template names'!C7 -> MTREF header name | B5: =B1&"/"&RIGHT(B1,2)+1&" Medium Term Revenue & Expenditure Framework" -> 2013/14 Medium Term Revenue & Expenditure Framework | C5: =C1&"/"&RIGHT(C1,2)+1&" Medium Term Revenue & Expenditure Framework" -> 2014/15 Medium Term Revenue & Expenditure Framework | D5: =D1&"/"&RIGHT(D1,2)+1&" Medium Term Revenue & Expenditure Framework" -> 2015/16 Medium Term Revenue & Expenditure Framework | E5: =E1&"/"&RIGHT(E1,2)+1&" Medium Term Revenue & Expenditure Framework" -> 2016/17 Medium Term Revenue & Expenditure Framework | F5: 2017/18 Medium Term Revenue & Expenditure Framework | G5: 2018/19 Medium Term Revenue & Expenditure Framework | H5: 2019/20 Medium Term Revenue & Expenditure Framework | I5: 2020/21 Medium Term Revenue & Expenditure Framework | J5: 2021/22 Medium Term Revenue & Expenditure Framework | K5: 2022/23 Medium Term Revenue & Expenditure Framework | L5: 2023/24 Medium Term Revenue & Expenditure Framework | M5: 2024/25 Medium Term Revenue & Expenditure Framework | N5: 2025/26 Medium Term Revenue & Expenditure Framework | O5: 2026/27 Medium Term Revenue & Expenditure Framework | R5: Municipal Systems Improvement | S5: Sport and Recreation | T5: Regional Bulk Infrastructure | U5: Housing and Local Government
A6: ='Template names'!C6 -> Approved budget year | B6: =B1&"/"&RIGHT(B1,2)+1 -> 2013/14 | C6: =C1&"/"&RIGHT(C1,2)+1 -> 2014/15 | D6: =D1&"/"&RIGHT(D1,2)+1 -> 2015/16 | E6: =E1&"/"&RIGHT(E1,2)+1 -> 2016/17 | F6: 2017/18 | G6: 2018/19 | H6: 2019/20 | I6: 2020/21 | J6: 2021/22 | K6: 2022/23 | L6: 2023/24 | M6: 2024/25 | N6: 2025/26 | O6: 2026/27 | R6: Water Services Operating Subsidy | T6: Rural Households Infrastructure | U6: Other Departments
A7: ='Template names'!C16 -> 1st year of MTREF | B7: ="Budget Year "&B1&"/"&RIGHT(B1,2)+1 -> Budget Year 2013/14 | C7: ="Budget Year "&C1&"/"&RIGHT(C1,2)+1 -> Budget Year 2014/15 | D7: ="Budget Year "&D1&"/"&RIGHT(D1,2)+1 -> Budget Year 2015/16 | E7: ="Budget Year "&E1&"/"&RIGHT(E1,2)+1 -> Budget Year 2016/17 | F7: Budget Year 2017/18 | G7: Budget Year 2018/19 | H7: Budget Year 2019/20 | I7: Budget Year 2020/21 | J7: Budget Year 2021/22 | K7: Budget Year 2022/23 | L7: Budget Year 2023/24 | M7: Budget Year 2024/25 | N7: Budget Year 2025/26 | O7: Budget Year 2026/27 | R7: Energy Efficiency and Demand Management | T7: Neighbourhood Development Partnership | U7: Public Works, Roads, Transport
A8: ='Template names'!C17 -> 2nd year of MTREF | B8: ="Budget Year +1 "&B1+1&"/"&RIGHT(B1,2)+2 -> Budget Year +1 2014/15 | C8: ="Budget Year +1 "&C1+1&"/"&RIGHT(C1,2)+2 -> Budget Year +1 2015/16 | D8: ="Budget Year +1 "&D1+1&"/"&RIGHT(D1,2)+2 -> Budget Year +1 2016/17 | E8: ="Budget Year +1 "&E1+1&"/"&RIGHT(E1,2)+2 -> Budget Year +1 2017/18 | F8: Budget Year +1 2018/19 | G8: Budget Year +1 2019/20 | H8: Budget Year +1 2020/21 | I8: Budget Year +1 2021/22 | J8: Budget Year +1 2022/23 | K8: Budget Year +1 2023/24 | L8: Budget Year +1 2024/25 | M8: Budget Year +1 2025/26 | N8: Budget Year +1 2026/27 | O8: Budget Year +1 2027/28 | R8: Integrated National Electrification Programme | T8: 2010 FIFA World Cup Stadiums Development | U8: Sport and Recreation
A9: ='Template names'!C18 -> 3rd year of MTREF | B9: ="Budget Year +2 "&B1+2&"/"&RIGHT(B1,2)+3 -> Budget Year +2 2015/16 | C9: ="Budget Year +2 "&C1+2&"/"&RIGHT(C1,2)+3 -> Budget Year +2 2016/17 | D9: ="Budget Year +2 "&D1+2&"/"&RIGHT(D1,2)+3 -> Budget Year +2 2017/18 | E9: ="Budget Year +2 "&E1+2&"/"&RIGHT(E1,2)+3 -> Budget Year +2 2018/19 | F9: Budget Year +2 2019/20 | G9: Budget Year +2 2020/21 | H9: Budget Year +2 2021/22 | I9: Budget Year +2 2022/23 | J9: Budget Year +2 2023/24 | K9: Budget Year +2 2024/25 | L9: Budget Year +2 2025/26 | M9: Budget Year +2 2026/27 | N9: Budget Year +2 2027/28 | O9: Budget Year +2 2028/29 | R9: Municipal Drought Relief
A10: Adjustments Budget | B10: ="Annual target " & B1&"/"&RIGHT(B1,2)+1 -> Annual target 2013/14 | C10: ="Annual target " & C1&"/"&RIGHT(C1,2)+1 -> Annual target 2014/15 | D10: ="Annual target " & D1&"/"&RIGHT(D1,2)+1 -> Annual target 2015/16 | E10: ="Annual target " & E1&"/"&RIGHT(E1,2)+1 -> Annual target 2016/17 | F10: Annual target 2017/18 | G10: Annual target 2018/19 | H10: Annual target 2019/20 | I10: Annual target 2020/21 | J10: Annual target 2021/22 | K10: Annual target 2022/23 | L10: Annual target 2023/24 | M10: Annual target 2024/25 | N10: Annual target 2025/26 | O10: Annual target 2026/27 | R10: 2010 FIFA World Cup Operating
A11: NOTE: This sheet should not be directly amended - select headings from sheet 'S' | R11: Electricity Demand Side Management
R12: EPWP Incentive
R15: Asset Class | S15: Asset sub-class Old | T15: Asset sub-class | U15: IUDF | V15: MTSF
R17: Roads Infrastructure | S17: Roads, Pavements & Bridges | T17: Roads | U17: Spatial integration | V17: Quality basic education
R18: Storm water Infrastructure | S18: Storm water | T18: Road Structures | U18: Inclusion and access | V18: A long and healthy life for all South Africans
R19: Electrical Infrastructure | S19: Generation | T19: Road Furniture | U19: Growth | V19: All people in South Africa are and feel safe
R20: Water Supply Infrastructure | S20: Transmission & Reticulation | T20: Capital Spares | U20: Governance | V20: Decent employment through inclusive growth
R21: Sanitation Infrastructure | S21: Street Lighting | T21: Drainage Collection | V21: A skilled and capable workforce to support an inclusive growth path
R22: Solid Waste Infrastructure | S22: Dams & Reservoirs | T22: Storm water Conveyance | V22: An efficient, competitive and responsive economic infrastructure network
R23: Rail Infrastructure | S23: Water purification | T23: Attenuation | V23: Vibrant, equitable, sustainable rural communities contributing towards food security for all
R24: Coastal Infrastructure | S24: Reticulation | T24: Power Plants | V24: Sustainable human settlements and improved quality of household life
R25: Information and Communication Infrastructure | S25: Sewerage purification | T25: HV Substations | V25: Responsive, accountable, effective and efficient local government
R26: Community Facilities | S26: Waste Management | T26: HV Switching Station | V26: Protect and enhance our environmental assets and natural resources
A27: Name link | B27: 141 | R27: Sport and Recreation Facilities | S27: Transportation | T27: HV Transmission Conductors | V27: Create a better South Africa and contribute to a better Africa and a better world
A28: Name of Muni | B28: =INDEX(B29:B312,B27,1) -> LIM353 Molemole | R28: Heritage assets | S28: Gas | T28: MV Substations | V28: An efficient, effective and development-oriented public service
B29: Choose name from list | C29: Set name on 'Instructions' sheet | R29: Revenue Generating | S29: Parks & gardens | T29: MV Switching Stations | V29: A comprehensive, responsive and sustainable social protection system
B30: BUF Buffalo City | C30: EC EASTERN CAPE | R30: Non-revenue Generating | S30: Sportsfields & stadia | T30: MV Networks | V30: A diverse, socially cohesive society with a common national identity
B31: NMA Nelson Mandela Bay | C31: EC EASTERN CAPE | R31: Operational Buildings | S31: Swimming pools | T31: LV Networks
B32: EC101 Dr Beyers Naude | C32: EC EASTERN CAPE | R32: Housing | S32: Community halls | T32: Capital Spares
B33: EC102 Blue Crane Route | C33: EC EASTERN CAPE | R33: Biological or Cultivated Assets | S33: Libraries | T33: Dams and Weirs
B34: EC104 Makana | C34: EC EASTERN CAPE | R34: Servitudes | S34: Recreational facilities | T34: Boreholes
B35: EC105 Ndlambe | C35: EC EASTERN CAPE | R35: Licences and Rights | S35: Fire, safety & emergency | T35: Reservoirs
B36: EC106 Sundays River Valley | C36: EC EASTERN CAPE | R36: Computer Equipment | S36: Security and policing | T36: Pump Stations
B37: EC108 Kouga | C37: EC EASTERN CAPE | R37: Furniture and Office Equipment | S37: Buses | T37: Water Treatment Works
B38: EC109 Kou-Kamma | C38: EC EASTERN CAPE | R38: Machinery and Equipment | S38: Clinics | T38: Bulk Mains
B39: DC10 Sarah Baartman | C39: EC EASTERN CAPE | R39: Transport Assets | S39: Museums & Art Galleries | T39: Distribution
B40: EC121 Mbhashe | C40: EC EASTERN CAPE | R40: Land | S40: Cemeteries | T40: Distribution Points
B41: EC122 Mnquma | C41: EC EASTERN CAPE | R41: Zoo's, Marine and Non-biological Animals | S41: Social rental housing | T41: PRV Stations
B42: EC123 Great Kei | C42: EC EASTERN CAPE | S42: Buildings | T42: Capital Spares
B43: EC124 Amahlathi | C43: EC EASTERN CAPE | S43: Housing development | T43: Pump Station
B44: EC126 Ngqushwa | C44: EC EASTERN CAPE | S44: General vehicles | T44: Reticulation
B45: EC129 Raymond Mhlaba | C45: EC EASTERN CAPE | S45: Specialised vehicles - Refuse | T45: Waste Water Treatment Works
B46: DC12 Amathole | C46: EC EASTERN CAPE | S46: Specialised vehicles - Fire | T46: Outfall Sewers
B47: EC131 Inxuba Yethemba | C47: EC EASTERN CAPE | S47: Specialised vehicles - Conservancy | T47: Toilet Facilities
B48: EC135 Intsika Yethu | C48: EC EASTERN CAPE | S48: Specialised vehicles - Ambulances | T48: Capital Spares
B49: EC136 Emalahleni (Ec) | C49: EC EASTERN CAPE | S49: Plant & equipment | T49: Landfill Sites
B50: EC137 Engcobo | C50: EC EASTERN CAPE | S50: Computers - hardware/equipment | T50: Waste Transfer Stations
B51: EC138 Sakhisizwe | C51: EC EASTERN CAPE | S51: Furniture and other office equipment | T51: Waste Processing Facilities
B52: EC139 Enoch Mgijima | C52: EC EASTERN CAPE | S52: Abattoirs | T52: Waste Drop-off Points
B53: DC13 Chris Hani | C53: EC EASTERN CAPE | S53: Markets | T53: Waste Separation Facilities
B54: EC141 Elundini | C54: EC EASTERN CAPE | S54: Civic Land and Buildings | T54: Electricity Generation Facilities
B55: EC142 Senqu | C55: EC EASTERN CAPE | S55: Other Buildings | T55: Capital Spares
B56: EC145 Walter Sisulu | C56: EC EASTERN CAPE | S56: Other Land | T56: Rail Lines
B57: DC14 Joe Gqabi | C57: EC EASTERN CAPE | S57: Surplus Assets - (Investment or Inventory) | T57: Rail Structures
B58: EC153 Ngquza Hills | C58: EC EASTERN CAPE | S58: Computers - software & programming | T58: Rail Furniture
B59: EC154 Port St Johns | C59: EC EASTERN CAPE | S59: Other | T59: Drainage Collection
B60: EC155 Nyandeni | C60: EC EASTERN CAPE | T60: Storm water Conveyance
B61: EC156 Mhlontlo | C61: EC EASTERN CAPE | R61: SB 19 | T61: Attenuation
B62: EC157 King Sabata Dalindyebo | C62: EC EASTERN CAPE | R62: Yes | T62: MV Substations
B63: DC15 O .R. Tambo | C63: EC EASTERN CAPE | R63: No | T63: LV Networks
B64: EC441 Matatiele | C64: EC EASTERN CAPE | T64: Capital Spares
B65: EC442 Umzimvubu | C65: EC EASTERN CAPE | T65: Sand Pumps
B66: EC443 Winnie Madikizela Mandela | C66: EC EASTERN CAPE | T66: Piers
B67: EC444 Ntabankulu | C67: EC EASTERN CAPE | T67: Revetments
B68: DC44 Alfred Nzo | C68: EC EASTERN CAPE | T68: Promenades
B69: MAN Mangaung | C69: FS FREE STATE | T69: Capital Spares
B70: FS161 Letsemeng | C70: FS FREE STATE | T70: Data Centres
B71: FS162 Kopanong | C71: FS FREE STATE | T71: Core Layers
B72: FS163 Mohokare | C72: FS FREE STATE | T72: Distribution Layers
B73: DC16 Xhariep | C73: FS FREE STATE | T73: Capital Spares
B74: FS181 Masilonyana | C74: FS FREE STATE | T74: Halls
B75: FS182 Tokologo | C75: FS FREE STATE | T75: Centres
B76: FS183 Tswelopele | C76: FS FREE STATE | T76: Crèches
B77: FS184 Matjhabeng | C77: FS FREE STATE | T77: Clinics/Care Centres
B78: FS185 Nala | C78: FS FREE STATE | T78: Fire/Ambulance Stations
B79: DC18 Lejweleputswa | C79: FS FREE STATE | T79: Testing Stations
B80: FS191 Setsoto | C80: FS FREE STATE | T80: Museums
B81: FS192 Dihlabeng | C81: FS FREE STATE | T81: Galleries
B82: FS193 Nketoana | C82: FS FREE STATE | T82: Theatres
B83: FS194 Maluti-a-Phofung | C83: FS FREE STATE | T83: Libraries
B84: FS195 Phumelela | C84: FS FREE STATE | T84: Cemeteries/Crematoria
B85: FS196 Mantsopa | C85: FS FREE STATE | T85: Police
B86: DC19 Thabo Mofutsanyana | C86: FS FREE STATE | T86: Purls
B87: FS201 Moqhaka | C87: FS FREE STATE | T87: Public Open Space
B88: FS203 Ngwathe | C88: FS FREE STATE | T88: Nature Reserves
B89: FS204 Metsimaholo | C89: FS FREE STATE | T89: Public Ablution Facilities
B90: FS205 Mafube | C90: FS FREE STATE | T90: Markets
B91: DC20 Fezile Dabi | C91: FS FREE STATE | T91: Stalls
B92: EKU City of Ekurhuleni | C92: GT GAUTENG | T92: Abattoirs
B93: JHB City Of Johannesburg | C93: GT GAUTENG | T93: Airports
B94: TSH City Of Tshwane | C94: GT GAUTENG | T94: Taxi Ranks/Bus Terminals
B95: GT421 Emfuleni | C95: GT GAUTENG | T95: Capital Spares
B96: GT422 Midvaal | C96: GT GAUTENG | T96: Indoor Facilities
B97: GT423 Lesedi | C97: GT GAUTENG | T97: Outdoor Facilities
B98: DC42 Sedibeng | C98: GT GAUTENG | T98: Capital Spares
B99: GT481 Mogale City | C99: GT GAUTENG | T99: Monuments
B100: GT484 Merafong City | C100: GT GAUTENG | T100: Historic Buildings
B101: GT485 Rand West City | C101: GT GAUTENG | T101: Works of Art
B102: DC48 West Rand | C102: GT GAUTENG | T102: Conservation Areas
B103: ETH eThekwini | C103: KZN KWAZULU-NATAL | T103: Other Heritage
B104: KZN212 Umdoni | C104: KZN KWAZULU-NATAL | T104: Improved Property
B105: KZN213 Umzumbe | C105: KZN KWAZULU-NATAL | T105: Unimproved Property
B106: KZN214 uMuziwabantu | C106: KZN KWAZULU-NATAL | T106: Municipal Offices
B107: KZN216 Ray Nkonyeni | C107: KZN KWAZULU-NATAL | T107: Pay/Enquiry Points
B108: DC21 Ugu | C108: KZN KWAZULU-NATAL | T108: Building Plan Offices
B109: KZN221 uMshwathi | C109: KZN KWAZULU-NATAL | T109: Workshops
B110: KZN222 uMngeni | C110: KZN KWAZULU-NATAL | T110: Yards
B111: KZN223 Mpofana | C111: KZN KWAZULU-NATAL | T111: Stores
B112: KZN224 Impendle | C112: KZN KWAZULU-NATAL | T112: Laboratories
B113: KZN225 Msunduzi | C113: KZN KWAZULU-NATAL | T113: Training Centres
B114: KZN226 Mkhambathini | C114: KZN KWAZULU-NATAL | T114: Manufacturing Plant
B115: KZN227 Richmond | C115: KZN KWAZULU-NATAL | T115: Depots
B116: DC22 uMgungundlovu | C116: KZN KWAZULU-NATAL | T116: Capital Spares
B117: KZN235 Okhahlamba | C117: KZN KWAZULU-NATAL | T117: Staff Housing
B118: KZN237 Inkosi Langalibalele | C118: KZN KWAZULU-NATAL | T118: Social Housing
B119: KZN238 Alfred Duma | C119: KZN KWAZULU-NATAL | T119: Capital Spares
B120: DC23 Uthukela | C120: KZN KWAZULU-NATAL | T120: Water Rights
B121: KZN241 Endumeni | C121: KZN KWAZULU-NATAL | T121: Effluent Licenses
B122: KZN242 Nquthu | C122: KZN KWAZULU-NATAL | T122: Solid Waste Licenses
B123: KZN244 Msinga | C123: KZN KWAZULU-NATAL | T123: Computer Software and Applications
B124: KZN245 Umvoti | C124: KZN KWAZULU-NATAL | T124: Load Settlement Software Applications
B125: DC24 Umzinyathi | C125: KZN KWAZULU-NATAL | T125: Unspecified
B126: KZN252 Newcastle | C126: KZN KWAZULU-NATAL
B127: KZN253 Emadlangeni | C127: KZN KWAZULU-NATAL
B128: KZN254 Dannhauser | C128: KZN KWAZULU-NATAL
B129: DC25 Amajuba | C129: KZN KWAZULU-NATAL
B130: KZN261 eDumbe | C130: KZN KWAZULU-NATAL
B131: KZN262 uPhongolo | C131: KZN KWAZULU-NATAL
B132: KZN263 Abaqulusi | C132: KZN KWAZULU-NATAL
B133: KZN265 Nongoma | C133: KZN KWAZULU-NATAL
B134: KZN266 Ulundi | C134: KZN KWAZULU-NATAL
B135: DC26 Zululand | C135: KZN KWAZULU-NATAL
B136: KZN271 Umhlabuyalingana | C136: KZN KWAZULU-NATAL
B137: KZN272 Jozini | C137: KZN KWAZULU-NATAL
B138: KZN275 Mtubatuba | C138: KZN KWAZULU-NATAL
B139: KZN276 Hlabisa Big Five | C139: KZN KWAZULU-NATAL
B140: DC27 Umkhanyakude | C140: KZN KWAZULU-NATAL
B141: KZN281 Mfolozi | C141: KZN KWAZULU-NATAL
B142: KZN282 uMhlathuze | C142: KZN KWAZULU-NATAL
B143: KZN284 uMlalazi | C143: KZN KWAZULU-NATAL
B144: KZN285 Mthonjaneni | C144: KZN KWAZULU-NATAL
B145: KZN286 Nkandla | C145: KZN KWAZULU-NATAL
B146: DC28 King Cetshwayo | C146: KZN KWAZULU-NATAL
B147: KZN291 Mandeni | C147: KZN KWAZULU-NATAL
B148: KZN292 KwaDukuza | C148: KZN KWAZULU-NATAL
B149: KZN293 Ndwedwe | C149: KZN KWAZULU-NATAL
B150: KZN294 Maphumulo | C150: KZN KWAZULU-NATAL
B151: DC29 iLembe | C151: KZN KWAZULU-NATAL
B152: KZN433 Greater Kokstad | C152: KZN KWAZULU-NATAL
B153: KZN434 Ubuhlebezwe | C153: KZN KWAZULU-NATAL
B154: KZN435 Umzimkhulu | C154: KZN KWAZULU-NATAL
B155: KZN436 Dr Nkosazana Dlamini Zuma | C155: KZN KWAZULU-NATAL
B156: DC43 Harry Gwala | C156: KZN KWAZULU-NATAL
B157: LIM331 Greater Giyani | C157: LIM LIMPOPO
B158: LIM332 Greater Letaba | C158: LIM LIMPOPO
B159: LIM333 Greater Tzaneen | C159: LIM LIMPOPO
B160: LIM334 Ba-Phalaborwa | C160: LIM LIMPOPO
B161: LIM335 Maruleng | C161: LIM LIMPOPO
B162: DC33 Mopani | C162: LIM LIMPOPO
B163: LIM341 Musina | C163: LIM LIMPOPO
B164: LIM343 Thulamela | C164: LIM LIMPOPO
B165: LIM344 Makhado | C165: LIM LIMPOPO
B166: LIM345 Collins Chabane | C166: LIM LIMPOPO
B167: DC34 Vhembe | C167: LIM LIMPOPO
B168: LIM351 Blouberg | C168: LIM LIMPOPO
B169: LIM353 Molemole | C169: LIM LIMPOPO
B170: LIM354 Polokwane | C170: LIM LIMPOPO
B171: LIM355 Lepelle-Nkumpi | C171: LIM LIMPOPO
B172: DC35 Capricorn | C172: LIM LIMPOPO
B173: LIM361 Thabazimbi | C173: LIM LIMPOPO
B174: LIM362 Lephalale | C174: LIM LIMPOPO
B175: LIM366 Bela Bela | C175: LIM LIMPOPO
B176: LIM367 Mogalakwena | C176: LIM LIMPOPO
B177: LIM368 Modimolle-Mookgopong | C177: LIM LIMPOPO
B178: DC36 Waterberg | C178: LIM LIMPOPO
B179: LIM471 Ephraim Mogale | C179: LIM LIMPOPO
B180: LIM472 Elias Motsoaledi | C180: LIM LIMPOPO
B181: LIM473 Makhuduthamaga | C181: LIM LIMPOPO
B182: LIM476 Tubatse Fetakgomo | C182: LIM LIMPOPO
B183: DC47 Sekhukhune | C183: LIM LIMPOPO
B184: MP301 Albert Luthuli | C184: MP MPUMALANGA
B185: MP302 Msukaligwa | C185: MP MPUMALANGA
B186: MP303 Mkhondo | C186: MP MPUMALANGA
B187: MP304 Pixley Ka Seme (MP) | C187: MP MPUMALANGA
B188: MP305 Lekwa | C188: MP MPUMALANGA
B189: MP306 Dipaleseng | C189: MP MPUMALANGA
B190: MP307 Govan Mbeki | C190: MP MPUMALANGA
B191: DC30 Gert Sibande | C191: MP MPUMALANGA
B192: MP311 Victor Khanye | C192: MP MPUMALANGA
B193: MP312 Emalahleni (Mp) | C193: MP MPUMALANGA
B194: MP313 Steve Tshwete | C194: MP MPUMALANGA
B195: MP314 Emakhazeni | C195: MP MPUMALANGA
B196: MP315 Thembisile Hani | C196: MP MPUMALANGA
B197: MP316 Dr J.S. Moroka | C197: MP MPUMALANGA
B198: DC31 Nkangala | C198: MP MPUMALANGA
B199: MP321 Thaba Chweu | C199: MP MPUMALANGA
B200: MP324 Nkomazi | C200: MP MPUMALANGA
B201: MP325 Bushbuckridge | C201: MP MPUMALANGA
B202: MP326 City of Mbombela | C202: MP MPUMALANGA
B203: DC32 Ehlanzeni | C203: MP MPUMALANGA
... 84 more rows

Sheet Org structure
A1: Organisational Structure Votes | C1: Organisational Structure Sub-Votes | E1: Display Sub-Votes
A2: =B2&" - "&C2 -> Vote 01 - Corporate Services | B2: Vote 01 | C2: Corporate Services
A3: =B11&" - "&C11 -> Vote 02 - Municipal Manager | B3: 01.1 | C3: Corporate Services Admin | D3: =CONCATENATE(B3, " - ", C3) -> 01.1 - Corporate Services Admin | E3: 01.1 - Corporate Services Admin
A4: =B17&" - "&C17 -> Vote 03 - Mayors Office | B4: 01.2 | C4: Human Resources | D4: 01.2 - Human Resources | E4: 01.2 - Human Resources
A5: =B23&" - "&C23 -> Vote 04 - Budget And Treasury | B5: 01.3 | C5: Information Technology Services | D5: 01.3 - Information Technology Services | E5: 01.3 - Information Technology Services
A6: =B31&" - "&C31 -> Vote 05 - Community Services | B6: 01.4 | C6: Council Support | D6: 01.4 - Council Support | E6: 01.4 - Council Support
A7: =B39&" - "&C39 -> Vote 06 - Technical Services | B7: 01.5 | C7: Local Economic Development | D7: 01.5 - Local Economic Development | E7: 01.5 - Local Economic Development
A8: =B48&" - "&C48 -> Vote 07 - | B8: 01.6 | C8: Municipal Planning Idp | D8: 01.6 - Municipal Planning Idp | E8: 01.6 - Municipal Planning Idp
A9: Vote 08 - | B9: 01.7 | C9: Town & Regional Planning | D9: 01.7 - Town & Regional Planning | E9: 01.7 - Town & Regional Planning
A10: Vote 09 - | B10: 01.8 | C10: Led Administration | D10: 01.8 - Led Administration | E10: 01.8 - Led Administration
A11: Vote 10 - | B11: Vote 02 | C11: Municipal Manager
A12: Vote 11 - | B12: 02.1 | C12: Municipal Manager Admin | D12: =CONCATENATE(B12, " - ", C12) -> 02.1 - Municipal Manager Admin | E12: 02.1 - Municipal Manager Admin
A13: Vote 12 - | B13: 02.2 | C13: Legal Services | D13: =CONCATENATE(B13, " - ", C13) -> 02.2 - Legal Services | E13: 02.2 - Legal Services
A14: Vote 13 - | B14: 02.3 | C14: Political Office Beares | D14: =CONCATENATE(B14, " - ", C14) -> 02.3 - Political Office Beares | E14: 02.3 - Political Office Beares
A15: Vote 14 - | B15: 02.4 | C15: Pms | D15: =CONCATENATE(B15, " - ", C15) -> 02.4 - Pms | E15: 02.4 - Pms
A16: Vote 15 - Other | B16: 02.5 | C16: Internal Audit | D16: =CONCATENATE(B16, " - ", C16) -> 02.5 - Internal Audit | E16: 02.5 - Internal Audit
B17: Vote 03 | C17: Mayors Office
B18: 03.1 | C18: Mayors Office Admin | D18: =CONCATENATE(B18, " - ", C18) -> 03.1 - Mayors Office Admin | E18: 03.1 - Mayors Office Admin
B19: 03.2 | C19: Office Of The Speaker | D19: =CONCATENATE(B19, " - ", C19) -> 03.2 - Office Of The Speaker | E19: 03.2 - Office Of The Speaker
B20: 03.3 | C20: Office Of The Chief Whip | D20: =CONCATENATE(B20, " - ", C20) -> 03.3 - Office Of The Chief Whip | E20: 03.3 - Office Of The Chief Whip
B21: 03.4 | C21: Exco Members | D21: =CONCATENATE(B21, " - ", C21) -> 03.4 - Exco Members | E21: 03.4 - Exco Members
B22: 03.5 | C22: Council General Administration | D22: =CONCATENATE(B22, " - ", C22) -> 03.5 - Council General Administration | E22: 03.5 - Council General Administration
B23: Vote 04 | C23: Budget And Treasury
B24: 04.1 | C24: Budget And Treasury Admin | D24: =CONCATENATE(B24, " - ", C24) -> 04.1 - Budget And Treasury Admin | E24: 04.1 - Budget And Treasury Admin
B25: 04.2 | C25: Chief Financial Officer Admin | D25: 04.2 - Chief Financial Officer Admin | E25: 04.2 - Chief Financial Officer Admin
B26: 04.3 | C26: Budget & Reporting | D26: 04.3 - Budget & Reporting | E26: 04.3 - Budget & Reporting
B27: 04.4 | C27: Budget & Reporting | D27: 04.4 - Budget & Reporting | E27: 04.4 - Budget & Reporting
B28: 04.5 | C28: Revenue Management | D28: 04.5 - Revenue Management | E28: 04.5 - Revenue Management
B29: 04.6 | C29: Supply Chain Management | D29: 04.6 - Supply Chain Management | E29: 04.6 - Supply Chain Management
B30: 04.7 | C30: Expenditure | D30: 04.7 - Expenditure | E30: 04.7 - Expenditure
B31: Vote 05 | C31: Community Services
B32: 05.1 | C32: Community Services Admin | D32: =CONCATENATE(B32, " - ", C32) -> 05.1 - Community Services Admin | E32: 05.1 - Community Services Admin
B33: 05.2 | C33: Libraries | D33: 05.2 - Libraries | E33: 05.2 - Libraries
B34: 05.3 | C34: Sports Recreation & Social Amenitie | D34: 05.3 - Sports Recreation & Social Amenitie | E34: 05.3 - Sports Recreation & Social Amenitie
B35: 05.4 | C35: Traffic Service | D35: 05.4 - Traffic Service | E35: 05.4 - Traffic Service
B36: 05.5 | C36: Traffic Service | D36: 05.5 - Traffic Service | E36: 05.5 - Traffic Service
B37: 05.6 | C37: Parks; Cemeteries | D37: 05.6 - Parks; Cemeteries | E37: 05.6 - Parks; Cemeteries
B38: 05.7 | C38: Refuse | D38: 05.7 - Refuse | E38: 05.7 - Refuse
B39: Vote 06 | C39: Technical Services
B40: 06.1 | C40: Mpac | D40: =CONCATENATE(B40, " - ", C40) -> 06.1 - Mpac | E40: 06.1 - Mpac
B41: 06.2 | C41: Technical Services Admin | D41: 06.2 - Technical Services Admin | E41: 06.2 - Technical Services Admin
B42: 06.3 | C42: Techn Serv-Roads: Admin | D42: 06.3 - Techn Serv-Roads: Admin | E42: 06.3 - Techn Serv-Roads: Admin
B43: 06.4 | C43: Techn Serv-Stormwater: Admin | D43: 06.4 - Techn Serv-Stormwater: Admin | E43: 06.4 - Techn Serv-Stormwater: Admin
B44: 06.5 | C44: Project Management Unit | D44: 06.5 - Project Management Unit | E44: 06.5 - Project Management Unit
B45: 06.6 | C45: Electrical & Machinery | D45: 06.6 - Electrical & Machinery | E45: 06.6 - Electrical & Machinery
B46: 06.7 | C46: Water | D46: 06.7 - Water | E46: 06.7 - Water
B47: 06.8 | C47: Sanitation | D47: 06.8 - Sanitation | E47: 06.8 - Sanitation
B48: Vote 07
B49: Vote 08
B50: Vote 09
B51: Vote 10
B52: Vote 11
B53: Vote 12
B54: Vote 13
B55: Vote 14
B56: Vote 15 | C56: Other

Sheet Contacts
A1: ='Template names'!$B$63&" - "&" Contact Information" -> LIM353 Molemole - Contact Information
A3: A. GENERAL INFORMATION
A4: Municipality | B4: ='Template names'!$B$63 -> LIM353 Molemole | C4: Set name on 'Instructions' sheet
A6: Grade | C6: 1 Grade in terms of the Remuneration of Public Office Bearers Act.
A8: Province | B8: =IF(B4>" ",VLOOKUP(B4,'Lookup and lists'!B29:C312,2, FALSE)," ") -> LIM LIMPOPO
A10: Web Address
A12: e-mail Address
A14: B. CONTACT INFORMATION
A15: Postal address:
A16: P.O. Box
A17: City / Town
A18: Postal Code
A20: Street address
A21: Building
A22: Street No. & Name
A23: City / Town
A24: Postal Code
A26: General Contacts
A27: Telephone number
A28: Fax number
A30: C. POLITICAL LEADERSHIP
A31: Speaker: | C31: Secretary/PA to the Speaker:
A32: ID Number | B32: 810311 0466 087 | C32: ID Number | D32: 820119 0609 087
A33: Title | B33: Mrs | C33: Title | D33: Ms
A34: Name | B34: MATLOU DIKELEDI | C34: Name | D34: MACHAKA SEBOLLA
A35: Telephone number | B35: 015 501 0243 | C35: Telephone number | D35: 015 501 0243
A36: Cell number | B36: 060 876 1553 | C36: Cell number | D36: 079 728 8360
A37: Fax number | B37: 015 501 0419 | C37: Fax number | D37: 015 501 0419
A38: E-mail address | B38: dikeledipakgadi@gmail.com | C38: E-mail address | D38: machakas@molemole.gov.za
A40: Mayor/Executive Mayor: | C40: Secretary/PA to the Mayor/Executive Mayor:
A41: ID Number | B41: 660312 5428 081 | C41: ID Number | D41: 850930 1072 080
A42: Title | B42: Mr | C42: Title | D42: Ms
A43: Name | B43: PAYA E | C43: Name | D43: RATHETE MAKETA
A44: Telephone number | B44: 015 501 0243 | C44: Telephone number | D44: 015 501 0243
A45: Cell number | B45: 082 474 2858 | C45: Cell number | D45: 072 958 1970
A46: Fax number | B46: 086 515 8809 | C46: Fax number | D46: 015 501 0419
A47: E-mail address | B47: payae@molemole.gov.za | C47: E-mail address | D47: rathetem@molemole.go.za
A49: Deputy Mayor/Executive Mayor: | C49: Secretary/PA to the Deputy Mayor/Executive Mayor:
A50: ID Number | C50: ID Number
A51: Title | C51: Title
A52: Name | C52: Name
A53: Telephone number | C53: Telephone number
A54: Cell number | C54: Cell number
A55: Fax number | C55: Fax number
A56: E-mail address | C56: E-mail address
A58: D. MANAGEMENT LEADERSHIP
A59: Municipal Manager: | C59: Secretary/PA to the Municipal Manager:
A60: ID Number | B60: 741022 5373 087 | C60: ID Number | D60: 720712 0880 087
A61: Title | B61: Mr | C61: Title | D61: Mrs
A62: Name | B62: MAKGATO KGABO EMMANUEL | C62: Name | D62: SEABELA SUSAN
A63: Telephone number | B63: 015 501 0243 | C63: Telephone number | D63: 015 501 0243
A64: Cell number | B64: 082 619 5734 | C64: Cell number | D64: 079 217 3250
A65: Fax number | B65: 015 501 0419 | C65: Fax number | D65: 015 501 0419
A66: E-mail address | B66: MakgatoKE@molemole.gov.za | C66: E-mail address | D66: lebepes@molemole.gov.za
A68: Chief Financial Officer | C68: Secretary/PA to the Chief Financial Officer
A69: ID Number | B69: 840716 0427 083 | C69: ID Number | D69: 900906 1348 084
A70: Title | B70: Miss | C70: Title | D70: Miss
A71: Name | B71: ZULU KCW | C71: Name | D71: MAROPENG PHOSA
A72: Telephone number | B72: 015 501 0243 | C72: Telephone number | D72: 015 501 0243
A73: Cell number | B73: 063 878 8894 | C73: Cell number | D73: 073 916 3639
A74: Fax number | B74: 015 501 0419 | C74: Fax number | D74: 015 501 0419
A75: E-mail address | B75: zuluk@molemole.gov.za | C75: E-mail address | D75: phosam@molemole.gov.za
A77: Official responsible for submitting financial information | C77: Official responsible for submitting financial information
A78: ID Number | B78: 820214 0303 086 | C78: ID Number
A79: Title | B79: Mrs | C79: Title
A80: Name | B80: WISO PORTIA | C80: Name
A81: Telephone number | B81: 015 501 0243 | C81: Telephone number
A82: Cell number | B82: 082 488 3823 | C82: Cell number
A83: Fax number | B83: 015 501 0419 | C83: Fax number
A84: E-mail address | B84: mamabolomp@molemole.gov.za | C84: E-mail address
A85: Official responsible for submitting financial information | C85: Official responsible for submitting financial information
A86: ID Number | C86: ID Number
A87: Title | C87: Title
A88: Name | C88: Name
A89: Telephone number | C89: Telephone number
A90: Cell number | C90: Cell number
A91: Fax number | C91: Fax number
A92: E-mail address | C92: E-mail address
A93: Official responsible for submitting financial information | C93: Official responsible for submitting financial information
A94: ID Number | C94: ID Number
A95: Title | C95: Title
A96: Name | C96: Name
A97: Telephone number | C97: Telephone number
A98: Cell number | C98: Cell number
A99: Fax number | C99: Fax number
A100: E-mail address | C100: E-mail address
A101: Official responsible for submitting financial information | C101: Official responsible for submitting financial information
A102: ID Number | C102: ID Number
A103: Title | C103: Title
A104: Name | C104: Name
A105: Telephone number | C105: Telephone number
A106: Cell number | C106: Cell number
A107: Fax number | C107: Fax number
A108: E-mail address | C108: E-mail address
A109: Official responsible for submitting financial information | C109: Official responsible for submitting financial information
A110: ID Number | C110: ID Number
A111: Title | C111: Title
A112: Name | C112: Name
A113: Telephone number | C113: Telephone number
A114: Cell number | C114: Cell number
A115: Fax number | C115: Fax number
A116: E-mail address | C116: E-mail address
A117: Official responsible for submitting financial information | C117: Official responsible for submitting financial information
A118: ID Number | C118: ID Number
A119: Title | C119: Title
A120: Name | C120: Name
A121: Telephone number | C121: Telephone number
A122: Cell number | C122: Cell number
A123: Fax number | C123: Fax number
A124: E-mail address | C124: E-mail address
A125: Official responsible for submitting financial information | C125: Official responsible for submitting financial information
A126: ID Number | C126: ID Number
A127: Title | C127: Title
A128: Name | C128: Name
A129: Telephone number | C129: Telephone number
A130: Cell number | C130: Cell number
A131: Fax number | C131: Fax number
A132: E-mail address | C132: E-mail address
A133: Official responsible for submitting financial information
A134: ID Number
A135: Title
A136: Name
A137: Telephone number
A138: Cell number
A139: Fax number
A140: E-mail address
H170: 14/07/2023

Sheet B1-Sum
A1: =muni&" - "&adjsum&" - "&Date -> LIM353 Molemole - Table B1 Adjustments Budget Summary - 14/07/2023
A2: =desc -> Description | B2: =Head2 -> Budget Year 2022/23 | K2: =Head10 -> Budget Year +1 2023/24 | L2: =Head11 -> Budget Year +2 2024/25
B3: =Head6 -> Original Budget | C3: =Head54 -> Prior Adjusted | D3: =Head51 -> Accum. Funds | E3: =Head52 -> Multi-year capital | F3: =Head53 -> Unfore. Unavoid. | G3: =Head55 -> Nat. or Prov. Govt | H3: =Head50 -> Other Adjusts. | I3: =Head56 -> Total Adjusts. | J3: =Head7 -> Adjusted Budget | K3: =Head7 -> Adjusted Budget | L3: =Head7 -> Adjusted Budget
C4: 1 | D4: 2 | E4: 3 | F4: 4 | G4: 5 | H4: 6 | I4: 7 | J4: 8
A5: R thousands | B5: A | C5: A1 | D5: B | E5: C | F5: D | G5: E | H5: F | I5: G | J5: H
A6: Financial Performance
A7: Property rates | B7: =SUM('B4-FinPerf RE'!C7:C7) -> 49396847 | C7: =SUM('B4-FinPerf RE'!D7:D7) -> 0 | D7: =SUM('B4-FinPerf RE'!E7:E7) -> 0 | E7: =SUM('B4-FinPerf RE'!F7:F7) -> 0 | F7: =SUM('B4-FinPerf RE'!G7:G7) -> 0 | G7: =SUM('B4-FinPerf RE'!H7:H7) -> 0 | H7: =SUM('B4-FinPerf RE'!I7:I7) -> -8311195 | I7: =SUM(D7:H7) -> -8311195 | J7: =IF(C7=0,B7+I7,C7+I7) -> 41085652 | K7: =SUM('B4-FinPerf RE'!L7:L7) -> 46063444 | L7: =SUM('B4-FinPerf RE'!M7:M7) -> 48366617
A8: Service charges | B8: =SUM('B4-FinPerf RE'!C8:C11) -> 25590177 | C8: =SUM('B4-FinPerf RE'!D8:D11) -> 0 | D8: =SUM('B4-FinPerf RE'!E8:E11) -> 0 | E8: =SUM('B4-FinPerf RE'!F8:F11) -> 0 | F8: =SUM('B4-FinPerf RE'!G8:G11) -> 0 | G8: =SUM('B4-FinPerf RE'!H8:H11) -> 0 | H8: =SUM('B4-FinPerf RE'!I8:I11) -> 0 | I8: =SUM('B4-FinPerf RE'!J8:J11) -> 0 | J8: =SUM('B4-FinPerf RE'!K8:K11) -> 25590177 | K8: =SUM('B4-FinPerf RE'!L8:L11) -> 15880356 | L8: =SUM('B4-FinPerf RE'!M8:M11) -> 16674375
A9: Investment revenue | B9: ='B4-FinPerf RE'!C14 -> 3000000 | C9: ='B4-FinPerf RE'!D14 -> 0 | D9: ='B4-FinPerf RE'!E14 -> 0 | E9: ='B4-FinPerf RE'!F14 -> 0 | F9: ='B4-FinPerf RE'!G14 -> 0 | G9: ='B4-FinPerf RE'!H14 -> 0 | H9: ='B4-FinPerf RE'!I14 -> 4750000 | I9: 4750000 | J9: 7750000 | K9: ='B4-FinPerf RE'!L14 -> 9600000 | L9: ='B4-FinPerf RE'!M14 -> 7571218
A10: Transfers recognised - operational | B10: ='B4-FinPerf RE'!C20 -> 174457600 | C10: ='B4-FinPerf RE'!D20 -> 0 | D10: ='B4-FinPerf RE'!E20 -> 0 | E10: ='B4-FinPerf RE'!F20 -> 0 | F10: ='B4-FinPerf RE'!G20 -> 0 | G10: ='B4-FinPerf RE'!H20 -> 0 | H10: ='B4-FinPerf RE'!I20 -> 640000 | I10: 640000 | J10: 175097600 | K10: ='B4-FinPerf RE'!L20 -> 183700650 | L10: ='B4-FinPerf RE'!M20 -> 192509050
A11: Other own revenue | B11: ='B4-FinPerf RE'!C13+'B4-FinPerf RE'!C15+'B4-FinPerf RE'!C16+'B4-FinPerf RE'!C17+'B4-FinPerf RE'!C18+'B4-FinPerf RE'!C19+'B4-FinPerf RE'!C21+'B4-FinPerf RE'!C22 -> 12481232 | C11: ='B4-FinPerf RE'!D13+'B4-FinPerf RE'!D15+'B4-FinPerf RE'!D16+'B4-FinPerf RE'!D17+'B4-FinPerf RE'!D18+'B4-FinPerf RE'!D19+'B4-FinPerf RE'!D21+'B4-FinPerf RE'!D22 -> 0 | D11: ='B4-FinPerf RE'!E13+'B4-FinPerf RE'!E15+'B4-FinPerf RE'!E16+'B4-FinPerf RE'!E17+'B4-FinPerf RE'!E18+'B4-FinPerf RE'!E19+'B4-FinPerf RE'!E21+'B4-FinPerf RE'!E22 -> 0 | E11: ='B4-FinPerf RE'!F13+'B4-FinPerf RE'!F15+'B4-FinPerf RE'!F16+'B4-FinPerf RE'!F17+'B4-FinPerf RE'!F18+'B4-FinPerf RE'!F19+'B4-FinPerf RE'!F21+'B4-FinPerf RE'!F22 -> 0 | F11: ='B4-FinPerf RE'!G13+'B4-FinPerf RE'!G15+'B4-FinPerf RE'!G16+'B4-FinPerf RE'!G17+'B4-FinPerf RE'!G18+'B4-FinPerf RE'!G19+'B4-FinPerf RE'!G21+'B4-FinPerf RE'!G22 -> 0 | G11: ='B4-FinPerf RE'!H13+'B4-FinPerf RE'!H15+'B4-FinPerf RE'!H16+'B4-FinPerf RE'!H17+'B4-FinPerf RE'!H18+'B4-FinPerf RE'!H19+'B4-FinPerf RE'!H21+'B4-FinPerf RE'!H22 -> 0 | H11: ='B4-FinPerf RE'!I13+'B4-FinPerf RE'!I15+'B4-FinPerf RE'!I16+'B4-FinPerf RE'!I17+'B4-FinPerf RE'!I18+'B4-FinPerf RE'!I19+'B4-FinPerf RE'!I21+'B4-FinPerf RE'!I22 -> 632033 | I11: 632033 | J11: 13113265 | K11: ='B4-FinPerf RE'!L13+'B4-FinPerf RE'!L15+'B4-FinPerf RE'!L16+'B4-FinPerf RE'!L17+'B4-FinPerf RE'!L18+'B4-FinPerf RE'!L19+'B4-FinPerf RE'!L21+'B4-FinPerf RE'!L22 -> 19532354 | L11: ='B4-FinPerf RE'!M13+'B4-FinPerf RE'!M15+'B4-FinPerf RE'!M16+'B4-FinPerf RE'!M17+'B4-FinPerf RE'!M18+'B4-FinPerf RE'!M19+'B4-FinPerf RE'!M21+'B4-FinPerf RE'!M22 -> 20507841
A12: Total Revenue (excluding capital transfers and contributions) | B12: =SUM(B7:B11) -> 264925856 | C12: 0 | D12: 0 | E12: 0 | F12: 0 | G12: 0 | H12: -2289162 | I12: -2289162 | J12: 262636694 | K12: 274776804 | L12: 285629101
A13: Employee costs | B13: ='B4-FinPerf RE'!C26 -> 104547620 | C13: ='B4-FinPerf RE'!D26 -> 0 | D13: ='B4-FinPerf RE'!E26 -> 0 | E13: ='B4-FinPerf RE'!F26 -> 0 | F13: ='B4-FinPerf RE'!G26 -> 0 | G13: ='B4-FinPerf RE'!H26 -> 0 | H13: ='B4-FinPerf RE'!I26 -> -1021804 | I13: =SUM(D13:H13) -> -1021804 | J13: 103525816 | K13: ='B4-FinPerf RE'!L26 -> 107286637 | L13: ='B4-FinPerf RE'!M26 -> 117566966
A14: Remuneration of councillors | B14: ='B4-FinPerf RE'!C27 -> 13973932 | C14: ='B4-FinPerf RE'!D27 -> 0 | D14: ='B4-FinPerf RE'!E27 -> 0 | E14: ='B4-FinPerf RE'!F27 -> 0 | F14: ='B4-FinPerf RE'!G27 -> 0 | G14: ='B4-FinPerf RE'!H27 -> 0 | H14: ='B4-FinPerf RE'!I27 -> 504000 | I14: 504000 | J14: 14477932 | K14: ='B4-FinPerf RE'!L27 -> 19640387 | L14: ='B4-FinPerf RE'!M27 -> 20620415
A15: Depreciation & asset impairment | B15: ='B4-FinPerf RE'!C29 -> 19813041 | C15: ='B4-FinPerf RE'!D29 -> 0 | D15: ='B4-FinPerf RE'!E29 -> 0 | E15: ='B4-FinPerf RE'!F29 -> 0 | F15: ='B4-FinPerf RE'!G29 -> 0 | G15: ='B4-FinPerf RE'!H29 -> 0 | H15: ='B4-FinPerf RE'!I29 -> 0 | I15: 0 | J15: 19813041 | K15: ='B4-FinPerf RE'!L29 -> 22082155 | L15: ='B4-FinPerf RE'!M29 -> 23186308
A16: Finance charges | B16: ='B4-FinPerf RE'!C30 -> 116842 | C16: ='B4-FinPerf RE'!D30 -> 0 | D16: ='B4-FinPerf RE'!E30 -> 0 | E16: ='B4-FinPerf RE'!F30 -> 0 | F16: ='B4-FinPerf RE'!G30 -> 0 | G16: ='B4-FinPerf RE'!H30 -> 0 | H16: ='B4-FinPerf RE'!I30 -> 9600 | I16: 9600 | J16: 126442 | K16: ='B4-FinPerf RE'!L30 -> 132765 | L16: ='B4-FinPerf RE'!M30 -> 139404
A17: Inventory consumed and bulk purchases | B17: =SUM('B4-FinPerf RE'!C31:C32) -> 19730791 | C17: =SUM('B4-FinPerf RE'!D31:D32) -> 0 | D17: =SUM('B4-FinPerf RE'!E31:E32) -> 0 | E17: =SUM('B4-FinPerf RE'!F31:F32) -> 0 | F17: =SUM('B4-FinPerf RE'!G31:G32) -> 0 | G17: =SUM('B4-FinPerf RE'!H31:H32) -> 0 | H17: =SUM('B4-FinPerf RE'!I31:I32) -> 555511 | I17: 555511 | J17: 20286302 | K17: =SUM('B4-FinPerf RE'!L31:L32) -> 22029095 | L17: =SUM('B4-FinPerf RE'!M31:M32) -> 22735916
A18: Transfers and grants | B18: ='B4-FinPerf RE'!C34 -> 0 | C18: ='B4-FinPerf RE'!D34 -> 0 | D18: ='B4-FinPerf RE'!E34 -> 0 | E18: ='B4-FinPerf RE'!F34 -> 0 | F18: ='B4-FinPerf RE'!G34 -> 0 | G18: ='B4-FinPerf RE'!H34 -> 0 | H18: ='B4-FinPerf RE'!I34 -> 0 | I18: 0 | J18: 0 | K18: ='B4-FinPerf RE'!L34 -> 0 | L18: ='B4-FinPerf RE'!M34 -> 0
A19: Other expenditure | B19: ='B4-FinPerf RE'!C37-SUM('B1-Sum'!B13:B18) -> 86523951 | C19: ='B4-FinPerf RE'!D37-SUM('B1-Sum'!C13:C18) -> 0 | D19: ='B4-FinPerf RE'!E37-SUM('B1-Sum'!D13:D18) -> 0 | E19: ='B4-FinPerf RE'!F37-SUM('B1-Sum'!E13:E18) -> 0 | F19: ='B4-FinPerf RE'!G37-SUM('B1-Sum'!F13:F18) -> 0 | G19: ='B4-FinPerf RE'!H37-SUM('B1-Sum'!G13:G18) -> 0 | H19: ='B4-FinPerf RE'!I37-SUM('B1-Sum'!H13:H18) -> 573212 | I19: 573212 | J19: 87097163 | K19: ='B4-FinPerf RE'!L37-SUM('B1-Sum'!K13:K18) -> 89773772 | L19: ='B4-FinPerf RE'!M37-SUM('B1-Sum'!L13:L18) -> 87319330
A20: Total Expenditure | B20: =SUM(B13:B19) -> 244706177 | C20: 0 | D20: 0 | E20: 0 | F20: 0 | G20: 0 | H20: 620519 | I20: 620519 | J20: 245326696 | K20: 260944811 | L20: 271568339
A21: Surplus/(Deficit) | B21: =B12-B20 -> 20219679 | C21: 0 | D21: 0 | E21: 0 | F21: 0 | G21: 0 | H21: -2909681 | I21: -2909681 | J21: 17309998 | K21: 13831993 | L21: 14060762
A22: ='B4-FinPerf RE'!A40 -> Transfers and subsidies - capital (monetary allocations) (National / Provincial and District) | B22: ='B4-FinPerf RE'!C40 -> 37802400 | C22: ='B4-FinPerf RE'!D40 -> 0 | D22: ='B4-FinPerf RE'!E40 -> 0 | E22: ='B4-FinPerf RE'!F40 -> 0 | F22: ='B4-FinPerf RE'!G40 -> 0 | G22: ='B4-FinPerf RE'!H40 -> 0 | H22: ='B4-FinPerf RE'!I40 -> 7116443 | I22: =SUM(D22:H22) -> 7116443 | J22: =IF(C22=0,B22+I22,C22+I22) -> 44918843 | K22: ='B4-FinPerf RE'!L40 -> 58548350 | L22: ='B4-FinPerf RE'!M40 -> 51508950
A23: ='B4-FinPerf RE'!A41&" & "&'B4-FinPerf RE'!A42 -> Transfers and subsidies - capital (monetary allocations) (National / Provincial Departmental Agencies, Households, Non-profit Institutions, Private Enterprises, Public Corporatons, Higher Educational Institutions) & Transfers and subsidies - capital (in-kind - all) | B23: =SUM('B4-FinPerf RE'!C41:C42) -> 0 | C23: =SUM('B4-FinPerf RE'!D41:D42) -> 0 | D23: =SUM('B4-FinPerf RE'!E41:E42) -> 0 | E23: =SUM('B4-FinPerf RE'!F41:F42) -> 0 | F23: =SUM('B4-FinPerf RE'!G41:G42) -> 0 | G23: =SUM('B4-FinPerf RE'!H41:H42) -> 0 | H23: =SUM('B4-FinPerf RE'!I41:I42) -> 0 | I23: =SUM(D23:H23) -> 0 | J23: =IF(C23=0,B23+I23,C23+I23) -> 0 | K23: =SUM('B4-FinPerf RE'!L41:L42) -> 0 | L23: =SUM('B4-FinPerf RE'!M41:M42) -> 0
A24: Surplus/(Deficit) after capital transfers & contributions | B24: =B21+SUM(B22:B23) -> 58022079 | C24: 0 | D24: 0 | E24: 0 | F24: 0 | G24: 0 | H24: 4206762 | I24: =SUM(D24:H24) -> 4206762 | J24: =IF(C24=0,B24+I24,C24+I24) -> 62228841 | K24: 72380343 | L24: 65569712
A25: Share of surplus/ (deficit) of associate | B25: ='B4-FinPerf RE'!C48 -> 0 | C25: ='B4-FinPerf RE'!D48 -> 0 | D25: ='B4-FinPerf RE'!E48 -> 0 | E25: ='B4-FinPerf RE'!F48 -> 0 | F25: ='B4-FinPerf RE'!G48 -> 0 | G25: ='B4-FinPerf RE'!H48 -> 0 | H25: ='B4-FinPerf RE'!I48 -> 0 | I25: =SUM(D25:H25) -> 0 | J25: =IF(C25=0,B25+I25,C25+I25) -> 0 | K25: ='B4-FinPerf RE'!L48 -> 0 | L25: ='B4-FinPerf RE'!M48 -> 0
A26: Surplus/ (Deficit) for the year | B26: =B24+B25 -> 58022079 | C26: 0 | D26: 0 | E26: 0 | F26: 0 | G26: 0 | H26: 4206762 | I26: 4206762 | J26: 62228841 | K26: 72380343 | L26: 65569712
A28: Capital expenditure & funds sources
A29: Capital expenditure | B29: ='B5-Capex'!C42 -> 58022400 | C29: ='B5-Capex'!D42 -> 0 | D29: ='B5-Capex'!E42 -> 0 | E29: ='B5-Capex'!F42 -> 0 | F29: ='B5-Capex'!G42 -> 0 | G29: ='B5-Capex'!H42 -> 0 | H29: ='B5-Capex'!I42 -> 5308225 | I29: =SUM(D29:H29) -> 5308225 | J29: =IF(C29=0,B29+I29,C29+I29) -> 63330625 | K29: ='B5-Capex'!L42 -> 72380350 | L29: ='B5-Capex'!M42 -> 65569950
A30: Transfers recognised - capital | B30: ='B5-Capex'!C72 -> 38502400 | C30: ='B5-Capex'!D72 -> 0 | D30: ='B5-Capex'!E72 -> 0 | E30: ='B5-Capex'!F72 -> 0 | F30: ='B5-Capex'!G72 -> 0 | G30: ='B5-Capex'!H72 -> 0 | H30: ='B5-Capex'!I72 -> 6861292 | I30: =SUM(D30:H30) -> 6861292 | J30: =IF(C30=0,B30+I30,C30+I30) -> 45363692 | K30: ='B5-Capex'!L72 -> 58548350 | L30: ='B5-Capex'!M72 -> 51508950
A32: Borrowing | B32: ='B5-Capex'!C74 -> 0 | C32: ='B5-Capex'!D74 -> 0 | D32: ='B5-Capex'!E74 -> 0 | E32: ='B5-Capex'!F74 -> 0 | F32: ='B5-Capex'!G74 -> 0 | G32: ='B5-Capex'!H74 -> 0 | H32: ='B5-Capex'!I74 -> 0 | I32: =SUM(D32:H32) -> 0 | J32: =IF(C32=0,B32+I32,C32+I32) -> 0 | K32: ='B5-Capex'!L74 -> 0 | L32: ='B5-Capex'!M74 -> 0
A33: Internally generated funds | B33: ='B5-Capex'!C75 -> 19520000 | C33: ='B5-Capex'!D75 -> 0 | D33: ='B5-Capex'!E75 -> 0 | E33: ='B5-Capex'!F75 -> 0 | F33: ='B5-Capex'!G75 -> 0 | G33: ='B5-Capex'!H75 -> 0 | H33: ='B5-Capex'!I75 -> -1553067 | I33: =SUM(D33:H33) -> -1553067 | J33: =IF(C33=0,B33+I33,C33+I33) -> 17966933 | K33: ='B5-Capex'!L75 -> 13832000 | L33: ='B5-Capex'!M75 -> 14061000
A34: Total sources of capital funds | B34: =+B30+B32+B33 -> 58022400 | C34: =+C30+C32+C33 -> 0 | D34: 0 | E34: 0 | F34: 0 | G34: 0 | H34: 5308225 | I34: =SUM(D34:H34) -> 5308225 | J34: =IF(C34=0,B34+I34,C34+I34) -> 63330625 | K34: 72380350 | L34: 65569950
A36: Financial position
A37: Total current assets | B37: ='B6-FinPos'!C14 -> 235555324 | C37: ='B6-FinPos'!D14 -> 0 | D37: ='B6-FinPos'!E14 -> 0 | E37: ='B6-FinPos'!F14 -> 0 | F37: ='B6-FinPos'!G14 -> 0 | G37: ='B6-FinPos'!H14 -> 0 | H37: ='B6-FinPos'!I14 -> -12141674 | I37: =SUM(D37:H37) -> -12141674 | J37: =IF(C37=0,B37+I37,C37+I37) -> 223413650 | K37: ='B6-FinPos'!L14 -> 247514704 | L37: ='B6-FinPos'!M14 -> 251372580
A38: Total non current assets | B38: ='B6-FinPos'!C26 -> 345582025 | C38: ='B6-FinPos'!D26 -> 0 | D38: ='B6-FinPos'!E26 -> 0 | E38: ='B6-FinPos'!F26 -> 0 | F38: ='B6-FinPos'!G26 -> 0 | G38: ='B6-FinPos'!H26 -> 0 | H38: ='B6-FinPos'!I26 -> 4248225 | I38: =SUM(D38:H38) -> 4248225 | J38: =IF(C38=0,B38+I38,C38+I38) -> 349830250 | K38: ='B6-FinPos'!L26 -> 404669350 | L38: ='B6-FinPos'!M26 -> 413036683
A39: Total current liabilities | B39: ='B6-FinPos'!C36 -> 42900301 | C39: ='B6-FinPos'!D36 -> 0 | D39: ='B6-FinPos'!E36 -> 0 | E39: ='B6-FinPos'!F36 -> 0 | F39: ='B6-FinPos'!G36 -> 0 | G39: ='B6-FinPos'!H36 -> 0 | H39: ='B6-FinPos'!I36 -> 5069208 | I39: =SUM(D39:H39) -> 5069208 | J39: =IF(C39=0,B39+I39,C39+I39) -> 47969509 | K39: ='B6-FinPos'!L36 -> 51649801 | L39: ='B6-FinPos'!M36 -> 54562287
A40: Total non current liabilities | B40: ='B6-FinPos'!C41 -> 30007362 | C40: ='B6-FinPos'!D41 -> 0 | D40: ='B6-FinPos'!E41 -> 0 | E40: ='B6-FinPos'!F41 -> 0 | F40: ='B6-FinPos'!G41 -> 0 | G40: ='B6-FinPos'!H41 -> 0 | H40: ='B6-FinPos'!I41 -> 0 | I40: =SUM(D40:H40) -> 0 | J40: =IF(C40=0,B40+I40,C40+I40) -> 30007362 | K40: ='B6-FinPos'!L41 -> 29998391 | L40: ='B6-FinPos'!M41 -> 32998229
A41: Community wealth/Equity | B41: ='B6-FinPos'!C50 -> 508229686 | C41: ='B6-FinPos'!D50 -> 0 | D41: ='B6-FinPos'!E50 -> 0 | E41: ='B6-FinPos'!F50 -> 0 | F41: ='B6-FinPos'!G50 -> 0 | G41: ='B6-FinPos'!H50 -> 0 | H41: ='B6-FinPos'!I50 -> -12962657 | I41: =SUM(D41:H41) -> -12962657 | J41: =IF(C41=0,B41+I41,C41+I41) -> 495267029 | K41: ='B6-FinPos'!L50 -> 570535862 | L41: ='B6-FinPos'!M50 -> 576848747
A43: Cash flows
A44: Net cash from (used) operating | B44: ='B7-CFlow'!C19 -> 75024910 | C44: ='B7-CFlow'!D19 -> 0 | D44: ='B7-CFlow'!E19 -> 0 | E44: ='B7-CFlow'!F19 -> 0 | F44: ='B7-CFlow'!G19 -> 0 | G44: ='B7-CFlow'!H19 -> 0 | H44: ='B7-CFlow'!I19 -> 9074469 | I44: =SUM(D44:H44) -> 9074469 | J44: =IF(C44=0,B44+I44,C44+I44) -> 84099379 | K44: ='B7-CFlow'!L19 -> 558301018 | L44: ='B7-CFlow'!M19 -> 570939883
A45: Net cash from (used) investing | B45: ='B7-CFlow'!C29 -> 0 | C45: ='B7-CFlow'!D29 -> 0 | D45: ='B7-CFlow'!E29 -> 0 | E45: ='B7-CFlow'!F29 -> 0 | F45: ='B7-CFlow'!G29 -> 0 | G45: ='B7-CFlow'!H29 -> 0 | H45: ='B7-CFlow'!I29 -> -5308225 | I45: =SUM(D45:H45) -> -5308225 | J45: =IF(C45=0,B45+I45,C45+I45) -> -5308225 | K45: ='B7-CFlow'!L29 -> 0 | L45: ='B7-CFlow'!M29 -> 0
A46: Net cash from (used) financing | B46: ='B7-CFlow'!C38 -> 0 | C46: ='B7-CFlow'!D38 -> 0 | D46: ='B7-CFlow'!E38 -> 0 | E46: ='B7-CFlow'!F38 -> 0 | F46: ='B7-CFlow'!G38 -> 0 | G46: ='B7-CFlow'!H38 -> 0 | H46: ='B7-CFlow'!I38 -> 0 | I46: =SUM(D46:H46) -> 0 | J46: =IF(C46=0,B46+I46,C46+I46) -> 0 | K46: ='B7-CFlow'!L38 -> 0 | L46: ='B7-CFlow'!M38 -> 0
A47: Cash/cash equivalents at the year end | B47: ='B7-CFlow'!C42 -> 164574052 | C47: ='B7-CFlow'!D42 -> 0 | D47: ='B7-CFlow'!E42 -> 0 | E47: ='B7-CFlow'!F42 -> 0 | F47: ='B7-CFlow'!G42 -> 0 | G47: ='B7-CFlow'!H42 -> 0 | H47: ='B7-CFlow'!I42 -> 19484846 | I47: =SUM(D47:H47) -> 19484846 | J47: =IF(C47=0,B47+I47,C47+I47) -> 184058898 | K47: ='B7-CFlow'!L42 -> 677173020 | L47: ='B7-CFlow'!M42 -> 687020842
A49: Cash backing/surplus reconciliation
A50: Cash and investments available | B50: ='B8-ResRecon'!C10 -> 106551365 | C50: ='B8-ResRecon'!D10 -> 0 | D50: ='B8-ResRecon'!E10 -> 0 | E50: ='B8-ResRecon'!F10 -> 0 | F50: ='B8-ResRecon'!G10 -> 0 | G50: ='B8-ResRecon'!H10 -> 0 | H50: ='B8-ResRecon'!I10 -> 16825738 | I50: =SUM(D50:H50) -> 16825738 | J50: =IF(C50=0,B50+I50,C50+I50) -> 123377103 | K50: ='B8-ResRecon'!L10 -> 135175666 | L50: ='B8-ResRecon'!M10 -> 133200946
A51: Application of cash and investments | B51: ='B8-ResRecon'!C20 -> -77756716 | C51: ='B8-ResRecon'!D20 -> 0 | D51: ='B8-ResRecon'!E20 -> 0 | E51: ='B8-ResRecon'!F20 -> 0 | F51: ='B8-ResRecon'!G20 -> 0 | G51: ='B8-ResRecon'!H20 -> 0 | H51: ='B8-ResRecon'!I20 -> 38835011 | I51: =SUM(D51:H51) -> 38835011 | J51: =IF(C51=0,B51+I51,C51+I51) -> -38921705 | K51: ='B8-ResRecon'!L20 -> -51431410 | L51: ='B8-ResRecon'!M20 -> -53968214
A52: Balance - surplus (shortfall) | B52: =B50-B51 -> 184308081 | C52: 0 | D52: 0 | E52: 0 | F52: 0 | G52: 0 | H52: -22009273 | I52: -22009273 | J52: 162298808 | K52: 186607076 | L52: 187169160
A54: Asset Management
A55: Asset register summary (WDV) | B55: ='B9-Asset'!C167 -> 339958165 | C55: ='B9-Asset'!D167 -> 0 | D55: ='B9-Asset'!E167 -> 0 | E55: ='B9-Asset'!F167 -> 0 | F55: ='B9-Asset'!G167 -> 0 | G55: ='B9-Asset'!H167 -> 0 | H55: ='B9-Asset'!I167 -> 4248225 | I55: =SUM(D55:H55) -> 4248225 | J55: =IF(C55=0,B55+I55,C55+I55) -> 344206390 | K55: ='B9-Asset'!L167 -> 386848553 | L55: ='B9-Asset'!M167 -> 394324847
A56: Depreciation | B56: ='B9-Asset'!C170 -> 19813041 | C56: ='B9-Asset'!D170 -> 0 | D56: ='B9-Asset'!E170 -> 0 | E56: ='B9-Asset'!F170 -> 0 | F56: ='B9-Asset'!G170 -> 0 | G56: ='B9-Asset'!H170 -> 0 | H56: ='B9-Asset'!I170 -> 0 | I56: =SUM(D56:H56) -> 0 | J56: =IF(C56=0,B56+I56,C56+I56) -> 19813041 | K56: ='B9-Asset'!L170 -> 22082155 | L56: ='B9-Asset'!M170 -> 23186308
A57: Renewal and Upgrading of Existing Assets | B57: ='B9-Asset'!C39+'B9-Asset'!C71 -> 12014381 | C57: ='B9-Asset'!D39+'B9-Asset'!D71 -> 0 | D57: ='B9-Asset'!E39+'B9-Asset'!E71 -> 0 | E57: ='B9-Asset'!F39+'B9-Asset'!F71 -> 0 | F57: ='B9-Asset'!G39+'B9-Asset'!G71 -> 0 | G57: ='B9-Asset'!H39+'B9-Asset'!H71 -> 0 | H57: ='B9-Asset'!I39+'B9-Asset'!I71 -> 0 | I57: =SUM(D57:H57) -> 0 | J57: =IF(C57=0,B57+I57,C57+I57) -> 12014381 | K57: ='B9-Asset'!L39+'B9-Asset'!L71 -> 15685619 | L57: ='B9-Asset'!M39+'B9-Asset'!M71 -> 14835790
A58: Repairs and Maintenance | B58: ='B9-Asset'!C171 -> 15144089 | C58: ='B9-Asset'!D171 -> 0 | D58: ='B9-Asset'!E171 -> 0 | E58: ='B9-Asset'!F171 -> 0 | F58: ='B9-Asset'!G171 -> 0 | G58: ='B9-Asset'!H171 -> 0 | H58: ='B9-Asset'!I171 -> -571277 | I58: =SUM(D58:H58) -> -571277 | J58: =IF(C58=0,B58+I58,C58+I58) -> 14572812 | K58: ='B9-Asset'!L171 -> 15630000 | L58: ='B9-Asset'!M171 -> 16361500
A60: Free services
A61: Cost of Free Basic Services provided | B61: ='B10-SerDel'!C62 -> -4400576 | C61: ='B10-SerDel'!D62 -> 0 | D61: ='B10-SerDel'!E62 -> 0 | E61: ='B10-SerDel'!F62 -> 0 | F61: ='B10-SerDel'!G62 -> 0 | G61: ='B10-SerDel'!H62 -> 0 | H61: ='B10-SerDel'!I62 -> -5500000 | I61: ='B10-SerDel'!J62 -> -5500000 | J61: ='B10-SerDel'!K62 -> -9900576 | K61: ='B10-SerDel'!L62 -> 4371840 | L61: ='B10-SerDel'!M62 -> 4590432
A62: Revenue cost of free services provided | B62: ='B10-SerDel'!C81 -> -1942860 | C62: ='B10-SerDel'!D81 -> 0 | D62: ='B10-SerDel'!E81 -> 0 | E62: ='B10-SerDel'!F81 -> 0 | F62: ='B10-SerDel'!G81 -> 0 | G62: ='B10-SerDel'!H81 -> 0 | H62: ='B10-SerDel'!I81 -> 1942860 | I62: ='B10-SerDel'!J81 -> 1942860 | J62: ='B10-SerDel'!K81 -> 0 | K62: ='B10-SerDel'!L81 -> 8145033 | L62: ='B10-SerDel'!M81 -> 8552286
A63: Households below minimum service level
A64: Water: | B64: ='B10-SerDel'!C16 -> 0 | C64: ='B10-SerDel'!D16 -> 0 | D64: ='B10-SerDel'!E16 -> 0 | E64: ='B10-SerDel'!F16 -> 0 | F64: ='B10-SerDel'!G16 -> 0 | G64: ='B10-SerDel'!H16 -> 0 | H64: ='B10-SerDel'!I16 -> 0 | I64: =SUM(D64:H64) -> 0 | J64: =IF(C64=0,B64+I64,C64+I64) -> 0 | K64: ='B10-SerDel'!L16 -> 0 | L64: ='B10-SerDel'!M16 -> 0
A65: Sanitation/sewerage: | B65: ='B10-SerDel'!C28 -> 0 | C65: ='B10-SerDel'!D28 -> 0 | D65: ='B10-SerDel'!E28 -> 0 | E65: ='B10-SerDel'!F28 -> 0 | F65: ='B10-SerDel'!G28 -> 0 | G65: ='B10-SerDel'!H28 -> 0 | H65: ='B10-SerDel'!I28 -> 0 | I65: =SUM(D65:H65) -> 0 | J65: =IF(C65=0,B65+I65,C65+I65) -> 0 | K65: ='B10-SerDel'!L28 -> 0 | L65: ='B10-SerDel'!M28 -> 0
A66: Energy: | B66: ='B10-SerDel'!C37 -> 0 | C66: ='B10-SerDel'!D37 -> 0 | D66: ='B10-SerDel'!E37 -> 0 | E66: ='B10-SerDel'!F37 -> 0 | F66: ='B10-SerDel'!G37 -> 0 | G66: ='B10-SerDel'!H37 -> 0 | H66: ='B10-SerDel'!I37 -> 0 | I66: =SUM(D66:H66) -> 0 | J66: =IF(C66=0,B66+I66,C66+I66) -> 0 | K66: ='B10-SerDel'!L37 -> 0 | L66: ='B10-SerDel'!M37 -> 0
A67: Refuse: | B67: ='B10-SerDel'!C47 -> 0 | C67: ='B10-SerDel'!D47 -> 0 | D67: ='B10-SerDel'!E47 -> 0 | E67: ='B10-SerDel'!F47 -> 0 | F67: ='B10-SerDel'!G47 -> 0 | G67: ='B10-SerDel'!H47 -> 0 | H67: ='B10-SerDel'!I47 -> 0 | I67: =SUM(D67:H67) -> 0 | J67: =IF(C67=0,B67+I67,C67+I67) -> 0 | K67: ='B10-SerDel'!L47 -> 0 | L67: ='B10-SerDel'!M47 -> 0
A69: References
A70: 1. Only complete if a previous adjusted budget has been approved in the same financial year. Reflect most recent adjusted budget.
A71: 2. Additional cash-backed accumulated funds/unspent funds (MFMA section 18(1)(b) and section 28(2)(e)) identified after the Original Budget approved and after annual financial statements audited (note: only where underspending could not reasonably have been foreseen)
A72: 3. Increases of funds approved under MFMA section 31
A73: 4. Adjustments approved in accordance with MFMA section 29
A74: 5. Adjustments to transfers from National or Provincial Government
A75: 6. Adjusts. = 'Other' Adjustments proposed to be approved; including revenue under-collection (MFMA section 28(2)(a)); additional revenue appropriation on existing programmes (section 28(2))(b); projected savings (section 28(2)(d)); error correction (section 28(2)(f))
A76: 7. G = B + C + D + E + F
A77: 8. Adjusted Budget H = (A or A1/2 etc) + G

Sheet B2-FinPerf SC
A1: =muni&" - "&_ADJ3&" - "&Date -> LIM353 Molemole - Table B2 Adjustments Budget Financial Performance (functional classification) - 14/07/2023
A2: ="Standard "&desc -> Standard Description | B2: =head27 -> Ref | C2: =Head2 -> Budget Year 2022/23 | L2: =Head10 -> Budget Year +1 2023/24 | M2: =Head11 -> Budget Year +2 2024/25
C3: =Head6 -> Original Budget | D3: =Head54 -> Prior Adjusted | E3: =Head51 -> Accum. Funds | F3: =Head52 -> Multi-year capital | G3: =Head53 -> Unfore. Unavoid. | H3: =Head55 -> Nat. or Prov. Govt | I3: =Head50 -> Other Adjusts. | J3: =Head56 -> Total Adjusts. | K3: =Head7 -> Adjusted Budget | L3: =Head7 -> Adjusted Budget | M3: =Head7 -> Adjusted Budget
D4: 5 | E4: =D4+1 -> 6 | F4: 7 | G4: 8 | H4: 9 | I4: 10 | J4: 11 | K4: 12
A5: R thousands | B5: 1, 4 | C5: A | D5: A1 | E5: B | F5: C | G5: D | H5: E | I5: F | J5: G | K5: H
A6: Revenue - Functional
A7: Governance and administration | C7: =SUM(C8:C10) -> 224444747 | D7: =SUM(D8:D10) -> 0 | E7: 0 | F7: 0 | G7: 0 | H7: 0 | I7: -1634075 | J7: =SUM(J8:J10) -> -1634075 | K7: =SUM(K8:K10) -> 222810672 | L7: =SUM(L8:L10) -> 238676209 | M7: =SUM(M8:M10) -> 249018650
A8: Executive and council | C8: =B2B!C8 -> 0 | D8: =B2B!D8 -> 0 | E8: =B2B!E8 -> 0 | F8: =B2B!F8 -> 0 | G8: =B2B!G8 -> 0 | H8: =B2B!H8 -> 0 | I8: =B2B!I8 -> 0 | J8: =SUM(E8:I8) -> 0 | K8: =IF(D8=0,C8+J8,D8+J8) -> 0 | L8: =B2B!L8 -> 0 | M8: =B2B!M8 -> 0
A9: Finance and administration | C9: =B2B!C11 -> 224444747 | D9: =B2B!D11 -> 0 | E9: =B2B!E11 -> 0 | F9: =B2B!F11 -> 0 | G9: =B2B!G11 -> 0 | H9: =B2B!H11 -> 0 | I9: =B2B!I11 -> -1634075 | J9: =SUM(E9:I9) -> -1634075 | K9: =IF(D9=0,C9+J9,D9+J9) -> 222810672 | L9: =B2B!L11 -> 238676209 | M9: =B2B!M11 -> 249018650
A10: Internal audit | C10: =B2B!C25 -> 0 | D10: =B2B!D25 -> 0 | E10: =B2B!E25 -> 0 | F10: =B2B!F25 -> 0 | G10: =B2B!G25 -> 0 | H10: =B2B!H25 -> 0 | I10: =B2B!I25 -> 0 | J10: =SUM(E10:I10) -> 0 | K10: =IF(D10=0,C10+J10,D10+J10) -> 0 | L10: =B2B!L25 -> 0 | M10: =B2B!M25 -> 0
A11: Community and public safety | C11: =SUM(C12:C16) -> 11114485 | D11: =SUM(D12:D16) -> 0 | E11: 0 | F11: 0 | G11: 0 | H11: 0 | I11: -669743 | J11: =SUM(J12:J16) -> -669743 | K11: =SUM(K12:K16) -> 10444742 | L11: =SUM(L12:L16) -> 15207405 | M11: =SUM(M12:M16) -> 14687829
A12: Community and social services | C12: =B2B!C28 -> 1421299 | D12: =B2B!D28 -> 0 | E12: =B2B!E28 -> 0 | F12: =B2B!F28 -> 0 | G12: =B2B!G28 -> 0 | H12: =B2B!H28 -> 0 | I12: =B2B!I28 -> 14299 | J12: =SUM(E12:I12) -> 14299 | K12: =IF(D12=0,C12+J12,D12+J12) -> 1435598 | L12: =B2B!L28 -> 1245612 | M12: =B2B!M28 -> 27943
A13: Sport and recreation | C13: =B2B!C50 -> 269991 | D13: =B2B!D50 -> 0 | E13: =B2B!E50 -> 0 | F13: =B2B!F50 -> 0 | G13: =B2B!G50 -> 0 | H13: =B2B!H50 -> 0 | I13: =B2B!I50 -> 0 | J13: =SUM(E13:I13) -> 0 | K13: =IF(D13=0,C13+J13,D13+J13) -> 269991 | L13: =B2B!L50 -> 249544 | M13: =B2B!M50 -> 262023
A14: Public safety | C14: =B2B!C56 -> 9423195 | D14: =B2B!D56 -> 0 | E14: =B2B!E56 -> 0 | F14: =B2B!F56 -> 0 | G14: =B2B!G56 -> 0 | H14: =B2B!H56 -> 0 | I14: =B2B!I56 -> -684042 | J14: =SUM(E14:I14) -> -684042 | K14: =IF(D14=0,C14+J14,D14+J14) -> 8739153 | L14: =B2B!L56 -> 13712249 | M14: =B2B!M56 -> 14397863
A15: Housing | C15: =B2B!C65 -> 0 | D15: =B2B!D65 -> 0 | E15: =B2B!E65 -> 0 | F15: =B2B!F65 -> 0 | G15: =B2B!G65 -> 0 | H15: =B2B!H65 -> 0 | I15: =B2B!I65 -> 0 | J15: =SUM(E15:I15) -> 0 | K15: =IF(D15=0,C15+J15,D15+J15) -> 0 | L15: =B2B!L65 -> 0 | M15: =B2B!M65 -> 0
A16: Health | C16: =B2B!C68 -> 0 | D16: =B2B!D68 -> 0 | E16: =B2B!E68 -> 0 | F16: =B2B!F68 -> 0 | G16: =B2B!G68 -> 0 | H16: =B2B!H68 -> 0 | I16: =B2B!I68 -> 0 | J16: =SUM(E16:I16) -> 0 | K16: =IF(D16=0,C16+J16,D16+J16) -> 0 | L16: =B2B!L68 -> 0 | M16: =B2B!M68 -> 0
A17: Economic and environmental services | C17: =SUM(C18:C20) -> 39954954 | D17: =SUM(D18:D20) -> 0 | E17: 0 | F17: 0 | G17: 0 | H17: 0 | I17: 4514656 | J17: =SUM(J18:J20) -> 4514656 | K17: =SUM(K18:K20) -> 44469610 | L17: =SUM(L18:L20) -> 41607136 | M17: =SUM(M18:M20) -> 43382845
A18: Planning and development | C18: =B2B!C77 -> 39954954 | D18: =B2B!D77 -> 0 | E18: =B2B!E77 -> 0 | F18: =B2B!F77 -> 0 | G18: =B2B!G77 -> 0 | H18: =B2B!H77 -> 0 | I18: =B2B!I77 -> 14656 | J18: =SUM(E18:I18) -> 14656 | K18: =IF(D18=0,C18+J18,D18+J18) -> 39969610 | L18: =B2B!L77 -> 41607136 | M18: =B2B!M77 -> 43382845
A19: Road transport | C19: =B2B!C88 -> 0 | D19: =B2B!D88 -> 0 | E19: =B2B!E88 -> 0 | F19: =B2B!F88 -> 0 | G19: =B2B!G88 -> 0 | H19: =B2B!H88 -> 0 | I19: =B2B!I88 -> 4500000 | J19: =SUM(E19:I19) -> 4500000 | K19: =IF(D19=0,C19+J19,D19+J19) -> 4500000 | L19: =B2B!L88 -> 0 | M19: =B2B!M88 -> 0
A20: Environmental protection | C20: =B2B!C93 -> 0 | D20: =B2B!D93 -> 0 | E20: =B2B!E93 -> 0 | F20: =B2B!F93 -> 0 | G20: =B2B!G93 -> 0 | H20: =B2B!H93 -> 0 | I20: =B2B!I93 -> 0 | J20: =SUM(E20:I20) -> 0 | K20: =IF(D20=0,C20+J20,D20+J20) -> 0 | L20: =B2B!L93 -> 0 | M20: =B2B!M93 -> 0
A21: Trading services | C21: =SUM(C22:C25) -> 27214070 | D21: =SUM(D22:D25) -> 0 | E21: 0 | F21: 0 | G21: 0 | H21: 0 | I21: 2616443 | J21: 2616443 | K21: 29830513 | L21: 37834404 | M21: 30048727
A22: Energy sources | C22: =B2B!C101 -> 23603514 | D22: =B2B!D101 -> 0 | E22: =B2B!E101 -> 0 | F22: =B2B!F101 -> 0 | G22: =B2B!G101 -> 0 | H22: =B2B!H101 -> 0 | I22: =B2B!I101 -> 2616443 | J22: =SUM(E22:I22) -> 2616443 | K22: =IF(D22=0,C22+J22,D22+J22) -> 26219957 | L22: =B2B!L101 -> 32143638 | M22: =B2B!M101 -> 24073421
A23: Water management | C23: =B2B!C105 -> 459174 | D23: =B2B!D105 -> 0 | E23: =B2B!E105 -> 0 | F23: =B2B!F105 -> 0 | G23: =B2B!G105 -> 0 | H23: =B2B!H105 -> 0 | I23: =B2B!I105 -> 0 | J23: =SUM(E23:I23) -> 0 | K23: =IF(D23=0,C23+J23,D23+J23) -> 459174 | L23: =B2B!L105 -> 68588 | M23: =B2B!M105 -> 72018
A24: Waste water management | C24: =B2B!C109 -> 297178 | D24: =B2B!D109 -> 0 | E24: =B2B!E109 -> 0 | F24: =B2B!F109 -> 0 | G24: =B2B!G109 -> 0 | H24: =B2B!H109 -> 0 | I24: =B2B!I109 -> 0 | J24: =SUM(E24:I24) -> 0 | K24: =IF(D24=0,C24+J24,D24+J24) -> 297178 | L24: =B2B!L109 -> 1612360 | M24: =B2B!M109 -> 1692978
A25: Waste management | C25: =B2B!C114 -> 2854204 | D25: =B2B!D114 -> 0 | E25: =B2B!E114 -> 0 | F25: =B2B!F114 -> 0 | G25: =B2B!G114 -> 0 | H25: =B2B!H114 -> 0 | I25: =B2B!I114 -> 0 | J25: =SUM(E25:I25) -> 0 | K25: =IF(D25=0,C25+J25,D25+J25) -> 2854204 | L25: =B2B!L114 -> 4009818 | M25: =B2B!M114 -> 4210310
A26: Other | C26: =B2B!C119 -> 0 | D26: =B2B!D119 -> 0 | E26: =B2B!E119 -> 0 | F26: =B2B!F119 -> 0 | G26: =B2B!G119 -> 0 | H26: =B2B!H119 -> 0 | I26: =B2B!I119 -> 0 | J26: =SUM(E26:I26) -> 0 | K26: =IF(D26=0,C26+J26,D26+J26) -> 0 | L26: =B2B!L119 -> 0 | M26: =B2B!M119 -> 0
A27: ="Total "&A6 -> Total Revenue - Functional | B27: 2 | C27: =C7+C11+C17+C21+C26 -> 302728256 | D27: =D7+D11+D17+D21+D26 -> 0 | E27: 0 | F27: 0 | G27: 0 | H27: 0 | I27: 4827281 | J27: 4827281 | K27: 307555537 | L27: 333325154 | M27: 337138051
A29: Expenditure - Functional
A30: Governance and administration | C30: =SUM(C31:C33) -> 129892136 | D30: =SUM(D31:D33) -> 0 | E30: 0 | F30: 0 | G30: 0 | H30: 0 | I30: -985178 | J30: =SUM(J31:J33) -> -985178 | K30: =SUM(K31:K33) -> 128906958 | L30: =SUM(L31:L33) -> 137329569 | M30: =SUM(M31:M33) -> 142044089
A31: Executive and council | C31: =B2B!C130 -> 34755552 | D31: =B2B!D130 -> 0 | E31: =B2B!E130 -> 0 | F31: =B2B!F130 -> 0 | G31: =B2B!G130 -> 0 | H31: =B2B!H130 -> 0 | I31: =B2B!I130 -> 726787 | J31: =SUM(E31:I31) -> 726787 | K31: =IF(D31=0,C31+J31,D31+J31) -> 35482339 | L31: =B2B!L130 -> 41558753 | M31: =B2B!M130 -> 43634283
A32: Finance and administration | C32: =B2B!C133 -> 84977454 | D32: =B2B!D133 -> 0 | E32: =B2B!E133 -> 0 | F32: =B2B!F133 -> 0 | G32: =B2B!G133 -> 0 | H32: =B2B!H133 -> 0 | I32: =B2B!I133 -> -1394824 | J32: =SUM(E32:I32) -> -1394824 | K32: =IF(D32=0,C32+J32,D32+J32) -> 83582630 | L32: =B2B!L133 -> 83370340 | M32: =B2B!M133 -> 86234298
A33: Internal audit | C33: =B2B!C147 -> 10159130 | D33: =B2B!D147 -> 0 | E33: =B2B!E147 -> 0 | F33: =B2B!F147 -> 0 | G33: =B2B!G147 -> 0 | H33: =B2B!H147 -> 0 | I33: =B2B!I147 -> -317141 | J33: =SUM(E33:I33) -> -317141 | K33: =IF(D33=0,C33+J33,D33+J33) -> 9841989 | L33: =B2B!L147 -> 12400476 | M33: =B2B!M147 -> 12175508
A34: Community and public safety | C34: =SUM(C35:C39) -> 29643597 | D34: =SUM(D35:D39) -> 0 | E34: 0 | F34: 0 | G34: 0 | H34: 0 | I34: -566593 | J34: =SUM(J35:J39) -> -566593 | K34: =SUM(K35:K39) -> 29077004 | L34: =SUM(L35:L39) -> 27845709 | M34: =SUM(M35:M39) -> 34837539
A35: Community and social services | C35: =B2B!C150 -> 9334269 | D35: =B2B!D150 -> 0 | E35: =B2B!E150 -> 0 | F35: =B2B!F150 -> 0 | G35: =B2B!G150 -> 0 | H35: =B2B!H150 -> 0 | I35: =B2B!I150 -> -1336692 | J35: =SUM(E35:I35) -> -1336692 | K35: =IF(D35=0,C35+J35,D35+J35) -> 7997577 | L35: =B2B!L150 -> 8902341 | M35: =B2B!M150 -> 9347382
A36: Sport and recreation | C36: =B2B!C172 -> 3232103 | D36: =B2B!D172 -> 0 | E36: =B2B!E172 -> 0 | F36: =B2B!F172 -> 0 | G36: =B2B!G172 -> 0 | H36: =B2B!H172 -> 0 | I36: =B2B!I172 -> -46737 | J36: =SUM(E36:I36) -> -46737 | K36: =IF(D36=0,C36+J36,D36+J36) -> 3185366 | L36: =B2B!L172 -> 3723138 | M36: =B2B!M172 -> 3909308
A37: Public safety | C37: =B2B!C178 -> 17077225 | D37: =B2B!D178 -> 0 | E37: =B2B!E178 -> 0 | F37: =B2B!F178 -> 0 | G37: =B2B!G178 -> 0 | H37: =B2B!H178 -> 0 | I37: =B2B!I178 -> 816836 | J37: =SUM(E37:I37) -> 816836 | K37: =IF(D37=0,C37+J37,D37+J37) -> 17894061 | L37: =B2B!L178 -> 15220230 | M37: =B2B!M178 -> 21580849
A38: Housing | C38: =B2B!C187 -> 0 | D38: =B2B!D187 -> 0 | E38: =B2B!E187 -> 0 | F38: =B2B!F187 -> 0 | G38: =B2B!G187 -> 0 | H38: =B2B!H187 -> 0 | I38: =B2B!I187 -> 0 | J38: =SUM(E38:I38) -> 0 | K38: =IF(D38=0,C38+J38,D38+J38) -> 0 | L38: =B2B!L187 -> 0 | M38: =B2B!M187 -> 0
A39: Health | C39: =B2B!C190 -> 0 | D39: =B2B!D190 -> 0 | E39: =B2B!E190 -> 0 | F39: =B2B!F190 -> 0 | G39: =B2B!G190 -> 0 | H39: =B2B!H190 -> 0 | I39: =B2B!I190 -> 0 | J39: =SUM(E39:I39) -> 0 | K39: =IF(D39=0,C39+J39,D39+J39) -> 0 | L39: =B2B!L190 -> 0 | M39: =B2B!M190 -> 0
A40: Economic and environmental services | C40: =SUM(C41:C43) -> 18063511 | D40: =SUM(D41:D43) -> 0 | E40: 0 | F40: 0 | G40: 0 | H40: 0 | I40: 7557548 | J40: =SUM(J41:J43) -> 7557548 | K40: =SUM(K41:K43) -> 25621059 | L40: =SUM(L41:L43) -> 29517703 | M40: =SUM(M41:M43) -> 26402201
A41: Planning and development | C41: =B2B!C199 -> 14088931 | D41: =B2B!D199 -> 0 | E41: =B2B!E199 -> 0 | F41: =B2B!F199 -> 0 | G41: =B2B!G199 -> 0 | H41: =B2B!H199 -> 0 | I41: =B2B!I199 -> 858544 | J41: =SUM(E41:I41) -> 858544 | K41: =IF(D41=0,C41+J41,D41+J41) -> 14947475 | L41: =B2B!L199 -> 17502876 | M41: =B2B!M199 -> 13786732
A42: Road transport | C42: =B2B!C210 -> 3974580 | D42: =B2B!D210 -> 0 | E42: =B2B!E210 -> 0 | F42: =B2B!F210 -> 0 | G42: =B2B!G210 -> 0 | H42: =B2B!H210 -> 0 | I42: =B2B!I210 -> 6699004 | J42: =SUM(E42:I42) -> 6699004 | K42: =IF(D42=0,C42+J42,D42+J42) -> 10673584 | L42: =B2B!L210 -> 12014827 | M42: =B2B!M210 -> 12615469
A43: Environmental protection | C43: =B2B!C215 -> 0 | D43: =B2B!D215 -> 0 | E43: =B2B!E215 -> 0 | F43: =B2B!F215 -> 0 | G43: =B2B!G215 -> 0 | H43: =B2B!H215 -> 0 | I43: =B2B!I215 -> 0 | J43: =SUM(E43:I43) -> 0 | K43: =IF(D43=0,C43+J43,D43+J43) -> 0 | L43: =B2B!L215 -> 0 | M43: =B2B!M215 -> 0
A44: Trading services | C44: =SUM(C45:C48) -> 67106933 | D44: =SUM(D45:D48) -> 0 | E44: 0 | F44: 0 | G44: 0 | H44: 0 | I44: -5385258 | J44: -5385258 | K44: 61721675 | L44: 66251830 | M44: 68284510
A45: Energy sources | C45: =B2B!C223 -> 24794358 | D45: =B2B!D223 -> 0 | E45: =B2B!E223 -> 0 | F45: =B2B!F223 -> 0 | G45: =B2B!G223 -> 0 | H45: =B2B!H223 -> 0 | I45: =B2B!I223 -> 4166161 | J45: =SUM(E45:I45) -> 4166161 | K45: =IF(D45=0,C45+J45,D45+J45) -> 28960519 | L45: =B2B!L223 -> 31287310 | M45: =B2B!M223 -> 32851686
A46: Water management | C46: =B2B!C227 -> 5959405 | D46: =B2B!D227 -> 0 | E46: =B2B!E227 -> 0 | F46: =B2B!F227 -> 0 | G46: =B2B!G227 -> 0 | H46: =B2B!H227 -> 0 | I46: =B2B!I227 -> -85521 | J46: =SUM(E46:I46) -> -85521 | K46: =IF(D46=0,C46+J46,D46+J46) -> 5873884 | L46: =B2B!L227 -> 5224628 | M46: =B2B!M227 -> 5485867
A47: Waste water management | C47: =B2B!C231 -> 26132460 | D47: =B2B!D231 -> 0 | E47: =B2B!E231 -> 0 | F47: =B2B!F231 -> 0 | G47: =B2B!G231 -> 0 | H47: =B2B!H231 -> 0 | I47: =B2B!I231 -> -9172827 | J47: =SUM(E47:I47) -> -9172827 | K47: =IF(D47=0,C47+J47,D47+J47) -> 16959633 | L47: =B2B!L231 -> 18974775 | M47: =B2B!M231 -> 19923528
A48: Waste management | C48: =B2B!C236 -> 10220710 | D48: =B2B!D236 -> 0 | E48: =B2B!E236 -> 0 | F48: =B2B!F236 -> 0 | G48: =B2B!G236 -> 0 | H48: =B2B!H236 -> 0 | I48: =B2B!I236 -> -293071 | J48: =SUM(E48:I48) -> -293071 | K48: =IF(D48=0,C48+J48,D48+J48) -> 9927639 | L48: =B2B!L236 -> 10765117 | M48: =B2B!M236 -> 10023429
A49: Other | C49: =B2B!C241 -> 0 | D49: =B2B!D241 -> 0 | E49: =B2B!E241 -> 0 | F49: =B2B!F241 -> 0 | G49: =B2B!G241 -> 0 | H49: =B2B!H241 -> 0 | I49: =B2B!I241 -> 0 | J49: =SUM(E49:I49) -> 0 | K49: =IF(D49=0,C49+J49,D49+J49) -> 0 | L49: =B2B!L241 -> 0 | M49: =B2B!M241 -> 0
A50: ="Total "&A29 -> Total Expenditure - Functional | B50: 3 | C50: =C30+C34+C40+C44+C49 -> 244706177 | D50: =D30+D34+D40+D44+D49 -> 0 | E50: 0 | F50: 0 | G50: 0 | H50: 0 | I50: 620519 | J50: 620519 | K50: 245326696 | L50: 260944811 | M50: 271568339
A51: Surplus/ (Deficit) for the year | C51: =C27-C50 -> 58022079 | D51: 0 | E51: 0 | F51: 0 | G51: 0 | H51: 0 | I51: 4206762 | J51: 4206762 | K51: 62228841 | L51: 72380343 | M51: 65569712
A52: =head27a -> References
A53: 1. Government Finance Statistics Functions and Sub-functions are standardised to assist the compilation of national and international accounts for comparison purposes
A54: 2. Total Revenue by standard classification must reconcile to Total Operating Revenue shown in the Adjustments Budget Financial Performance (revenue and expenditure)
A55: 3. Total Operating Expenditure by standard classification must reconcile to Total Operating Expenditure shown in the Adjustments Budget Financial Performance (revenue and expenditure)
A56: 4. All amounts must be classified under a standard classification (modified GFS). The GFS function 'Other' is only for Abbatoirs, Air Transport, Markets and Tourism - and if used must be supported by footnotes. Nothing else may be placed under 'Other'. Assign associate share to relevant classification
A57: 5. Only complete if a previous adjusted budget has been approved in the same financial year. Reflect most recent adjusted budget.
A58: 6. Additional cash-backed accumulated funds/unspent funds (MFMA section 18(1)(b) and section 28(2)(e)) identified after the Original Budget approved and after annual financial statements audited (note: only where underspending could not reasonably have been foreseen)
A59: 7. Increases of funds approved under MFMA section 31
A60: 8. Adjustments approved in accordance with MFMA section 29
A61: 9. Adjustments to transfers from National or Provincial Government
A62: 10. Adjusts. = 'Other' Adjustments proposed to be approved; including revenue under-collection (MFMA section 28(2)(a)); additional revenue appropriation on existing programmes (section 28(2))(b); projected savings (section 28(2)(d)); error correction (section 28(2)(f))
A63: 11. G = B + C + D + E + F
A64: 12. Adjusted Budget H = (A or A1/2 etc) + G

Sheet B2B
A1: =muni&" - "&_ADJ3&" - B"&" - "&Date -> LIM353 Molemole - Table B2 Adjustments Budget Financial Performance (functional classification) - B - 14/07/2023
A2: ="Standard Classification "&desc -> Standard Classification Description | B2: =head27 -> Ref | C2: =Head2 -> Budget Year 2022/23 | L2: =Head10 -> Budget Year +1 2023/24 | M2: =Head11 -> Budget Year +2 2024/25
C3: =Head6 -> Original Budget | D3: =Head54 -> Prior Adjusted | E3: =Head51 -> Accum. Funds | F3: =Head52 -> Multi-year capital | G3: =Head53 -> Unfore. Unavoid. | H3: =Head55 -> Nat. or Prov. Govt | I3: =Head50 -> Other Adjusts. | J3: =Head56 -> Total Adjusts. | K3: =Head7 -> Adjusted Budget | L3: =Head7 -> Adjusted Budget | M3: =Head7 -> Adjusted Budget
D4: 5 | E4: =D4+1 -> 6 | F4: 7 | G4: 8 | H4: 9 | I4: 10 | J4: 11 | K4: 12
A5: R thousand | B5: 1 | C5: A | D5: A1 | E5: B | F5: C | G5: D | H5: E | I5: F | J5: G | K5: H
A6: Revenue - Functional
A7: Municipal governance and administration | C7: =C8+C11+C25 -> 224444747 | D7: 0 | E7: 0 | F7: 0 | G7: 0 | H7: 0 | I7: -1634075 | J7: =SUM(E7:I7) -> -1634075 | K7: =IF(D7=0,C7+J7,D7+J7) -> 222810672 | L7: =L8+L11+L25 -> 238676209 | M7: =M8+M11+M25 -> 249018650
A8: Executive and council | C8: =SUM(C9:C10) -> 0 | D8: =SUM(D9:D10) -> 0 | E8: 0 | F8: 0 | G8: 0 | H8: 0 | I8: 0 | J8: =SUM(E8:I8) -> 0 | K8: =IF(D8=0,C8+J8,D8+J8) -> 0 | L8: =SUM(L9:L10) -> 0 | M8: =SUM(M9:M10) -> 0
A9: Mayor and Council | C9: 0 | D9: 0 | E9: 0 | F9: 0 | G9: 0 | H9: 0 | I9: 0 | J9: =SUM(E9:I9) -> 0 | K9: =IF(D9=0,C9+J9,D9+J9) -> 0 | L9: 0 | M9: 0
A10: Municipal Manager, Town Secretary and Chief Executive | C10: 0 | D10: 0 | E10: 0 | F10: 0 | G10: 0 | H10: 0 | I10: 0 | J10: =SUM(E10:I10) -> 0 | K10: =IF(D10=0,C10+J10,D10+J10) -> 0 | L10: 0 | M10: 0
A11: Finance and administration | C11: =SUM(C12:C24) -> 224444747 | D11: 0 | E11: 0 | F11: 0 | G11: 0 | H11: 0 | I11: -1634075 | J11: -1634075 | K11: 222810672 | L11: =SUM(L12:L24) -> 238676209 | M11: =SUM(M12:M24) -> 249018650
A12: Administrative and Corporate Support | C12: 221179812 | D12: 0 | E12: 0 | F12: 0 | G12: 0 | H12: 0 | I12: -8157160 | J12: -8157160 | K12: 213022652 | L12: 227612006 | M12: 239910018
A13: Asset Management | J13: 0 | K13: 0
A14: Finance | C14: 3032447 | D14: 0 | E14: 0 | F14: 0 | G14: 0 | H14: 0 | I14: 5883085 | J14: 5883085 | K14: 8915532 | L14: 10820090 | M14: 8852313
A15: Fleet Management | J15: 0 | K15: 0
A16: Human Resources | C16: 232488 | D16: 0 | E16: 0 | F16: 0 | G16: 0 | H16: 0 | I16: 640000 | J16: 640000 | K16: 872488 | L16: 244113 | M16: 256319
A17: Information Technology | C17: 0 | D17: 0 | E17: 0 | F17: 0 | G17: 0 | H17: 0 | I17: 0 | J17: 0 | K17: 0 | L17: 0 | M17: 0
A18: Legal Services | C18: 0 | D18: 0 | E18: 0 | F18: 0 | G18: 0 | H18: 0 | I18: 0 | J18: 0 | K18: 0 | L18: 0 | M18: 0
A19: Marketing, Customer Relations, Publicity and Media Co-ordination | J19: 0 | K19: 0
A20: Property Services | J20: 0 | K20: 0
A21: Risk Management | C21: 0 | D21: 0 | E21: 0 | F21: 0 | G21: 0 | H21: 0 | I21: 0 | J21: 0 | K21: 0 | L21: 0 | M21: 0
A22: Security Services | J22: 0 | K22: 0
A23: Supply Chain Management | C23: 0 | D23: 0 | E23: 0 | F23: 0 | G23: 0 | H23: 0 | I23: 0 | J23: 0 | K23: 0 | L23: 0 | M23: 0
A24: Valuation Service | J24: 0 | K24: 0
A25: Internal audit | C25: =SUM(C26:C26) -> 0 | D25: 0 | E25: 0 | F25: 0 | G25: 0 | H25: 0 | I25: 0 | J25: 0 | K25: 0 | L25: 0 | M25: 0
A26: Governance Function | C26: 0 | D26: 0 | E26: 0 | F26: 0 | G26: 0 | H26: 0 | I26: 0 | J26: 0 | K26: 0 | L26: 0 | M26: 0
A27: Community and public safety | C27: =C28+C50+C56+C65+C68 -> 11114485 | D27: 0 | E27: 0 | F27: 0 | G27: 0 | H27: 0 | I27: -669743 | J27: -669743 | K27: 10444742 | L27: =L28+L50+L56+L65+L68 -> 15207405 | M27: =M28+M50+M56+M65+M68 -> 14687829
A28: Community and social services | C28: =SUM(C29:C49) -> 1421299 | D28: 0 | E28: 0 | F28: 0 | G28: 0 | H28: 0 | I28: 14299 | J28: 14299 | K28: 1435598 | L28: 1245612 | M28: 27943
A29: Aged Care | J29: 0 | K29: 0
A30: Agricultural | J30: 0 | K30: 0
A31: Animal Care and Diseases | J31: 0 | K31: 0
A32: Cemeteries, Funeral Parlours and Crematoriums | C32: 14299 | D32: 0 | E32: 0 | F32: 0 | G32: 0 | H32: 0 | I32: 14299 | J32: 14299 | K32: 28598 | L32: 26612 | M32: 27943
A33: Child Care Facilities | J33: 0 | K33: 0
A34: Community Halls and Facilities | C34: 1407000 | D34: 0 | E34: 0 | F34: 0 | G34: 0 | H34: 0 | I34: 0 | J34: 0 | K34: 1407000 | L34: 1219000 | M34: 0
A35: Consumer Protection | J35: 0 | K35: 0
A36: Cultural Matters | J36: 0 | K36: 0
A37: Disaster Management | J37: 0 | K37: 0
A38: Education | J38: 0 | K38: 0
A39: Indigenous and Customary Law | J39: 0 | K39: 0
A40: Industrial Promotion | J40: 0 | K40: 0
A41: Language Policy | J41: 0 | K41: 0
A42: Libraries and Archives | C42: 0 | D42: 0 | E42: 0 | F42: 0 | G42: 0 | H42: 0 | I42: 0 | J42: 0 | K42: 0 | L42: 0 | M42: 0
A43: Literacy Programmes | J43: 0 | K43: 0
A44: Media Services | J44: 0 | K44: 0
A45: Museums and Art Galleries | J45: 0 | K45: 0
A46: Population Development | J46: 0 | K46: 0
A47: Provincial Cultural Matters | J47: 0 | K47: 0
A48: Theatres | J48: 0 | K48: 0
A49: Zoo's | J49: 0 | K49: 0
A50: Sport and recreation | C50: =SUM(C51:C55) -> 269991 | D50: 0 | E50: 0 | F50: 0 | G50: 0 | H50: 0 | I50: 0 | J50: 0 | K50: 269991 | L50: 249544 | M50: 262023
A51: Beaches and Jetties | J51: 0 | K51: 0
A52: Casinos, Racing, Gambling, Wagering | J52: 0 | K52: 0
A53: Community Parks (including Nurseries) | J53: 0 | K53: 0
A54: Recreational Facilities | C54: 269991 | D54: 0 | E54: 0 | F54: 0 | G54: 0 | H54: 0 | I54: 0 | J54: 0 | K54: 269991 | L54: 249544 | M54: 262023
A55: Sports Grounds and Stadiums | J55: 0 | K55: 0
A56: Public safety | C56: =SUM(C57:C64) -> 9423195 | D56: 0 | E56: 0 | F56: 0 | G56: 0 | H56: 0 | I56: -684042 | J56: -684042 | K56: 8739153 | L56: 13712249 | M56: 14397863
A57: Civil Defence | J57: 0 | K57: 0
A58: Cleansing | J58: 0 | K58: 0
A59: Control of Public Nuisances | J59: 0 | K59: 0
A60: Fencing and Fences | J60: 0 | K60: 0
A61: Fire Fighting and Protection | J61: 0 | K61: 0
A62: Licensing and Control of Animals | J62: 0 | K62: 0
A63: Police Forces, Traffic and Street Parking Control | C63: 9423195 | D63: 0 | E63: 0 | F63: 0 | G63: 0 | H63: 0 | I63: -684042 | J63: =SUM(E63:I63) -> -684042 | K63: =IF(D63=0,C63+J63,D63+J63) -> 8739153 | L63: 13712249 | M63: 14397863
A64: Pounds | J64: 0 | K64: 0
A65: Housing | C65: =SUM(C66:C67) -> 0 | D65: =SUM(D66:D67) -> 0 | E65: 0 | F65: 0 | G65: 0 | H65: 0 | I65: 0 | J65: 0 | K65: 0 | L65: =SUM(L66:L67) -> 0 | M65: =SUM(M66:M67) -> 0
A66: Housing | J66: 0 | K66: 0
A67: Informal Settlements | J67: 0 | K67: 0
A68: Health | C68: =SUM(C69:C75) -> 0 | D68: =SUM(D69:D75) -> 0 | E68: 0 | F68: 0 | G68: 0 | H68: 0 | I68: 0 | J68: 0 | K68: 0 | L68: =SUM(L69:L75) -> 0 | M68: =SUM(M69:M75) -> 0
A69: Ambulance | J69: 0 | K69: 0
A70: Health Services | J70: 0 | K70: 0
A71: Laboratory Services | J71: 0 | K71: 0
A72: Food Control | J72: 0 | K72: 0
A73: Health Surveillance and Prevention of Communicable Diseases including immunizations | J73: 0 | K73: 0
A74: Vector Control | J74: 0 | K74: 0
A75: Chemical Safety | J75: =SUM(E75:I75) -> 0 | K75: =IF(D75=0,C75+J75,D75+J75) -> 0
A76: Economic and environmental services | C76: =C77+C88+C93 -> 39954954 | D76: 0 | E76: 0 | F76: 0 | G76: 0 | H76: 0 | I76: 4514656 | J76: 4514656 | K76: 44469610 | L76: =L77+L88+L93 -> 41607136 | M76: =M77+M88+M93 -> 43382845
A77: Planning and development | C77: =SUM(C78:C87) -> 39954954 | D77: =SUM(D78:D87) -> 0 | E77: 0 | F77: 0 | G77: 0 | H77: 0 | I77: 14656 | J77: 14656 | K77: 39969610 | L77: =SUM(L78:L87) -> 41607136 | M77: =SUM(M78:M87) -> 43382845
A78: Billboards | J78: 0 | K78: 0
A79: Corporate Wide Strategic Planning (IDPs, LEDs) | C79: 38578 | D79: 0 | E79: 0 | F79: 0 | G79: 0 | H79: 0 | I79: 4656 | J79: 4656 | K79: 43234 | L79: 58696 | M79: 61631
A80: Central City Improvement District | J80: 0 | K80: 0
A81: Development Facilitation | J81: 0 | K81: 0
A82: Economic Development/Planning | C82: 0 | D82: 0 | E82: 0 | F82: 0 | G82: 0 | H82: 0 | I82: 0 | J82: 0 | K82: 0 | L82: 0 | M82: 0
A83: Regional Planning and Development | J83: 0 | K83: 0
A84: Town Planning, Building Regulations and Enforcement, and City Engineer | C84: 124376 | D84: 0 | E84: 0 | F84: 0 | G84: 0 | H84: 0 | I84: 10000 | J84: 10000 | K84: 134376 | L84: 95440 | M84: 100214
A85: Project Management Unit | C85: 39792000 | D85: 0 | E85: 0 | F85: 0 | G85: 0 | H85: 0 | I85: 0 | J85: 0 | K85: 39792000 | L85: 41453000 | M85: 43221000
A86: Provincial Planning | J86: 0 | K86: 0
A87: Support to Local Municipalities | J87: 0 | K87: 0
A88: Road transport | C88: =SUM(C89:C92) -> 0 | D88: 0 | E88: 0 | F88: 0 | G88: 0 | H88: 0 | I88: 4500000 | J88: 4500000 | K88: 4500000 | L88: =SUM(L89:L92) -> 0 | M88: =SUM(M89:M92) -> 0
A89: Public Transport | J89: 0 | K89: 0
A90: Road and Traffic Regulation | J90: 0 | K90: 0
A91: Roads | C91: 0 | D91: 0 | E91: 0 | F91: 0 | G91: 0 | H91: 0 | I91: 4500000 | J91: 4500000 | K91: 4500000 | L91: 0 | M91: 0
A92: Taxi Ranks | J92: 0 | K92: 0
A93: Environmental protection | C93: =SUM(C94:C99) -> 0 | D93: =SUM(D94:D99) -> 0 | E93: 0 | F93: 0 | G93: 0 | H93: 0 | I93: 0 | J93: 0 | K93: 0 | L93: =SUM(L94:L99) -> 0 | M93: =SUM(M94:M99) -> 0
A94: Biodiversity and Landscape | J94: 0 | K94: 0
A95: Coastal Protection | J95: 0 | K95: 0
A96: Indigenous Forests | J96: 0 | K96: 0
A97: Nature Conservation | J97: 0 | K97: 0
A98: Pollution Control | J98: 0 | K98: 0
A99: Soil Conservation | J99: 0 | K99: 0
A100: Trading services | C100: =C101+C105+C109+C114 -> 27214070 | D100: =D101+D105+D109+D114 -> 0 | E100: 0 | F100: 0 | G100: 0 | H100: 0 | I100: 2616443 | J100: 2616443 | K100: 29830513 | L100: 37834404 | M100: 30048727
A101: Energy sources | C101: =SUM(C102:C104) -> 23603514 | D101: =SUM(D102:D104) -> 0 | E101: 0 | F101: 0 | G101: 0 | H101: 0 | I101: 2616443 | J101: 2616443 | K101: 26219957 | L101: =SUM(L102:L104) -> 32143638 | M101: =SUM(M102:M104) -> 24073421
A102: Electricity | C102: 23603514 | D102: 0 | E102: 0 | F102: 0 | G102: 0 | H102: 0 | I102: 2616443 | J102: 2616443 | K102: 26219957 | L102: 32143638 | M102: 24073421
A103: Street Lighting and Signal Systems | J103: 0 | K103: 0
A104: Nonelectric Energy | J104: 0 | K104: 0
A105: Water management | C105: =SUM(C106:C108) -> 459174 | D105: =SUM(D106:D108) -> 0 | E105: 0 | F105: 0 | G105: 0 | H105: 0 | I105: 0 | J105: 0 | K105: 459174 | L105: =SUM(L106:L108) -> 68588 | M105: =SUM(M106:M108) -> 72018
A106: Water Treatment | J106: 0 | K106: 0
A107: Water Distribution | C107: 459174 | D107: 0 | E107: 0 | F107: 0 | G107: 0 | H107: 0 | I107: 0 | J107: 0 | K107: 459174 | L107: 68588 | M107: 72018
A108: Water Storage | J108: 0 | K108: 0
A109: Waste water management | C109: =SUM(C110:C113) -> 297178 | D109: =SUM(D110:D113) -> 0 | E109: 0 | F109: 0 | G109: 0 | H109: 0 | I109: 0 | J109: 0 | K109: 297178 | L109: =SUM(L110:L113) -> 1612360 | M109: =SUM(M110:M113) -> 1692978
A110: Public Toilets | J110: 0 | K110: 0
A111: Sewerage | C111: 297178 | D111: 0 | E111: 0 | F111: 0 | G111: 0 | H111: 0 | I111: 0 | J111: 0 | K111: 297178 | L111: 1612360 | M111: 1692978
A112: Storm Water Management | C112: 0 | D112: 0 | E112: 0 | F112: 0 | G112: 0 | H112: 0 | I112: 0 | J112: 0 | K112: 0 | L112: 0 | M112: 0
A113: Waste Water Treatment | J113: 0 | K113: 0
A114: Waste management | C114: =SUM(C115:C118) -> 2854204 | D114: =SUM(D115:D118) -> 0 | E114: 0 | F114: 0 | G114: 0 | H114: 0 | I114: 0 | J114: 0 | K114: 2854204 | L114: 4009818 | M114: =SUM(M115:M118) -> 4210310
A115: Recycling | J115: 0 | K115: 0
A116: Solid Waste Disposal (Landfill Sites) | J116: 0 | K116: 0
A117: Solid Waste Removal | C117: 2854204 | D117: 0 | E117: 0 | F117: 0 | G117: 0 | H117: 0 | I117: 0 | J117: 0 | K117: 2854204 | L117: 4009818 | M117: 4210310
A118: Street Cleaning | J118: 0 | K118: 0
A119: Other | C119: =SUM(C120:C125) -> 0 | D119: 0 | E119: 0 | F119: 0 | G119: 0 | H119: 0 | I119: 0 | J119: 0 | K119: 0 | L119: 0 | M119: 0
A120: Abattoirs | J120: 0 | K120: 0
A121: Air Transport | J121: 0 | K121: 0
A122: Forestry | J122: 0 | K122: 0
A123: Licensing and Regulation | J123: 0 | K123: 0
A124: Markets | J124: 0 | K124: 0
A125: Tourism | J125: 0 | K125: 0
A126: ="Total "&A6 -> Total Revenue - Functional | B126: 2 | C126: =C7+C27+C76+C100+C119 -> 302728256 | D126: 0 | E126: 0 | F126: 0 | G126: 0 | H126: 0 | I126: 4827281 | J126: 4827281 | K126: 307555537 | L126: =L7+L27+L76+L100+L119 -> 333325154 | M126: =M7+M27+M76+M100+M119 -> 337138051
J127: 0 | K127: 0
A128: Expenditure - Functional | J128: 0 | K128: 0
A129: =A7 -> Municipal governance and administration | C129: =C130+C133+C147 -> 129892136 | D129: 0 | E129: 0 | F129: 0 | G129: 0 | H129: 0 | I129: -985178 | J129: -985178 | K129: 128906958 | L129: =L130+L133+L147 -> 137329569 | M129: =M130+M133+M147 -> 142044089
A130: Executive and council | C130: =SUM(C131:C132) -> 34755552 | D130: 0 | E130: 0 | F130: 0 | G130: 0 | H130: 0 | I130: 726787 | J130: 726787 | K130: 35482339 | L130: =SUM(L131:L132) -> 41558753 | M130: =SUM(M131:M132) -> 43634283
A131: Mayor and Council | C131: 25512337 | D131: 0 | E131: 0 | F131: 0 | G131: 0 | H131: 0 | I131: 897387 | J131: 897387 | K131: 26409724 | L131: 31052567 | M131: 32602922
A132: Municipal Manager, Town Secretary and Chief Executive | C132: 9243215 | D132: 0 | E132: 0 | F132: 0 | G132: 0 | H132: 0 | I132: -170600 | J132: -170600 | K132: 9072615 | L132: 10506186 | M132: 11031361
A133: Finance and administration | C133: =SUM(C134:C146) -> 84977454 | D133: 0 | E133: 0 | F133: 0 | G133: 0 | H133: 0 | I133: -1394824 | J133: -1394824 | K133: 83582630 | L133: =SUM(L134:L146) -> 83370340 | M133: =SUM(M134:M146) -> 86234298
A134: Administrative and Corporate Support | C134: 35917320 | D134: 0 | E134: 0 | F134: 0 | G134: 0 | H134: 0 | I134: -1040978 | J134: -1040978 | K134: 34876342 | L134: 38007392 | M134: 39306344
A135: Asset Management | J135: 0 | K135: 0
A136: Finance | C136: 22999646 | D136: 0 | E136: 0 | F136: 0 | G136: 0 | H136: 0 | I136: 253907 | J136: 253907 | K136: 23253553 | L136: 19092094 | M136: 20031725
A137: Fleet Management | J137: 0 | K137: 0
A138: Human Resources | C138: 8474691 | D138: 0 | E138: 0 | F138: 0 | G138: 0 | H138: 0 | I138: 788076 | J138: 788076 | K138: 9262767 | L138: 6935834 | M138: 6649427
A139: Information Technology | C139: 7974647 | D139: 0 | E139: 0 | F139: 0 | G139: 0 | H139: 0 | I139: -720118 | J139: =SUM(E139:I139) -> -720118 | K139: =IF(D139=0,C139+J139,D139+J139) -> 7254529 | L139: 8308547 | M139: 8673985
A140: Legal Services | C140: 2915227 | D140: 0 | E140: 0 | F140: 0 | G140: 0 | H140: 0 | I140: -250189 | J140: -250189 | K140: 2665038 | L140: 2841480 | M140: 2983561
A141: Marketing, Customer Relations, Publicity and Media Co-ordination | J141: 0 | K141: 0
A142: Property Services | J142: 0 | K142: 0
A143: Risk Management | C143: 2272356 | D143: 0 | E143: 0 | F143: 0 | G143: 0 | H143: 0 | I143: -466039 | J143: -466039 | K143: 1806317 | L143: 1999670 | M143: 2099660
A144: Security Services | J144: 0 | K144: 0
A145: Supply Chain Management | C145: 4423567 | D145: 0 | E145: 0 | F145: 0 | G145: 0 | H145: 0 | I145: 40517 | J145: 40517 | K145: 4464084 | L145: 6185323 | M145: 6489596
A146: Valuation Service | J146: 0 | K146: 0
A147: Internal audit | C147: =SUM(C148:C148) -> 10159130 | D147: 0 | E147: 0 | F147: 0 | G147: 0 | H147: 0 | I147: -317141 | J147: -317141 | K147: 9841989 | L147: 12400476 | M147: 12175508
A148: Governance Function | C148: 10159130 | D148: 0 | E148: 0 | F148: 0 | G148: 0 | H148: 0 | I148: -317141 | J148: -317141 | K148: 9841989 | L148: 12400476 | M148: 12175508
A149: Community and public safety | C149: =C150+C172+C178+C187+C190 -> 29643597 | D149: 0 | E149: 0 | F149: 0 | G149: 0 | H149: 0 | I149: -566593 | J149: -566593 | K149: 29077004 | L149: =L150+L172+L178+L187+L190 -> 27845709 | M149: =M150+M172+M178+M187+M190 -> 34837539
A150: Community and social services | C150: =SUM(C151:C171) -> 9334269 | D150: 0 | E150: 0 | F150: 0 | G150: 0 | H150: 0 | I150: -1336692 | J150: -1336692 | K150: 7997577 | L150: =SUM(L151:L171) -> 8902341 | M150: =SUM(M151:M171) -> 9347382
A151: Aged Care | J151: 0 | K151: 0
A152: Agricultural | J152: 0 | K152: 0
A153: Animal Care and Diseases | J153: 0 | K153: 0
A154: Cemeteries, Funeral Parlours and Crematoriums | C154: 2567541 | D154: 0 | E154: 0 | F154: 0 | G154: 0 | H154: 0 | I154: -902638 | J154: -902638 | K154: 1664903 | L154: 1668593 | M154: 1752028
A155: Child Care Facilities | J155: 0 | K155: 0
A156: Community Halls and Facilities | C156: 5265352 | D156: 0 | E156: 0 | F156: 0 | G156: 0 | H156: 0 | I156: -450557 | J156: -450557 | K156: 4814795 | L156: 5507227 | M156: 5782500
A157: Consumer Protection | J157: 0 | K157: 0
A158: Cultural Matters | J158: 0 | K158: 0
A159: Disaster Management | J159: 0 | K159: 0
A160: Education | J160: 0 | K160: 0
A161: Indigenous and Customary Law | J161: 0 | K161: 0
A162: Industrial Promotion | J162: 0 | K162: 0
A163: Language Policy | J163: 0 | K163: 0
A164: Libraries and Archives | C164: 1501376 | D164: 0 | E164: 0 | F164: 0 | G164: 0 | H164: 0 | I164: 16503 | J164: 16503 | K164: 1517879 | L164: 1726521 | M164: 1812854
A165: Literacy Programmes | J165: 0 | K165: 0
A166: Media Services | J166: 0 | K166: 0
A167: Museums and Art Galleries | J167: 0 | K167: 0
A168: Population Development | J168: 0 | K168: 0
A169: Provincial Cultural Matters | J169: 0 | K169: 0
A170: Theatres | J170: 0 | K170: 0
A171: Zoo's | J171: 0 | K171: 0
A172: Sport and recreation | C172: =SUM(C173:C177) -> 3232103 | D172: 0 | E172: 0 | F172: 0 | G172: 0 | H172: 0 | I172: -46737 | J172: -46737 | K172: 3185366 | L172: =SUM(L173:L177) -> 3723138 | M172: =SUM(M173:M177) -> 3909308
A173: Beaches and Jetties | J173: 0 | K173: 0
A174: Casinos, Racing, Gambling, Wagering | J174: 0 | K174: 0
A175: Community Parks (including Nurseries) | J175: 0 | K175: 0
A176: Recreational Facilities | C176: 3232103 | D176: 0 | E176: 0 | F176: 0 | G176: 0 | H176: 0 | I176: -46737 | J176: -46737 | K176: 3185366 | L176: 3723138 | M176: 3909308
A177: Sports Grounds and Stadiums | J177: 0 | K177: 0
A178: Public safety | C178: =SUM(C179:C186) -> 17077225 | D178: 0 | E178: 0 | F178: 0 | G178: 0 | H178: 0 | I178: 816836 | J178: 816836 | K178: 17894061 | L178: =SUM(L179:L186) -> 15220230 | M178: =SUM(M179:M186) -> 21580849
A179: Civil Defence | J179: 0 | K179: 0
A180: Cleansing | J180: 0 | K180: 0
A181: Control of Public Nuisances | J181: 0 | K181: 0
A182: Fencing and Fences | J182: 0 | K182: 0
A183: Fire Fighting and Protection | J183: 0 | K183: 0
A184: Licensing and Control of Animals | J184: =SUM(E184:I184) -> 0 | K184: =IF(D184=0,C184+J184,D184+J184) -> 0
A185: Police Forces, Traffic and Street Parking Control | C185: 17077225 | D185: 0 | E185: 0 | F185: 0 | G185: 0 | H185: 0 | I185: 816836 | J185: =SUM(E185:I185) -> 816836 | K185: =IF(D185=0,C185+J185,D185+J185) -> 17894061 | L185: 15220230 | M185: 21580849
A186: Pounds | J186: 0 | K186: 0
A187: Housing | C187: =SUM(C188:C189) -> 0 | D187: =SUM(D188:D189) -> 0 | E187: 0 | F187: 0 | G187: 0 | H187: 0 | I187: 0 | J187: 0 | K187: 0 | L187: 0 | M187: 0
A188: Housing | J188: 0 | K188: 0
A189: Informal Settlements | J189: 0 | K189: 0
A190: Health | C190: =SUM(C191:C197) -> 0 | D190: 0 | E190: 0 | F190: 0 | G190: 0 | H190: 0 | I190: 0 | J190: 0 | K190: 0 | L190: =SUM(L191:L197) -> 0 | M190: =SUM(M191:M197) -> 0
A191: Ambulance | J191: 0 | K191: 0
A192: Health Services | J192: 0 | K192: 0
A193: =A71 -> Laboratory Services | J193: 0 | K193: 0
A194: Food Control | J194: 0 | K194: 0
A195: Health Surveillance and Prevention of Communicable Diseases including immunizations | J195: 0 | K195: 0
A196: Vector Control | J196: 0 | K196: 0
A197: Chemical Safety | J197: 0 | K197: 0
A198: Economic and environmental services | C198: =C199+C210+C215 -> 18063511 | D198: 0 | E198: 0 | F198: 0 | G198: 0 | H198: 0 | I198: 7557548 | J198: 7557548 | K198: 25621059 | L198: =L199+L210+L215 -> 29517703 | M198: =M199+M210+M215 -> 26402201
A199: Planning and development | C199: =SUM(C200:C209) -> 14088931 | D199: 0 | E199: 0 | F199: 0 | G199: 0 | H199: 0 | I199: 858544 | J199: 858544 | K199: 14947475 | L199: =SUM(L200:L209) -> 17502876 | M199: =SUM(M200:M209) -> 13786732
A200: Billboards | J200: 0 | K200: 0
... 54 more rows

Sheet B3-FinPerf V
A1: =muni&" - "&_ADJ2&" - "&Date -> LIM353 Molemole - Table B3 Adjustments Budget Financial Performance (revenue and expenditure by municipal vote) - 14/07/2023
A2: =Vdesc -> Vote Description | B2: =head27 -> Ref | C2: =Head2 -> Budget Year 2022/23 | L2: =Head10 -> Budget Year +1 2023/24 | M2: =Head11 -> Budget Year +2 2024/25
C3: =Head6 -> Original Budget | D3: =Head54 -> Prior Adjusted | E3: =Head51 -> Accum. Funds | F3: =Head52 -> Multi-year capital | G3: =Head53 -> Unfore. Unavoid. | H3: =Head55 -> Nat. or Prov. Govt | I3: =Head50 -> Other Adjusts. | J3: =Head56 -> Total Adjusts. | K3: =Head7 -> Adjusted Budget | L3: =Head7 -> Adjusted Budget | M3: =Head7 -> Adjusted Budget
A4: [Insert departmental structure etc] | D4: 3 | E4: 4 | F4: 5 | G4: 6 | H4: 7 | I4: 8 | J4: 9 | K4: 10
A5: R thousands | C5: A | D5: A1 | E5: B | F5: C | G5: D | H5: E | I5: F | J5: G | K5: H
A6: Revenue by Vote | B6: 1
A7: =B3B!A7 -> Vote 01 - Corporate Services | C7: =B3B!C7 -> 395442 | D7: =B3B!D7 -> 0 | E7: =B3B!E7 -> 0 | F7: =B3B!F7 -> 0 | G7: =B3B!G7 -> 0 | H7: =B3B!H7 -> 0 | I7: =B3B!I7 -> 654656 | J7: =B3B!J7 -> 654656 | K7: =B3B!K7 -> 1050098 | L7: =B3B!L7 -> 398249 | M7: =B3B!M7 -> 418164
A8: =B3B!A16 -> Vote 02 - Municipal Manager | C8: =B3B!C16 -> 0 | D8: =B3B!D16 -> 0 | E8: =B3B!E16 -> 0 | F8: =B3B!F16 -> 0 | G8: =B3B!G16 -> 0 | H8: =B3B!H16 -> 0 | I8: =B3B!I16 -> 0 | J8: =B3B!J16 -> 0 | K8: =B3B!K16 -> 0 | L8: =B3B!L16 -> 0 | M8: =B3B!M16 -> 0
A9: =B3B!A22 -> Vote 03 - Mayors Office | C9: =B3B!C22 -> 0 | D9: =B3B!D22 -> 0 | E9: =B3B!E22 -> 0 | F9: =B3B!F22 -> 0 | G9: =B3B!G22 -> 0 | H9: =B3B!H22 -> 0 | I9: =B3B!I22 -> 0 | J9: =B3B!J22 -> 0 | K9: =B3B!K22 -> 0 | L9: =B3B!L22 -> 0 | M9: =B3B!M22 -> 0
A10: =B3B!A28 -> Vote 04 - Budget And Treasury | C10: =B3B!C28 -> 224212259 | D10: =B3B!D28 -> 0 | E10: =B3B!E28 -> 0 | F10: =B3B!F28 -> 0 | G10: =B3B!G28 -> 0 | H10: =B3B!H28 -> 0 | I10: =B3B!I28 -> -2274075 | J10: =B3B!J28 -> -2274075 | K10: =B3B!K28 -> 221938184 | L10: =B3B!L28 -> 238432096 | M10: =B3B!M28 -> 248762331
A11: =B3B!A36 -> Vote 05 - Community Services | C11: =B3B!C36 -> 13968689 | D11: =B3B!D36 -> 0 | E11: =B3B!E36 -> 0 | F11: =B3B!F36 -> 0 | G11: =B3B!G36 -> 0 | H11: =B3B!H36 -> 0 | I11: =B3B!I36 -> -669743 | J11: =B3B!J36 -> -669743 | K11: =B3B!K36 -> 13298946 | L11: =B3B!L36 -> 19217223 | M11: =B3B!M36 -> 18898139
A12: =B3B!A44 -> Vote 06 - Technical Services | C12: =B3B!C44 -> 64151866 | D12: =B3B!D44 -> 0 | E12: =B3B!E44 -> 0 | F12: =B3B!F44 -> 0 | G12: =B3B!G44 -> 0 | H12: =B3B!H44 -> 0 | I12: =B3B!I44 -> 7116443 | J12: =B3B!J44 -> 7116443 | K12: =B3B!K44 -> 71268309 | L12: =B3B!L44 -> 75277586 | M12: =B3B!M44 -> 69059417
A13: ='Org structure'!A8 -> Vote 07 - | C13: =B3B!C53 -> 0 | D13: =B3B!D53 -> 0 | E13: =B3B!E53 -> 0 | F13: =B3B!F53 -> 0 | G13: =B3B!G53 -> 0 | H13: =B3B!H53 -> 0 | I13: =B3B!I53 -> 0 | J13: =SUM(E13:I13) -> 0 | K13: =IF(D13=0,C13+J13,D13+J13) -> 0 | L13: =B3B!L53 -> 0 | M13: =B3B!M53 -> 0
A14: ='Org structure'!A9 -> Vote 08 - | C14: =B3B!C54 -> 0 | D14: =B3B!D54 -> 0 | E14: =B3B!E54 -> 0 | F14: =B3B!F54 -> 0 | G14: =B3B!G54 -> 0 | H14: =B3B!H54 -> 0 | I14: =B3B!I54 -> 0 | J14: 0 | K14: 0 | L14: =B3B!L54 -> 0 | M14: =B3B!M54 -> 0
A15: ='Org structure'!A10 -> Vote 09 - | C15: =B3B!C55 -> 0 | D15: =B3B!D55 -> 0 | E15: =B3B!E55 -> 0 | F15: =B3B!F55 -> 0 | G15: =B3B!G55 -> 0 | H15: =B3B!H55 -> 0 | I15: =B3B!I55 -> 0 | J15: 0 | K15: 0 | L15: =B3B!L55 -> 0 | M15: =B3B!M55 -> 0
A16: ='Org structure'!A11 -> Vote 10 - | C16: =B3B!C56 -> 0 | D16: =B3B!D56 -> 0 | E16: =B3B!E56 -> 0 | F16: =B3B!F56 -> 0 | G16: =B3B!G56 -> 0 | H16: =B3B!H56 -> 0 | I16: =B3B!I56 -> 0 | J16: 0 | K16: 0 | L16: =B3B!L56 -> 0 | M16: =B3B!M56 -> 0
A17: ='Org structure'!A12 -> Vote 11 - | C17: =B3B!C57 -> 0 | D17: =B3B!D57 -> 0 | E17: =B3B!E57 -> 0 | F17: =B3B!F57 -> 0 | G17: =B3B!G57 -> 0 | H17: =B3B!H57 -> 0 | I17: =B3B!I57 -> 0 | J17: 0 | K17: 0 | L17: =B3B!L57 -> 0 | M17: =B3B!M57 -> 0
A18: ='Org structure'!A13 -> Vote 12 - | C18: =B3B!C58 -> 0 | D18: =B3B!D58 -> 0 | E18: =B3B!E58 -> 0 | F18: =B3B!F58 -> 0 | G18: =B3B!G58 -> 0 | H18: =B3B!H58 -> 0 | I18: =B3B!I58 -> 0 | J18: 0 | K18: 0 | L18: =B3B!L58 -> 0 | M18: =B3B!M58 -> 0
A19: ='Org structure'!A14 -> Vote 13 - | C19: =B3B!C59 -> 0 | D19: =B3B!D59 -> 0 | E19: =B3B!E59 -> 0 | F19: =B3B!F59 -> 0 | G19: =B3B!G59 -> 0 | H19: =B3B!H59 -> 0 | I19: =B3B!I59 -> 0 | J19: 0 | K19: 0 | L19: =B3B!L59 -> 0 | M19: =B3B!M59 -> 0
A20: ='Org structure'!A15 -> Vote 14 - | C20: =B3B!C60 -> 0 | D20: =B3B!D60 -> 0 | E20: =B3B!E60 -> 0 | F20: =B3B!F60 -> 0 | G20: =B3B!G60 -> 0 | H20: =B3B!H60 -> 0 | I20: =B3B!I60 -> 0 | J20: 0 | K20: 0 | L20: =B3B!L60 -> 0 | M20: =B3B!M60 -> 0
A21: ='Org structure'!A16 -> Vote 15 - Other | C21: =B3B!C61 -> 0 | D21: =B3B!D61 -> 0 | E21: =B3B!E61 -> 0 | F21: =B3B!F61 -> 0 | G21: =B3B!G61 -> 0 | H21: =B3B!H61 -> 0 | I21: =B3B!I61 -> 0 | J21: 0 | K21: 0 | L21: =B3B!L61 -> 0 | M21: =B3B!M61 -> 0
A22: Total Revenue by Vote | B22: 2 | C22: =SUM(C7:C21) -> 302728256 | D22: =SUM(D7:D21) -> 0 | E22: 0 | F22: 0 | G22: 0 | H22: 0 | I22: 4827281 | J22: =SUM(J7:J21) -> 4827281 | K22: 307555537 | L22: =SUM(L7:L21) -> 333325154 | M22: =SUM(M7:M21) -> 337138051
A24: Expenditure by Vote | B24: 1
A25: =B3B!A65 -> Vote 01 - Corporate Services | C25: =B3B!C65 -> 58766573 | D25: =B3B!D65 -> 0 | E25: =B3B!E65 -> 0 | F25: =B3B!F65 -> 0 | G25: =B3B!G65 -> 0 | H25: =B3B!H65 -> 0 | I25: =B3B!I65 -> -1373882 | J25: =B3B!J65 -> -1373882 | K25: =B3B!K65 -> 57392691 | L25: =B3B!L65 -> 60931854 | M25: =B3B!M65 -> 58416879
A26: =B3B!A74 -> Vote 02 - Municipal Manager | C26: =B3B!C74 -> 24589928 | D26: =B3B!D74 -> 0 | E26: =B3B!E74 -> 0 | F26: =B3B!F74 -> 0 | G26: =B3B!G74 -> 0 | H26: =B3B!H74 -> 0 | I26: =B3B!I74 -> -1203969 | J26: =B3B!J74 -> -1203969 | K26: =B3B!K74 -> 23385959 | L26: =B3B!L74 -> 27747812 | M26: =B3B!M74 -> 28290090
A27: =B3B!A80 -> Vote 03 - Mayors Office | C27: =B3B!C80 -> 17356785 | D27: =B3B!D80 -> 0 | E27: =B3B!E80 -> 0 | F27: =B3B!F80 -> 0 | G27: =B3B!G80 -> 0 | H27: =B3B!H80 -> 0 | I27: =B3B!I80 -> -218234 | J27: =B3B!J80 -> -218234 | K27: =B3B!K80 -> 17138551 | L27: =B3B!L80 -> 22398840 | M27: =B3B!M80 -> 23516502
A28: =B3B!A86 -> Vote 04 - Budget And Treasury | C28: =B3B!C86 -> 37390478 | D28: =B3B!D86 -> 0 | E28: =B3B!E86 -> 0 | F28: =B3B!F86 -> 0 | G28: =B3B!G86 -> 0 | H28: =B3B!H86 -> 0 | I28: =B3B!I86 -> -159346 | J28: =B3B!J86 -> -159346 | K28: =B3B!K86 -> 37231132 | L28: =B3B!L86 -> 36376878 | M28: =B3B!M86 -> 37876662
A29: =B3B!A94 -> Vote 05 - Community Services | C29: =B3B!C94 -> 39864307 | D29: =B3B!D94 -> 0 | E29: =B3B!E94 -> 0 | F29: =B3B!F94 -> 0 | G29: =B3B!G94 -> 0 | H29: =B3B!H94 -> 0 | I29: =B3B!I94 -> -859664 | J29: =B3B!J94 -> -859664 | K29: =B3B!K94 -> 39004643 | L29: =B3B!L94 -> 38610826 | M29: =B3B!M94 -> 44860968
A30: =B3B!A102 -> Vote 06 - Technical Services | C30: =B3B!C102 -> 66738106 | D30: =B3B!D102 -> 0 | E30: =B3B!E102 -> 0 | F30: =B3B!F102 -> 0 | G30: =B3B!G102 -> 0 | H30: =B3B!H102 -> 0 | I30: =B3B!I102 -> 4435614 | J30: =B3B!J102 -> 4435614 | K30: =B3B!K102 -> 71173720 | L30: =B3B!L102 -> 74878601 | M30: =B3B!M102 -> 78607238
A31: ='Org structure'!A8 -> Vote 07 - | C31: =B3B!C111 -> 0 | D31: =B3B!D111 -> 0 | E31: =B3B!E111 -> 0 | F31: =B3B!F111 -> 0 | G31: =B3B!G111 -> 0 | H31: =B3B!H111 -> 0 | I31: =B3B!I111 -> 0 | J31: =SUM(E31:I31) -> 0 | K31: =IF(D31=0,C31+J31,D31+J31) -> 0 | L31: =B3B!L111 -> 0 | M31: =B3B!M111 -> 0
A32: ='Org structure'!A9 -> Vote 08 - | C32: =B3B!C112 -> 0 | D32: =B3B!D112 -> 0 | E32: =B3B!E112 -> 0 | F32: =B3B!F112 -> 0 | G32: =B3B!G112 -> 0 | H32: =B3B!H112 -> 0 | I32: =B3B!I112 -> 0 | J32: 0 | K32: 0 | L32: =B3B!L112 -> 0 | M32: =B3B!M112 -> 0
A33: ='Org structure'!A10 -> Vote 09 - | C33: =B3B!C113 -> 0 | D33: =B3B!D113 -> 0 | E33: =B3B!E113 -> 0 | F33: =B3B!F113 -> 0 | G33: =B3B!G113 -> 0 | H33: =B3B!H113 -> 0 | I33: =B3B!I113 -> 0 | J33: 0 | K33: 0 | L33: =B3B!L113 -> 0 | M33: =B3B!M113 -> 0
A34: ='Org structure'!A11 -> Vote 10 - | C34: =B3B!C114 -> 0 | D34: =B3B!D114 -> 0 | E34: =B3B!E114 -> 0 | F34: =B3B!F114 -> 0 | G34: =B3B!G114 -> 0 | H34: =B3B!H114 -> 0 | I34: =B3B!I114 -> 0 | J34: 0 | K34: 0 | L34: =B3B!L114 -> 0 | M34: =B3B!M114 -> 0
A35: ='Org structure'!A12 -> Vote 11 - | C35: =B3B!C115 -> 0 | D35: =B3B!D115 -> 0 | E35: =B3B!E115 -> 0 | F35: =B3B!F115 -> 0 | G35: =B3B!G115 -> 0 | H35: =B3B!H115 -> 0 | I35: =B3B!I115 -> 0 | J35: 0 | K35: 0 | L35: =B3B!L115 -> 0 | M35: =B3B!M115 -> 0
A36: ='Org structure'!A13 -> Vote 12 - | C36: =B3B!C116 -> 0 | D36: =B3B!D116 -> 0 | E36: =B3B!E116 -> 0 | F36: =B3B!F116 -> 0 | G36: =B3B!G116 -> 0 | H36: =B3B!H116 -> 0 | I36: =B3B!I116 -> 0 | J36: 0 | K36: 0 | L36: =B3B!L116 -> 0 | M36: =B3B!M116 -> 0
A37: ='Org structure'!A14 -> Vote 13 - | C37: =B3B!C117 -> 0 | D37: =B3B!D117 -> 0 | E37: =B3B!E117 -> 0 | F37: =B3B!F117 -> 0 | G37: =B3B!G117 -> 0 | H37: =B3B!H117 -> 0 | I37: =B3B!I117 -> 0 | J37: 0 | K37: 0 | L37: =B3B!L117 -> 0 | M37: =B3B!M117 -> 0
A38: ='Org structure'!A15 -> Vote 14 - | C38: =B3B!C118 -> 0 | D38: =B3B!D118 -> 0 | E38: =B3B!E118 -> 0 | F38: =B3B!F118 -> 0 | G38: =B3B!G118 -> 0 | H38: =B3B!H118 -> 0 | I38: =B3B!I118 -> 0 | J38: 0 | K38: 0 | L38: =B3B!L118 -> 0 | M38: =B3B!M118 -> 0
A39: ='Org structure'!A16 -> Vote 15 - Other | C39: =B3B!C119 -> 0 | D39: =B3B!D119 -> 0 | E39: =B3B!E119 -> 0 | F39: =B3B!F119 -> 0 | G39: =B3B!G119 -> 0 | H39: =B3B!H119 -> 0 | I39: =B3B!I119 -> 0 | J39: 0 | K39: 0 | L39: =B3B!L119 -> 0 | M39: =B3B!M119 -> 0
A40: Total Expenditure by Vote | B40: 2 | C40: =SUM(C25:C39) -> 244706177 | D40: =SUM(D25:D39) -> 0 | E40: 0 | F40: 0 | G40: 0 | H40: 0 | I40: 620519 | J40: =SUM(J25:J39) -> 620519 | K40: =SUM(K25:K39) -> 245326696 | L40: =SUM(L25:L39) -> 260944811 | M40: =SUM(M25:M39) -> 271568339
A41: =result -> Surplus/ (Deficit) for the year | B41: 2 | C41: =C22-C40 -> 58022079 | D41: =D22-D40 -> 0 | E41: 0 | F41: 0 | G41: 0 | H41: 0 | I41: 4206762 | J41: 4206762 | K41: 62228841 | L41: 72380343 | M41: 65569712
A42: =head27a -> References
A43: 1. Insert 'Vote'; e.g. Department, if different to standard classification structure
A44: 2. Must reconcile to Budgeted Financial Performance (revenue and expenditure)
A45: 3. Only complete if a previous adjusted budget has been approved in the same financial year. Reflect most recent adjusted budget.
A46: 4. Additional cash-backed accumulated funds/unspent funds (MFMA section 18(1)(b) and section 28(2)(e)) identified after the Original Budget approved and after annual financial statements audited (note: only where underspending could not reasonably have been foreseen)
A47: 5. Increases of funds approved under MFMA section 31
A48: 6. Adjustments approved in accordance with MFMA section 29
A49: 7. Adjustments to transfers from National or Provincial Government
A50: 8. Adjusts. = 'Other' Adjustments proposed to be approved; including revenue under-collection (MFMA section 28(2)(a)); additional revenue appropriation on existing programmes (section 28(2))(b); projected savings (section 28(2)(d)); error correction (section 28(2)(f))
A51: 9. G = B + C + D + E + F
A52: 10. Adjusted Budget H = (A or A1/2 etc) + G
A54: check revenue | C54: =C22-'B4-FinPerf RE'!C62 -> 0 | D54: =D22-'B4-FinPerf RE'!D62 -> 0 | E54: =E22-'B4-FinPerf RE'!E62 -> 0 | F54: =F22-'B4-FinPerf RE'!F62 -> 0 | G54: =G22-'B4-FinPerf RE'!G62 -> 0 | H54: =H22-'B4-FinPerf RE'!H62 -> 0 | I54: =I22-'B4-FinPerf RE'!I62 -> 0 | J54: =J22-'B4-FinPerf RE'!J62 -> 0 | K54: =K22-'B4-FinPerf RE'!K62 -> 0 | L54: =L22-'B4-FinPerf RE'!L62 -> 0 | M54: =M22-'B4-FinPerf RE'!M62 -> 0
A55: check expenditure | C55: =C40-'B4-FinPerf RE'!C37 -> 0 | D55: =D40-'B4-FinPerf RE'!D37 -> 0 | E55: =E40-'B4-FinPerf RE'!E37 -> 0 | F55: =F40-'B4-FinPerf RE'!F37 -> 0 | G55: =G40-'B4-FinPerf RE'!G37 -> 0 | H55: =H40-'B4-FinPerf RE'!H37 -> 0 | I55: =I40-'B4-FinPerf RE'!I37 -> 0 | J55: =J40-'B4-FinPerf RE'!J37 -> 0 | K55: =K40-'B4-FinPerf RE'!K37 -> 0 | L55: =L40-'B4-FinPerf RE'!L37 -> 0 | M55: =M40-'B4-FinPerf RE'!M37 -> 0

Sheet B3B
A1: =muni&" - "&_ADJ2&" - B"&" - "&Date -> LIM353 Molemole - Table B3 Adjustments Budget Financial Performance (revenue and expenditure by municipal vote) - B - 14/07/2023
A2: =Vdesc -> Vote Description | B2: =head27 -> Ref | C2: =Head2 -> Budget Year 2022/23 | L2: =Head10 -> Budget Year +1 2023/24 | M2: =Head11 -> Budget Year +2 2024/25
C3: =Head6 -> Original Budget | D3: =Head54 -> Prior Adjusted | E3: =Head51 -> Accum. Funds | F3: =Head52 -> Multi-year capital | G3: =Head53 -> Unfore. Unavoid. | H3: =Head55 -> Nat. or Prov. Govt | I3: =Head50 -> Other Adjusts. | J3: =Head56 -> Total Adjusts. | K3: =Head7 -> Adjusted Budget | L3: =Head7 -> Adjusted Budget | M3: =Head7 -> Adjusted Budget
A4: [Insert departmental structure etc] | D4: 3 | E4: 4 | F4: 5 | G4: 6 | H4: 7 | I4: 8 | J4: 9 | K4: 10
A5: R thousands | C5: A | D5: A1 | E5: B | F5: C | G5: D | H5: E | I5: F | J5: G | K5: H
A6: Revenue by Vote | B6: 1
A7: ='Org structure'!A2 -> Vote 01 - Corporate Services | C7: =SUM(C8:C15) -> 395442 | D7: 0 | E7: 0 | F7: 0 | G7: 0 | H7: 0 | I7: 654656 | J7: =SUM(E7:I7) -> 654656 | K7: =IF(D7=0,C7+J7,D7+J7) -> 1050098 | L7: =SUM(L8:L15) -> 398249 | M7: =SUM(M8:M15) -> 418164
A8: ='Org structure'!E3 -> 01.1 - Corporate Services Admin | C8: 0 | D8: 0 | E8: 0 | F8: 0 | G8: 0 | H8: 0 | I8: 0 | J8: 0 | K8: 0 | L8: 0 | M8: 0
A9: ='Org structure'!E4 -> 01.2 - Human Resources | C9: 232488 | D9: 0 | E9: 0 | F9: 0 | G9: 0 | H9: 0 | I9: 640000 | J9: 640000 | K9: 872488 | L9: 244113 | M9: 256319
A10: ='Org structure'!E5 -> 01.3 - Information Technology Services | C10: 0 | D10: 0 | E10: 0 | F10: 0 | G10: 0 | H10: 0 | I10: 0 | J10: 0 | K10: 0 | L10: 0 | M10: 0
A11: ='Org structure'!E6 -> 01.4 - Council Support | C11: 0 | D11: 0 | E11: 0 | F11: 0 | G11: 0 | H11: 0 | I11: 0 | J11: 0 | K11: 0 | L11: 0 | M11: 0
A12: ='Org structure'!E7 -> 01.5 - Local Economic Development | C12: 0 | D12: 0 | E12: 0 | F12: 0 | G12: 0 | H12: 0 | I12: 0 | J12: 0 | K12: 0 | L12: 0 | M12: 0
A13: ='Org structure'!E8 -> 01.6 - Municipal Planning Idp | C13: 38578 | D13: 0 | E13: 0 | F13: 0 | G13: 0 | H13: 0 | I13: 4656 | J13: 4656 | K13: 43234 | L13: 58696 | M13: 61631
A14: ='Org structure'!E9 -> 01.7 - Town & Regional Planning | C14: 124376 | D14: 0 | E14: 0 | F14: 0 | G14: 0 | H14: 0 | I14: 10000 | J14: 10000 | K14: 134376 | L14: 95440 | M14: 100214
A15: ='Org structure'!E10 -> 01.8 - Led Administration | C15: 0 | D15: 0 | E15: 0 | F15: 0 | G15: 0 | H15: 0 | I15: 0 | J15: 0 | K15: 0 | L15: 0 | M15: 0
A16: ='Org structure'!A3 -> Vote 02 - Municipal Manager | C16: =SUM(C17:C21) -> 0 | D16: 0 | E16: 0 | F16: 0 | G16: 0 | H16: 0 | I16: 0 | J16: =SUM(E16:I16) -> 0 | K16: =IF(D16=0,C16+J16,D16+J16) -> 0 | L16: =SUM(L17:L21) -> 0 | M16: =SUM(M17:M21) -> 0
A17: ='Org structure'!E12 -> 02.1 - Municipal Manager Admin | C17: 0 | D17: 0 | E17: 0 | F17: 0 | G17: 0 | H17: 0 | I17: 0 | J17: =SUM(E17:I17) -> 0 | K17: =IF(D17=0,C17+J17,D17+J17) -> 0 | L17: 0 | M17: 0
A18: ='Org structure'!E13 -> 02.2 - Legal Services | C18: 0 | D18: 0 | E18: 0 | F18: 0 | G18: 0 | H18: 0 | I18: 0 | J18: =SUM(E18:I18) -> 0 | K18: =IF(D18=0,C18+J18,D18+J18) -> 0 | L18: 0 | M18: 0
A19: ='Org structure'!E14 -> 02.3 - Political Office Beares | C19: 0 | D19: 0 | E19: 0 | F19: 0 | G19: 0 | H19: 0 | I19: 0 | J19: =SUM(E19:I19) -> 0 | K19: =IF(D19=0,C19+J19,D19+J19) -> 0 | L19: 0 | M19: 0
A20: ='Org structure'!E15 -> 02.4 - Pms | C20: 0 | D20: 0 | E20: 0 | F20: 0 | G20: 0 | H20: 0 | I20: 0 | J20: =SUM(E20:I20) -> 0 | K20: =IF(D20=0,C20+J20,D20+J20) -> 0 | L20: 0 | M20: 0
A21: ='Org structure'!E16 -> 02.5 - Internal Audit | C21: 0 | D21: 0 | E21: 0 | F21: 0 | G21: 0 | H21: 0 | I21: 0 | J21: =SUM(E21:I21) -> 0 | K21: =IF(D21=0,C21+J21,D21+J21) -> 0 | L21: 0 | M21: 0
A22: ='Org structure'!A4 -> Vote 03 - Mayors Office | C22: =SUM(C23:C27) -> 0 | D22: 0 | E22: 0 | F22: 0 | G22: 0 | H22: 0 | I22: 0 | J22: 0 | K22: 0 | L22: =SUM(L23:L27) -> 0 | M22: =SUM(M23:M27) -> 0
A23: ='Org structure'!E18 -> 03.1 - Mayors Office Admin | C23: 0 | D23: 0 | E23: 0 | F23: 0 | G23: 0 | H23: 0 | I23: 0 | J23: =SUM(E23:I23) -> 0 | K23: =IF(D23=0,C23+J23,D23+J23) -> 0 | L23: 0 | M23: 0
A24: ='Org structure'!E19 -> 03.2 - Office Of The Speaker | C24: 0 | D24: 0 | E24: 0 | F24: 0 | G24: 0 | H24: 0 | I24: 0 | J24: =SUM(E24:I24) -> 0 | K24: =IF(D24=0,C24+J24,D24+J24) -> 0 | L24: 0 | M24: 0
A25: ='Org structure'!E20 -> 03.3 - Office Of The Chief Whip | C25: 0 | D25: 0 | E25: 0 | F25: 0 | G25: 0 | H25: 0 | I25: 0 | J25: =SUM(E25:I25) -> 0 | K25: =IF(D25=0,C25+J25,D25+J25) -> 0 | L25: 0 | M25: 0
A26: ='Org structure'!E21 -> 03.4 - Exco Members | C26: 0 | D26: 0 | E26: 0 | F26: 0 | G26: 0 | H26: 0 | I26: 0 | J26: =SUM(E26:I26) -> 0 | K26: =IF(D26=0,C26+J26,D26+J26) -> 0 | L26: 0 | M26: 0
A27: ='Org structure'!E22 -> 03.5 - Council General Administration | C27: 0 | D27: 0 | E27: 0 | F27: 0 | G27: 0 | H27: 0 | I27: 0 | J27: =SUM(E27:I27) -> 0 | K27: =IF(D27=0,C27+J27,D27+J27) -> 0 | L27: 0 | M27: 0
A28: ='Org structure'!A5 -> Vote 04 - Budget And Treasury | C28: =SUM(C29:C35) -> 224212259 | D28: 0 | E28: 0 | F28: 0 | G28: 0 | H28: 0 | I28: -2274075 | J28: -2274075 | K28: 221938184 | L28: =SUM(L29:L35) -> 238432096 | M28: =SUM(M29:M35) -> 248762331
A29: ='Org structure'!E24 -> 04.1 - Budget And Treasury Admin | C29: 221179812 | D29: 0 | E29: 0 | F29: 0 | G29: 0 | H29: 0 | I29: -8157160 | J29: =SUM(E29:I29) -> -8157160 | K29: =IF(D29=0,C29+J29,D29+J29) -> 213022652 | L29: 227612006 | M29: 239910018
A30: ='Org structure'!E25 -> 04.2 - Chief Financial Officer Admin | C30: 0 | D30: 0 | E30: 0 | F30: 0 | G30: 0 | H30: 0 | I30: 0 | J30: 0 | K30: 0 | L30: 0 | M30: 0
A31: ='Org structure'!E26 -> 04.3 - Budget & Reporting | C31: 0 | D31: 0 | E31: 0 | F31: 0 | G31: 0 | H31: 0 | I31: 0 | J31: 0 | K31: 0 | L31: 0 | M31: 0
A32: ='Org structure'!E27 -> 04.4 - Budget & Reporting | C32: 3000000 | D32: 0 | E32: 0 | F32: 0 | G32: 0 | H32: 0 | I32: 4750000 | J32: 4750000 | K32: 7750000 | L32: 9600000 | M32: 7571218
A33: ='Org structure'!E28 -> 04.5 - Revenue Management | C33: 32447 | D33: 0 | E33: 0 | F33: 0 | G33: 0 | H33: 0 | I33: 1133085 | J33: 1133085 | K33: 1165532 | L33: 1220090 | M33: 1281095
A34: ='Org structure'!E29 -> 04.6 - Supply Chain Management | C34: 0 | D34: 0 | E34: 0 | F34: 0 | G34: 0 | H34: 0 | I34: 0 | J34: 0 | K34: 0 | L34: 0 | M34: 0
A35: ='Org structure'!E30 -> 04.7 - Expenditure | C35: 0 | D35: 0 | E35: 0 | F35: 0 | G35: 0 | H35: 0 | I35: 0 | J35: 0 | K35: 0 | L35: 0 | M35: 0
A36: ='Org structure'!A6 -> Vote 05 - Community Services | C36: =SUM(C37:C43) -> 13968689 | D36: 0 | E36: 0 | F36: 0 | G36: 0 | H36: 0 | I36: -669743 | J36: -669743 | K36: 13298946 | L36: =SUM(L37:L43) -> 19217223 | M36: =SUM(M37:M43) -> 18898139
A37: ='Org structure'!E32 -> 05.1 - Community Services Admin | C37: 1407000 | D37: 0 | E37: 0 | F37: 0 | G37: 0 | H37: 0 | I37: 0 | J37: =SUM(E37:I37) -> 0 | K37: =IF(D37=0,C37+J37,D37+J37) -> 1407000 | L37: 1219000 | M37: 0
A38: ='Org structure'!E33 -> 05.2 - Libraries | C38: 0 | D38: 0 | E38: 0 | F38: 0 | G38: 0 | H38: 0 | I38: 0 | J38: 0 | K38: 0 | L38: 0 | M38: 0
A39: ='Org structure'!E34 -> 05.3 - Sports Recreation & Social Amenitie | C39: 269991 | D39: 0 | E39: 0 | F39: 0 | G39: 0 | H39: 0 | I39: 0 | J39: 0 | K39: 269991 | L39: 249544 | M39: 262023
A40: ='Org structure'!E35 -> 05.4 - Traffic Service | C40: 0 | D40: 0 | E40: 0 | F40: 0 | G40: 0 | H40: 0 | I40: 0 | J40: 0 | K40: 0 | L40: 0 | M40: 0
A41: ='Org structure'!E36 -> 05.5 - Traffic Service | C41: 9423195 | D41: 0 | E41: 0 | F41: 0 | G41: 0 | H41: 0 | I41: -684042 | J41: -684042 | K41: 8739153 | L41: 13712249 | M41: 14397863
A42: ='Org structure'!E37 -> 05.6 - Parks; Cemeteries | C42: 14299 | D42: 0 | E42: 0 | F42: 0 | G42: 0 | H42: 0 | I42: 14299 | J42: 14299 | K42: 28598 | L42: 26612 | M42: 27943
A43: ='Org structure'!E38 -> 05.7 - Refuse | C43: 2854204 | D43: 0 | E43: 0 | F43: 0 | G43: 0 | H43: 0 | I43: 0 | J43: 0 | K43: 2854204 | L43: 4009818 | M43: 4210310
A44: ='Org structure'!A7 -> Vote 06 - Technical Services | C44: =SUM(C45:C52) -> 64151866 | D44: 0 | E44: 0 | F44: 0 | G44: 0 | H44: 0 | I44: 7116443 | J44: 7116443 | K44: 71268309 | L44: =SUM(L45:L52) -> 75277586 | M44: =SUM(M45:M52) -> 69059417
A45: ='Org structure'!E40 -> 06.1 - Mpac | C45: 0 | D45: 0 | E45: 0 | F45: 0 | G45: 0 | H45: 0 | I45: 0 | J45: =SUM(E45:I45) -> 0 | K45: =IF(D45=0,C45+J45,D45+J45) -> 0 | L45: 0 | M45: 0
A46: ='Org structure'!E41 -> 06.2 - Technical Services Admin | C46: 0 | D46: 0 | E46: 0 | F46: 0 | G46: 0 | H46: 0 | I46: 0 | J46: 0 | K46: 0 | L46: 0 | M46: 0
A47: ='Org structure'!E42 -> 06.3 - Techn Serv-Roads: Admin | C47: 0 | D47: 0 | E47: 0 | F47: 0 | G47: 0 | H47: 0 | I47: 4500000 | J47: 4500000 | K47: 4500000 | L47: 0 | M47: 0
A48: ='Org structure'!E43 -> 06.4 - Techn Serv-Stormwater: Admin | C48: 0 | D48: 0 | E48: 0 | F48: 0 | G48: 0 | H48: 0 | I48: 0 | J48: 0 | K48: 0 | L48: 0 | M48: 0
A49: ='Org structure'!E44 -> 06.5 - Project Management Unit | C49: 39792000 | D49: 0 | E49: 0 | F49: 0 | G49: 0 | H49: 0 | I49: 0 | J49: 0 | K49: 39792000 | L49: 41453000 | M49: 43221000
A50: ='Org structure'!E45 -> 06.6 - Electrical & Machinery | C50: 23603514 | D50: 0 | E50: 0 | F50: 0 | G50: 0 | H50: 0 | I50: 2616443 | J50: 2616443 | K50: 26219957 | L50: 32143638 | M50: 24073421
A51: ='Org structure'!E46 -> 06.7 - Water | C51: 459174 | D51: 0 | E51: 0 | F51: 0 | G51: 0 | H51: 0 | I51: 0 | J51: 0 | K51: 459174 | L51: 68588 | M51: 72018
A52: ='Org structure'!E47 -> 06.8 - Sanitation | C52: 297178 | D52: 0 | E52: 0 | F52: 0 | G52: 0 | H52: 0 | I52: 0 | J52: 0 | K52: 297178 | L52: 1612360 | M52: 1692978
A53: ='Org structure'!A8 -> Vote 07 - | C53: 0 | D53: 0 | E53: 0 | F53: 0 | G53: 0 | H53: 0 | I53: 0 | J53: =SUM(E53:I53) -> 0 | K53: =IF(D53=0,C53+J53,D53+J53) -> 0 | L53: 0 | M53: 0
A54: ='Org structure'!A9 -> Vote 08 - | C54: 0 | D54: 0 | E54: 0 | F54: 0 | G54: 0 | H54: 0 | I54: 0 | J54: 0 | K54: 0 | L54: 0 | M54: 0
A55: ='Org structure'!A10 -> Vote 09 - | C55: 0 | D55: 0 | E55: 0 | F55: 0 | G55: 0 | H55: 0 | I55: 0 | J55: 0 | K55: 0 | L55: 0 | M55: 0
A56: ='Org structure'!A11 -> Vote 10 - | C56: 0 | D56: 0 | E56: 0 | F56: 0 | G56: 0 | H56: 0 | I56: 0 | J56: 0 | K56: 0 | L56: 0 | M56: 0
A57: ='Org structure'!A12 -> Vote 11 - | C57: 0 | D57: 0 | E57: 0 | F57: 0 | G57: 0 | H57: 0 | I57: 0 | J57: 0 | K57: 0 | L57: 0 | M57: 0
A58: ='Org structure'!A13 -> Vote 12 - | C58: 0 | D58: 0 | E58: 0 | F58: 0 | G58: 0 | H58: 0 | I58: 0 | J58: 0 | K58: 0 | L58: 0 | M58: 0
A59: ='Org structure'!A14 -> Vote 13 - | C59: 0 | D59: 0 | E59: 0 | F59: 0 | G59: 0 | H59: 0 | I59: 0 | J59: =SUM(E59:I59) -> 0 | K59: =IF(D59=0,C59+J59,D59+J59) -> 0 | L59: 0 | M59: 0
A60: ='Org structure'!A15 -> Vote 14 - | C60: 0 | D60: 0 | E60: 0 | F60: 0 | G60: 0 | H60: 0 | I60: 0 | J60: 0 | K60: 0 | L60: 0 | M60: 0
A61: ='Org structure'!A16 -> Vote 15 - Other | C61: 0 | D61: 0 | E61: 0 | F61: 0 | G61: 0 | H61: 0 | I61: 0 | J61: 0 | K61: 0 | L61: 0 | M61: 0
A62: Total Revenue by Vote | B62: 2 | C62: =C7+C16+C22+C28+C36+C44+C53+C54+C55+C56+C57+C58+C59+C60+C61 -> 302728256 | D62: 0 | E62: 0 | F62: 0 | G62: 0 | H62: 0 | I62: 4827281 | J62: 4827281 | K62: 307555537 | L62: 333325154 | M62: 337138051
A64: Expenditure by Vote | B64: 1
A65: ='Org structure'!A2 -> Vote 01 - Corporate Services | C65: =SUM(C66:C73) -> 58766573 | D65: 0 | E65: 0 | F65: 0 | G65: 0 | H65: 0 | I65: -1373882 | J65: =SUM(E65:I65) -> -1373882 | K65: =IF(D65=0,C65+J65,D65+J65) -> 57392691 | L65: =SUM(L66:L73) -> 60931854 | M65: =SUM(M66:M73) -> 58416879
A66: ='Org structure'!E3 -> 01.1 - Corporate Services Admin | C66: 25950055 | D66: 0 | E66: 0 | F66: 0 | G66: 0 | H66: 0 | I66: -587208 | J66: -587208 | K66: 25362847 | L66: 26907931 | M66: 27951003
A67: ='Org structure'!E4 -> 01.2 - Human Resources | C67: 8474691 | D67: 0 | E67: 0 | F67: 0 | G67: 0 | H67: 0 | I67: 788076 | J67: 788076 | K67: 9262767 | L67: 6935834 | M67: 6649427
A68: ='Org structure'!E5 -> 01.3 - Information Technology Services | C68: 7974647 | D68: 0 | E68: 0 | F68: 0 | G68: 0 | H68: 0 | I68: -720118 | J68: -720118 | K68: 7254529 | L68: 8308547 | M68: 8673985
A69: ='Org structure'!E6 -> 01.4 - Council Support | C69: 6584152 | D69: 0 | E69: 0 | F69: 0 | G69: 0 | H69: 0 | I69: 800519 | J69: 800519 | K69: 7384671 | L69: 5758923 | M69: 6046875
A70: ='Org structure'!E7 -> 01.5 - Local Economic Development | C70: 4072438 | D70: 0 | E70: 0 | F70: 0 | G70: 0 | H70: 0 | I70: -514354 | J70: -514354 | K70: 3558084 | L70: 4426463 | M70: 4253062
A71: ='Org structure'!E8 -> 01.6 - Municipal Planning Idp | C71: 2861414 | D71: 0 | E71: 0 | F71: 0 | G71: 0 | H71: 0 | I71: -990006 | J71: -990006 | K71: 1871408 | L71: 5820965 | M71: 1930669
A72: ='Org structure'!E9 -> 01.7 - Town & Regional Planning | C72: 2477654 | D72: 0 | E72: 0 | F72: 0 | G72: 0 | H72: 0 | I72: 71938 | J72: 71938 | K72: 2549592 | L72: 2773191 | M72: 2911858
A73: ='Org structure'!E10 -> 01.8 - Led Administration | C73: 371522 | D73: 0 | E73: 0 | F73: 0 | G73: 0 | H73: 0 | I73: -222729 | J73: -222729 | K73: 148793 | L73: 0 | M73: 0
A74: ='Org structure'!A3 -> Vote 02 - Municipal Manager | C74: =SUM(C75:C79) -> 24589928 | D74: 0 | E74: 0 | F74: 0 | G74: 0 | H74: 0 | I74: -1203969 | J74: =SUM(E74:I74) -> -1203969 | K74: =IF(D74=0,C74+J74,D74+J74) -> 23385959 | L74: =SUM(L75:L79) -> 27747812 | M74: =SUM(M75:M79) -> 28290090
A75: ='Org structure'!E12 -> 02.1 - Municipal Manager Admin | C75: 6440500 | D75: 0 | E75: 0 | F75: 0 | G75: 0 | H75: 0 | I75: -227076 | J75: =SUM(E75:I75) -> -227076 | K75: =IF(D75=0,C75+J75,D75+J75) -> 6213424 | L75: 7263980 | M75: 7627039
A76: ='Org structure'!E13 -> 02.2 - Legal Services | C76: 2915227 | D76: 0 | E76: 0 | F76: 0 | G76: 0 | H76: 0 | I76: -250189 | J76: =SUM(E76:I76) -> -250189 | K76: =IF(D76=0,C76+J76,D76+J76) -> 2665038 | L76: 2841480 | M76: 2983561
A77: ='Org structure'!E14 -> 02.3 - Political Office Beares | C77: 2272356 | D77: 0 | E77: 0 | F77: 0 | G77: 0 | H77: 0 | I77: -466039 | J77: =SUM(E77:I77) -> -466039 | K77: =IF(D77=0,C77+J77,D77+J77) -> 1806317 | L77: 1999670 | M77: 2099660
A78: ='Org structure'!E15 -> 02.4 - Pms | C78: 2802715 | D78: 0 | E78: 0 | F78: 0 | G78: 0 | H78: 0 | I78: 56476 | J78: =SUM(E78:I78) -> 56476 | K78: =IF(D78=0,C78+J78,D78+J78) -> 2859191 | L78: 3242206 | M78: 3404322
A79: ='Org structure'!E16 -> 02.5 - Internal Audit | C79: 10159130 | D79: 0 | E79: 0 | F79: 0 | G79: 0 | H79: 0 | I79: -317141 | J79: =SUM(E79:I79) -> -317141 | K79: =IF(D79=0,C79+J79,D79+J79) -> 9841989 | L79: 12400476 | M79: 12175508
A80: ='Org structure'!A4 -> Vote 03 - Mayors Office | C80: =SUM(C81:C85) -> 17356785 | D80: 0 | E80: 0 | F80: 0 | G80: 0 | H80: 0 | I80: -218234 | J80: -218234 | K80: 17138551 | L80: =SUM(L81:L85) -> 22398840 | M80: =SUM(M81:M85) -> 23516502
A81: ='Org structure'!E18 -> 03.1 - Mayors Office Admin | C81: 3360290 | D81: 0 | E81: 0 | F81: 0 | G81: 0 | H81: 0 | I81: -433244 | J81: =SUM(E81:I81) -> -433244 | K81: =IF(D81=0,C81+J81,D81+J81) -> 2927046 | L81: 4009101 | M81: 4209463
A82: ='Org structure'!E19 -> 03.2 - Office Of The Speaker | C82: 1299854 | D82: 0 | E82: 0 | F82: 0 | G82: 0 | H82: 0 | I82: 48037 | J82: =SUM(E82:I82) -> 48037 | K82: =IF(D82=0,C82+J82,D82+J82) -> 1347891 | L82: 1676754 | M82: 1759998
A83: ='Org structure'!E20 -> 03.3 - Office Of The Chief Whip | C83: 610768 | D83: 0 | E83: 0 | F83: 0 | G83: 0 | H83: 0 | I83: -76500 | J83: =SUM(E83:I83) -> -76500 | K83: =IF(D83=0,C83+J83,D83+J83) -> 534268 | L83: 1062867 | M83: 1115413
A84: ='Org structure'!E21 -> 03.4 - Exco Members | C84: 3716551 | D84: 0 | E84: 0 | F84: 0 | G84: 0 | H84: 0 | I84: -205880 | J84: =SUM(E84:I84) -> -205880 | K84: =IF(D84=0,C84+J84,D84+J84) -> 3510671 | L84: 5209078 | M84: 5469034
A85: ='Org structure'!E22 -> 03.5 - Council General Administration | C85: 8369322 | D85: 0 | E85: 0 | F85: 0 | G85: 0 | H85: 0 | I85: 449353 | J85: =SUM(E85:I85) -> 449353 | K85: =IF(D85=0,C85+J85,D85+J85) -> 8818675 | L85: 10441040 | M85: 10962594
A86: ='Org structure'!A5 -> Vote 04 - Budget And Treasury | C86: =SUM(C87:C93) -> 37390478 | D86: 0 | E86: 0 | F86: 0 | G86: 0 | H86: 0 | I86: -159346 | J86: -159346 | K86: 37231132 | L86: =SUM(L87:L93) -> 36376878 | M86: =SUM(M87:M93) -> 37876662
A87: ='Org structure'!E24 -> 04.1 - Budget And Treasury Admin | C87: 9967265 | D87: 0 | E87: 0 | F87: 0 | G87: 0 | H87: 0 | I87: -453770 | J87: =SUM(E87:I87) -> -453770 | K87: =IF(D87=0,C87+J87,D87+J87) -> 9513495 | L87: 11099461 | M87: 11355341
A88: ='Org structure'!E25 -> 04.2 - Chief Financial Officer Admin | C88: 14373 | D88: 0 | E88: 0 | F88: 0 | G88: 0 | H88: 0 | I88: 0 | J88: 0 | K88: 14373 | L88: 0 | M88: 0
A89: ='Org structure'!E26 -> 04.3 - Budget & Reporting | C89: 0 | D89: 0 | E89: 0 | F89: 0 | G89: 0 | H89: 0 | I89: 0 | J89: 0 | K89: 0 | L89: 0 | M89: 0
A90: ='Org structure'!E27 -> 04.4 - Budget & Reporting | C90: 3147029 | D90: 0 | E90: 0 | F90: 0 | G90: 0 | H90: 0 | I90: 206127 | J90: 206127 | K90: 3353156 | L90: 4339425 | M90: 4551407
A91: ='Org structure'!E28 -> 04.5 - Revenue Management | C91: 15201826 | D91: 0 | E91: 0 | F91: 0 | G91: 0 | H91: 0 | I91: 135202 | J91: 135202 | K91: 15337028 | L91: 9698256 | M91: 10178177
A92: ='Org structure'!E29 -> 04.6 - Supply Chain Management | C92: 4423567 | D92: 0 | E92: 0 | F92: 0 | G92: 0 | H92: 0 | I92: 40517 | J92: 40517 | K92: 4464084 | L92: 6185323 | M92: 6489596
A93: ='Org structure'!E30 -> 04.7 - Expenditure | C93: 4636418 | D93: 0 | E93: 0 | F93: 0 | G93: 0 | H93: 0 | I93: -87422 | J93: -87422 | K93: 4548996 | L93: 5054413 | M93: 5302141
A94: ='Org structure'!A6 -> Vote 05 - Community Services | C94: =SUM(C95:C101) -> 39864307 | D94: 0 | E94: 0 | F94: 0 | G94: 0 | H94: 0 | I94: -859664 | J94: -859664 | K94: 39004643 | L94: =SUM(L95:L101) -> 38610826 | M94: =SUM(M95:M101) -> 44860968
A95: ='Org structure'!E32 -> 05.1 - Community Services Admin | C95: 5265352 | D95: 0 | E95: 0 | F95: 0 | G95: 0 | H95: 0 | I95: -450557 | J95: =SUM(E95:I95) -> -450557 | K95: =IF(D95=0,C95+J95,D95+J95) -> 4814795 | L95: 5507227 | M95: 5782500
A96: ='Org structure'!E33 -> 05.2 - Libraries | C96: 1501376 | D96: 0 | E96: 0 | F96: 0 | G96: 0 | H96: 0 | I96: 16503 | J96: 16503 | K96: 1517879 | L96: 1726521 | M96: 1812854
A97: ='Org structure'!E34 -> 05.3 - Sports Recreation & Social Amenitie | C97: 3232103 | D97: 0 | E97: 0 | F97: 0 | G97: 0 | H97: 0 | I97: -46737 | J97: -46737 | K97: 3185366 | L97: 3723138 | M97: 3909308
A98: ='Org structure'!E35 -> 05.4 - Traffic Service | C98: 0 | D98: 0 | E98: 0 | F98: 0 | G98: 0 | H98: 0 | I98: 0 | J98: 0 | K98: 0 | L98: 0 | M98: 0
A99: ='Org structure'!E36 -> 05.5 - Traffic Service | C99: 17077225 | D99: 0 | E99: 0 | F99: 0 | G99: 0 | H99: 0 | I99: 816836 | J99: 816836 | K99: 17894061 | L99: 15220230 | M99: 21580849
A100: ='Org structure'!E37 -> 05.6 - Parks; Cemeteries | C100: 2567541 | D100: 0 | E100: 0 | F100: 0 | G100: 0 | H100: 0 | I100: -902638 | J100: -902638 | K100: 1664903 | L100: 1668593 | M100: 1752028
A101: ='Org structure'!E38 -> 05.7 - Refuse | C101: 10220710 | D101: 0 | E101: 0 | F101: 0 | G101: 0 | H101: 0 | I101: -293071 | J101: -293071 | K101: 9927639 | L101: 10765117 | M101: 10023429
A102: ='Org structure'!A7 -> Vote 06 - Technical Services | C102: =SUM(C103:C110) -> 66738106 | D102: 0 | E102: 0 | F102: 0 | G102: 0 | H102: 0 | I102: 4435614 | J102: 4435614 | K102: 71173720 | L102: =SUM(L103:L110) -> 74878601 | M102: =SUM(M103:M110) -> 78607238
A103: ='Org structure'!E40 -> 06.1 - Mpac | C103: 1571400 | D103: 0 | E103: 0 | F103: 0 | G103: 0 | H103: 0 | I103: 315102 | J103: =SUM(E103:I103) -> 315102 | K103: =IF(D103=0,C103+J103,D103+J103) -> 1886502 | L103: 2894804 | M103: 3039545
A104: ='Org structure'!E41 -> 06.2 - Technical Services Admin | C104: 150664 | D104: 0 | E104: 0 | F104: 0 | G104: 0 | H104: 0 | I104: 0 | J104: 0 | K104: 150664 | L104: 0 | M104: 0
A105: ='Org structure'!E42 -> 06.3 - Techn Serv-Roads: Admin | C105: 3974580 | D105: 0 | E105: 0 | F105: 0 | G105: 0 | H105: 0 | I105: 6699004 | J105: 6699004 | K105: 10673584 | L105: 12014827 | M105: 12615469
A106: ='Org structure'!E43 -> 06.4 - Techn Serv-Stormwater: Admin | C106: 25044569 | D106: 0 | E106: 0 | F106: 0 | G106: 0 | H106: 0 | I106: -8751298 | J106: -8751298 | K106: 16293271 | L106: 18314786 | M106: 19230536
A107: ='Org structure'!E44 -> 06.5 - Project Management Unit | C107: 4305903 | D107: 0 | E107: 0 | F107: 0 | G107: 0 | H107: 0 | I107: 2513695 | J107: 2513695 | K107: 6819598 | L107: 4482257 | M107: 4691143
A108: ='Org structure'!E45 -> 06.6 - Electrical & Machinery | C108: 24643694 | D108: 0 | E108: 0 | F108: 0 | G108: 0 | H108: 0 | I108: 4166161 | J108: 4166161 | K108: 28809855 | L108: 31287310 | M108: 32851686
A109: ='Org structure'!E46 -> 06.7 - Water | C109: 5959405 | D109: 0 | E109: 0 | F109: 0 | G109: 0 | H109: 0 | I109: -85521 | J109: -85521 | K109: 5873884 | L109: 5224628 | M109: 5485867
A110: ='Org structure'!E47 -> 06.8 - Sanitation | C110: 1087891 | D110: 0 | E110: 0 | F110: 0 | G110: 0 | H110: 0 | I110: -421529 | J110: -421529 | K110: 666362 | L110: 659989 | M110: 692992
A111: ='Org structure'!A8 -> Vote 07 - | C111: 0 | D111: 0 | E111: 0 | F111: 0 | G111: 0 | H111: 0 | I111: 0 | J111: =SUM(E111:I111) -> 0 | K111: =IF(D111=0,C111+J111,D111+J111) -> 0 | L111: 0 | M111: 0
A112: ='Org structure'!A9 -> Vote 08 - | C112: 0 | D112: 0 | E112: 0 | F112: 0 | G112: 0 | H112: 0 | I112: 0 | J112: 0 | K112: 0 | L112: 0 | M112: 0
A113: ='Org structure'!A10 -> Vote 09 - | C113: 0 | D113: 0 | E113: 0 | F113: 0 | G113: 0 | H113: 0 | I113: 0 | J113: 0 | K113: 0 | L113: 0 | M113: 0
A114: ='Org structure'!A11 -> Vote 10 - | C114: 0 | D114: 0 | E114: 0 | F114: 0 | G114: 0 | H114: 0 | I114: 0 | J114: 0 | K114: 0 | L114: 0 | M114: 0
A115: ='Org structure'!A12 -> Vote 11 - | C115: 0 | D115: 0 | E115: 0 | F115: 0 | G115: 0 | H115: 0 | I115: 0 | J115: 0 | K115: 0 | L115: 0 | M115: 0
A116: ='Org structure'!A13 -> Vote 12 - | C116: 0 | D116: 0 | E116: 0 | F116: 0 | G116: 0 | H116: 0 | I116: 0 | J116: 0 | K116: 0 | L116: 0 | M116: 0
A117: ='Org structure'!A14 -> Vote 13 - | C117: 0 | D117: 0 | E117: 0 | F117: 0 | G117: 0 | H117: 0 | I117: 0 | J117: =SUM(E117:I117) -> 0 | K117: =IF(D117=0,C117+J117,D117+J117) -> 0 | L117: 0 | M117: 0
A118: ='Org structure'!A15 -> Vote 14 - | C118: 0 | D118: 0 | E118: 0 | F118: 0 | G118: 0 | H118: 0 | I118: 0 | J118: 0 | K118: 0 | L118: 0 | M118: 0
A119: ='Org structure'!A16 -> Vote 15 - Other | C119: 0 | D119: 0 | E119: 0 | F119: 0 | G119: 0 | H119: 0 | I119: 0 | J119: 0 | K119: 0 | L119: 0 | M119: 0
A120: Total Expenditure by Vote | B120: 2 | C120: =C65+C74+C80+C86+C94+C102+C111+C112+C113+C114+C115+C116+C117+C118+C119 -> 244706177 | D120: 0 | E120: 0 | F120: 0 | G120: 0 | H120: 0 | I120: 620519 | J120: 620519 | K120: 245326696 | L120: 260944811 | M120: 271568339
A122: =result -> Surplus/ (Deficit) for the year | B122: 2 | C122: =C62-C120 -> 58022079 | D122: 0 | E122: 0 | F122: 0 | G122: 0 | H122: 0 | I122: 4206762 | J122: =SUM(E122:I122) -> 4206762 | K122: =IF(D122=0,C122+J122,D122+J122) -> 62228841 | L122: =L62-L120 -> 72380343 | M122: =M62-M120 -> 65569712
A123: =head27a -> References
A124: 1. Insert 'Vote'; e.g. Department, if different to standard structure
A125: 2. Must reconcile to Financial Performance ('Revenue and Expenditure by Standard Classification' and 'Revenue and Expenditure')
A126: 3. Assign share in 'associate' to relevant Vote

Sheet B4-FinPerf RE
A1: =muni&" - "&_ADJ4&" - "&Date -> LIM353 Molemole - Table B4 Adjustments Budget Financial Performance (revenue and expenditure) - 14/07/2023
A2: =desc -> Description | B2: =head27 -> Ref | C2: =Head2 -> Budget Year 2022/23 | L2: =Head10 -> Budget Year +1 2023/24 | M2: =Head11 -> Budget Year +2 2024/25
C3: =Head6 -> Original Budget | D3: =Head54 -> Prior Adjusted | E3: =Head51 -> Accum. Funds | F3: =Head52 -> Multi-year capital | G3: =Head53 -> Unfore. Unavoid. | H3: =Head55 -> Nat. or Prov. Govt | I3: =Head50 -> Other Adjusts. | J3: =Head56 -> Total Adjusts. | K3: =Head7 -> Adjusted Budget | L3: =Head7 -> Adjusted Budget | M3: =Head7 -> Adjusted Budget
D4: 3 | E4: 4 | F4: 5 | G4: 6 | H4: 7 | I4: 8 | J4: 9 | K4: 10
A5: R thousands | B5: 1 | C5: A | D5: A1 | E5: B | F5: C | G5: D | H5: E | I5: F | J5: G | K5: H
A6: Revenue By Source
A7: Property rates | B7: 2 | C7: ='SB1'!C10 -> 49396847 | D7: ='SB1'!D10 -> 0 | E7: ='SB1'!E10 -> 0 | F7: ='SB1'!F10 -> 0 | G7: ='SB1'!G10 -> 0 | H7: ='SB1'!H10 -> 0 | I7: ='SB1'!I10 -> -8311195 | J7: =SUM(E7:I7) -> -8311195 | K7: =IF(D7=0,C7+J7,D7+J7) -> 41085652 | L7: ='SB1'!L10 -> 46063444 | M7: ='SB1'!M10 -> 48366617
A8: Service charges - electricity revenue | B8: 2 | C8: ='SB1'!C16 -> 22986341 | D8: ='SB1'!D16 -> 0 | E8: ='SB1'!E16 -> 0 | F8: ='SB1'!F16 -> 0 | G8: ='SB1'!G16 -> 0 | H8: ='SB1'!H16 -> 0 | I8: ='SB1'!I16 -> 0 | J8: 0 | K8: 22986341 | L8: ='SB1'!L16 -> 12335647 | M8: ='SB1'!M16 -> 12952430
A9: Service charges - water revenue | B9: 2 | C9: ='SB1'!C22 -> 0 | D9: ='SB1'!D22 -> 0 | E9: ='SB1'!E22 -> 0 | F9: ='SB1'!F22 -> 0 | G9: ='SB1'!G22 -> 0 | H9: ='SB1'!H22 -> 0 | I9: ='SB1'!I22 -> 0 | J9: 0 | K9: 0 | L9: ='SB1'!L22 -> 0 | M9: ='SB1'!M22 -> 0
A10: Service charges - sanitation revenue | B10: 2 | C10: ='SB1'!C28 -> 0 | D10: ='SB1'!D28 -> 0 | E10: ='SB1'!E28 -> 0 | F10: ='SB1'!F28 -> 0 | G10: ='SB1'!G28 -> 0 | H10: ='SB1'!H28 -> 0 | I10: ='SB1'!I28 -> 0 | J10: 0 | K10: 0 | L10: ='SB1'!L28 -> 0 | M10: ='SB1'!M28 -> 0
A11: Service charges - refuse revenue | B11: 2 | C11: ='SB1'!C35 -> 2603836 | D11: ='SB1'!D35 -> 0 | E11: ='SB1'!E35 -> 0 | F11: ='SB1'!F35 -> 0 | G11: ='SB1'!G35 -> 0 | H11: ='SB1'!H35 -> 0 | I11: ='SB1'!I35 -> 0 | J11: 0 | K11: 2603836 | L11: ='SB1'!L35 -> 3544709 | M11: ='SB1'!M35 -> 3721945
A13: Rental of facilities and equipment | C13: 266190 | D13: 0 | E13: 0 | F13: 0 | G13: 0 | H13: 0 | I13: 0 | J13: 0 | K13: 266190 | L13: 247951 | M13: 260349
A14: Interest earned - external investments | C14: 3000000 | D14: 0 | E14: 0 | F14: 0 | G14: 0 | H14: 0 | I14: 4750000 | J14: 4750000 | K14: 7750000 | L14: 9600000 | M14: 7571218
A15: Interest earned - outstanding debtors | C15: 1588031 | D15: 0 | E15: 0 | F15: 0 | G15: 0 | H15: 0 | I15: 174035 | J15: 174035 | K15: 1762066 | L15: 2268435 | M15: 2380719
A16: Dividends received | C16: 0 | D16: 0 | E16: 0 | F16: 0 | G16: 0 | H16: 0 | I16: 0 | J16: 0 | K16: 0 | L16: 0 | M16: 0
A17: Fines, penalties and forfeits | C17: 1402949 | D17: 0 | E17: 0 | F17: 0 | G17: 0 | H17: 0 | I17: -684042 | J17: -684042 | K17: 718907 | L17: 620795 | M17: 651836
A18: Licences and permits | C18: 8055111 | D18: 0 | E18: 0 | F18: 0 | G18: 0 | H18: 0 | I18: 0 | J18: 0 | K18: 8055111 | L18: 13120041 | M18: 13776044
A19: Agency services | C19: 756352 | D19: 0 | E19: 0 | F19: 0 | G19: 0 | H19: 0 | I19: 0 | J19: 0 | K19: 756352 | L19: 1680948 | M19: 1764996
A20: Transfers and subsidies | C20: 174457600 | D20: 0 | E20: 0 | F20: 0 | G20: 0 | H20: 0 | I20: 640000 | J20: 640000 | K20: 175097600 | L20: 183700650 | M20: 192509050
A21: Other revenue | B21: 2 | C21: ='SB1'!C50 -> 412599 | D21: ='SB1'!D50 -> 0 | E21: ='SB1'!E50 -> 0 | F21: ='SB1'!F50 -> 0 | G21: ='SB1'!G50 -> 0 | H21: ='SB1'!H50 -> 0 | I21: ='SB1'!I50 -> 1142040 | J21: 1142040 | K21: 1554639 | L21: ='SB1'!L50 -> 1594184 | M21: ='SB1'!M50 -> 1673897
A22: Gains | C22: 0 | D22: 0 | E22: 0 | F22: 0 | G22: 0 | H22: 0 | I22: 0 | J22: 0 | K22: 0 | L22: 0 | M22: 0
A23: Total Revenue (excluding capital transfers and contributions) | C23: =SUM(C7:C11)+SUM(C13:C22) -> 264925856 | D23: =SUM(D7:D11)+SUM(D13:D22) -> 0 | E23: 0 | F23: 0 | G23: 0 | H23: 0 | I23: -2289162 | J23: =SUM(J7:J11)+SUM(J13:J22) -> -2289162 | K23: =SUM(K7:K11)+SUM(K13:K22) -> 262636694 | L23: =SUM(L7:L11)+SUM(L13:L22) -> 274776804 | M23: =SUM(M7:M11)+SUM(M13:M22) -> 285629101
A25: Expenditure By Type
A26: Employee related costs | C26: ='SB1'!C68 -> 104547620 | D26: ='SB1'!D68 -> 0 | E26: ='SB1'!E68 -> 0 | F26: ='SB1'!F68 -> 0 | G26: ='SB1'!G68 -> 0 | H26: ='SB1'!H68 -> 0 | I26: ='SB1'!I68 -> -1021804 | J26: =SUM(E26:I26) -> -1021804 | K26: =IF(D26=0,C26+J26,D26+J26) -> 103525816 | L26: ='SB1'!L68 -> 107286637 | M26: ='SB1'!M68 -> 117566966
A27: Remuneration of councillors | C27: 13973932 | D27: 0 | E27: 0 | F27: 0 | G27: 0 | H27: 0 | I27: 504000 | J27: 504000 | K27: 14477932 | L27: 19640387 | M27: 20620415
A28: Debt impairment | C28: 3497872 | D28: 0 | E28: 0 | F28: 0 | G28: 0 | H28: 0 | I28: 300000 | J28: 300000 | K28: 3797872 | L28: 3987768 | M28: 4187156
A29: Depreciation & asset impairment | C29: ='SB1'!C84 -> 19813041 | D29: ='SB1'!D84 -> 0 | E29: ='SB1'!E84 -> 0 | F29: ='SB1'!F84 -> 0 | G29: ='SB1'!G84 -> 0 | H29: ='SB1'!H84 -> 0 | I29: ='SB1'!I84 -> 0 | J29: 0 | K29: 19813041 | L29: ='SB1'!L84 -> 22082155 | M29: ='SB1'!M84 -> 23186308
A30: Finance charges | C30: 116842 | D30: 0 | E30: 0 | F30: 0 | G30: 0 | H30: 0 | I30: 9600 | J30: 9600 | K30: 126442 | L30: 132765 | M30: 139404
A31: Bulk purchases - electricity | C31: ='SB1'!C87 -> 11926907 | D31: ='SB1'!D87 -> 0 | E31: ='SB1'!E87 -> 0 | F31: ='SB1'!F87 -> 0 | G31: ='SB1'!G87 -> 0 | H31: ='SB1'!H87 -> 0 | I31: ='SB1'!I87 -> 1200000 | J31: 1200000 | K31: 13126907 | L31: ='SB1'!L87 -> 13783253 | M31: ='SB1'!M87 -> 14472416
A32: Inventory consumed | C32: ='SB1'!C170 -> 7803884 | D32: ='SB1'!D170 -> 0 | E32: ='SB1'!E170 -> 0 | F32: ='SB1'!F170 -> 0 | G32: ='SB1'!G170 -> 0 | H32: ='SB1'!H170 -> 0 | I32: ='SB1'!I170 -> -644489 | J32: -644489 | K32: 7159395 | L32: ='SB1'!L170 -> 8245842 | M32: ='SB1'!M170 -> 8263500
A33: Contracted services | C33: ='SB1'!C128 -> 42102799 | D33: ='SB1'!D128 -> 0 | E33: ='SB1'!E128 -> 0 | F33: ='SB1'!F128 -> 0 | G33: ='SB1'!G128 -> 0 | H33: ='SB1'!H128 -> 0 | I33: ='SB1'!I128 -> -2101456 | J33: -2101456 | K33: 40001343 | L33: ='SB1'!L128 -> 45768528 | M33: ='SB1'!M128 -> 42959702
A34: Transfers and subsidies | C34: 0 | D34: 0 | E34: 0 | F34: 0 | G34: 0 | H34: 0 | I34: 0 | J34: 0 | K34: 0 | L34: 0 | M34: 0
A35: Other expenditure | C35: ='SB1'!C158 -> 40923280 | D35: ='SB1'!D158 -> 0 | E35: ='SB1'!E158 -> 0 | F35: ='SB1'!F158 -> 0 | G35: ='SB1'!G158 -> 0 | H35: ='SB1'!H158 -> 0 | I35: ='SB1'!I158 -> 1273063 | J35: 1273063 | K35: 42196343 | L35: ='SB1'!L158 -> 40017476 | M35: ='SB1'!M158 -> 40172472
A36: Losses | C36: 0 | D36: 0 | E36: 0 | F36: 0 | G36: 0 | H36: 0 | I36: 1101605 | J36: 1101605 | K36: 1101605 | L36: 0 | M36: 0
A37: Total Expenditure | C37: =SUM(C26:C36) -> 244706177 | D37: 0 | E37: 0 | F37: 0 | G37: 0 | H37: 0 | I37: 620519 | J37: 620519 | K37: 245326696 | L37: 260944811 | M37: 271568339
A39: Surplus/(Deficit) | C39: =C23-C37 -> 20219679 | D39: 0 | E39: 0 | F39: 0 | G39: 0 | H39: 0 | I39: -2909681 | J39: -2909681 | K39: 17309998 | L39: 13831993 | M39: 14060762
A40: Transfers and subsidies - capital (monetary allocations) (National / Provincial and District) | C40: 37802400 | D40: 0 | E40: 0 | F40: 0 | G40: 0 | H40: 0 | I40: 7116443 | J40: =SUM(E40:I40) -> 7116443 | K40: =IF(D40=0,C40+J40,D40+J40) -> 44918843 | L40: 58548350 | M40: 51508950
A41: Transfers and subsidies - capital (monetary allocations) (National / Provincial Departmental Agencies, Households, Non-profit Institutions, Private Enterprises, Public Corporatons, Higher Educational Institutions) | J41: =SUM(E41:I41) -> 0 | K41: =IF(D41=0,C41+J41,D41+J41) -> 0
A42: Transfers and subsidies - capital (in-kind - all) | C42: 0 | D42: 0 | E42: 0 | F42: 0 | G42: 0 | H42: 0 | I42: 0 | J42: =SUM(E42:I42) -> 0 | K42: =IF(D42=0,C42+J42,D42+J42) -> 0 | L42: 0 | M42: 0
A43: Surplus/(Deficit) before taxation | C43: =SUM(C39:C42) -> 58022079 | D43: 0 | E43: 0 | F43: 0 | G43: 0 | H43: 0 | I43: 4206762 | J43: 4206762 | K43: 62228841 | L43: 72380343 | M43: 65569712
A44: Taxation | J44: =SUM(E44:I44) -> 0 | K44: =IF(D44=0,C44+J44,D44+J44) -> 0
A45: Surplus/(Deficit) after taxation | C45: =C43-C44 -> 58022079 | D45: 0 | E45: 0 | F45: 0 | G45: 0 | H45: 0 | I45: 4206762 | J45: 4206762 | K45: 62228841 | L45: 72380343 | M45: 65569712
A46: Attributable to minorities | J46: =SUM(E46:I46) -> 0 | K46: =IF(D46=0,C46+J46,D46+J46) -> 0
A47: Surplus/(Deficit) attributable to municipality | C47: =SUM(C45:C46) -> 58022079 | D47: 0 | E47: 0 | F47: 0 | G47: 0 | H47: 0 | I47: 4206762 | J47: 4206762 | K47: 62228841 | L47: 72380343 | M47: 65569712
A48: Share of surplus/ (deficit) of associate | J48: =SUM(E48:I48) -> 0 | K48: =IF(D48=0,C48+J48,D48+J48) -> 0
A49: Surplus/ (Deficit) for the year | C49: =C47+C48 -> 58022079 | D49: 0 | E49: 0 | F49: 0 | G49: 0 | H49: 0 | I49: 4206762 | J49: 4206762 | K49: 62228841 | L49: 72380343 | M49: 65569712
A50: =head27a -> References
A51: 1. Classifications are revenue sources and expenditure type
A52: 2. Detail to be provided in Table SB1
A53: 3. Only complete if a previous adjusted budget has been approved in the same financial year. Reflect most recent adjusted budget.
A54: 4. Additional cash-backed accumulated funds/unspent funds (MFMA section 18(1)(b) and section 28(2)(e)) identified after the Original Budget approved and after annual financial statements audited (note: only where underspending could not reasonably have been foreseen)
A55: 5. Increases of funds approved under MFMA section 31
A56: 6. Adjustments approved in accordance with MFMA section 29
A57: 7. Adjustments to transfers from National or Provincial Government
A58: 8. Adjusts. = 'Other' Adjustments proposed to be approved; including revenue under-collection (MFMA section 28(2)(a)); additional revenue appropriation on existing programmes (section 28(2))(b); projected savings (section 28(2)(d)); error correction (section 28(2)(f))
A59: 9. G = B + C + D + E + F
A60: 10. Adjusted Budget H = (A or A1/2 etc) + G
A62: Revenue total | C62: =C23+C40+C41+C42 -> 302728256 | D62: 0 | E62: 0 | F62: 0 | G62: 0 | H62: 0 | I62: 4827281 | J62: 4827281 | K62: 307555537 | L62: 333325154 | M62: 337138051

Sheet B5-Capex
A1: =muni&" - "&_ADJ5&" - "&Date -> LIM353 Molemole - Table B5 Adjustments Capital Expenditure Budget by vote and funding - 14/07/2023
A2: =desc -> Description | B2: =head27 -> Ref | C2: =Head2 -> Budget Year 2022/23 | L2: =Head10 -> Budget Year +1 2023/24 | M2: =Head11 -> Budget Year +2 2024/25
C3: =Head6 -> Original Budget | D3: =Head54 -> Prior Adjusted | E3: =Head51 -> Accum. Funds | F3: =Head52 -> Multi-year capital | G3: =Head53 -> Unfore. Unavoid. | H3: =Head55 -> Nat. or Prov. Govt | I3: =Head50 -> Other Adjusts. | J3: =Head56 -> Total Adjusts. | K3: =Head7 -> Adjusted Budget | L3: =Head7 -> Adjusted Budget | M3: =Head7 -> Adjusted Budget
D4: 5 | E4: 6 | F4: 7 | G4: 8 | H4: 9 | I4: 10 | J4: 11 | K4: 12
A5: R thousands | C5: A | D5: A1 | E5: B | F5: C | G5: D | H5: E | I5: F | J5: G | K5: H
A6: Capital expenditure - Vote
A7: Multi-year expenditure to be adjusted | B7: 2
A8: =B5B!A8 -> Vote 01 - Corporate Services | C8: =B5B!C8 -> 4770000 | D8: =B5B!D8 -> 0 | E8: =B5B!E8 -> 0 | F8: =B5B!F8 -> 0 | G8: =B5B!G8 -> 0 | H8: =B5B!H8 -> 0 | I8: =B5B!I8 -> -2793700 | J8: =B5B!J8 -> -2793700 | K8: =B5B!K8 -> 1976300 | L8: =B5B!L8 -> 4032000 | M8: =B5B!M8 -> 4450000
A9: =B5B!A17 -> Vote 02 - Municipal Manager | C9: =B5B!C17 -> 0 | D9: =B5B!D17 -> 0 | E9: =B5B!E17 -> 0 | F9: =B5B!F17 -> 0 | G9: =B5B!G17 -> 0 | H9: =B5B!H17 -> 0 | I9: =B5B!I17 -> 0 | J9: =B5B!J17 -> 0 | K9: =B5B!K17 -> 0 | L9: =B5B!L17 -> 100000 | M9: =B5B!M17 -> 0
A10: =B5B!A23 -> Vote 03 - Mayors Office | C10: =B5B!C23 -> 0 | D10: =B5B!D23 -> 0 | E10: =B5B!E23 -> 0 | F10: =B5B!F23 -> 0 | G10: =B5B!G23 -> 0 | H10: =B5B!H23 -> 0 | I10: =B5B!I23 -> 0 | J10: =B5B!J23 -> 0 | K10: =B5B!K23 -> 0 | L10: =B5B!L23 -> 0 | M10: =B5B!M23 -> 0
A11: =B5B!A29 -> Vote 04 - Budget And Treasury | C11: =B5B!C29 -> 500000 | D11: =B5B!D29 -> 0 | E11: =B5B!E29 -> 0 | F11: =B5B!F29 -> 0 | G11: =B5B!G29 -> 0 | H11: =B5B!H29 -> 0 | I11: =B5B!I29 -> -500000 | J11: =B5B!J29 -> -500000 | K11: =B5B!K29 -> 0 | L11: =B5B!L29 -> 2100000 | M11: =B5B!M29 -> 0
A12: =B5B!A37 -> Vote 05 - Community Services | C12: =B5B!C37 -> 2300000 | D12: =B5B!D37 -> 0 | E12: =B5B!E37 -> 0 | F12: =B5B!F37 -> 0 | G12: =B5B!G37 -> 0 | H12: =B5B!H37 -> 0 | I12: =B5B!I37 -> 170000 | J12: =B5B!J37 -> 170000 | K12: =B5B!K37 -> 2470000 | L12: =B5B!L37 -> 400000 | M12: =B5B!M37 -> 14835790
A13: =B5B!A45 -> Vote 06 - Technical Services | C13: =B5B!C45 -> 50452400 | D13: =B5B!D45 -> 0 | E13: =B5B!E45 -> 0 | F13: =B5B!F45 -> 0 | G13: =B5B!G45 -> 0 | H13: =B5B!H45 -> 0 | I13: =B5B!I45 -> 8431925 | J13: =B5B!J45 -> 8431925 | K13: =B5B!K45 -> 58884325 | L13: =B5B!L45 -> 65748350 | M13: =B5B!M45 -> 41673160
A14: ='Org structure'!A8 -> Vote 07 - | C14: =B5B!C54 -> 0 | D14: =B5B!D54 -> 0 | E14: =B5B!E54 -> 0 | F14: =B5B!F54 -> 0 | G14: =B5B!G54 -> 0 | H14: =B5B!H54 -> 0 | I14: =B5B!I54 -> 0 | J14: =SUM(E14:I14) -> 0 | K14: =IF(D14=0,C14+J14,D14+J14) -> 0 | L14: =B5B!L54 -> 0 | M14: =B5B!M54 -> 0
A15: ='Org structure'!A9 -> Vote 08 - | C15: =B5B!C55 -> 0 | D15: =B5B!D55 -> 0 | E15: =B5B!E55 -> 0 | F15: =B5B!F55 -> 0 | G15: =B5B!G55 -> 0 | H15: =B5B!H55 -> 0 | I15: =B5B!I55 -> 0 | J15: 0 | K15: 0 | L15: =B5B!L55 -> 0 | M15: =B5B!M55 -> 0
A16: ='Org structure'!A10 -> Vote 09 - | C16: =B5B!C56 -> 0 | D16: =B5B!D56 -> 0 | E16: =B5B!E56 -> 0 | F16: =B5B!F56 -> 0 | G16: =B5B!G56 -> 0 | H16: =B5B!H56 -> 0 | I16: =B5B!I56 -> 0 | J16: 0 | K16: 0 | L16: =B5B!L56 -> 0 | M16: =B5B!M56 -> 0
A17: ='Org structure'!A11 -> Vote 10 - | C17: =B5B!C57 -> 0 | D17: =B5B!D57 -> 0 | E17: =B5B!E57 -> 0 | F17: =B5B!F57 -> 0 | G17: =B5B!G57 -> 0 | H17: =B5B!H57 -> 0 | I17: =B5B!I57 -> 0 | J17: 0 | K17: 0 | L17: =B5B!L57 -> 0 | M17: =B5B!M57 -> 0
A18: ='Org structure'!A12 -> Vote 11 - | C18: =B5B!C58 -> 0 | D18: =B5B!D58 -> 0 | E18: =B5B!E58 -> 0 | F18: =B5B!F58 -> 0 | G18: =B5B!G58 -> 0 | H18: =B5B!H58 -> 0 | I18: =B5B!I58 -> 0 | J18: 0 | K18: 0 | L18: =B5B!L58 -> 0 | M18: =B5B!M58 -> 0
A19: ='Org structure'!A13 -> Vote 12 - | C19: =B5B!C59 -> 0 | D19: =B5B!D59 -> 0 | E19: =B5B!E59 -> 0 | F19: =B5B!F59 -> 0 | G19: =B5B!G59 -> 0 | H19: =B5B!H59 -> 0 | I19: =B5B!I59 -> 0 | J19: 0 | K19: 0 | L19: =B5B!L59 -> 0 | M19: =B5B!M59 -> 0
A20: ='Org structure'!A14 -> Vote 13 - | C20: =B5B!C60 -> 0 | D20: =B5B!D60 -> 0 | E20: =B5B!E60 -> 0 | F20: =B5B!F60 -> 0 | G20: =B5B!G60 -> 0 | H20: =B5B!H60 -> 0 | I20: =B5B!I60 -> 0 | J20: 0 | K20: 0 | L20: =B5B!L60 -> 0 | M20: =B5B!M60 -> 0
A21: ='Org structure'!A15 -> Vote 14 - | C21: =B5B!C61 -> 0 | D21: =B5B!D61 -> 0 | E21: =B5B!E61 -> 0 | F21: =B5B!F61 -> 0 | G21: =B5B!G61 -> 0 | H21: =B5B!H61 -> 0 | I21: =B5B!I61 -> 0 | J21: 0 | K21: 0 | L21: =B5B!L61 -> 0 | M21: =B5B!M61 -> 0
A22: ='Org structure'!A16 -> Vote 15 - Other | C22: =B5B!C62 -> 0 | D22: =B5B!D62 -> 0 | E22: =B5B!E62 -> 0 | F22: =B5B!F62 -> 0 | G22: =B5B!G62 -> 0 | H22: =B5B!H62 -> 0 | I22: =B5B!I62 -> 0 | J22: 0 | K22: 0 | L22: =B5B!L62 -> 0 | M22: =B5B!M62 -> 0
A23: Capital multi-year expenditure sub-total | B23: 3 | C23: =SUM(C8:C22) -> 58022400 | D23: =SUM(D8:D22) -> 0 | E23: 0 | F23: 0 | G23: 0 | H23: 0 | I23: 5308225 | J23: =SUM(J8:J22) -> 5308225 | K23: =SUM(K8:K22) -> 63330625 | L23: =SUM(L8:L22) -> 72380350 | M23: =SUM(M8:M22) -> 60958950
A25: Single-year expenditure to be adjusted | B25: 2
A26: =B5B!A67 -> Vote 01 - Corporate Services | C26: =B5B!C67 -> 0 | D26: =B5B!D67 -> 0 | E26: =B5B!E67 -> 0 | F26: =B5B!F67 -> 0 | G26: =B5B!G67 -> 0 | H26: =B5B!H67 -> 0 | I26: =B5B!I67 -> 0 | J26: =B5B!J67 -> 0 | K26: =B5B!K67 -> 0 | L26: =B5B!L67 -> 0 | M26: =B5B!M67 -> 0
A27: =B5B!A76 -> Vote 02 - Municipal Manager | C27: =B5B!C76 -> 0 | D27: =B5B!D76 -> 0 | E27: =B5B!E76 -> 0 | F27: =B5B!F76 -> 0 | G27: =B5B!G76 -> 0 | H27: =B5B!H76 -> 0 | I27: =B5B!I76 -> 0 | J27: =B5B!J76 -> 0 | K27: =B5B!K76 -> 0 | L27: =B5B!L76 -> 0 | M27: =B5B!M76 -> 0
A28: =B5B!A82 -> Vote 03 - Mayors Office | C28: =B5B!C82 -> 0 | D28: =B5B!D82 -> 0 | E28: =B5B!E82 -> 0 | F28: =B5B!F82 -> 0 | G28: =B5B!G82 -> 0 | H28: =B5B!H82 -> 0 | I28: =B5B!I82 -> 0 | J28: =B5B!J82 -> 0 | K28: =B5B!K82 -> 0 | L28: =B5B!L82 -> 0 | M28: =B5B!M82 -> 0
A29: =B5B!A88 -> Vote 04 - Budget And Treasury | C29: =B5B!C88 -> 0 | D29: =B5B!D88 -> 0 | E29: =B5B!E88 -> 0 | F29: =B5B!F88 -> 0 | G29: =B5B!G88 -> 0 | H29: =B5B!H88 -> 0 | I29: =B5B!I88 -> 0 | J29: =B5B!J88 -> 0 | K29: =B5B!K88 -> 0 | L29: =B5B!L88 -> 0 | M29: =B5B!M88 -> 0
A30: =B5B!A96 -> Vote 05 - Community Services | C30: =B5B!C96 -> 0 | D30: =B5B!D96 -> 0 | E30: =B5B!E96 -> 0 | F30: =B5B!F96 -> 0 | G30: =B5B!G96 -> 0 | H30: =B5B!H96 -> 0 | I30: =B5B!I96 -> 0 | J30: =B5B!J96 -> 0 | K30: =B5B!K96 -> 0 | L30: =B5B!L96 -> 0 | M30: =B5B!M96 -> 0
A31: =B5B!A104 -> Vote 06 - Technical Services | C31: =B5B!C104 -> 0 | D31: =B5B!D104 -> 0 | E31: =B5B!E104 -> 0 | F31: =B5B!F104 -> 0 | G31: =B5B!G104 -> 0 | H31: =B5B!H104 -> 0 | I31: =B5B!I104 -> 0 | J31: =B5B!J104 -> 0 | K31: =B5B!K104 -> 0 | L31: =B5B!L104 -> 0 | M31: =B5B!M104 -> 4611000
A32: ='Org structure'!A8 -> Vote 07 - | C32: =B5B!C113 -> 0 | D32: =B5B!D113 -> 0 | E32: =B5B!E113 -> 0 | F32: =B5B!F113 -> 0 | G32: =B5B!G113 -> 0 | H32: =B5B!H113 -> 0 | I32: =B5B!I113 -> 0 | J32: =SUM(E32:I32) -> 0 | K32: =IF(D32=0,C32+J32,D32+J32) -> 0 | L32: =B5B!L113 -> 0 | M32: =B5B!M113 -> 0
A33: ='Org structure'!A9 -> Vote 08 - | C33: =B5B!C114 -> 0 | D33: =B5B!D114 -> 0 | E33: =B5B!E114 -> 0 | F33: =B5B!F114 -> 0 | G33: =B5B!G114 -> 0 | H33: =B5B!H114 -> 0 | I33: =B5B!I114 -> 0 | J33: 0 | K33: 0 | L33: =B5B!L114 -> 0 | M33: =B5B!M114 -> 0
A34: ='Org structure'!A10 -> Vote 09 - | C34: =B5B!C115 -> 0 | D34: =B5B!D115 -> 0 | E34: =B5B!E115 -> 0 | F34: =B5B!F115 -> 0 | G34: =B5B!G115 -> 0 | H34: =B5B!H115 -> 0 | I34: =B5B!I115 -> 0 | J34: 0 | K34: 0 | L34: =B5B!L115 -> 0 | M34: =B5B!M115 -> 0
A35: ='Org structure'!A11 -> Vote 10 - | C35: =B5B!C116 -> 0 | D35: =B5B!D116 -> 0 | E35: =B5B!E116 -> 0 | F35: =B5B!F116 -> 0 | G35: =B5B!G116 -> 0 | H35: =B5B!H116 -> 0 | I35: =B5B!I116 -> 0 | J35: 0 | K35: 0 | L35: =B5B!L116 -> 0 | M35: =B5B!M116 -> 0
A36: ='Org structure'!A12 -> Vote 11 - | C36: =B5B!C117 -> 0 | D36: =B5B!D117 -> 0 | E36: =B5B!E117 -> 0 | F36: =B5B!F117 -> 0 | G36: =B5B!G117 -> 0 | H36: =B5B!H117 -> 0 | I36: =B5B!I117 -> 0 | J36: 0 | K36: 0 | L36: =B5B!L117 -> 0 | M36: =B5B!M117 -> 0
A37: ='Org structure'!A13 -> Vote 12 - | C37: =B5B!C118 -> 0 | D37: =B5B!D118 -> 0 | E37: =B5B!E118 -> 0 | F37: =B5B!F118 -> 0 | G37: =B5B!G118 -> 0 | H37: =B5B!H118 -> 0 | I37: =B5B!I118 -> 0 | J37: 0 | K37: =IF(D37=0,C37+J37,D37+J37) -> 0 | L37: =B5B!L118 -> 0 | M37: =B5B!M118 -> 0
A38: ='Org structure'!A14 -> Vote 13 - | C38: =B5B!C119 -> 0 | D38: =B5B!D119 -> 0 | E38: =B5B!E119 -> 0 | F38: =B5B!F119 -> 0 | G38: =B5B!G119 -> 0 | H38: =B5B!H119 -> 0 | I38: =B5B!I119 -> 0 | J38: 0 | K38: 0 | L38: =B5B!L119 -> 0 | M38: =B5B!M119 -> 0
A39: ='Org structure'!A15 -> Vote 14 - | C39: =B5B!C120 -> 0 | D39: =B5B!D120 -> 0 | E39: =B5B!E120 -> 0 | F39: =B5B!F120 -> 0 | G39: =B5B!G120 -> 0 | H39: =B5B!H120 -> 0 | I39: =B5B!I120 -> 0 | J39: 0 | K39: 0 | L39: =B5B!L120 -> 0 | M39: =B5B!M120 -> 0
A40: ='Org structure'!A16 -> Vote 15 - Other | C40: =B5B!C121 -> 0 | D40: =B5B!D121 -> 0 | E40: =B5B!E121 -> 0 | F40: =B5B!F121 -> 0 | G40: =B5B!G121 -> 0 | H40: =B5B!H121 -> 0 | I40: =B5B!I121 -> 0 | J40: 0 | K40: 0 | L40: =B5B!L121 -> 0 | M40: =B5B!M121 -> 0
A41: Capital single-year expenditure sub-total | C41: =SUM(C26:C40) -> 0 | D41: =SUM(D26:D40) -> 0 | E41: 0 | F41: 0 | G41: 0 | H41: 0 | I41: 0 | J41: =SUM(J26:J40) -> 0 | K41: =SUM(K26:K40) -> 0 | L41: =SUM(L26:L40) -> 0 | M41: =SUM(M26:M40) -> 4611000
A42: Total Capital Expenditure - Vote | C42: =C41+C23 -> 58022400 | D42: =D41+D23 -> 0 | E42: 0 | F42: 0 | G42: 0 | H42: 0 | I42: 5308225 | J42: =J23+J41 -> 5308225 | K42: =K23+K41 -> 63330625 | L42: =L41+L23 -> 72380350 | M42: =M41+M23 -> 65569950
A44: Capital Expenditure - Functional
A45: Governance and administration | C45: =SUM(C46:C48) -> 5270000 | D45: 0 | E45: 0 | F45: 0 | G45: 0 | H45: 0 | I45: -3293700 | J45: =SUM(J46:J48) -> -3293700 | K45: 1976300 | L45: 6232000 | M45: 4450000
A46: Executive and council | C46: 0 | D46: 0 | E46: 0 | F46: 0 | G46: 0 | H46: 0 | I46: 0 | J46: =SUM(E46:I46) -> 0 | K46: =IF(D46=0,C46+J46,D46+J46) -> 0 | L46: 0 | M46: 0
A47: Finance and administration | C47: 5270000 | D47: 0 | E47: 0 | F47: 0 | G47: 0 | H47: 0 | I47: -3293700 | J47: =SUM(E47:I47) -> -3293700 | K47: =IF(D47=0,C47+J47,D47+J47) -> 1976300 | L47: 6232000 | M47: 4450000
A48: Internal audit | C48: 0 | D48: 0 | E48: 0 | F48: 0 | G48: 0 | H48: 0 | I48: 0 | J48: =SUM(E48:I48) -> 0 | K48: =IF(D48=0,C48+J48,D48+J48) -> 0 | L48: 0 | M48: 0
A49: Community and public safety | C49: =SUM(C50:C54) -> 2300000 | D49: 0 | E49: 0 | F49: 0 | G49: 0 | H49: 0 | I49: 170000 | J49: =SUM(J50:J54) -> 170000 | K49: 2470000 | L49: 400000 | M49: 14835790
A50: Community and social services | C50: 100000 | D50: 0 | E50: 0 | F50: 0 | G50: 0 | H50: 0 | I50: 200000 | J50: =SUM(E50:I50) -> 200000 | K50: =IF(D50=0,C50+J50,D50+J50) -> 300000 | L50: 400000 | M50: 0
A51: Sport and recreation | C51: 2200000 | D51: 0 | E51: 0 | F51: 0 | G51: 0 | H51: 0 | I51: -30000 | J51: =SUM(E51:I51) -> -30000 | K51: =IF(D51=0,C51+J51,D51+J51) -> 2170000 | L51: 0 | M51: 14835790
A52: Public safety | C52: 0 | D52: 0 | E52: 0 | F52: 0 | G52: 0 | H52: 0 | I52: 0 | J52: =SUM(E52:I52) -> 0 | K52: =IF(D52=0,C52+J52,D52+J52) -> 0 | L52: 0 | M52: 0
A53: Housing | J53: =SUM(E53:I53) -> 0 | K53: =IF(D53=0,C53+J53,D53+J53) -> 0
A54: Health | J54: =SUM(E54:I54) -> 0 | K54: =IF(D54=0,C54+J54,D54+J54) -> 0
A55: Economic and environmental services | C55: =SUM(C56:C58) -> 45702400 | D55: 0 | E55: 0 | F55: 0 | G55: 0 | H55: 0 | I55: 4751774 | J55: 4751774 | K55: 50454174 | L55: 44080350 | M55: 16388370
A56: Planning and development | C56: 0 | D56: 0 | E56: 0 | F56: 0 | G56: 0 | H56: 0 | I56: 0 | J56: =SUM(E56:I56) -> 0 | K56: =IF(D56=0,C56+J56,D56+J56) -> 0 | L56: 0 | M56: 0
A57: Road transport | C57: 45702400 | D57: 0 | E57: 0 | F57: 0 | G57: 0 | H57: 0 | I57: 4751774 | J57: =SUM(E57:I57) -> 4751774 | K57: =IF(D57=0,C57+J57,D57+J57) -> 50454174 | L57: 44080350 | M57: 16388370
A58: Environmental protection | J58: =SUM(E58:I58) -> 0 | K58: =IF(D58=0,C58+J58,D58+J58) -> 0
A59: Trading services | C59: =SUM(C60:C63) -> 4750000 | D59: =SUM(D60:D63) -> 0 | E59: 0 | F59: 0 | G59: 0 | H59: 0 | I59: =SUM(I60:I63) -> 3680151 | J59: =SUM(J60:J63) -> 3680151 | K59: 8430151 | L59: 21668000 | M59: 29895790
A60: Energy sources | C60: 4750000 | D60: 0 | E60: 0 | F60: 0 | G60: 0 | H60: 0 | I60: 3680151 | J60: =SUM(E60:I60) -> 3680151 | K60: =IF(D60=0,C60+J60,D60+J60) -> 8430151 | L60: 19368000 | M60: 15060000
A61: Water management | J61: =SUM(E61:I61) -> 0 | K61: =IF(D61=0,C61+J61,D61+J61) -> 0
A62: Waste water management | C62: 0 | D62: 0 | E62: 0 | F62: 0 | G62: 0 | H62: 0 | I62: 0 | J62: =SUM(E62:I62) -> 0 | K62: =IF(D62=0,C62+J62,D62+J62) -> 0 | L62: 2300000 | M62: 14835790
A63: Waste management | J63: =SUM(E63:I63) -> 0 | K63: =IF(D63=0,C63+J63,D63+J63) -> 0
A64: Other | J64: =SUM(E64:I64) -> 0 | K64: =IF(D64=0,C64+J64,D64+J64) -> 0
A65: Total Capital Expenditure - Functional | B65: 3 | C65: =C45+C49+C55+C59+C64 -> 58022400 | D65: =D45+D49+D55+D59+D64 -> 0 | E65: 0 | F65: 0 | G65: 0 | H65: 0 | I65: =I45+I49+I55+I59+I64 -> 5308225 | J65: 5308225 | K65: 63330625 | L65: 72380350 | M65: 65569950
A67: Funded by:
A68: National Government | C68: 38502400 | D68: 0 | E68: 0 | F68: 0 | G68: 0 | H68: 0 | I68: 6861292 | J68: =SUM(E68:I68) -> 6861292 | K68: =IF(D68=0,C68+J68,D68+J68) -> 45363692 | L68: 58548350 | M68: 51508950
A69: Provincial Government | J69: =SUM(E69:I69) -> 0 | K69: =IF(D69=0,C69+J69,D69+J69) -> 0
A70: District Municipality | C70: 0 | D70: 0 | E70: 0 | F70: 0 | G70: 0 | H70: 0 | I70: 0 | J70: =SUM(E70:I70) -> 0 | K70: =IF(D70=0,C70+J70,D70+J70) -> 0 | L70: 0 | M70: 0
A71: ='B4-FinPerf RE'!A41 -> Transfers and subsidies - capital (monetary allocations) (National / Provincial Departmental Agencies, Households, Non-profit Institutions, Private Enterprises, Public Corporatons, Higher Educational Institutions) | C71: 0 | D71: 0 | E71: 0 | F71: 0 | G71: 0 | H71: 0 | I71: 0 | J71: =SUM(E71:I71) -> 0 | K71: =IF(D71=0,C71+J71,D71+J71) -> 0 | L71: 0 | M71: 0
A72: Transfers recognised - capital | B72: 4 | C72: =SUM(C68:C71) -> 38502400 | D72: 0 | E72: 0 | F72: 0 | G72: 0 | H72: 0 | I72: 6861292 | J72: 6861292 | K72: 45363692 | L72: 58548350 | M72: 51508950
A74: Borrowing | J74: =SUM(E74:I74) -> 0 | K74: =IF(D74=0,C74+J74,D74+J74) -> 0
A75: Internally generated funds | C75: 19520000 | D75: 0 | E75: 0 | F75: 0 | G75: 0 | H75: 0 | I75: -1553067 | J75: =SUM(E75:I75) -> -1553067 | K75: =IF(D75=0,C75+J75,D75+J75) -> 17966933 | L75: 13832000 | M75: 14061000
A76: Total Capital Funding | C76: =+C72+C74+C75 -> 58022400 | D76: =+D72+D74+D75 -> 0 | E76: 0 | F76: 0 | G76: 0 | H76: 0 | I76: 5308225 | J76: 5308225 | K76: 63330625 | L76: 72380350 | M76: 65569950
A77: =head27a -> References
A78: 1. Municipalities may choose to appropriate for capital expenditure for three years or for one year (if one year appropriation projected expenditure required for yr2 and yr3).
A79: 2. Include capital component of PPP unitary payment. Note that capital transfers are only appropriated to municipalities for the budget year
A80: 3. Capital expenditure by standard classification must reconcile to the appropriations by vote
A81: 4. Must reconcile to supporting table SB7 and to Adjustments Budget Financial Performance (revenue and expenditure)
A82: 5. Only complete if a previous adjusted budget has been approved in the same financial year. Reflect most recent adjusted budget.
A83: 6. Additional cash-backed accumulated funds/unspent funds (MFMA section 18(1)(b) and section 28(2)(e)) identified after the Original Budget approved and after annual financial statements audited (note: only where underspending could not reasonably have been foreseen)
A84: 7. Increases of funds approved under MFMA section 31
A85: 8. Adjustments approved in accordance with MFMA section 29
A86: 9. Adjustments to transfers from National or Provincial Government
A87: 10. Adjusts. = 'Other' Adjustments proposed to be approved; including revenue under-collection (MFMA section 28(2)(a)); additional revenue appropriation on existing programmes (section 28(2))(b); projected savings (section 28(2)(d)); error correction (section 28(2)(f))
A88: 11. G = B + C + D + E + F
A89: 12. Adjusted Budget H = (A or A1/2 etc) + G
A91: check balance | C91: =C65-C76 -> 0 | D91: =D65-D76 -> 0 | E91: =E65-E76 -> 0 | H91: =H65-H76 -> 0 | I91: =I65-I76 -> 0 | J91: =J65-J76 -> 0 | K91: =K65-K76 -> 0 | L91: =L65-L76 -> 0 | M91: =K23-K76 -> 0

Sheet B5B
A1: =muni&" - "&_ADJ5&" - B"&" - "&Date -> LIM353 Molemole - Table B5 Adjustments Capital Expenditure Budget by vote and funding - B - 14/07/2023
A2: =Vdesc -> Vote Description | B2: =head27 -> Ref | C2: =Head2 -> Budget Year 2022/23 | L2: =Head10 -> Budget Year +1 2023/24 | M2: =Head11 -> Budget Year +2 2024/25
C3: =Head6 -> Original Budget | D3: =Head54 -> Prior Adjusted | E3: =Head51 -> Accum. Funds | F3: =Head52 -> Multi-year capital | G3: =Head53 -> Unfore. Unavoid. | H3: =Head55 -> Nat. or Prov. Govt | I3: =Head50 -> Other Adjusts. | J3: =Head56 -> Total Adjusts. | K3: =Head7 -> Adjusted Budget | L3: =Head7 -> Adjusted Budget | M3: =Head7 -> Adjusted Budget
A4: [Insert departmental structure etc] | D4: 3 | E4: 4 | F4: 5 | G4: 6 | H4: 7 | I4: 8 | J4: 9 | K4: 10
A5: R thousands | C5: A | D5: A1 | E5: B | F5: C | G5: D | H5: E | I5: F | J5: G | K5: H
A6: Capital expenditure - Municipal Vote
A7: Multi-year expenditure appropriation | B7: 2
A8: ='Org structure'!A2 -> Vote 01 - Corporate Services | C8: =SUM(C9:C16) -> 4770000 | D8: 0 | E8: 0 | F8: 0 | G8: 0 | H8: 0 | I8: -2793700 | J8: =SUM(E8:I8) -> -2793700 | K8: =IF(D8=0,C8+J8,D8+J8) -> 1976300 | L8: =SUM(L9:L16) -> 4032000 | M8: =SUM(M9:M16) -> 4450000
A9: ='Org structure'!E3 -> 01.1 - Corporate Services Admin | C9: 2400000 | D9: 0 | E9: 0 | F9: 0 | G9: 0 | H9: 0 | I9: -2212700 | J9: =SUM(E9:I9) -> -2212700 | K9: =IF(D9=0,C9+J9,D9+J9) -> 187300 | L9: 1400000 | M9: 4450000
A10: ='Org structure'!E4 -> 01.2 - Human Resources | C10: 0 | D10: 0 | E10: 0 | F10: 0 | G10: 0 | H10: 0 | I10: 0 | J10: =SUM(E10:I10) -> 0 | K10: =IF(D10=0,C10+J10,D10+J10) -> 0 | L10: 100000 | M10: 0
A11: ='Org structure'!E5 -> 01.3 - Information Technology Services | C11: 2370000 | D11: 0 | E11: 0 | F11: 0 | G11: 0 | H11: 0 | I11: -581000 | J11: =SUM(E11:I11) -> -581000 | K11: =IF(D11=0,C11+J11,D11+J11) -> 1789000 | L11: 2532000 | M11: 0
A12: ='Org structure'!E6 -> 01.4 - Council Support | J12: 0 | K12: 0 | L12: 0 | M12: 0
A13: ='Org structure'!E7 -> 01.5 - Local Economic Development | J13: 0 | K13: 0 | L13: 0 | M13: 0
A14: ='Org structure'!E8 -> 01.6 - Municipal Planning Idp | J14: 0 | K14: 0 | L14: 0 | M14: 0
A15: ='Org structure'!E9 -> 01.7 - Town & Regional Planning | J15: 0 | K15: 0 | L15: 0 | M15: 0
A16: ='Org structure'!E10 -> 01.8 - Led Administration | J16: 0 | K16: 0 | L16: 0 | M16: 0
A17: ='Org structure'!A3 -> Vote 02 - Municipal Manager | C17: =SUM(C18:C22) -> 0 | D17: 0 | E17: 0 | F17: 0 | G17: 0 | H17: 0 | I17: 0 | J17: 0 | K17: 0 | L17: =SUM(L18:L22) -> 100000 | M17: =SUM(M18:M22) -> 0
A18: ='Org structure'!E12 -> 02.1 - Municipal Manager Admin | J18: 0 | K18: 0 | L18: 0 | M18: 0
A19: ='Org structure'!E13 -> 02.2 - Legal Services | J19: 0 | K19: 0 | L19: 0 | M19: 0
A20: ='Org structure'!E14 -> 02.3 - Political Office Beares | C20: 0 | D20: 0 | E20: 0 | F20: 0 | G20: 0 | H20: 0 | I20: 0 | J20: =SUM(E20:I20) -> 0 | K20: =IF(D20=0,C20+J20,D20+J20) -> 0 | L20: 100000 | M20: 0
A21: ='Org structure'!E15 -> 02.4 - Pms | C21: 0 | D21: 0 | E21: 0 | F21: 0 | G21: 0 | H21: 0 | I21: 0 | J21: =SUM(E21:I21) -> 0 | K21: =IF(D21=0,C21+J21,D21+J21) -> 0 | L21: 0 | M21: 0
A22: ='Org structure'!E16 -> 02.5 - Internal Audit | C22: 0 | D22: 0 | E22: 0 | F22: 0 | G22: 0 | H22: 0 | I22: 0 | J22: =SUM(E22:I22) -> 0 | K22: =IF(D22=0,C22+J22,D22+J22) -> 0 | L22: 0 | M22: 0
A23: ='Org structure'!A4 -> Vote 03 - Mayors Office | C23: =SUM(C24:C28) -> 0 | D23: 0 | E23: 0 | F23: 0 | G23: 0 | H23: 0 | I23: 0 | J23: 0 | K23: 0 | L23: =SUM(L24:L28) -> 0 | M23: =SUM(M24:M28) -> 0
A24: ='Org structure'!E18 -> 03.1 - Mayors Office Admin | J24: 0 | K24: 0 | L24: 0 | M24: 0
A25: ='Org structure'!E19 -> 03.2 - Office Of The Speaker | J25: 0 | K25: 0 | L25: 0 | M25: 0
A26: ='Org structure'!E20 -> 03.3 - Office Of The Chief Whip | J26: 0 | K26: 0 | L26: 0 | M26: 0
A27: ='Org structure'!E21 -> 03.4 - Exco Members | J27: 0 | K27: 0 | L27: 0 | M27: 0
A28: ='Org structure'!E22 -> 03.5 - Council General Administration | J28: 0 | K28: 0 | L28: 0 | M28: 0
A29: ='Org structure'!A5 -> Vote 04 - Budget And Treasury | C29: =SUM(C30:C36) -> 500000 | D29: 0 | E29: 0 | F29: 0 | G29: 0 | H29: 0 | I29: -500000 | J29: -500000 | K29: 0 | L29: =SUM(L30:L36) -> 2100000 | M29: =SUM(M30:M36) -> 0
A30: ='Org structure'!E24 -> 04.1 - Budget And Treasury Admin | C30: 0 | D30: 0 | E30: 0 | F30: 0 | G30: 0 | H30: 0 | I30: 0 | J30: =SUM(E30:I30) -> 0 | K30: =IF(D30=0,C30+J30,D30+J30) -> 0 | L30: 1500000 | M30: 0
A31: ='Org structure'!E25 -> 04.2 - Chief Financial Officer Admin | J31: 0 | K31: 0 | L31: 0 | M31: 0
A32: ='Org structure'!E26 -> 04.3 - Budget & Reporting | J32: 0 | K32: 0 | L32: 0 | M32: 0
A33: ='Org structure'!E27 -> 04.4 - Budget & Reporting | C33: 0 | D33: 0 | E33: 0 | F33: 0 | G33: 0 | H33: 0 | I33: 0 | J33: =SUM(E33:I33) -> 0 | K33: =IF(D33=0,C33+J33,D33+J33) -> 0 | L33: 0 | M33: 0
A34: ='Org structure'!E28 -> 04.5 - Revenue Management | C34: 0 | D34: 0 | E34: 0 | F34: 0 | G34: 0 | H34: 0 | I34: 0 | J34: =SUM(E34:I34) -> 0 | K34: =IF(D34=0,C34+J34,D34+J34) -> 0 | L34: 600000 | M34: 0
A35: ='Org structure'!E29 -> 04.6 - Supply Chain Management | C35: 500000 | D35: 0 | E35: 0 | F35: 0 | G35: 0 | H35: 0 | I35: -500000 | J35: =SUM(E35:I35) -> -500000 | K35: =IF(D35=0,C35+J35,D35+J35) -> 0 | L35: 0 | M35: 0
A36: ='Org structure'!E30 -> 04.7 - Expenditure | J36: 0 | K36: 0 | L36: 0 | M36: 0
A37: ='Org structure'!A6 -> Vote 05 - Community Services | C37: =SUM(C38:C44) -> 2300000 | D37: 0 | E37: 0 | F37: 0 | G37: 0 | H37: 0 | I37: 170000 | J37: 170000 | K37: 2470000 | L37: =SUM(L38:L44) -> 400000 | M37: =SUM(M38:M44) -> 14835790
A38: ='Org structure'!E32 -> 05.1 - Community Services Admin | C38: 100000 | D38: 0 | E38: 0 | F38: 0 | G38: 0 | H38: 0 | I38: 200000 | J38: =SUM(E38:I38) -> 200000 | K38: =IF(D38=0,C38+J38,D38+J38) -> 300000 | L38: 400000 | M38: 0
A39: ='Org structure'!E33 -> 05.2 - Libraries | J39: 0 | K39: 0 | L39: 0 | M39: 0
A40: ='Org structure'!E34 -> 05.3 - Sports Recreation & Social Amenitie | C40: 2200000 | D40: 0 | E40: 0 | F40: 0 | G40: 0 | H40: 0 | I40: -30000 | J40: =SUM(E40:I40) -> -30000 | K40: =IF(D40=0,C40+J40,D40+J40) -> 2170000 | L40: 0 | M40: 14835790
A41: ='Org structure'!E35 -> 05.4 - Traffic Service | J41: 0 | K41: 0 | L41: 0 | M41: 0
A42: ='Org structure'!E36 -> 05.5 - Traffic Service | C42: 0 | D42: 0 | E42: 0 | F42: 0 | G42: 0 | H42: 0 | I42: 0 | J42: =SUM(E42:I42) -> 0 | K42: =IF(D42=0,C42+J42,D42+J42) -> 0 | L42: 0 | M42: 0
A43: ='Org structure'!E37 -> 05.6 - Parks; Cemeteries | C43: 0 | D43: 0 | E43: 0 | F43: 0 | G43: 0 | H43: 0 | I43: 0 | J43: =SUM(E43:I43) -> 0 | K43: =IF(D43=0,C43+J43,D43+J43) -> 0 | L43: 0 | M43: 0
A44: ='Org structure'!E38 -> 05.7 - Refuse | J44: 0 | K44: 0 | L44: 0 | M44: 0
A45: ='Org structure'!A7 -> Vote 06 - Technical Services | C45: =SUM(C46:C53) -> 50452400 | D45: 0 | E45: 0 | F45: 0 | G45: 0 | H45: 0 | I45: 8431925 | J45: 8431925 | K45: 58884325 | L45: =SUM(L46:L53) -> 65748350 | M45: =SUM(M46:M53) -> 41673160
A46: ='Org structure'!E40 -> 06.1 - Mpac | J46: 0 | K46: 0 | L46: 0 | M46: 0
A47: ='Org structure'!E41 -> 06.2 - Technical Services Admin | J47: 0 | K47: 0 | L47: 0 | M47: 0
A48: ='Org structure'!E42 -> 06.3 - Techn Serv-Roads: Admin | C48: 45702400 | D48: 0 | E48: 0 | F48: 0 | G48: 0 | H48: 0 | I48: 4751774 | J48: =SUM(E48:I48) -> 4751774 | K48: =IF(D48=0,C48+J48,D48+J48) -> 50454174 | L48: 44080350 | M48: 16388370
A49: ='Org structure'!E43 -> 06.4 - Techn Serv-Stormwater: Admin | C49: 0 | D49: 0 | E49: 0 | F49: 0 | G49: 0 | H49: 0 | I49: 0 | J49: =SUM(E49:I49) -> 0 | K49: =IF(D49=0,C49+J49,D49+J49) -> 0 | L49: 2300000 | M49: 14835790
A50: ='Org structure'!E44 -> 06.5 - Project Management Unit | C50: 0 | D50: 0 | E50: 0 | F50: 0 | G50: 0 | H50: 0 | I50: 0 | J50: =SUM(E50:I50) -> 0 | K50: =IF(D50=0,C50+J50,D50+J50) -> 0 | L50: 0 | M50: 0
A51: ='Org structure'!E45 -> 06.6 - Electrical & Machinery | C51: 4750000 | D51: 0 | E51: 0 | F51: 0 | G51: 0 | H51: 0 | I51: 3680151 | J51: =SUM(E51:I51) -> 3680151 | K51: =IF(D51=0,C51+J51,D51+J51) -> 8430151 | L51: 19368000 | M51: 10449000
A52: ='Org structure'!E46 -> 06.7 - Water | J52: 0 | K52: 0 | L52: 0 | M52: 0
A53: ='Org structure'!E47 -> 06.8 - Sanitation | J53: 0 | K53: 0 | L53: 0 | M53: 0
A54: ='Org structure'!A8 -> Vote 07 - | C54: 0 | D54: 0 | E54: 0 | F54: 0 | G54: 0 | H54: 0 | I54: 0 | J54: =SUM(E54:I54) -> 0 | K54: =IF(D54=0,C54+J54,D54+J54) -> 0 | L54: 0 | M54: 0
A55: ='Org structure'!A9 -> Vote 08 - | C55: 0 | D55: 0 | E55: 0 | F55: 0 | G55: 0 | H55: 0 | I55: 0 | J55: 0 | K55: 0 | L55: 0 | M55: 0
A56: ='Org structure'!A10 -> Vote 09 - | C56: 0 | D56: 0 | E56: 0 | F56: 0 | G56: 0 | H56: 0 | I56: 0 | J56: 0 | K56: 0 | L56: 0 | M56: 0
A57: ='Org structure'!A11 -> Vote 10 - | C57: 0 | D57: 0 | E57: 0 | F57: 0 | G57: 0 | H57: 0 | I57: 0 | J57: 0 | K57: 0 | L57: 0 | M57: 0
A58: ='Org structure'!A12 -> Vote 11 - | C58: 0 | D58: 0 | E58: 0 | F58: 0 | G58: 0 | H58: 0 | I58: 0 | J58: 0 | K58: 0 | L58: 0 | M58: 0
A59: ='Org structure'!A13 -> Vote 12 - | C59: 0 | D59: 0 | E59: 0 | F59: 0 | G59: 0 | H59: 0 | I59: 0 | J59: 0 | K59: 0 | L59: 0 | M59: 0
A60: ='Org structure'!A14 -> Vote 13 - | C60: 0 | D60: 0 | E60: 0 | F60: 0 | G60: 0 | H60: 0 | I60: 0 | J60: =SUM(E60:I60) -> 0 | K60: =IF(D60=0,C60+J60,D60+J60) -> 0 | L60: 0 | M60: 0
A61: ='Org structure'!A15 -> Vote 14 - | C61: 0 | D61: 0 | E61: 0 | F61: 0 | G61: 0 | H61: 0 | I61: 0 | J61: 0 | K61: 0 | L61: 0 | M61: 0
A62: ='Org structure'!A16 -> Vote 15 - Other | C62: 0 | D62: 0 | E62: 0 | F62: 0 | G62: 0 | H62: 0 | I62: 0 | J62: 0 | K62: 0 | L62: 0 | M62: 0
A63: Capital multi-year expenditure sub-total | C63: =C8+C17+C23+C29+C37+C45+C54+C55+C56+C57+C58+C59+C60+C61+C62 -> 58022400 | D63: 0 | E63: 0 | F63: 0 | G63: 0 | H63: 0 | I63: 5308225 | J63: 5308225 | K63: 63330625 | L63: 72380350 | M63: 60958950
A65: Capital expenditure - Municipal Vote | B65: 2
A66: Single-year expenditure appropriation
A67: ='Org structure'!A2 -> Vote 01 - Corporate Services | C67: =SUM(C68:C75) -> 0 | D67: 0 | E67: 0 | F67: 0 | G67: 0 | H67: 0 | I67: 0 | J67: =SUM(E67:I67) -> 0 | K67: =IF(D67=0,C67+J67,D67+J67) -> 0 | L67: =SUM(L68:L75) -> 0 | M67: =SUM(M68:M75) -> 0
A68: ='Org structure'!E3 -> 01.1 - Corporate Services Admin | C68: 0 | D68: 0 | E68: 0 | F68: 0 | G68: 0 | H68: 0 | I68: 0 | J68: 0 | K68: 0 | L68: 0 | M68: 0
A69: ='Org structure'!E4 -> 01.2 - Human Resources | C69: 0 | D69: 0 | E69: 0 | F69: 0 | G69: 0 | H69: 0 | I69: 0 | J69: 0 | K69: 0 | L69: 0 | M69: 0
A70: ='Org structure'!E5 -> 01.3 - Information Technology Services | C70: 0 | D70: 0 | E70: 0 | F70: 0 | G70: 0 | H70: 0 | I70: 0 | J70: 0 | K70: 0 | L70: 0 | M70: 0
A71: ='Org structure'!E6 -> 01.4 - Council Support | C71: 0 | D71: 0 | E71: 0 | F71: 0 | G71: 0 | H71: 0 | I71: 0 | J71: 0 | K71: 0 | L71: 0 | M71: 0
A72: ='Org structure'!E7 -> 01.5 - Local Economic Development | C72: 0 | D72: 0 | E72: 0 | F72: 0 | G72: 0 | H72: 0 | I72: 0 | J72: 0 | K72: 0 | L72: 0 | M72: 0
A73: ='Org structure'!E8 -> 01.6 - Municipal Planning Idp | C73: 0 | D73: 0 | E73: 0 | F73: 0 | G73: 0 | H73: 0 | I73: 0 | J73: 0 | K73: 0 | L73: 0 | M73: 0
A74: ='Org structure'!E9 -> 01.7 - Town & Regional Planning | C74: 0 | D74: 0 | E74: 0 | F74: 0 | G74: 0 | H74: 0 | I74: 0 | J74: 0 | K74: 0 | L74: 0 | M74: 0
A75: ='Org structure'!E10 -> 01.8 - Led Administration | C75: 0 | D75: 0 | E75: 0 | F75: 0 | G75: 0 | H75: 0 | I75: 0 | J75: 0 | K75: 0 | L75: 0 | M75: 0
A76: ='Org structure'!A3 -> Vote 02 - Municipal Manager | C76: =SUM(C77:C81) -> 0 | D76: 0 | E76: 0 | F76: 0 | G76: 0 | H76: 0 | I76: 0 | J76: 0 | K76: 0 | L76: =SUM(L77:L81) -> 0 | M76: =SUM(M77:M81) -> 0
A77: ='Org structure'!E12 -> 02.1 - Municipal Manager Admin | C77: 0 | D77: 0 | E77: 0 | F77: 0 | G77: 0 | H77: 0 | I77: 0 | J77: 0 | K77: 0 | L77: 0 | M77: 0
A78: ='Org structure'!E13 -> 02.2 - Legal Services | C78: 0 | D78: 0 | E78: 0 | F78: 0 | G78: 0 | H78: 0 | I78: 0 | J78: 0 | K78: 0 | L78: 0 | M78: 0
A79: ='Org structure'!E14 -> 02.3 - Political Office Beares | C79: 0 | D79: 0 | E79: 0 | F79: 0 | G79: 0 | H79: 0 | I79: 0 | J79: 0 | K79: 0 | L79: 0 | M79: 0
A80: ='Org structure'!E15 -> 02.4 - Pms | C80: 0 | D80: 0 | E80: 0 | F80: 0 | G80: 0 | H80: 0 | I80: 0 | J80: 0 | K80: 0 | L80: 0 | M80: 0
A81: ='Org structure'!E16 -> 02.5 - Internal Audit | C81: 0 | D81: 0 | E81: 0 | F81: 0 | G81: 0 | H81: 0 | I81: 0 | J81: 0 | K81: 0 | L81: 0 | M81: 0
A82: ='Org structure'!A4 -> Vote 03 - Mayors Office | C82: =SUM(C83:C87) -> 0 | D82: 0 | E82: 0 | F82: 0 | G82: 0 | H82: 0 | I82: 0 | J82: 0 | K82: 0 | L82: =SUM(L83:L87) -> 0 | M82: =SUM(M83:M87) -> 0
A83: ='Org structure'!E18 -> 03.1 - Mayors Office Admin | C83: 0 | D83: 0 | E83: 0 | F83: 0 | G83: 0 | H83: 0 | I83: 0 | J83: 0 | K83: 0 | L83: 0 | M83: 0
A84: ='Org structure'!E19 -> 03.2 - Office Of The Speaker | C84: 0 | D84: 0 | E84: 0 | F84: 0 | G84: 0 | H84: 0 | I84: 0 | J84: 0 | K84: 0 | L84: 0 | M84: 0
A85: ='Org structure'!E20 -> 03.3 - Office Of The Chief Whip | C85: 0 | D85: 0 | E85: 0 | F85: 0 | G85: 0 | H85: 0 | I85: 0 | J85: 0 | K85: 0 | L85: 0 | M85: 0
A86: ='Org structure'!E21 -> 03.4 - Exco Members | C86: 0 | D86: 0 | E86: 0 | F86: 0 | G86: 0 | H86: 0 | I86: 0 | J86: 0 | K86: 0 | L86: 0 | M86: 0
A87: ='Org structure'!E22 -> 03.5 - Council General Administration | C87: 0 | D87: 0 | E87: 0 | F87: 0 | G87: 0 | H87: 0 | I87: 0 | J87: 0 | K87: 0 | L87: 0 | M87: 0
A88: ='Org structure'!A5 -> Vote 04 - Budget And Treasury | C88: =SUM(C89:C95) -> 0 | D88: 0 | E88: 0 | F88: 0 | G88: 0 | H88: 0 | I88: 0 | J88: 0 | K88: 0 | L88: =SUM(L89:L95) -> 0 | M88: =SUM(M89:M95) -> 0
A89: ='Org structure'!E24 -> 04.1 - Budget And Treasury Admin | C89: 0 | D89: 0 | E89: 0 | F89: 0 | G89: 0 | H89: 0 | I89: 0 | J89: 0 | K89: 0 | L89: 0 | M89: 0
A90: ='Org structure'!E25 -> 04.2 - Chief Financial Officer Admin | C90: 0 | D90: 0 | E90: 0 | F90: 0 | G90: 0 | H90: 0 | I90: 0 | J90: 0 | K90: 0 | L90: 0 | M90: 0
A91: ='Org structure'!E26 -> 04.3 - Budget & Reporting | C91: 0 | D91: 0 | E91: 0 | F91: 0 | G91: 0 | H91: 0 | I91: 0 | J91: 0 | K91: 0 | L91: 0 | M91: 0
A92: ='Org structure'!E27 -> 04.4 - Budget & Reporting | C92: 0 | D92: 0 | E92: 0 | F92: 0 | G92: 0 | H92: 0 | I92: 0 | J92: 0 | K92: 0 | L92: 0 | M92: 0
A93: ='Org structure'!E28 -> 04.5 - Revenue Management | C93: 0 | D93: 0 | E93: 0 | F93: 0 | G93: 0 | H93: 0 | I93: 0 | J93: 0 | K93: 0 | L93: 0 | M93: 0
A94: ='Org structure'!E29 -> 04.6 - Supply Chain Management | C94: 0 | D94: 0 | E94: 0 | F94: 0 | G94: 0 | H94: 0 | I94: 0 | J94: 0 | K94: 0 | L94: 0 | M94: 0
A95: ='Org structure'!E30 -> 04.7 - Expenditure | C95: 0 | D95: 0 | E95: 0 | F95: 0 | G95: 0 | H95: 0 | I95: 0 | J95: 0 | K95: 0 | L95: 0 | M95: 0
A96: ='Org structure'!A6 -> Vote 05 - Community Services | C96: =SUM(C97:C103) -> 0 | D96: 0 | E96: 0 | F96: 0 | G96: 0 | H96: 0 | I96: 0 | J96: 0 | K96: 0 | L96: =SUM(L97:L103) -> 0 | M96: =SUM(M97:M103) -> 0
A97: ='Org structure'!E32 -> 05.1 - Community Services Admin | C97: 0 | D97: 0 | E97: 0 | F97: 0 | G97: 0 | H97: 0 | I97: 0 | J97: 0 | K97: 0 | L97: 0 | M97: 0
A98: ='Org structure'!E33 -> 05.2 - Libraries | C98: 0 | D98: 0 | E98: 0 | F98: 0 | G98: 0 | H98: 0 | I98: 0 | J98: 0 | K98: 0 | L98: 0 | M98: 0
A99: ='Org structure'!E34 -> 05.3 - Sports Recreation & Social Amenitie | C99: 0 | D99: 0 | E99: 0 | F99: 0 | G99: 0 | H99: 0 | I99: 0 | J99: 0 | K99: 0 | L99: 0 | M99: 0
A100: ='Org structure'!E35 -> 05.4 - Traffic Service | C100: 0 | D100: 0 | E100: 0 | F100: 0 | G100: 0 | H100: 0 | I100: 0 | J100: 0 | K100: 0 | L100: 0 | M100: 0
A101: ='Org structure'!E36 -> 05.5 - Traffic Service | C101: 0 | D101: 0 | E101: 0 | F101: 0 | G101: 0 | H101: 0 | I101: 0 | J101: 0 | K101: 0 | L101: 0 | M101: 0
A102: ='Org structure'!E37 -> 05.6 - Parks; Cemeteries | C102: 0 | D102: 0 | E102: 0 | F102: 0 | G102: 0 | H102: 0 | I102: 0 | J102: 0 | K102: 0 | L102: 0 | M102: 0
A103: ='Org structure'!E38 -> 05.7 - Refuse | C103: 0 | D103: 0 | E103: 0 | F103: 0 | G103: 0 | H103: 0 | I103: 0 | J103: 0 | K103: 0 | L103: 0 | M103: 0
A104: ='Org structure'!A7 -> Vote 06 - Technical Services | C104: =SUM(C105:C112) -> 0 | D104: 0 | E104: 0 | F104: 0 | G104: 0 | H104: 0 | I104: 0 | J104: 0 | K104: 0 | L104: =SUM(L105:L112) -> 0 | M104: =SUM(M105:M112) -> 4611000
A105: ='Org structure'!E40 -> 06.1 - Mpac | C105: 0 | D105: 0 | E105: 0 | F105: 0 | G105: 0 | H105: 0 | I105: 0 | J105: 0 | K105: 0 | L105: 0 | M105: 0
A106: ='Org structure'!E41 -> 06.2 - Technical Services Admin | C106: 0 | D106: 0 | E106: 0 | F106: 0 | G106: 0 | H106: 0 | I106: 0 | J106: 0 | K106: 0 | L106: 0 | M106: 0
A107: ='Org structure'!E42 -> 06.3 - Techn Serv-Roads: Admin | C107: 0 | D107: 0 | E107: 0 | F107: 0 | G107: 0 | H107: 0 | I107: 0 | J107: 0 | K107: 0 | L107: 0 | M107: 0
A108: ='Org structure'!E43 -> 06.4 - Techn Serv-Stormwater: Admin | C108: 0 | D108: 0 | E108: 0 | F108: 0 | G108: 0 | H108: 0 | I108: 0 | J108: 0 | K108: 0 | L108: 0 | M108: 0
A109: ='Org structure'!E44 -> 06.5 - Project Management Unit | C109: 0 | D109: 0 | E109: 0 | F109: 0 | G109: 0 | H109: 0 | I109: 0 | J109: 0 | K109: 0 | L109: 0 | M109: 0
A110: ='Org structure'!E45 -> 06.6 - Electrical & Machinery | C110: 0 | D110: 0 | E110: 0 | F110: 0 | G110: 0 | H110: 0 | I110: 0 | J110: =SUM(E110:I110) -> 0 | K110: =IF(D110=0,C110+J110,D110+J110) -> 0 | L110: 0 | M110: 4611000
A111: ='Org structure'!E46 -> 06.7 - Water | C111: 0 | D111: 0 | E111: 0 | F111: 0 | G111: 0 | H111: 0 | I111: 0 | J111: 0 | K111: 0 | L111: 0 | M111: 0
A112: ='Org structure'!E47 -> 06.8 - Sanitation | C112: 0 | D112: 0 | E112: 0 | F112: 0 | G112: 0 | H112: 0 | I112: 0 | J112: 0 | K112: 0 | L112: 0 | M112: 0
A113: ='Org structure'!A8 -> Vote 07 - | C113: 0 | D113: 0 | E113: 0 | F113: 0 | G113: 0 | H113: 0 | I113: 0 | J113: =SUM(E113:I113) -> 0 | K113: =IF(D113=0,C113+J113,D113+J113) -> 0 | L113: 0 | M113: 0
A114: ='Org structure'!A9 -> Vote 08 - | C114: 0 | D114: 0 | E114: 0 | F114: 0 | G114: 0 | H114: 0 | I114: 0 | J114: 0 | K114: 0 | L114: 0 | M114: 0
A115: ='Org structure'!A10 -> Vote 09 - | C115: 0 | D115: 0 | E115: 0 | F115: 0 | G115: 0 | H115: 0 | I115: 0 | J115: 0 | K115: 0 | L115: 0 | M115: 0
A116: ='Org structure'!A11 -> Vote 10 - | C116: 0 | D116: 0 | E116: 0 | F116: 0 | G116: 0 | H116: 0 | I116: 0 | J116: 0 | K116: 0 | L116: 0 | M116: 0
A117: ='Org structure'!A12 -> Vote 11 - | C117: 0 | D117: 0 | E117: 0 | F117: 0 | G117: 0 | H117: 0 | I117: 0 | J117: 0 | K117: 0 | L117: 0 | M117: 0
A118: ='Org structure'!A13 -> Vote 12 - | C118: 0 | D118: 0 | E118: 0 | F118: 0 | G118: 0 | H118: 0 | I118: 0 | J118: 0 | K118: 0 | L118: 0 | M118: 0
A119: ='Org structure'!A14 -> Vote 13 - | C119: 0 | D119: 0 | E119: 0 | F119: 0 | G119: 0 | H119: 0 | I119: 0 | J119: =SUM(E119:I119) -> 0 | K119: =IF(D119=0,C119+J119,D119+J119) -> 0 | L119: 0 | M119: 0
A120: ='Org structure'!A15 -> Vote 14 - | C120: 0 | D120: 0 | E120: 0 | F120: 0 | G120: 0 | H120: 0 | I120: 0 | J120: 0 | K120: 0 | L120: 0 | M120: 0
A121: ='Org structure'!A16 -> Vote 15 - Other | C121: 0 | D121: 0 | E121: 0 | F121: 0 | G121: 0 | H121: 0 | I121: 0 | J121: 0 | K121: 0 | L121: 0 | M121: 0
A122: Capital single-year expenditure sub-total | C122: =C67+C76+C82+C88+C96+C104+C113+C114+C115+C116+C117+C118+C119+C120+C121 -> 0 | D122: 0 | E122: 0 | F122: 0 | G122: 0 | H122: 0 | I122: 0 | J122: 0 | K122: 0 | L122: 0 | M122: 4611000
A123: Total Capital Expenditure | C123: =C122+C63 -> 58022400 | D123: 0 | E123: 0 | F123: 0 | G123: 0 | H123: 0 | I123: 5308225 | J123: =SUM(E123:I123) -> 5308225 | K123: =IF(D123=0,C123+J123,D123+J123) -> 63330625 | L123: =L122+L63 -> 72380350 | M123: =M122+M63 -> 65569950
A126: =head27a -> References
A127: 1. Insert 'Vote'; e.g. Department, if different to standard structure
A128: 2. Must reconcile to Financial Performance ('Revenue and Expenditure by Standard Classification' and 'Revenue and Expenditure')
A129: 3. Assign share in 'associate' to relevant Vote

Sheet B6-FinPos
A1: =muni&" - "&_ADJ6&" - "&Date -> LIM353 Molemole - Table B6 Adjustments Budget Financial Position - 14/07/2023
A2: =desc -> Description | B2: =head27 -> Ref | C2: =Head2 -> Budget Year 2022/23 | L2: =Head10 -> Budget Year +1 2023/24 | M2: =Head11 -> Budget Year +2 2024/25
C3: =Head6 -> Original Budget | D3: =Head54 -> Prior Adjusted | E3: =Head51 -> Accum. Funds | F3: =Head52 -> Multi-year capital | G3: =Head53 -> Unfore. Unavoid. | H3: =Head55 -> Nat. or Prov. Govt | I3: =Head50 -> Other Adjusts. | J3: =Head56 -> Total Adjusts. | K3: =Head7 -> Adjusted Budget | L3: =Head7 -> Adjusted Budget | M3: =Head7 -> Adjusted Budget
D4: 3 | E4: 4 | F4: 5 | G4: 6 | H4: 7 | I4: 8 | J4: 9 | K4: 10
A5: R thousands | C5: A | D5: A1 | E5: B | F5: C | G5: D | H5: E | I5: F | J5: G | K5: H
A6: ASSETS
A7: Current assets
A8: Cash | C8: 106551365 | D8: 0 | E8: 0 | F8: 0 | G8: 0 | H8: 0 | I8: 6075738 | J8: =SUM(E8:I8) -> 6075738 | K8: =IF(D8=0,C8+J8,D8+J8) -> 112627103 | L8: 27190821 | M8: 20027325
A9: Call investment deposits | B9: 1 | C9: 0 | D9: 0 | E9: 0 | F9: 0 | G9: 0 | H9: 0 | I9: 10750000 | J9: 10750000 | K9: 10750000 | L9: 107984845 | M9: 113173621
A10: Consumer debtors | B10: 1 | C10: ='SB2'!C14 -> 105339628 | D10: ='SB2'!D14 -> 0 | E10: ='SB2'!E14 -> 0 | F10: ='SB2'!F14 -> 0 | G10: ='SB2'!G14 -> 0 | H10: ='SB2'!H14 -> 0 | I10: ='SB2'!I14 -> -22773795 | J10: -22773795 | K10: 82565833 | L10: ='SB2'!L14 -> 99172379 | M10: ='SB2'!M14 -> 104130468
A11: Other debtors | C11: 22612040 | D11: 0 | E11: 0 | F11: 0 | G11: 0 | H11: 0 | I11: -5837204 | J11: -5837204 | K11: 16774836 | L11: 12619751 | M11: 13494258
A12: Current portion of long-term receivables | C12: 0 | D12: 0 | E12: 0 | F12: 0 | G12: 0 | H12: 0 | I12: 0 | J12: 0 | K12: 0 | L12: 0 | M12: 0
A13: Inventory | C13: ='SB2'!C115 -> 1052291 | D13: ='SB2'!D115 -> 0 | E13: ='SB2'!E115 -> 0 | F13: ='SB2'!F115 -> 0 | G13: ='SB2'!G115 -> 0 | H13: ='SB2'!H115 -> 0 | I13: ='SB2'!I115 -> -356413 | J13: -356413 | K13: 695878 | L13: ='SB2'!L115 -> 546908 | M13: ='SB2'!M115 -> 546908
A14: Total current assets | C14: =SUM(C8:C13) -> 235555324 | D14: 0 | E14: 0 | F14: 0 | G14: 0 | H14: 0 | I14: -12141674 | J14: -12141674 | K14: 223413650 | L14: 247514704 | M14: 251372580
A16: Non current assets
A17: Long-term receivables | J17: =SUM(E17:I17) -> 0 | K17: =IF(D17=0,C17+J17,D17+J17) -> 0
A18: Investments | C18: 0 | D18: 0 | E18: 0 | F18: 0 | G18: 0 | H18: 0 | I18: 0 | J18: 0 | K18: 0 | L18: 0 | M18: 0
A19: Investment property | C19: 1755951 | D19: 0 | E19: 0 | F19: 0 | G19: 0 | H19: 0 | I19: 0 | J19: 0 | K19: 1755951 | L19: 1843748 | M19: 1935935
A20: Investment in Associate | J20: 0 | K20: 0
A21: Property, plant and equipment | B21: 1 | C21: ='SB2'!C121 -> 342420105 | D21: ='SB2'!D121 -> 0 | E21: ='SB2'!E121 -> 0 | F21: ='SB2'!F121 -> 0 | G21: ='SB2'!G121 -> 0 | H21: ='SB2'!H121 -> 0 | I21: ='SB2'!I121 -> 4208225 | J21: 4208225 | K21: 346628330 | L21: ='SB2'!L121 -> 399631421 | M21: ='SB2'!M121 -> 409258573
A23: Biological | J23: 0 | K23: 0
A24: Intangible | C24: 1037819 | D24: 0 | E24: 0 | F24: 0 | G24: 0 | H24: 0 | I24: 0 | J24: 0 | K24: 1037819 | L24: 2765623 | M24: 1392189
A25: Other non-current assets | C25: 368150 | D25: 0 | E25: 0 | F25: 0 | G25: 0 | H25: 0 | I25: 40000 | J25: 40000 | K25: 408150 | L25: 428558 | M25: 449986
A26: Total non current assets | C26: =SUM(C17:C21)+SUM(C23:C25) -> 345582025 | D26: =SUM(D17:D21)+SUM(D23:D25) -> 0 | E26: 0 | F26: 0 | G26: 0 | H26: 0 | I26: 4248225 | J26: 4248225 | K26: 349830250 | L26: 404669350 | M26: 413036683
A27: TOTAL ASSETS | C27: =C14+C26 -> 581137349 | D27: 0 | E27: 0 | F27: 0 | G27: 0 | H27: 0 | I27: -7893449 | J27: -7893449 | K27: 573243900 | L27: 652184054 | M27: 664409263
A29: LIABILITIES
A30: Current liabilities
A31: Bank overdraft | J31: =SUM(E31:I31) -> 0 | K31: =IF(D31=0,C31+J31,D31+J31) -> 0
A32: Borrowing | C32: ='SB2'!C127 -> 0 | D32: ='SB2'!D127 -> 0 | E32: ='SB2'!E127 -> 0 | F32: ='SB2'!F127 -> 0 | G32: ='SB2'!G127 -> 0 | H32: ='SB2'!H127 -> 0 | I32: ='SB2'!I127 -> 0 | J32: =SUM(E32:I32) -> 0 | K32: =IF(D32=0,C32+J32,D32+J32) -> 0 | L32: ='SB2'!L127 -> 0 | M32: ='SB2'!M127 -> 0
A33: Consumer deposits | C33: 530646 | D33: 0 | E33: 0 | F33: 0 | G33: 0 | H33: 0 | I33: 0 | J33: =SUM(E33:I33) -> 0 | K33: =IF(D33=0,C33+J33,D33+J33) -> 530646 | L33: 557179 | M33: 585038
A34: Trade and other payables | C34: ='SB2'!C134 -> 41515276 | D34: ='SB2'!D134 -> 0 | E34: ='SB2'!E134 -> 0 | F34: ='SB2'!F134 -> 0 | G34: ='SB2'!G134 -> 0 | H34: ='SB2'!H134 -> 0 | I34: ='SB2'!I134 -> 4569208 | J34: =SUM(E34:I34) -> 4569208 | K34: =IF(D34=0,C34+J34,D34+J34) -> 46084484 | L34: ='SB2'!L134 -> 49670523 | M34: ='SB2'!M134 -> 52484045
A35: Provisions | C35: 854379 | D35: 0 | E35: 0 | F35: 0 | G35: 0 | H35: 0 | I35: 500000 | J35: =SUM(E35:I35) -> 500000 | K35: =IF(D35=0,C35+J35,D35+J35) -> 1354379 | L35: 1422099 | M35: 1493204
A36: Total current liabilities | C36: =SUM(C31:C35) -> 42900301 | D36: 0 | E36: 0 | F36: 0 | G36: 0 | H36: 0 | I36: 5069208 | J36: 5069208 | K36: 47969509 | L36: 51649801 | M36: 54562287
A38: Non current liabilities
A39: Borrowing | B39: 1 | C39: ='SB2'!C139 -> 0 | D39: ='SB2'!D139 -> 0 | E39: ='SB2'!E139 -> 0 | F39: ='SB2'!F139 -> 0 | G39: ='SB2'!G139 -> 0 | H39: ='SB2'!H139 -> 0 | I39: ='SB2'!I139 -> 0 | J39: =SUM(E39:I39) -> 0 | K39: =IF(D39=0,C39+J39,D39+J39) -> 0 | L39: ='SB2'!L139 -> 0 | M39: ='SB2'!M139 -> 0
A40: Provisions | B40: 1 | C40: ='SB2'!C146 -> 30007362 | D40: ='SB2'!D146 -> 0 | E40: ='SB2'!E146 -> 0 | F40: ='SB2'!F146 -> 0 | G40: ='SB2'!G146 -> 0 | H40: ='SB2'!H146 -> 0 | I40: ='SB2'!I146 -> 0 | J40: =SUM(E40:I40) -> 0 | K40: =IF(D40=0,C40+J40,D40+J40) -> 30007362 | L40: ='SB2'!L146 -> 29998391 | M40: ='SB2'!M146 -> 32998229
A41: Total non current liabilities | C41: =SUM(C39:C40) -> 30007362 | D41: 0 | E41: 0 | F41: 0 | G41: 0 | H41: 0 | I41: 0 | J41: 0 | K41: 30007362 | L41: 29998391 | M41: 32998229
A42: TOTAL LIABILITIES | C42: =C36+C41 -> 72907663 | D42: 0 | E42: 0 | F42: 0 | G42: 0 | H42: 0 | I42: 5069208 | J42: 5069208 | K42: 77976871 | L42: 81648192 | M42: 87560516
A44: NET ASSETS | B44: 2 | C44: =C27-C42 -> 508229686 | D44: 0 | E44: 0 | F44: 0 | G44: 0 | H44: 0 | I44: -12962657 | J44: -12962657 | K44: 495267029 | L44: 570535862 | M44: 576848747
A46: COMMUNITY WEALTH/EQUITY
A47: Accumulated Surplus/(Deficit) | C47: ='SB2'!C158 -> 457534666 | D47: ='SB2'!D158 -> 0 | E47: ='SB2'!E158 -> 0 | F47: ='SB2'!F158 -> 0 | G47: ='SB2'!G158 -> 0 | H47: ='SB2'!H158 -> 0 | I47: ='SB2'!I158 -> -11462657 | J47: =SUM(E47:I47) -> -11462657 | K47: =IF(D47=0,C47+J47,D47+J47) -> 446072009 | L47: ='SB2'!L158 -> 521027366 | M47: ='SB2'!M158 -> 524864827
A48: Reserves | C48: ='SB2'!C165 -> 50695020 | D48: ='SB2'!D165 -> 0 | E48: ='SB2'!E165 -> 0 | F48: ='SB2'!F165 -> 0 | G48: ='SB2'!G165 -> 0 | H48: ='SB2'!H165 -> 0 | I48: ='SB2'!I165 -> -1500000 | J48: =SUM(E48:I48) -> -1500000 | K48: =IF(D48=0,C48+J48,D48+J48) -> 49195020 | L48: ='SB2'!L165 -> 49508496 | M48: ='SB2'!M165 -> 51983920
A50: TOTAL COMMUNITY WEALTH/EQUITY | C50: =SUM(C47:C48) -> 508229686 | D50: =SUM(D47:D48) -> 0 | E50: 0 | F50: 0 | G50: 0 | H50: 0 | I50: -12962657 | J50: -12962657 | K50: 495267029 | L50: 570535862 | M50: 576848747
A51: =head27a -> References
A52: 1. Detail to be provided in Table SA3
A53: 2. Net assets must balance with Total Community Wealth/Equity
A54: 3. Only complete if a previous adjusted budget has been approved in the same financial year. Reflect most recent adjusted budget.
A55: 4. Additional cash-backed accumulated funds/unspent funds (MFMA section 18(1)(b) and section 28(2)(e)) identified after the Original Budget approved and after annual financial statements audited (note: only where underspending could not reasonably have been foreseen)
A56: 5. Increases of funds approved under MFMA section 31
A57: 6. Adjustments approved in accordance with MFMA section 29
A58: 7. Adjustments to transfers from National or Provincial Government
A59: 8. Adjusts. = 'Other' Adjustments proposed to be approved; including revenue under-collection (MFMA section 28(2)(a)); additional revenue appropriation on existing programmes (section 28(2))(b); projected savings (section 28(2)(d)); error correction (section 28(2)(f))
A60: 9. G = B + C + D + E + F
A61: 10. Adjusted Budget H = (A or A1/2 etc) + G
A63: check balance | C63: =C44-C50 -> 0 | D63: 0 | E63: 0 | F63: 0 | G63: 0 | H63: 0 | I63: 0 | J63: 0 | K63: 0 | L63: 0 | M63: 0

Sheet B7-CFlow
A1: =muni&" - "&_ADJ7&" - "&Date -> LIM353 Molemole - Table B7 Adjustments Budget Cash Flows - 14/07/2023
A2: =desc -> Description | B2: =head27 -> Ref | C2: =Head2 -> Budget Year 2022/23 | L2: =Head10 -> Budget Year +1 2023/24 | M2: =Head11 -> Budget Year +2 2024/25
C3: =Head6 -> Original Budget | D3: =Head54 -> Prior Adjusted | E3: =Head51 -> Accum. Funds | F3: =Head52 -> Multi-year capital | G3: =Head53 -> Unfore. Unavoid. | H3: =Head55 -> Nat. or Prov. Govt | I3: =Head50 -> Other Adjusts. | J3: =Head56 -> Total Adjusts. | K3: =Head7 -> Adjusted Budget | L3: =Head7 -> Adjusted Budget | M3: =Head7 -> Adjusted Budget
D4: 3 | E4: 4 | F4: 5 | G4: 6 | H4: 7 | I4: 8 | J4: 9 | K4: 10
A5: R thousands | C5: A | D5: A1 | E5: B | F5: C | G5: D | H5: E | I5: F | J5: G | K5: H
A6: CASH FLOW FROM OPERATING ACTIVITIES
A7: Receipts
A8: Property rates | C8: 46927001 | D8: 0 | E8: 0 | F8: 0 | G8: 0 | H8: 0 | I8: -12004197 | J8: =SUM(E8:I8) -> -12004197 | K8: =IF(D8=0,C8+J8,D8+J8) -> 34922804 | L8: 39153931 | M8: 41111628
A9: Service charges | C9: 21751649 | D9: 0 | E9: 0 | F9: 0 | G9: 0 | H9: 0 | I9: 0 | J9: =SUM(E9:I9) -> 0 | K9: =IF(D9=0,C9+J9,D9+J9) -> 21751649 | L9: 19547041 | M9: 20521380
A10: Other revenue | C10: 12481237 | D10: 0 | E10: 0 | F10: 0 | G10: 0 | H10: 0 | I10: 632030 | J10: 632030 | K10: 13113267 | L10: 13008926 | M10: 13662384
A11: Transfers and Subsidies - Operational | B11: 1 | C11: 174457600 | D11: 0 | E11: 0 | F11: 0 | G11: 0 | H11: 0 | I11: 640000 | J11: 640000 | K11: 175097600 | L11: 183700650 | M11: 192509050
A12: Transfers and Subsidies - Capital | B12: 1 | C12: 37802400 | D12: 0 | E12: 0 | F12: 0 | G12: 0 | H12: 0 | I12: 7116442 | J12: 7116442 | K12: 44918842 | L12: 58548350 | M12: 51508950
A13: Interest | C13: 3000000 | D13: 0 | E13: 0 | F13: 0 | G13: 0 | H13: 0 | I13: 4750000 | J13: 4750000 | K13: 7750000 | L13: 9600000 | M13: 7571218
A14: Dividends | J14: 0 | K14: 0
A15: Payments
A16: Suppliers and employees | C16: -221394977 | D16: 0 | E16: 0 | F16: 0 | G16: 0 | H16: 0 | I16: 7940194 | J16: =SUM(E16:I16) -> 7940194 | K16: =IF(D16=0,C16+J16,D16+J16) -> -213454783 | L16: ='SB15'!Q36+'SB15'!Q37+'SB15'!Q39+'SB15'!Q40+'SB15'!Q41+'SB15'!Q42+'SB15'!Q45+'SB15'!Q51 -> 234742120 | M16: ='SB15'!R36+'SB15'!R37+'SB15'!R39+'SB15'!R40+'SB15'!R41+'SB15'!R42+'SB15'!R45+'SB15'!R51 -> 244055273
A17: Finance charges | J17: =SUM(E17:I17) -> 0 | K17: =IF(D17=0,C17+J17,D17+J17) -> 0
A18: Transfers and Grants | B18: 1 | J18: =SUM(E18:I18) -> 0 | K18: =IF(D18=0,C18+J18,D18+J18) -> 0
A19: NET CASH FROM/(USED) OPERATING ACTIVITIES | C19: =SUM(C8:C14)+SUM(C16:C18) -> 75024910 | D19: =SUM(D8:D14)+SUM(D16:D18) -> 0 | E19: 0 | F19: 0 | G19: 0 | H19: 0 | I19: 9074469 | J19: =SUM(J8:J18) -> 9074469 | K19: =SUM(K8:K18) -> 84099379 | L19: =SUM(L8:L14)+SUM(L16:L18) -> 558301018 | M19: =SUM(M8:M14)+SUM(M16:M18) -> 570939883
A21: CASH FLOWS FROM INVESTING ACTIVITIES
A22: Receipts
A23: Proceeds on disposal of PPE | J23: =SUM(E23:I23) -> 0 | K23: =IF(D23=0,C23+J23,D23+J23) -> 0
A25: Decrease (increase) in non-current receivables | J25: =SUM(E25:I25) -> 0 | K25: =IF(D25=0,C25+J25,D25+J25) -> 0
A26: Decrease (increase) in non-current investments | C26: 0 | D26: 0 | E26: 0 | F26: 0 | G26: 0 | H26: 0 | I26: 0 | J26: =SUM(E26:I26) -> 0 | K26: =IF(D26= 0,C26+J26,D26+J26) -C26 -> 0 | L26: 0 | M26: 0
A27: Payments
A28: Capital assets | C28: 0 | D28: 0 | E28: 0 | F28: 0 | G28: 0 | H28: 0 | I28: -5308225 | J28: =SUM(E28:I28) -> -5308225 | K28: =IF(D28=0,C28+J28,D28+J28) -> -5308225 | L28: 0 | M28: 0
A29: NET CASH FROM/(USED) INVESTING ACTIVITIES | C29: =+C23+C25+C26+C28 -> 0 | D29: =+D23+D25+D26+D28 -> 0 | E29: 0 | F29: 0 | G29: 0 | H29: 0 | I29: -5308225 | J29: -5308225 | K29: -5308225 | L29: 0 | M29: 0
A31: CASH FLOWS FROM FINANCING ACTIVITIES
A32: Receipts
A33: Short term loans | J33: =SUM(E33:I33) -> 0 | K33: =IF(D33=0,C33+J33,D33+J33) -> 0
A34: Borrowing long term/refinancing | J34: =SUM(E34:I34) -> 0 | K34: =IF(D34=0,C34+J34,D34+J34) -> 0
A35: Increase (decrease) in consumer deposits | J35: =SUM(E35:I35) -> 0 | K35: =IF(D35=0,C35+J35,D35+J35) -> 0
A36: Payments
A37: Repayment of borrowing | C37: 0 | D37: 0 | E37: 0 | F37: 0 | G37: 0 | H37: 0 | I37: 0 | J37: =SUM(E37:I37) -> 0 | K37: =IF(D37=0,C37+J37,D37+J37) -> 0 | L37: 0 | M37: 0
A38: NET CASH FROM/(USED) FINANCING ACTIVITIES | C38: =SUM(C33:C35)+C37 -> 0 | D38: =SUM(D33:D35)+D37 -> 0 | E38: 0 | F38: 0 | G38: 0 | H38: 0 | I38: 0 | J38: =SUM(J33:J37) -> 0 | K38: =SUM(K33:K37) -> 0 | L38: =SUM(L33:L35)+L37 -> 0 | M38: =SUM(M33:M35)+M37 -> 0
A40: NET INCREASE/ (DECREASE) IN CASH HELD | C40: =C19+C29+C38 -> 75024910 | D40: =D19+D29+D38 -> 0 | E40: 0 | F40: 0 | G40: 0 | H40: 0 | I40: 3766244 | J40: 3766244 | K40: 78791154 | L40: 558301018 | M40: 570939883
A41: Cash/cash equivalents at the year begin: | B41: 2 | C41: 89549142 | D41: 0 | E41: 0 | F41: 0 | G41: 0 | H41: 0 | I41: 15718602 | J41: =SUM(E41:I41) -> 15718602 | K41: =IF(D41=0,C41+J41,D41+J41) -> 105267744 | L41: 118872002 | M41: 116080959
A42: Cash/cash equivalents at the year end: | B42: 2 | C42: =C40+C41 -> 164574052 | D42: =D40+D41 -> 0 | E42: 0 | F42: 0 | G42: 0 | H42: 0 | I42: 19484846 | J42: 19484846 | K42: =K40+K41 -> 184058898 | L42: =L40+L41 -> 677173020 | M42: =M40+M41 -> 687020842
A43: =head27a -> References
A44: 1. Local/District municipalities to include transfers from/to District/Local Municipalities
A45: 2. Cash equivalents includes investments with maturities of 3 months or less
A46: 3. Only complete if a previous adjusted budget has been approved in the same financial year. Reflect most recent adjusted budget.
A47: 4. Additional cash-backed accumulated funds/unspent funds (MFMA section 18(1)(b) and section 28(2)(e)) identified after the Original Budget approved and after annual financial statements audited (note: only where underspending could not reasonably have been foreseen)
A48: 5. Increases of funds approved under MFMA section 31
A49: 6. Adjustments approved in accordance with MFMA section 29
A50: 7. Adjustments to transfers from National or Provincial Government
A51: 8. Adjusts. = 'Other' Adjustments proposed to be approved; including revenue under-collection (MFMA section 28(2)(a)); additional revenue appropriation on existing programmes (section 28(2))(b); projected savings (section 28(2)(d)); error correction (section 28(2)(f))
A52: 9. G = B + C + D + E + F
A53: 10. Adjusted Budget H = (A or A1) + G

Sheet B8-ResRecon
A1: =muni&" - "&_ADJ8&" - "&Date -> LIM353 Molemole - Table B8 Cash backed reserves/accumulated surplus reconciliation - 14/07/2023
A2: =desc -> Description | B2: =head27 -> Ref | C2: =Head2 -> Budget Year 2022/23 | L2: =Head10 -> Budget Year +1 2023/24 | M2: =Head11 -> Budget Year +2 2024/25
C3: =Head6 -> Original Budget | D3: =Head54 -> Prior Adjusted | E3: =Head51 -> Accum. Funds | F3: =Head52 -> Multi-year capital | G3: =Head53 -> Unfore. Unavoid. | H3: =Head55 -> Nat. or Prov. Govt | I3: =Head50 -> Other Adjusts. | J3: =Head56 -> Total Adjusts. | K3: =Head7 -> Adjusted Budget | L3: =Head7 -> Adjusted Budget | M3: =Head7 -> Adjusted Budget
D4: 3 | E4: 4 | F4: 5 | G4: 6 | H4: 7 | I4: 8 | J4: 9 | K4: 10
A5: R thousands | C5: A | D5: A1 | E5: B | F5: C | G5: D | H5: E | I5: F | J5: G | K5: H
A6: Cash and investments available
A7: Cash/cash equivalents at the year end | B7: 1 | C7: ='B7-CFlow'!C42 -> 164574052 | D7: ='B7-CFlow'!D42 -> 0 | E7: ='B7-CFlow'!E42 -> 0 | F7: ='B7-CFlow'!F42 -> 0 | G7: ='B7-CFlow'!G42 -> 0 | H7: ='B7-CFlow'!H42 -> 0 | I7: ='B7-CFlow'!I42 -> 19484846 | J7: =SUM(E7:I7) -> 19484846 | K7: =IF(D7=0,C7+J7,D7+J7) -> 184058898 | L7: ='B7-CFlow'!L42 -> 677173020 | M7: ='B7-CFlow'!M42 -> 687020842
A8: Other current investments > 90 days | C8: ='B6-FinPos'!C8+'B6-FinPos'!C9-'B6-FinPos'!C31-'B8-ResRecon'!C7 -> -58022687 | D8: ='B6-FinPos'!D8+'B6-FinPos'!D9-'B6-FinPos'!D31-'B8-ResRecon'!D7 -> 0 | E8: ='B6-FinPos'!E8+'B6-FinPos'!E9-'B6-FinPos'!E31-'B8-ResRecon'!E7 -> 0 | F8: ='B6-FinPos'!F8+'B6-FinPos'!F9-'B6-FinPos'!F31-'B8-ResRecon'!F7 -> 0 | G8: ='B6-FinPos'!G8+'B6-FinPos'!G9-'B6-FinPos'!G31-'B8-ResRecon'!G7 -> 0 | H8: ='B6-FinPos'!H8+'B6-FinPos'!H9-'B6-FinPos'!H31-'B8-ResRecon'!H7 -> 0 | I8: ='B6-FinPos'!I8+'B6-FinPos'!I9-'B6-FinPos'!I31-'B8-ResRecon'!I7 -> -2659108 | J8: =SUM(E8:I8) -> -2659108 | K8: =IF(D8=0,C8+J8,D8+J8) -> -60681795 | L8: ='B6-FinPos'!L8+'B6-FinPos'!L9-'B6-FinPos'!L31-'B8-ResRecon'!L7 -> -541997354 | M8: ='B6-FinPos'!M8+'B6-FinPos'!M9-'B6-FinPos'!M31-'B8-ResRecon'!M7 -> -553819896
A9: Non current assets - Investments | B9: 1 | C9: ='B6-FinPos'!C18 -> 0 | D9: ='B6-FinPos'!D18 -> 0 | E9: ='B6-FinPos'!E18 -> 0 | F9: ='B6-FinPos'!F18 -> 0 | G9: ='B6-FinPos'!G18 -> 0 | H9: ='B6-FinPos'!H18 -> 0 | I9: ='B6-FinPos'!I18 -> 0 | J9: =SUM(E9:I9) -> 0 | K9: =IF(D9=0,C9+J9,D9+J9) -> 0 | L9: ='B6-FinPos'!L18 -> 0 | M9: ='B6-FinPos'!M18 -> 0
A10: Cash and investments available: | C10: =SUM(C7:C9) -> 106551365 | D10: 0 | E10: 0 | F10: 0 | G10: 0 | H10: 0 | I10: 16825738 | J10: 16825738 | K10: 123377103 | L10: 135175666 | M10: 133200946
A12: Applications of cash and investments
A13: Unspent conditional transfers | C13: ='SB2'!C132 -> 628750 | D13: ='SB2'!D132 -> 0 | E13: ='SB2'!E132 -> 0 | F13: ='SB2'!F132 -> 0 | G13: ='SB2'!G132 -> 0 | H13: ='SB2'!H132 -> 0 | I13: ='SB2'!I132 -> 0 | J13: =SUM(E13:I13) -> 0 | K13: =IF(D13=0,C13+J13,D13+J13) -> 628750 | L13: ='SB2'!L132 -> 774232 | M13: ='SB2'!M132 -> 812944
A14: Unspent borrowing | J14: 0 | K14: =IF(D14=0,C14+J14,D14+J14) -> 0
A15: Statutory requirements | J15: 0 | K15: =IF(D15=0,C15+J15,D15+J15) -> 0
A16: Other working capital requirements | B16: 2 | C16: =-C40 -> -78385466 | D16: =-D40 -> 0 | I16: =IF(D16=0,(K16-C16)-SUM(E16:H16),(K16-D16)-SUM(E16:H16)) -> 38835011 | J16: 38835011 | K16: =-K40 -> -39550455 | L16: =-L40 -> -52205642 | M16: =-M40 -> -54781158
A17: Other provisions | J17: 0 | K17: =IF(D17=0,C17+J17,D17+J17) -> 0
A18: Long term investments committed | C18: =C48 -> 0 | D18: =D48 -> 0 | E18: 0 | F18: 0 | G18: 0 | H18: 0 | I18: =IF(D18=0,(K18-C18)-SUM(E18:H18),(K18-D18)-SUM(E18:H18)) -> 0 | J18: 0 | K18: =K48 -> 0 | L18: =L48 -> 0 | M18: =M48 -> 0
A19: Reserves to be backed by cash/investments | C19: =C55 -> 0 | D19: =D55 -> 0 | I19: =IF(D19=0,(K19-C19)-SUM(E19:H19),(K19-D19)-SUM(E19:H19)) -> 0 | J19: 0 | K19: =K55 -> 0 | L19: =L55 -> 0 | M19: =M55 -> 0
A20: Total Application of cash and investments: | C20: =SUM(C13:C19) -> -77756716 | D20: 0 | E20: 0 | F20: 0 | G20: 0 | H20: 0 | I20: 38835011 | J20: 38835011 | K20: -38921705 | L20: -51431410 | M20: -53968214
A21: Surplus(shortfall) | C21: =C10-C20 -> 184308081 | D21: 0 | E21: 0 | F21: 0 | G21: 0 | H21: 0 | I21: -22009273 | J21: -22009273 | K21: 162298808 | L21: 186607076 | M21: 187169160
A22: =head27a -> References
A23: 1. Must reconcile with the Adjustments Budget Cash Flow and Adjustements Budget Financial Position
A24: 2. Council approval for policy required - include sufficient working capital (e.g. allowing for a % of current debtors > 90 days as uncollectable)
A25: 3. Only complete if a previous adjusted budget has been approved in the same financial year. Reflect most recent adjusted budget.
A26: 4. Additional cash-backed accumulated funds/unspent funds (MFMA section 18(1)(b) and section 28(2)(e)) identified after the Original Budget approved and after annual financial statements audited (note: only where underspending could not reasonably have been foreseen)
A27: 5. Increases of funds approved under MFMA section 31
A28: 6. Adjustments approved in accordance with MFMA section 29
A29: 7. Adjustments to transfers from National or Provincial Government
A30: 8. Adjusts. = 'Other' Adjustments proposed to be approved; including revenue under-collection (MFMA section 28(2)(a)); additional revenue appropriation on existing programmes (section 28(2))(b); projected savings (section 28(2)(d)); error correction (section 28(2)(f))
A31: 9. G = B + C + D + E + F
A32: 10. Adjusted Budget H = (A or A1) + G
A37: =A16 -> Other working capital requirements
A38: Debtors | C38: =IF(ISERROR(ROUND(C43*C44,0)),0,(ROUND(C43*C44,0))) -> 118723562 | D38: =IF(ISERROR(ROUND(D43*D44,0)),0,(ROUND(D43*D44,0))) -> 0 | K38: =IF(ISERROR(ROUND(K43*K44,0)),0,(ROUND(K43*K44,0))) -> 86888551 | L38: =IF(ISERROR(ROUND(L43*L44,0)),0,(ROUND(L43*L44,0))) -> 98392006 | M38: =IF(ISERROR(ROUND(M43*M44,0)),0,(ROUND(M43*M44,0))) -> 103526834
A39: Creditors due | C39: ='SB2'!C130 -> 40338096 | D39: ='SB2'!D130 -> 0 | K39: ='SB2'!K130 -> 47338096 | L39: ='SB2'!L130 -> 46186364 | M39: ='SB2'!M130 -> 48745676
A40: Total | C40: =C38-C39 -> 78385466 | D40: =D38-D39 -> 0 | K40: =K38-K39 -> 39550455 | L40: =L38-L39 -> 52205642 | M40: =M38-M39 -> 54781158
A42: Debtors collection assumptions:
A43: Balance outstanding - debtors | C43: ='B6-FinPos'!C10+'B6-FinPos'!C11+'B6-FinPos'!C17 -> 127951668 | D43: ='B6-FinPos'!D10+'B6-FinPos'!D11+'B6-FinPos'!D17 -> 0 | K43: ='B6-FinPos'!K10+'B6-FinPos'!K11+'B6-FinPos'!K17 -> 99340669 | L43: ='B6-FinPos'!L10+'B6-FinPos'!L11+'B6-FinPos'!L17 -> 111792130 | M43: ='B6-FinPos'!M10+'B6-FinPos'!M11+'B6-FinPos'!M17 -> 117624726
A44: Estimate of debtors collection rate | C44: =IF(ISERROR('SB6'!G10),0,('SB6'!G10)) -> 0.9278781893 | D44: =IF(ISERROR('SB6'!H10),0,('SB6'!H10)) -> 0 | K44: =IF(ISERROR('SB6'!I10),0,('SB6'!I10)) -> 0.8746523679 | L44: =IF(ISERROR('SB6'!J10),0,('SB6'!J10)) -> 0.8801335664 | M44: =IF(ISERROR('SB6'!K10),0,('SB6'!K10)) -> 0.8801451681
A46: =A18 -> Long term investments committed
A47: (Insert description; eg sinking fund)
C48: =SUM(C47:C47) -> 0 | D48: =SUM(D47:D47) -> 0 | K48: =SUM(K47:K47) -> 0 | L48: =SUM(L47:L47) -> 0 | M48: =SUM(M47:M47) -> 0
A50: =A19 -> Reserves to be backed by cash/investments
A51: ='SB2'!A160 -> Housing Development Fund | C51: ='SB2'!C160 -> 0 | D51: ='SB2'!D160 -> 0 | K51: ='SB2'!K160 -> 0 | L51: ='SB2'!L160 -> 0 | M51: ='SB2'!M160 -> 0
A52: ='SB2'!A161 -> Capital replacement | C52: ='SB2'!C161 -> 0 | D52: ='SB2'!D161 -> 0 | K52: ='SB2'!K161 -> 0 | L52: ='SB2'!L161 -> 0 | M52: ='SB2'!M161 -> 0
A53: ='SB2'!A162 -> Self-insurance | C53: ='SB2'!C162 -> 0 | D53: ='SB2'!D162 -> 0 | K53: ='SB2'!K162 -> 0 | L53: ='SB2'!L162 -> 0 | M53: ='SB2'!M1162 -> 0
A54: ='SB2'!A163 -> Other reserves | C54: ='SB2'!C163 -> 0 | D54: ='SB2'!D163 -> 0 | K54: ='SB2'!K163 -> 0 | L54: ='SB2'!L163 -> 0 | M54: ='SB2'!M163 -> 0
C55: =SUM(C51:C54) -> 0 | D55: =SUM(D51:D54) -> 0 | K55: =SUM(K51:K54) -> 0 | L55: =SUM(L51:L54) -> 0 | M55: =SUM(M51:M54) -> 0

Sheet B9-Asset
A1: =muni&" - "&_ADJ9&" - "&Date -> LIM353 Molemole - Table B9 Asset Management - 14/07/2023
A2: =desc -> Description | B2: =head27 -> Ref | C2: =Head2 -> Budget Year 2022/23 | L2: =Head10 -> Budget Year +1 2023/24 | M2: =Head11 -> Budget Year +2 2024/25
C3: =Head6 -> Original Budget | D3: =Head54 -> Prior Adjusted | E3: =Head51 -> Accum. Funds | F3: =Head52 -> Multi-year capital | G3: =Head53 -> Unfore. Unavoid. | H3: =Head55 -> Nat. or Prov. Govt | I3: =Head50 -> Other Adjusts. | J3: =Head56 -> Total Adjusts. | K3: =Head7 -> Adjusted Budget | L3: =Head7 -> Adjusted Budget | M3: =Head7 -> Adjusted Budget
D4: 7 | E4: 8 | F4: 9 | G4: 10 | H4: 11 | I4: 12 | J4: 13 | K4: 14
A5: R thousands | C5: A | D5: A1 | E5: B | F5: C | G5: D | H5: E | I5: F | J5: G | K5: H
A6: CAPITAL EXPENDITURE
A7: Total New Assets to be adjusted | B7: 1 | C7: =C17+C20+C21+C24+C27+C28+SUM(C31:C37) -> 46008019 | D7: =D17+D20+D21+D24+D27+D28+SUM(D31:D37) -> 0 | E7: 0 | F7: 0 | G7: 0 | H7: 0 | I7: 5308225 | J7: 5308225 | K7: 51316244 | L7: 56694731 | M7: 50734160
A8: Roads Infrastructure | C8: =SB18a!C9 -> 32788019 | D8: =SB18a!D9 -> 0 | E8: =SB18a!E9 -> 0 | F8: =SB18a!F9 -> 0 | G8: =SB18a!G9 -> 0 | H8: =SB18a!H9 -> 0 | I8: =SB18a!I9 -> 5206925 | J8: =SB18a!J9 -> 5206925 | K8: =SB18a!K9 -> 37994944 | L8: =SB18a!L9 -> 31094731 | M8: =SB18a!M9 -> 16388370
A9: Storm water Infrastructure | C9: =SB18a!C14 -> 0 | D9: =SB18a!D14 -> 0 | E9: =SB18a!E14 -> 0 | F9: =SB18a!F14 -> 0 | G9: =SB18a!G14 -> 0 | H9: =SB18a!H14 -> 0 | I9: =SB18a!I14 -> 0 | J9: =SB18a!J14 -> 0 | K9: =SB18a!K14 -> 0 | L9: =SB18a!L14 -> 0 | M9: =SB18a!M14 -> 0
A10: Electrical Infrastructure | C10: =SB18a!C18 -> 4550000 | D10: =SB18a!D18 -> 0 | E10: =SB18a!E18 -> 0 | F10: =SB18a!F18 -> 0 | G10: =SB18a!G18 -> 0 | H10: =SB18a!H18 -> 0 | I10: =SB18a!I18 -> 3680151 | J10: =SB18a!J18 -> 3680151 | K10: =SB18a!K18 -> 8230151 | L10: =SB18a!L18 -> 19168000 | M10: =SB18a!M18 -> 15060000
A11: Water Supply Infrastructure | C11: =SB18a!C28 -> 0 | D11: =SB18a!D28 -> 0 | E11: =SB18a!E28 -> 0 | F11: =SB18a!F28 -> 0 | G11: =SB18a!G28 -> 0 | H11: =SB18a!H28 -> 0 | I11: =SB18a!I28 -> 0 | J11: =SB18a!J28 -> 0 | K11: =SB18a!K28 -> 0 | L11: =SB18a!L28 -> 0 | M11: =SB18a!M28 -> 0
A12: Sanitation Infrastructure | C12: =SB18a!C39 -> 0 | D12: =SB18a!D39 -> 0 | E12: =SB18a!E39 -> 0 | F12: =SB18a!F39 -> 0 | G12: =SB18a!G39 -> 0 | H12: =SB18a!H39 -> 0 | I12: =SB18a!I39 -> 0 | J12: =SB18a!J39 -> 0 | K12: =SB18a!K39 -> 0 | L12: =SB18a!L39 -> 0 | M12: =SB18a!M39 -> 0
A13: Solid Waste Infrastructure | C13: =SB18a!C46 -> 0 | D13: =SB18a!D46 -> 0 | E13: =SB18a!E46 -> 0 | F13: =SB18a!F46 -> 0 | G13: =SB18a!G46 -> 0 | H13: =SB18a!H46 -> 0 | I13: =SB18a!I46 -> 0 | J13: =SB18a!J46 -> 0 | K13: =SB18a!K46 -> 0 | L13: =SB18a!L46 -> 0 | M13: =SB18a!M46 -> 0
A14: Rail Infrastructure | C14: =SB18a!C54 -> 0 | D14: =SB18a!D54 -> 0 | E14: =SB18a!E54 -> 0 | F14: =SB18a!F54 -> 0 | G14: =SB18a!G54 -> 0 | H14: =SB18a!H54 -> 0 | I14: =SB18a!I54 -> 0 | J14: =SB18a!J54 -> 0 | K14: =SB18a!K54 -> 0 | L14: =SB18a!L54 -> 0 | M14: =SB18a!M54 -> 0
A15: Coastal Infrastructure | C15: =SB18a!C64 -> 0 | D15: =SB18a!D64 -> 0 | E15: =SB18a!E64 -> 0 | F15: =SB18a!F64 -> 0 | G15: =SB18a!G64 -> 0 | H15: =SB18a!H64 -> 0 | I15: =SB18a!I64 -> 0 | J15: =SB18a!J64 -> 0 | K15: =SB18a!K64 -> 0 | L15: =SB18a!L64 -> 0 | M15: =SB18a!M64 -> 0
A16: Information and Communication Infrastructure | C16: =SB18a!C70 -> 0 | D16: =SB18a!D70 -> 0 | E16: =SB18a!E70 -> 0 | F16: =SB18a!F70 -> 0 | G16: =SB18a!G70 -> 0 | H16: =SB18a!H70 -> 0 | I16: =SB18a!I70 -> 0 | J16: =SB18a!J70 -> 0 | K16: =SB18a!K70 -> 0 | L16: =SB18a!L70 -> 0 | M16: =SB18a!M70 -> 0
A17: Infrastructure | C17: =SUM(C8:C16) -> 37338019 | D17: =SUM(D8:D16) -> 0 | E17: 0 | F17: 0 | G17: 0 | H17: 0 | I17: 8887076 | J17: 8887076 | K17: 46225095 | L17: 50262731 | M17: 31448370
A18: Community Facilities | C18: =SB18a!C77 -> 0 | D18: =SB18a!D77 -> 0 | E18: =SB18a!E77 -> 0 | F18: =SB18a!F77 -> 0 | G18: =SB18a!G77 -> 0 | H18: =SB18a!H77 -> 0 | I18: =SB18a!I77 -> 0 | J18: =SB18a!J77 -> 0 | K18: =SB18a!K77 -> 0 | L18: =SB18a!L77 -> 0 | M18: =SB18a!M77 -> 14835790
A19: Sport and Recreation Facilities | C19: =SB18a!C100 -> 0 | D19: =SB18a!D100 -> 0 | E19: =SB18a!E100 -> 0 | F19: =SB18a!F100 -> 0 | G19: =SB18a!G100 -> 0 | H19: =SB18a!H100 -> 0 | I19: =SB18a!I100 -> 0 | J19: =SB18a!J100 -> 0 | K19: =SB18a!K100 -> 0 | L19: =SB18a!L100 -> 0 | M19: =SB18a!M100 -> 0
A20: Community Assets | C20: =SUM(C18:C19) -> 0 | D20: =SUM(D18:D19) -> 0 | E20: 0 | F20: 0 | G20: 0 | H20: 0 | I20: 0 | J20: 0 | K20: 0 | L20: 0 | M20: 14835790
A21: Heritage Assets | C21: =SB18a!C105 -> 0 | D21: =SB18a!D105 -> 0 | E21: =SB18a!E105 -> 0 | F21: =SB18a!F105 -> 0 | G21: =SB18a!G105 -> 0 | H21: =SB18a!H105 -> 0 | I21: =SB18a!I105 -> 0 | J21: =SB18a!J105 -> 0 | K21: =SB18a!K105 -> 0 | L21: =SB18a!L105 -> 0 | M21: =SB18a!M105 -> 0
A22: Revenue Generating | C22: =SB18a!C113 -> 0 | D22: =SB18a!D113 -> 0 | E22: =SB18a!E113 -> 0 | F22: =SB18a!F113 -> 0 | G22: =SB18a!G113 -> 0 | H22: =SB18a!H113 -> 0 | I22: =SB18a!I113 -> 0 | J22: =SB18a!J113 -> 0 | K22: =SB18a!K113 -> 0 | L22: =SB18a!L113 -> 0 | M22: =SB18a!M113 -> 0
A23: Non-revenue Generating | C23: =SB18a!C116 -> 0 | D23: =SB18a!D116 -> 0 | E23: =SB18a!E116 -> 0 | F23: =SB18a!F116 -> 0 | G23: =SB18a!G116 -> 0 | H23: =SB18a!H116 -> 0 | I23: =SB18a!I116 -> 0 | J23: =SB18a!J116 -> 0 | K23: =SB18a!K116 -> 0 | L23: =SB18a!L116 -> 0 | M23: =SB18a!M116 -> 0
A24: Investment properties | C24: =SUM(C22:C23) -> 0 | D24: =SUM(D22:D23) -> 0 | E24: 0 | F24: 0 | G24: 0 | H24: 0 | I24: 0 | J24: 0 | K24: 0 | L24: 0 | M24: 0
A25: Operational Buildings | C25: =SB18a!C121 -> 2000000 | D25: =SB18a!D121 -> 0 | E25: =SB18a!E121 -> 0 | F25: =SB18a!F121 -> 0 | G25: =SB18a!G121 -> 0 | H25: =SB18a!H121 -> 0 | I25: =SB18a!I121 -> -2000000 | J25: =SB18a!J121 -> -2000000 | K25: =SB18a!K121 -> 0 | L25: =SB18a!L121 -> 200000 | M25: =SB18a!M121 -> 2750000
A26: Housing | C26: =SB18a!C133 -> 0 | D26: =SB18a!D133 -> 0 | E26: =SB18a!E133 -> 0 | F26: =SB18a!F133 -> 0 | G26: =SB18a!G133 -> 0 | H26: =SB18a!H133 -> 0 | I26: =SB18a!I133 -> 0 | J26: =SB18a!J133 -> 0 | K26: =SB18a!K133 -> 0 | L26: =SB18a!L133 -> 0 | M26: =SB18a!M133 -> 0
A27: Other Assets | B27: 6 | C27: =SUM(C25:C26) -> 2000000 | D27: =SUM(D25:D26) -> 0 | E27: 0 | F27: 0 | G27: 0 | H27: 0 | I27: -2000000 | J27: -2000000 | K27: 0 | L27: 200000 | M27: 2750000
A28: Biological or Cultivated Assets | C28: =SB18a!C138 -> 0 | D28: =SB18a!D138 -> 0 | E28: =SB18a!E138 -> 0 | F28: =SB18a!F138 -> 0 | G28: =SB18a!G138 -> 0 | H28: =SB18a!H138 -> 0 | I28: =SB18a!I138 -> 0 | J28: =SB18a!J138 -> 0 | K28: =SB18a!K138 -> 0 | L28: =SB18a!L138 -> 0 | M28: =SB18a!M138 -> 0
A29: Servitudes | C29: =SB18a!C142 -> 0 | D29: =SB18a!D142 -> 0 | E29: =SB18a!E142 -> 0 | F29: =SB18a!F142 -> 0 | G29: =SB18a!G142 -> 0 | H29: =SB18a!H142 -> 0 | I29: =SB18a!I142 -> 0 | J29: =SB18a!J142 -> 0 | K29: =SB18a!K142 -> 0 | L29: =SB18a!L142 -> 0 | M29: =SB18a!M142 -> 0
A30: Licences and Rights | C30: =SB18a!C143 -> 0 | D30: =SB18a!D143 -> 0 | E30: =SB18a!E143 -> 0 | F30: =SB18a!F143 -> 0 | G30: =SB18a!G143 -> 0 | H30: =SB18a!H143 -> 0 | I30: =SB18a!I143 -> 0 | J30: =SB18a!J143 -> 0 | K30: =SB18a!K143 -> 0 | L30: =SB18a!L143 -> 1500000 | M30: =SB18a!M143 -> 0
A31: Intangible Assets | C31: =SUM(C29:C30) -> 0 | D31: =SUM(D29:D30) -> 0 | E31: 0 | F31: 0 | G31: 0 | H31: 0 | I31: 0 | J31: 0 | K31: 0 | L31: 1500000 | M31: 0
A32: Computer Equipment | C32: =SB18a!C151 -> 2900000 | D32: =SB18a!D151 -> 0 | E32: =SB18a!E151 -> 0 | F32: =SB18a!F151 -> 0 | G32: =SB18a!G151 -> 0 | H32: =SB18a!H151 -> 0 | I32: =SB18a!I151 -> -666151 | J32: =SB18a!J151 -> -666151 | K32: =SB18a!K151 -> 2233849 | L32: =SB18a!L151 -> 2000000 | M32: =SB18a!M151 -> 0
A33: Furniture and Office Equipment | C33: =SB18a!C154 -> 700000 | D33: =SB18a!D154 -> 0 | E33: =SB18a!E154 -> 0 | F33: =SB18a!F154 -> 0 | G33: =SB18a!G154 -> 0 | H33: =SB18a!H154 -> 0 | I33: =SB18a!I154 -> -542700 | J33: =SB18a!J154 -> -542700 | K33: =SB18a!K154 -> 157300 | L33: =SB18a!L154 -> 300000 | M33: =SB18a!M154 -> 200000
A34: Machinery and Equipment | C34: =SB18a!C157 -> 870000 | D34: =SB18a!D157 -> 0 | E34: =SB18a!E157 -> 0 | F34: =SB18a!F157 -> 0 | G34: =SB18a!G157 -> 0 | H34: =SB18a!H157 -> 0 | I34: =SB18a!I157 -> -340000 | J34: =SB18a!J157 -> -340000 | K34: =SB18a!K157 -> 530000 | L34: =SB18a!L157 -> 1432000 | M34: =SB18a!M157 -> 0
A35: Transport Assets | C35: =SB18a!C160 -> 2200000 | D35: =SB18a!D160 -> 0 | E35: =SB18a!E160 -> 0 | F35: =SB18a!F160 -> 0 | G35: =SB18a!G160 -> 0 | H35: =SB18a!H160 -> 0 | I35: =SB18a!I160 -> -30000 | J35: =SB18a!J160 -> -30000 | K35: =SB18a!K160 -> 2170000 | L35: =SB18a!L160 -> 1000000 | M35: =SB18a!M160 -> 1500000
A36: Land | C36: =SB18a!C163 -> 0 | D36: =SB18a!D163 -> 0 | E36: =SB18a!E163 -> 0 | F36: =SB18a!F163 -> 0 | G36: =SB18a!G163 -> 0 | H36: =SB18a!H163 -> 0 | I36: =SB18a!I163 -> 0 | J36: =SB18a!J163 -> 0 | K36: =SB18a!K163 -> 0 | L36: =SB18a!L163 -> 0 | M36: =SB18a!M163 -> 0
A37: Zoo's, Marine and Non-biological Animals | C37: =SB18a!C166 -> 0 | D37: =SB18a!D166 -> 0 | E37: =SB18a!E166 -> 0 | F37: =SB18a!F166 -> 0 | G37: =SB18a!G166 -> 0 | H37: =SB18a!H166 -> 0 | I37: =SB18a!I166 -> 0 | J37: =SB18a!J166 -> 0 | K37: =SB18a!K166 -> 0 | L37: =SB18a!L166 -> 0 | M37: =SB18a!M166 -> 0
A39: Total Renewal of Existing Assets to be adjusted | B39: 2 | C39: =C49+C52+C53+C56+C59+C60+SUM(C63:C69) -> 12014381 | D39: =D49+D52+D53+D56+D59+D60+SUM(D63:D69) -> 0 | E39: 0 | F39: 0 | G39: 0 | H39: 0 | I39: 0 | J39: 0 | K39: 12014381 | L39: 15685619 | M39: 14835790
A40: Roads Infrastructure | C40: =SB18b!C9 -> 12014381 | D40: =SB18b!D9 -> 0 | E40: =SB18b!E9 -> 0 | F40: =SB18b!F9 -> 0 | G40: =SB18b!G9 -> 0 | H40: =SB18b!H9 -> 0 | I40: =SB18b!I9 -> 0 | J40: =SB18b!J9 -> 0 | K40: =SB18b!K9 -> 12014381 | L40: =SB18b!L9 -> 12785619 | M40: =SB18b!M9 -> 0
A41: Storm water Infrastructure | C41: =SB18b!C14 -> 0 | D41: =SB18b!D14 -> 0 | E41: =SB18b!E14 -> 0 | F41: =SB18b!F14 -> 0 | G41: =SB18b!G14 -> 0 | H41: =SB18b!H14 -> 0 | I41: =SB18b!I14 -> 0 | J41: =SB18b!J14 -> 0 | K41: =SB18b!K14 -> 0 | L41: =SB18b!L14 -> 0 | M41: =SB18b!M14 -> 0
A42: Electrical Infrastructure | C42: =SB18b!C18 -> 0 | D42: =SB18b!D18 -> 0 | E42: =SB18b!E18 -> 0 | F42: =SB18b!F18 -> 0 | G42: =SB18b!G18 -> 0 | H42: =SB18b!H18 -> 0 | I42: =SB18b!I18 -> 0 | J42: =SB18b!J18 -> 0 | K42: =SB18b!K18 -> 0 | L42: =SB18b!L18 -> 0 | M42: =SB18b!M18 -> 0
A43: Water Supply Infrastructure | C43: =SB18b!C28 -> 0 | D43: =SB18b!D28 -> 0 | E43: =SB18b!E28 -> 0 | F43: =SB18b!F28 -> 0 | G43: =SB18b!G28 -> 0 | H43: =SB18b!H28 -> 0 | I43: =SB18b!I28 -> 0 | J43: =SB18b!J28 -> 0 | K43: =SB18b!K28 -> 0 | L43: =SB18b!L28 -> 0 | M43: =SB18b!M28 -> 0
A44: Sanitation Infrastructure | C44: =SB18b!C39 -> 0 | D44: =SB18b!D39 -> 0 | E44: =SB18b!E39 -> 0 | F44: =SB18b!F39 -> 0 | G44: =SB18b!G39 -> 0 | H44: =SB18b!H39 -> 0 | I44: =SB18b!I39 -> 0 | J44: =SB18b!J39 -> 0 | K44: =SB18b!K39 -> 0 | L44: =SB18b!L39 -> 0 | M44: =SB18b!M39 -> 0
A45: Solid Waste Infrastructure | C45: =SB18b!C46 -> 0 | D45: =SB18b!D46 -> 0 | E45: =SB18b!E46 -> 0 | F45: =SB18b!F46 -> 0 | G45: =SB18b!G46 -> 0 | H45: =SB18b!H46 -> 0 | I45: =SB18b!I46 -> 0 | J45: =SB18b!J46 -> 0 | K45: =SB18b!K46 -> 0 | L45: =SB18b!L46 -> 0 | M45: =SB18b!M46 -> 0
A46: Rail Infrastructure | C46: =SB18b!C54 -> 0 | D46: =SB18b!D54 -> 0 | E46: =SB18b!E54 -> 0 | F46: =SB18b!F54 -> 0 | G46: =SB18b!G54 -> 0 | H46: =SB18b!H54 -> 0 | I46: =SB18b!I54 -> 0 | J46: =SB18b!J54 -> 0 | K46: =SB18b!K54 -> 0 | L46: =SB18b!L54 -> 0 | M46: =SB18b!M54 -> 0
A47: Coastal Infrastructure | C47: =SB18b!C64 -> 0 | D47: =SB18b!D64 -> 0 | E47: =SB18b!E64 -> 0 | F47: =SB18b!F64 -> 0 | G47: =SB18b!G64 -> 0 | H47: =SB18b!H64 -> 0 | I47: =SB18b!I64 -> 0 | J47: =SB18b!J64 -> 0 | K47: =SB18b!K64 -> 0 | L47: =SB18b!L64 -> 0 | M47: =SB18b!M64 -> 0
A48: Information and Communication Infrastructure | C48: =SB18b!C70 -> 0 | D48: =SB18b!D70 -> 0 | E48: =SB18b!E70 -> 0 | F48: =SB18b!F70 -> 0 | G48: =SB18b!G70 -> 0 | H48: =SB18b!H70 -> 0 | I48: =SB18b!I70 -> 0 | J48: =SB18b!J70 -> 0 | K48: =SB18b!K70 -> 0 | L48: =SB18b!L70 -> 0 | M48: =SB18b!M70 -> 0
A49: Infrastructure | C49: =SUM(C40:C48) -> 12014381 | D49: =SUM(D40:D48) -> 0 | E49: 0 | F49: 0 | G49: 0 | H49: 0 | I49: 0 | J49: 0 | K49: 12014381 | L49: 12785619 | M49: 0
A50: Community Facilities | C50: =SB18b!C77 -> 0 | D50: =SB18b!D77 -> 0 | E50: =SB18b!E77 -> 0 | F50: =SB18b!F77 -> 0 | G50: =SB18b!G77 -> 0 | H50: =SB18b!H77 -> 0 | I50: =SB18b!I77 -> 0 | J50: =SB18b!J77 -> 0 | K50: =SB18b!K77 -> 0 | L50: =SB18b!L77 -> 0 | M50: =SB18b!M77 -> 0
A51: Sport and Recreation Facilities | C51: =SB18b!C100 -> 0 | D51: =SB18b!D100 -> 0 | E51: =SB18b!E100 -> 0 | F51: =SB18b!F100 -> 0 | G51: =SB18b!G100 -> 0 | H51: =SB18b!H100 -> 0 | I51: =SB18b!I100 -> 0 | J51: =SB18b!J100 -> 0 | K51: =SB18b!K100 -> 0 | L51: =SB18b!L100 -> 2300000 | M51: =SB18b!M100 -> 14835790
A52: Community Assets | C52: =SUM(C50:C51) -> 0 | D52: =SUM(D50:D51) -> 0 | E52: 0 | F52: 0 | G52: 0 | H52: 0 | I52: 0 | J52: 0 | K52: 0 | L52: 2300000 | M52: 14835790
A53: Heritage Assets | C53: =SB18b!C105 -> 0 | D53: =SB18b!D105 -> 0 | E53: =SB18b!E105 -> 0 | F53: =SB18b!F105 -> 0 | G53: =SB18b!G105 -> 0 | H53: =SB18b!H105 -> 0 | I53: =SB18b!I105 -> 0 | J53: =SB18b!J105 -> 0 | K53: =SB18b!K105 -> 0 | L53: =SB18b!L105 -> 0 | M53: =SB18b!M105 -> 0
A54: Revenue Generating | C54: =SB18b!C113 -> 0 | D54: =SB18b!D113 -> 0 | E54: =SB18b!E113 -> 0 | F54: =SB18b!F113 -> 0 | G54: =SB18b!G113 -> 0 | H54: =SB18b!H113 -> 0 | I54: =SB18b!I113 -> 0 | J54: =SB18b!J113 -> 0 | K54: =SB18b!K113 -> 0 | L54: =SB18b!L113 -> 0 | M54: =SB18b!M113 -> 0
A55: Non-revenue Generating | C55: =SB18b!C116 -> 0 | D55: =SB18b!D116 -> 0 | E55: =SB18b!E116 -> 0 | F55: =SB18b!F116 -> 0 | G55: =SB18b!G116 -> 0 | H55: =SB18b!H116 -> 0 | I55: =SB18b!I116 -> 0 | J55: =SB18b!J116 -> 0 | K55: =SB18b!K116 -> 0 | L55: =SB18b!L116 -> 0 | M55: =SB18b!M116 -> 0
A56: Investment properties | C56: =SUM(C54:C55) -> 0 | D56: =SUM(D54:D55) -> 0 | E56: 0 | F56: 0 | G56: 0 | H56: 0 | I56: 0 | J56: 0 | K56: 0 | L56: 0 | M56: 0
A57: Operational Buildings | C57: =SB18b!C121 -> 0 | D57: =SB18b!D121 -> 0 | E57: =SB18b!E121 -> 0 | F57: =SB18b!F121 -> 0 | G57: =SB18b!G121 -> 0 | H57: =SB18b!H121 -> 0 | I57: =SB18b!I121 -> 0 | J57: =SB18b!J121 -> 0 | K57: =SB18b!K121 -> 0 | L57: =SB18b!L121 -> 0 | M57: =SB18b!M121 -> 0
A58: Housing | C58: =SB18b!C133 -> 0 | D58: =SB18b!D133 -> 0 | E58: =SB18b!E133 -> 0 | F58: =SB18b!F133 -> 0 | G58: =SB18b!G133 -> 0 | H58: =SB18b!H133 -> 0 | I58: =SB18b!I133 -> 0 | J58: =SB18b!J133 -> 0 | K58: =SB18b!K133 -> 0 | L58: =SB18b!L133 -> 0 | M58: =SB18b!M133 -> 0
A59: Other Assets | B59: 6 | C59: =SUM(C57:C58) -> 0 | D59: =SUM(D57:D58) -> 0 | E59: 0 | F59: 0 | G59: 0 | H59: 0 | I59: 0 | J59: 0 | K59: 0 | L59: 0 | M59: 0
A60: Biological or Cultivated Assets | C60: =SB18b!C138 -> 0 | D60: =SB18b!D138 -> 0 | E60: =SB18b!E138 -> 0 | F60: =SB18b!F138 -> 0 | G60: =SB18b!G138 -> 0 | H60: =SB18b!H138 -> 0 | I60: =SB18b!I138 -> 0 | J60: =SB18b!J138 -> 0 | K60: =SB18b!K138 -> 0 | L60: =SB18b!L138 -> 0 | M60: =SB18b!M138 -> 0
A61: Servitudes | C61: =SB18b!C142 -> 0 | D61: =SB18b!D142 -> 0 | E61: =SB18b!E142 -> 0 | F61: =SB18b!F142 -> 0 | G61: =SB18b!G142 -> 0 | H61: =SB18b!H142 -> 0 | I61: =SB18b!I142 -> 0 | J61: =SB18b!J142 -> 0 | K61: =SB18b!K142 -> 0 | L61: =SB18b!L142 -> 0 | M61: =SB18b!M142 -> 0
A62: Licences and Rights | C62: =SB18b!C143 -> 0 | D62: =SB18b!D143 -> 0 | E62: =SB18b!E143 -> 0 | F62: =SB18b!F143 -> 0 | G62: =SB18b!G143 -> 0 | H62: =SB18b!H143 -> 0 | I62: =SB18b!I143 -> 0 | J62: =SB18b!J143 -> 0 | K62: =SB18b!K143 -> 0 | L62: =SB18b!L143 -> 0 | M62: =SB18b!M143 -> 0
A63: Intangible Assets | C63: =SUM(C61:C62) -> 0 | D63: =SUM(D61:D62) -> 0 | E63: 0 | F63: 0 | G63: 0 | H63: 0 | I63: 0 | J63: 0 | K63: 0 | L63: 0 | M63: 0
A64: Computer Equipment | C64: =SB18b!C151 -> 0 | D64: =SB18b!D151 -> 0 | E64: =SB18b!E151 -> 0 | F64: =SB18b!F151 -> 0 | G64: =SB18b!G151 -> 0 | H64: =SB18b!H151 -> 0 | I64: =SB18b!I151 -> 0 | J64: =SB18b!J151 -> 0 | K64: =SB18b!K151 -> 0 | L64: =SB18b!L151 -> 0 | M64: =SB18b!M151 -> 0
A65: Furniture and Office Equipment | C65: =SB18b!C154 -> 0 | D65: =SB18b!D154 -> 0 | E65: =SB18b!E154 -> 0 | F65: =SB18b!F154 -> 0 | G65: =SB18b!G154 -> 0 | H65: =SB18b!H154 -> 0 | I65: =SB18b!I154 -> 0 | J65: =SB18b!J154 -> 0 | K65: =SB18b!K154 -> 0 | L65: =SB18b!L154 -> 600000 | M65: =SB18b!M154 -> 0
A66: Machinery and Equipment | C66: =SB18b!C157 -> 0 | D66: =SB18b!D157 -> 0 | E66: =SB18b!E157 -> 0 | F66: =SB18b!F157 -> 0 | G66: =SB18b!G157 -> 0 | H66: =SB18b!H157 -> 0 | I66: =SB18b!I157 -> 0 | J66: =SB18b!J157 -> 0 | K66: =SB18b!K157 -> 0 | L66: =SB18b!L157 -> 0 | M66: =SB18b!M157 -> 0
A67: Transport Assets | C67: =SB18b!C160 -> 0 | D67: =SB18b!D160 -> 0 | E67: =SB18b!E160 -> 0 | F67: =SB18b!F160 -> 0 | G67: =SB18b!G160 -> 0 | H67: =SB18b!H160 -> 0 | I67: =SB18b!I160 -> 0 | J67: =SB18b!J160 -> 0 | K67: =SB18b!K160 -> 0 | L67: =SB18b!L160 -> 0 | M67: =SB18b!M160 -> 0
A68: Land | C68: =SB18b!C163 -> 0 | D68: =SB18b!D163 -> 0 | E68: =SB18b!E163 -> 0 | F68: =SB18b!F163 -> 0 | G68: =SB18b!G163 -> 0 | H68: =SB18b!H163 -> 0 | I68: =SB18b!I163 -> 0 | J68: =SB18b!J163 -> 0 | K68: =SB18b!K163 -> 0 | L68: =SB18b!L163 -> 0 | M68: =SB18b!M163 -> 0
A69: Zoo's, Marine and Non-biological Animals | C69: =SB18b!C166 -> 0 | D69: =SB18b!D166 -> 0 | E69: =SB18b!E166 -> 0 | F69: =SB18b!F166 -> 0 | G69: =SB18b!G166 -> 0 | H69: =SB18b!H166 -> 0 | I69: =SB18b!I166 -> 0 | J69: =SB18b!J166 -> 0 | K69: =SB18b!K166 -> 0 | L69: =SB18b!L166 -> 0 | M69: =SB18b!M166 -> 0
A71: Total Upgrading of Existing Assets to be adjusted | B71: 2a | C71: =C81+C84+C85+C88+C91+C92+SUM(C95:C101) -> 0 | D71: =D81+D84+D85+D88+D91+D92+SUM(D95:D101) -> 0 | E71: 0 | F71: 0 | G71: 0 | H71: 0 | I71: 0 | J71: 0 | K71: 0 | L71: 0 | M71: 0
A72: Roads Infrastructure | C72: =SB18e!C9 -> 0 | D72: =SB18e!D9 -> 0 | E72: =SB18e!E9 -> 0 | F72: =SB18e!F9 -> 0 | G72: =SB18e!G9 -> 0 | H72: =SB18e!H9 -> 0 | I72: =SB18e!I9 -> 0 | J72: =SB18e!J9 -> 0 | K72: =SB18e!K9 -> 0 | L72: =SB18e!L9 -> 0 | M72: =SB18e!M9 -> 0
A73: Storm water Infrastructure | C73: =SB18e!C14 -> 0 | D73: =SB18e!D14 -> 0 | E73: =SB18e!E14 -> 0 | F73: =SB18e!F14 -> 0 | G73: =SB18e!G14 -> 0 | H73: =SB18e!H14 -> 0 | I73: =SB18e!I14 -> 0 | J73: =SB18e!J14 -> 0 | K73: =SB18e!K14 -> 0 | L73: =SB18e!L14 -> 0 | M73: =SB18e!M14 -> 0
A74: Electrical Infrastructure | C74: =SB18e!C18 -> 0 | D74: =SB18e!D18 -> 0 | E74: =SB18e!E18 -> 0 | F74: =SB18e!F18 -> 0 | G74: =SB18e!G18 -> 0 | H74: =SB18e!H18 -> 0 | I74: =SB18e!I18 -> 0 | J74: =SB18e!J18 -> 0 | K74: =SB18e!K18 -> 0 | L74: =SB18e!L18 -> 0 | M74: =SB18e!M18 -> 0
A75: Water Supply Infrastructure | C75: =SB18e!C28 -> 0 | D75: =SB18e!D28 -> 0 | E75: =SB18e!E28 -> 0 | F75: =SB18e!F28 -> 0 | G75: =SB18e!G28 -> 0 | H75: =SB18e!H28 -> 0 | I75: =SB18e!I28 -> 0 | J75: =SB18e!J28 -> 0 | K75: =SB18e!K28 -> 0 | L75: =SB18e!L28 -> 0 | M75: =SB18e!M28 -> 0
A76: Sanitation Infrastructure | C76: =SB18e!C39 -> 0 | D76: =SB18e!D39 -> 0 | E76: =SB18e!E39 -> 0 | F76: =SB18e!F39 -> 0 | G76: =SB18e!G39 -> 0 | H76: =SB18e!H39 -> 0 | I76: =SB18e!I39 -> 0 | J76: =SB18e!J39 -> 0 | K76: =SB18e!K39 -> 0 | L76: =SB18e!L39 -> 0 | M76: =SB18e!M39 -> 0
A77: Solid Waste Infrastructure | C77: =SB18e!C46 -> 0 | D77: =SB18e!D46 -> 0 | E77: =SB18e!E46 -> 0 | F77: =SB18e!F46 -> 0 | G77: =SB18e!G46 -> 0 | H77: =SB18e!H46 -> 0 | I77: =SB18e!I46 -> 0 | J77: =SB18e!J46 -> 0 | K77: =SB18e!K46 -> 0 | L77: =SB18e!L46 -> 0 | M77: =SB18e!M46 -> 0
A78: Rail Infrastructure | C78: =SB18e!C54 -> 0 | D78: =SB18e!D54 -> 0 | E78: =SB18e!E54 -> 0 | F78: =SB18e!F54 -> 0 | G78: =SB18e!G54 -> 0 | H78: =SB18e!H54 -> 0 | I78: =SB18e!I54 -> 0 | J78: =SB18e!J54 -> 0 | K78: =SB18e!K54 -> 0 | L78: =SB18e!L54 -> 0 | M78: =SB18e!M54 -> 0
A79: Coastal Infrastructure | C79: =SB18e!C64 -> 0 | D79: =SB18e!D64 -> 0 | E79: =SB18e!E64 -> 0 | F79: =SB18e!F64 -> 0 | G79: =SB18e!G64 -> 0 | H79: =SB18e!H64 -> 0 | I79: =SB18e!I64 -> 0 | J79: =SB18e!J64 -> 0 | K79: =SB18e!K64 -> 0 | L79: =SB18e!L64 -> 0 | M79: =SB18e!M64 -> 0
A80: Information and Communication Infrastructure | C80: =SB18e!C70 -> 0 | D80: =SB18e!D70 -> 0 | E80: =SB18e!E70 -> 0 | F80: =SB18e!F70 -> 0 | G80: =SB18e!G70 -> 0 | H80: =SB18e!H70 -> 0 | I80: =SB18e!I70 -> 0 | J80: =SB18e!J70 -> 0 | K80: =SB18e!K70 -> 0 | L80: =SB18e!L70 -> 0 | M80: =SB18e!M70 -> 0
A81: Infrastructure | C81: =SUM(C72:C80) -> 0 | D81: =SUM(D72:D80) -> 0 | E81: 0 | F81: 0 | G81: 0 | H81: 0 | I81: 0 | J81: 0 | K81: 0 | L81: 0 | M81: 0
A82: Community Facilities | C82: =SB18e!C77 -> 0 | D82: =SB18e!D77 -> 0 | E82: =SB18e!E77 -> 0 | F82: =SB18e!F77 -> 0 | G82: =SB18e!G77 -> 0 | H82: =SB18e!H77 -> 0 | I82: =SB18e!I77 -> 0 | J82: =SB18e!J77 -> 0 | K82: =SB18e!K77 -> 0 | L82: =SB18e!L77 -> 0 | M82: =SB18e!M77 -> 0
A83: Sport and Recreation Facilities | C83: =SB18e!C100 -> 0 | D83: =SB18e!D100 -> 0 | E83: =SB18e!E100 -> 0 | F83: =SB18e!F100 -> 0 | G83: =SB18e!G100 -> 0 | H83: =SB18e!H100 -> 0 | I83: =SB18e!I100 -> 0 | J83: =SB18e!J100 -> 0 | K83: =SB18e!K100 -> 0 | L83: =SB18e!L100 -> 0 | M83: =SB18e!M100 -> 0
A84: Community Assets | C84: =SUM(C82:C83) -> 0 | D84: =SUM(D82:D83) -> 0 | E84: 0 | F84: 0 | G84: 0 | H84: 0 | I84: 0 | J84: 0 | K84: 0 | L84: 0 | M84: 0
A85: Heritage Assets | C85: =SB18e!C105 -> 0 | D85: =SB18e!D105 -> 0 | E85: =SB18e!E105 -> 0 | F85: =SB18e!F105 -> 0 | G85: =SB18e!G105 -> 0 | H85: =SB18e!H105 -> 0 | I85: =SB18e!I105 -> 0 | J85: =SB18e!J105 -> 0 | K85: =SB18e!K105 -> 0 | L85: =SB18e!L105 -> 0 | M85: =SB18e!M105 -> 0
A86: Revenue Generating | C86: =SB18e!C113 -> 0 | D86: =SB18e!D113 -> 0 | E86: =SB18e!E113 -> 0 | F86: =SB18e!F113 -> 0 | G86: =SB18e!G113 -> 0 | H86: =SB18e!H113 -> 0 | I86: =SB18e!I113 -> 0 | J86: =SB18e!J113 -> 0 | K86: =SB18e!K113 -> 0 | L86: =SB18e!L113 -> 0 | M86: =SB18e!M113 -> 0
A87: Non-revenue Generating | C87: =SB18e!C116 -> 0 | D87: =SB18e!D116 -> 0 | E87: =SB18e!E116 -> 0 | F87: =SB18e!F116 -> 0 | G87: =SB18e!G116 -> 0 | H87: =SB18e!H116 -> 0 | I87: =SB18e!I116 -> 0 | J87: =SB18e!J116 -> 0 | K87: =SB18e!K116 -> 0 | L87: =SB18e!L116 -> 0 | M87: =SB18e!M116 -> 0
A88: Investment properties | C88: =SUM(C86:C87) -> 0 | D88: =SUM(D86:D87) -> 0 | E88: 0 | F88: 0 | G88: 0 | H88: 0 | I88: 0 | J88: 0 | K88: 0 | L88: 0 | M88: 0
A89: Operational Buildings | C89: =SB18e!C121 -> 0 | D89: =SB18e!D121 -> 0 | E89: =SB18e!E121 -> 0 | F89: =SB18e!F121 -> 0 | G89: =SB18e!G121 -> 0 | H89: =SB18e!H121 -> 0 | I89: =SB18e!I121 -> 0 | J89: =SB18e!J121 -> 0 | K89: =SB18e!K121 -> 0 | L89: =SB18e!L121 -> 0 | M89: =SB18e!M121 -> 0
A90: Housing | C90: =SB18e!C133 -> 0 | D90: =SB18e!D133 -> 0 | E90: =SB18e!E133 -> 0 | F90: =SB18e!F133 -> 0 | G90: =SB18e!G133 -> 0 | H90: =SB18e!H133 -> 0 | I90: =SB18e!I133 -> 0 | J90: =SB18e!J133 -> 0 | K90: =SB18e!K133 -> 0 | L90: =SB18e!L133 -> 0 | M90: =SB18e!M133 -> 0
A91: Other Assets | B91: 6 | C91: =SUM(C89:C90) -> 0 | D91: =SUM(D89:D90) -> 0 | E91: 0 | F91: 0 | G91: 0 | H91: 0 | I91: 0 | J91: 0 | K91: 0 | L91: 0 | M91: 0
A92: Biological or Cultivated Assets | C92: =SB18e!C138 -> 0 | D92: =SB18e!D138 -> 0 | E92: =SB18e!E138 -> 0 | F92: =SB18e!F138 -> 0 | G92: =SB18e!G138 -> 0 | H92: =SB18e!H138 -> 0 | I92: =SB18e!I138 -> 0 | J92: =SB18e!J138 -> 0 | K92: =SB18e!K138 -> 0 | L92: =SB18e!L138 -> 0 | M92: =SB18e!M138 -> 0
A93: Servitudes | C93: =SB18e!C142 -> 0 | D93: =SB18e!D142 -> 0 | E93: =SB18e!E142 -> 0 | F93: =SB18e!F142 -> 0 | G93: =SB18e!G142 -> 0 | H93: =SB18e!H142 -> 0 | I93: =SB18e!I142 -> 0 | J93: =SB18e!J142 -> 0 | K93: =SB18e!K142 -> 0 | L93: =SB18e!L142 -> 0 | M93: =SB18e!M142 -> 0
A94: Licences and Rights | C94: =SB18e!C143 -> 0 | D94: =SB18e!D143 -> 0 | E94: =SB18e!E143 -> 0 | F94: =SB18e!F143 -> 0 | G94: =SB18e!G143 -> 0 | H94: =SB18e!H143 -> 0 | I94: =SB18e!I143 -> 0 | J94: =SB18e!J143 -> 0 | K94: =SB18e!K143 -> 0 | L94: =SB18e!L143 -> 0 | M94: =SB18e!M143 -> 0
A95: Intangible Assets | C95: =SUM(C93:C94) -> 0 | D95: =SUM(D93:D94) -> 0 | E95: 0 | F95: 0 | G95: 0 | H95: 0 | I95: 0 | J95: 0 | K95: 0 | L95: 0 | M95: 0
A96: Computer Equipment | C96: =SB18e!C151 -> 0 | D96: =SB18e!D151 -> 0 | E96: =SB18e!E151 -> 0 | F96: =SB18e!F151 -> 0 | G96: =SB18e!G151 -> 0 | H96: =SB18e!H151 -> 0 | I96: =SB18e!I151 -> 0 | J96: =SB18e!J151 -> 0 | K96: =SB18e!K151 -> 0 | L96: =SB18e!L151 -> 0 | M96: =SB18e!M151 -> 0
A97: Furniture and Office Equipment | C97: =SB18e!C154 -> 0 | D97: =SB18e!D154 -> 0 | E97: =SB18e!E154 -> 0 | F97: =SB18e!F154 -> 0 | G97: =SB18e!G154 -> 0 | H97: =SB18e!H154 -> 0 | I97: =SB18e!I154 -> 0 | J97: =SB18e!J154 -> 0 | K97: =SB18e!K154 -> 0 | L97: =SB18e!L154 -> 0 | M97: =SB18e!M154 -> 0
A98: Machinery and Equipment | C98: =SB18e!C157 -> 0 | D98: =SB18e!D157 -> 0 | E98: =SB18e!E157 -> 0 | F98: =SB18e!F157 -> 0 | G98: =SB18e!G157 -> 0 | H98: =SB18e!H157 -> 0 | I98: =SB18e!I157 -> 0 | J98: =SB18e!J157 -> 0 | K98: =SB18e!K157 -> 0 | L98: =SB18e!L157 -> 0 | M98: =SB18e!M157 -> 0
A99: Transport Assets | C99: =SB18e!C160 -> 0 | D99: =SB18e!D160 -> 0 | E99: =SB18e!E160 -> 0 | F99: =SB18e!F160 -> 0 | G99: =SB18e!G160 -> 0 | H99: =SB18e!H160 -> 0 | I99: =SB18e!I160 -> 0 | J99: =SB18e!J160 -> 0 | K99: =SB18e!K160 -> 0 | L99: =SB18e!L160 -> 0 | M99: =SB18e!M160 -> 0
A100: Land | C100: =SB18e!C163 -> 0 | D100: =SB18e!D163 -> 0 | E100: =SB18e!E163 -> 0 | F100: =SB18e!F163 -> 0 | G100: =SB18e!G163 -> 0 | H100: =SB18e!H163 -> 0 | I100: =SB18e!I163 -> 0 | J100: =SB18e!J163 -> 0 | K100: =SB18e!K163 -> 0 | L100: =SB18e!L163 -> 0 | M100: =SB18e!M163 -> 0
A101: Zoo's, Marine and Non-biological Animals | C101: =SB18e!C166 -> 0 | D101: =SB18e!D166 -> 0 | E101: =SB18e!E166 -> 0 | F101: =SB18e!F166 -> 0 | G101: =SB18e!G166 -> 0 | H101: =SB18e!H166 -> 0 | I101: =SB18e!I166 -> 0 | J101: =SB18e!J166 -> 0 | K101: =SB18e!K166 -> 0 | L101: =SB18e!L166 -> 0 | M101: =SB18e!M166 -> 0
A103: Total Capital Expenditure to be adjusted | B103: 4 | C103: =C7+C39+C71 -> 58022400 | D103: =D7+D39+D71 -> 0 | E103: 0 | F103: 0 | G103: 0 | H103: 0 | I103: 5308225 | J103: 5308225 | K103: 63330625 | L103: 72380350 | M103: 65569950
A104: Roads Infrastructure | C104: 44802400 | D104: 0 | E104: 0 | F104: 0 | G104: 0 | H104: 0 | I104: 5206925 | J104: 5206925 | K104: 50009325 | L104: 43880350 | M104: 16388370
A105: Storm water Infrastructure | C105: 0 | D105: 0 | E105: 0 | F105: 0 | G105: 0 | H105: 0 | I105: 0 | J105: 0 | K105: 0 | L105: 0 | M105: 0
A106: Electrical Infrastructure | C106: 4550000 | D106: 0 | E106: 0 | F106: 0 | G106: 0 | H106: 0 | I106: 3680151 | J106: 3680151 | K106: 8230151 | L106: 19168000 | M106: 15060000
A107: Water Supply Infrastructure | C107: 0 | D107: 0 | E107: 0 | F107: 0 | G107: 0 | H107: 0 | I107: 0 | J107: 0 | K107: 0 | L107: 0 | M107: 0
A108: Sanitation Infrastructure | C108: 0 | D108: 0 | E108: 0 | F108: 0 | G108: 0 | H108: 0 | I108: 0 | J108: 0 | K108: 0 | L108: 0 | M108: 0
A109: Solid Waste Infrastructure | C109: 0 | D109: 0 | E109: 0 | F109: 0 | G109: 0 | H109: 0 | I109: 0 | J109: 0 | K109: 0 | L109: 0 | M109: 0
A110: Rail Infrastructure | C110: 0 | D110: 0 | E110: 0 | F110: 0 | G110: 0 | H110: 0 | I110: 0 | J110: 0 | K110: 0 | L110: 0 | M110: 0
A111: Coastal Infrastructure | C111: 0 | D111: 0 | E111: 0 | F111: 0 | G111: 0 | H111: 0 | I111: 0 | J111: 0 | K111: 0 | L111: 0 | M111: 0
A112: Information and Communication Infrastructure | C112: 0 | D112: 0 | E112: 0 | F112: 0 | G112: 0 | H112: 0 | I112: 0 | J112: 0 | K112: 0 | L112: 0 | M112: 0
A113: Infrastructure | C113: 49352400 | D113: 0 | E113: 0 | F113: 0 | G113: 0 | H113: 0 | I113: 8887076 | J113: 8887076 | K113: 58239476 | L113: 63048350 | M113: 31448370
A114: Community Facilities | C114: 0 | D114: 0 | E114: 0 | F114: 0 | G114: 0 | H114: 0 | I114: 0 | J114: 0 | K114: 0 | L114: 0 | M114: 14835790
A115: Sport and Recreation Facilities | C115: 0 | D115: 0 | E115: 0 | F115: 0 | G115: 0 | H115: 0 | I115: 0 | J115: 0 | K115: 0 | L115: 2300000 | M115: 14835790
A116: Community Assets | C116: 0 | D116: 0 | E116: 0 | F116: 0 | G116: 0 | H116: 0 | I116: 0 | J116: 0 | K116: 0 | L116: 2300000 | M116: 29671580
A117: Heritage Assets | C117: 0 | D117: 0 | E117: 0 | F117: 0 | G117: 0 | H117: 0 | I117: 0 | J117: 0 | K117: 0 | L117: 0 | M117: 0
A118: Revenue Generating | C118: 0 | D118: 0 | E118: 0 | F118: 0 | G118: 0 | H118: 0 | I118: 0 | J118: 0 | K118: 0 | L118: 0 | M118: 0
A119: Non-revenue Generating | C119: 0 | D119: =D23+D55+D87 -> 0 | E119: 0 | F119: 0 | G119: 0 | H119: 0 | I119: 0 | J119: 0 | K119: 0 | L119: 0 | M119: 0
A120: Investment properties | C120: =C24+C56+C88 -> 0 | D120: 0 | E120: 0 | F120: 0 | G120: 0 | H120: 0 | I120: 0 | J120: 0 | K120: 0 | L120: 0 | M120: 0
A121: Operational Buildings | C121: 2000000 | D121: 0 | E121: 0 | F121: 0 | G121: 0 | H121: 0 | I121: -2000000 | J121: -2000000 | K121: 0 | L121: 200000 | M121: 2750000
A122: Housing | C122: 0 | D122: 0 | E122: 0 | F122: 0 | G122: 0 | H122: 0 | I122: 0 | J122: 0 | K122: 0 | L122: 0 | M122: 0
A123: Other Assets | C123: 2000000 | D123: 0 | E123: 0 | F123: 0 | G123: 0 | H123: 0 | I123: -2000000 | J123: -2000000 | K123: 0 | L123: 200000 | M123: 2750000
A124: Biological or Cultivated Assets | C124: 0 | D124: 0 | E124: 0 | F124: 0 | G124: 0 | H124: 0 | I124: 0 | J124: 0 | K124: 0 | L124: 0 | M124: 0
A125: Servitudes | C125: 0 | D125: 0 | E125: 0 | F125: 0 | G125: 0 | H125: 0 | I125: 0 | J125: 0 | K125: 0 | L125: 0 | M125: 0
A126: Licences and Rights | C126: 0 | D126: 0 | E126: 0 | F126: 0 | G126: 0 | H126: 0 | I126: 0 | J126: 0 | K126: 0 | L126: 1500000 | M126: 0
A127: Intangible Assets | C127: 0 | D127: 0 | E127: 0 | F127: 0 | G127: 0 | H127: 0 | I127: 0 | J127: 0 | K127: 0 | L127: 1500000 | M127: 0
A128: Computer Equipment | C128: 2900000 | D128: 0 | E128: 0 | F128: 0 | G128: 0 | H128: 0 | I128: -666151 | J128: -666151 | K128: 2233849 | L128: 2000000 | M128: 0
A129: Furniture and Office Equipment | C129: 700000 | D129: 0 | E129: 0 | F129: 0 | G129: 0 | H129: 0 | I129: -542700 | J129: -542700 | K129: 157300 | L129: 900000 | M129: 200000
A130: Machinery and Equipment | C130: 870000 | D130: 0 | E130: 0 | F130: 0 | G130: 0 | H130: 0 | I130: -340000 | J130: -340000 | K130: 530000 | L130: 1432000 | M130: 0
A131: Transport Assets | C131: 2200000 | D131: 0 | E131: 0 | F131: 0 | G131: 0 | H131: 0 | I131: -30000 | J131: -30000 | K131: 2170000 | L131: 1000000 | M131: 1500000
A132: Land | C132: 0 | D132: 0 | E132: 0 | F132: 0 | G132: 0 | H132: 0 | I132: 0 | J132: 0 | K132: 0 | L132: 0 | M132: 0
A133: Zoo's, Marine and Non-biological Animals | C133: 0 | D133: 0 | E133: 0 | F133: 0 | G133: 0 | H133: 0 | I133: 0 | J133: 0 | K133: 0 | L133: 0 | M133: 0
A134: TOTAL CAPITAL EXPENDITURE to be adjusted | B134: 4 | C134: =C7+C39+C71 -> 58022400 | D134: =D7+D39+D71 -> 0 | E134: 0 | F134: 0 | G134: 0 | H134: 0 | I134: 5308225 | J134: 5308225 | K134: 63330625 | L134: 72380350 | M134: 65569950
A136: ASSET REGISTER SUMMARY - PPE (WDV) | B136: 5 | C136: =C146+C149+C150+C153+C156+C157+SUM(C160:C166) -> 339958165 | D136: =D146+D149+D150+D153+D156+D157+SUM(D160:D166) -> 0 | E136: 0 | F136: 0 | G136: 0 | H136: 0 | I136: 4248225 | J136: 4248225 | K136: 344206390 | L136: 386848553 | M136: 394324847
A137: =+A8 -> Roads Infrastructure | C137: 171158681 | D137: 0 | E137: 0 | F137: 0 | G137: 0 | H137: 0 | I137: 5206925 | J137: =SUM(E137:I137) -> 5206925 | K137: =IF(D137=0,C137+J137,D137+J137) -> 176365606 | L137: 200047330 | M137: 178863698
A138: =+A9 -> Storm water Infrastructure | C138: 0 | D138: 0 | E138: 0 | F138: 0 | G138: 0 | H138: 0 | I138: 0 | J138: 0 | K138: =IF(D138=0,C138+J138,D138+J138) -> 0 | L138: 913044 | M138: 958696
A139: Electrical Infrastructure | C139: 29490389 | D139: 0 | E139: 0 | F139: 0 | G139: 0 | H139: 0 | I139: 3680151 | J139: 3680151 | K139: =IF(D139=0,C139+J139,D139+J139) -> 33170540 | L139: 37410618 | M139: 34214749
A140: Water Supply Infrastructure | J140: 0 | K140: =IF(D140=0,C140+J140,D140+J140) -> 0
A141: Sanitation Infrastructure | J141: 0 | K141: =IF(D141=0,C141+J141,D141+J141) -> 0
A142: Solid Waste Infrastructure | C142: 0 | D142: 0 | E142: 0 | F142: 0 | G142: 0 | H142: 0 | I142: 0 | J142: 0 | K142: 0 | L142: 0 | M142: 0
A143: Rail Infrastructure | J143: 0 | K143: 0
A144: Coastal Infrastructure | J144: 0 | K144: 0
A145: Information and Communication Infrastructure | J145: 0 | K145: 0
A146: Infrastructure | C146: =SUM(C137:C145) -> 200649070 | D146: 0 | E146: 0 | F146: 0 | G146: 0 | H146: 0 | I146: 8887076 | J146: 8887076 | K146: 209536146 | L146: =SUM(L137:L145) -> 238370992 | M146: =SUM(M137:M145) -> 214037143
A149: Community Assets | C149: 58085613 | D149: 0 | E149: 0 | F149: 0 | G149: 0 | H149: 0 | I149: 0 | J149: =SUM(E149:I149) -> 0 | K149: =IF(D149=0,C149+J149,D149+J149) -> 58085613 | L149: 60470306 | M149: 90750404
A150: Heritage Assets | C150: 368150 | D150: 0 | E150: 0 | F150: 0 | G150: 0 | H150: 0 | I150: 40000 | J150: =SUM(E150:I150) -> 40000 | K150: 408150 | L150: 428558 | M150: 449986
A153: Investment properties | C153: 1755951 | D153: 0 | E153: 0 | F153: 0 | G153: 0 | H153: 0 | I153: 0 | J153: =SUM(E153:I153) -> 0 | K153: =IF(D153=0,C153+J153,D153+J153) -> 1755951 | L153: 1843748 | M153: 1935935
A156: Other Assets | C156: 28727974 | D156: 0 | E156: 0 | F156: 0 | G156: 0 | H156: 0 | I156: -2000000 | J156: =SUM(E156:I156) -> -2000000 | K156: =IF(D156=0,C156+J156,D156+J156) -> 26727974 | L156: 26990393 | M156: 30879909
A157: Biological or Cultivated Assets | J157: =SUM(E157:I157) -> 0 | K157: =IF(D157=0,C157+J157,D157+J157) -> 0
A160: Intangible Assets | C160: 1037819 | D160: 0 | E160: 0 | F160: 0 | G160: 0 | H160: 0 | I160: 0 | J160: =SUM(E160:I160) -> 0 | K160: =IF(D160=0,C160+J160,D160+J160) -> 1037819 | L160: 2765623 | M160: 1392189
A161: Computer Equipment | C161: 7795313 | D161: 0 | E161: 0 | F161: 0 | G161: 0 | H161: 0 | I161: -666151 | J161: =SUM(E161:I161) -> -666151 | K161: =IF(D161=0,C161+J161,D161+J161) -> 7129162 | L161: 6574333 | M161: 4803052
A162: Furniture and Office Equipment | C162: 1556461 | D162: 0 | E162: 0 | F162: 0 | G162: 0 | H162: 0 | I162: -542700 | J162: -542700 | K162: 1013761 | L162: 651714 | M162: -60700
A163: Machinery and Equipment | C163: 9178145 | D163: 0 | E163: 0 | F163: 0 | G163: 0 | H163: 0 | I163: -340000 | J163: -340000 | K163: 8838145 | L163: 10348268 | M163: 9362081
A164: Transport Assets | C164: 12014950 | D164: 0 | E164: 0 | F164: 0 | G164: 0 | H164: 0 | I164: -1130000 | J164: -1130000 | K164: 10884950 | L164: 11391447 | M164: 12411019
A165: Land | C165: 18788719 | D165: 0 | E165: 0 | F165: 0 | G165: 0 | H165: 0 | I165: 0 | J165: 0 | K165: 18788719 | L165: 27013171 | M165: 28363829
A166: Zoo's, Marine and Non-biological Animals | J166: 0 | K166: 0
A167: TOTAL ASSET REGISTER SUMMARY - PPE (WDV) | B167: 5 | C167: =C146+C149+C150+C153+C156+C157+SUM(C160:C166) -> 339958165 | D167: =D146+D149+D150+D153+D156+D157+SUM(D160:D166) -> 0 | E167: 0 | F167: 0 | G167: 0 | H167: 0 | I167: 4248225 | J167: 4248225 | K167: 344206390 | L167: 386848553 | M167: 394324847
A169: EXPENDITURE OTHER ITEMS
A170: Depreciation & asset impairment | C170: =SB18d!C169 -> 19813041 | D170: =SB18d!D169 -> 0 | E170: =SB18d!E169 -> 0 | F170: =SB18d!F169 -> 0 | G170: =SB18d!G169 -> 0 | H170: =SB18d!H169 -> 0 | I170: =SB18d!I169 -> 0 | J170: =SB18d!J169 -> 0 | K170: =SB18d!K169 -> 19813041 | L170: =SB18d!L169 -> 22082155 | M170: =SB18d!M169 -> 23186308
A171: Repairs and Maintenance by asset class | B171: 3 | C171: =C181+C184+C185+C188+C191+C192+SUM(C195:C201) -> 15144089 | D171: =D181+D184+D185+D188+D191+D192+SUM(D195:D201) -> 0 | E171: =E181+E184+E185+E188+E191+E192+SUM(E195:E201) -> 0 | F171: =F181+F184+F185+F188+F191+F192+SUM(F195:F201) -> 0 | G171: 0 | H171: 0 | I171: -571277 | J171: -571277 | K171: 14572812 | L171: =L181+L184+L185+L188+L191+L192+SUM(L195:L201) -> 15630000 | M171: =M181+M184+M185+M188+M191+M192+SUM(M195:M201) -> 16361500
A172: =+A8 -> Roads Infrastructure | C172: =SB18c!C9 -> 5416794 | D172: =SB18c!D9 -> 0 | E172: =SB18c!E9 -> 0 | F172: =SB18c!F9 -> 0 | G172: =SB18c!G9 -> 0 | H172: =SB18c!H9 -> 0 | I172: =SB18c!I9 -> 540000 | J172: =SB18c!J9 -> 540000 | K172: =SB18c!K9 -> 5956794 | L172: =SB18c!L9 -> 6380000 | M172: =SB18c!M9 -> 6699000
A173: =+A9 -> Storm water Infrastructure | C173: =SB18c!C14 -> 0 | D173: =SB18c!D14 -> 0 | E173: =SB18c!E14 -> 0 | F173: =SB18c!F14 -> 0 | G173: =SB18c!G14 -> 0 | H173: =SB18c!H14 -> 0 | I173: =SB18c!I14 -> 0 | J173: =SB18c!J14 -> 0 | K173: =SB18c!K14 -> 0 | L173: =SB18c!L14 -> 0 | M173: =SB18c!M14 -> 0
A174: Electrical Infrastructure | C174: =SB18c!C18 -> 0 | D174: =SB18c!D18 -> 0 | E174: =SB18c!E18 -> 0 | F174: =SB18c!F18 -> 0 | G174: =SB18c!G18 -> 0 | H174: =SB18c!H18 -> 0 | I174: =SB18c!I18 -> 0 | J174: =SB18c!J18 -> 0 | K174: =SB18c!K18 -> 0 | L174: =SB18c!L18 -> 0 | M174: =SB18c!M18 -> 0
A175: Water Supply Infrastructure | C175: =SB18c!C28 -> 0 | D175: =SB18c!D28 -> 0 | E175: =SB18c!E28 -> 0 | F175: =SB18c!F28 -> 0 | G175: =SB18c!G28 -> 0 | H175: =SB18c!H28 -> 0 | I175: =SB18c!I28 -> 0 | J175: =SB18c!J28 -> 0 | K175: =SB18c!K28 -> 0 | L175: =SB18c!L28 -> 0 | M175: =SB18c!M28 -> 0
A176: Sanitation Infrastructure | C176: =SB18c!C39 -> 0 | D176: =SB18c!D39 -> 0 | E176: =SB18c!E39 -> 0 | F176: =SB18c!F39 -> 0 | G176: =SB18c!G39 -> 0 | H176: =SB18c!H39 -> 0 | I176: =SB18c!I39 -> 0 | J176: =SB18c!J39 -> 0 | K176: =SB18c!K39 -> 0 | L176: =SB18c!L39 -> 0 | M176: =SB18c!M39 -> 0
A177: Solid Waste Infrastructure | C177: =SB18c!C46 -> 0 | D177: =SB18c!D46 -> 0 | E177: =SB18c!E46 -> 0 | F177: =SB18c!F46 -> 0 | G177: =SB18c!G46 -> 0 | H177: =SB18c!H46 -> 0 | I177: =SB18c!I46 -> 0 | J177: =SB18c!J46 -> 0 | K177: =SB18c!K46 -> 0 | L177: =SB18c!L46 -> 0 | M177: =SB18c!M46 -> 0
A178: Rail Infrastructure | C178: =SB18c!C54 -> 0 | D178: =SB18c!D54 -> 0 | E178: =SB18c!E54 -> 0 | F178: =SB18c!F54 -> 0 | G178: =SB18c!G54 -> 0 | H178: =SB18c!H54 -> 0 | I178: =SB18c!I54 -> 0 | J178: =SB18c!J54 -> 0 | K178: =SB18c!K54 -> 0 | L178: =SB18c!L54 -> 0 | M178: =SB18c!M54 -> 0
A179: Coastal Infrastructure | C179: =SB18c!C64 -> 0 | D179: =SB18c!D64 -> 0 | E179: =SB18c!E64 -> 0 | F179: =SB18c!F64 -> 0 | G179: =SB18c!G64 -> 0 | H179: =SB18c!H64 -> 0 | I179: =SB18c!I64 -> 0 | J179: =SB18c!J64 -> 0 | K179: =SB18c!K64 -> 0 | L179: =SB18c!L64 -> 0 | M179: =SB18c!M64 -> 0
A180: Information and Communication Infrastructure | C180: =SB18c!C70 -> 0 | D180: =SB18c!D70 -> 0 | E180: =SB18c!E70 -> 0 | F180: =SB18c!F70 -> 0 | G180: =SB18c!G70 -> 0 | H180: =SB18c!H70 -> 0 | I180: =SB18c!I70 -> 0 | J180: =SB18c!J70 -> 0 | K180: =SB18c!K70 -> 0 | L180: =SB18c!L70 -> 0 | M180: =SB18c!M70 -> 0
A181: Infrastructure | C181: =SUM(C172:C180) -> 5416794 | D181: =SUM(D172:D180) -> 0 | E181: 0 | F181: 0 | G181: 0 | H181: 0 | I181: 540000 | J181: 540000 | K181: 5956794 | L181: 6380000 | M181: 6699000
A182: Community Facilities | C182: =SB18c!C77 -> 800000 | D182: =SB18c!D77 -> 0 | E182: =SB18c!E77 -> 0 | F182: =SB18c!F77 -> 0 | G182: =SB18c!G77 -> 0 | H182: =SB18c!H77 -> 0 | I182: =SB18c!I77 -> -600000 | J182: =SB18c!J77 -> -600000 | K182: =SB18c!K77 -> 200000 | L182: =SB18c!L77 -> 700000 | M182: =SB18c!M77 -> 735000
A183: Sport and Recreation Facilities | C183: =SB18c!C100 -> 0 | D183: =SB18c!D100 -> 0 | E183: =SB18c!E100 -> 0 | F183: =SB18c!F100 -> 0 | G183: =SB18c!G100 -> 0 | H183: =SB18c!H100 -> 0 | I183: =SB18c!I100 -> 0 | J183: =SB18c!J100 -> 0 | K183: =SB18c!K100 -> 0 | L183: =SB18c!L100 -> 200000 | M183: =SB18c!M100 -> 210000
A184: Community Assets | C184: =SUM(C182:C183) -> 800000 | D184: =SUM(D182:D183) -> 0 | E184: 0 | F184: 0 | G184: 0 | H184: 0 | I184: -600000 | J184: -600000 | K184: 200000 | L184: 900000 | M184: 945000
A185: Heritage Assets | C185: =SB18c!C105 -> 0 | D185: =SB18c!D105 -> 0 | E185: =SB18c!E105 -> 0 | F185: =SB18c!F105 -> 0 | G185: =SB18c!G105 -> 0 | H185: =SB18c!H105 -> 0 | I185: =SB18c!I105 -> 0 | J185: =SB18c!J105 -> 0 | K185: =SB18c!K105 -> 0 | L185: =SB18c!L105 -> 0 | M185: =SB18c!M105 -> 0
A186: Revenue Generating | C186: =SB18c!C113 -> 0 | D186: =SB18c!D113 -> 0 | E186: =SB18c!E113 -> 0 | F186: =SB18c!F113 -> 0 | G186: =SB18c!G113 -> 0 | H186: =SB18c!H113 -> 0 | I186: =SB18c!I113 -> 0 | J186: =SB18c!J113 -> 0 | K186: =SB18c!K113 -> 0 | L186: =SB18c!L113 -> 0 | M186: =SB18c!M113 -> 0
A187: Non-revenue Generating | C187: =SB18c!C116 -> 0 | D187: =SB18c!D116 -> 0 | E187: =SB18c!E116 -> 0 | F187: =SB18c!F116 -> 0 | G187: =SB18c!G116 -> 0 | H187: =SB18c!H116 -> 0 | I187: =SB18c!I116 -> 0 | J187: =SB18c!J116 -> 0 | K187: =SB18c!K116 -> 0 | L187: =SB18c!L116 -> 0 | M187: =SB18c!M116 -> 0
A188: Investment properties | C188: =SUM(C186:C187) -> 0 | D188: =SUM(D186:D187) -> 0 | E188: 0 | F188: 0 | G188: 0 | H188: 0 | I188: 0 | J188: 0 | K188: 0 | L188: 0 | M188: 0
A189: Operational Buildings | C189: =SB18c!C121 -> 1300000 | D189: =SB18c!D121 -> 0 | E189: =SB18c!E121 -> 0 | F189: =SB18c!F121 -> 0 | G189: =SB18c!G121 -> 0 | H189: =SB18c!H121 -> 0 | I189: =SB18c!I121 -> 0 | J189: =SB18c!J121 -> 0 | K189: =SB18c!K121 -> 1300000 | L189: =SB18c!L121 -> 1100000 | M189: =SB18c!M121 -> 1155000
A190: Housing | C190: =SB18c!C133 -> 0 | D190: =SB18c!D133 -> 0 | E190: =SB18c!E133 -> 0 | F190: =SB18c!F133 -> 0 | G190: =SB18c!G133 -> 0 | H190: =SB18c!H133 -> 0 | I190: =SB18c!I133 -> 0 | J190: =SB18c!J133 -> 0 | K190: =SB18c!K133 -> 0 | L190: =SB18c!L133 -> 0 | M190: =SB18c!M133 -> 0
A191: Other Assets | C191: =SUM(C189:C190) -> 1300000 | D191: =SUM(D189:D190) -> 0 | E191: 0 | F191: 0 | G191: 0 | H191: 0 | I191: 0 | J191: 0 | K191: 1300000 | L191: 1100000 | M191: 1155000
A192: Biological or Cultivated Assets | C192: =SB18c!C138 -> 0 | D192: =SB18c!D138 -> 0 | E192: =SB18c!E138 -> 0 | F192: =SB18c!F138 -> 0 | G192: =SB18c!G138 -> 0 | H192: =SB18c!H138 -> 0 | I192: =SB18c!I138 -> 0 | J192: =SB18c!J138 -> 0 | K192: =SB18c!K138 -> 0 | L192: =SB18c!L138 -> 0 | M192: =SB18c!M138 -> 0
A193: Servitudes | C193: =SB18c!C142 -> 0 | D193: =SB18c!D142 -> 0 | E193: =SB18c!E142 -> 0 | F193: =SB18c!F142 -> 0 | G193: =SB18c!G142 -> 0 | H193: =SB18c!H142 -> 0 | I193: =SB18c!I142 -> 0 | J193: =SB18c!J142 -> 0 | K193: =SB18c!K142 -> 0 | L193: =SB18c!L142 -> 0 | M193: =SB18c!M142 -> 0
A194: Licences and Rights | C194: =SB18c!C143 -> 0 | D194: =SB18c!D143 -> 0 | E194: =SB18c!E143 -> 0 | F194: =SB18c!F143 -> 0 | G194: =SB18c!G143 -> 0 | H194: =SB18c!H143 -> 0 | I194: =SB18c!I143 -> 0 | J194: =SB18c!J143 -> 0 | K194: =SB18c!K143 -> 0 | L194: =SB18c!L143 -> 0 | M194: =SB18c!M143 -> 0
A195: Intangible Assets | C195: =SUM(C193:C194) -> 0 | D195: =SUM(D193:D194) -> 0 | E195: 0 | F195: 0 | G195: 0 | H195: 0 | I195: 0 | J195: 0 | K195: 0 | L195: 0 | M195: 0
A196: Computer Equipment | C196: =SB18c!C151 -> 2359325 | D196: =SB18c!D151 -> 0 | E196: =SB18c!E151 -> 0 | F196: =SB18c!F151 -> 0 | G196: =SB18c!G151 -> 0 | H196: =SB18c!H151 -> 0 | I196: =SB18c!I151 -> -211277 | J196: =SB18c!J151 -> -211277 | K196: =SB18c!K151 -> 2148048 | L196: =SB18c!L151 -> 1850000 | M196: =SB18c!M151 -> 1892500
A197: Furniture and Office Equipment | C197: =SB18c!C154 -> 209600 | D197: =SB18c!D154 -> 0 | E197: =SB18c!E154 -> 0 | F197: =SB18c!F154 -> 0 | G197: =SB18c!G154 -> 0 | H197: =SB18c!H154 -> 0 | I197: =SB18c!I154 -> 0 | J197: =SB18c!J154 -> 0 | K197: =SB18c!K154 -> 209600 | L197: =SB18c!L154 -> 300000 | M197: =SB18c!M154 -> 315000
A198: Machinery and Equipment | C198: =SB18c!C157 -> 3277243 | D198: =SB18c!D157 -> 0 | E198: =SB18c!E157 -> 0 | F198: =SB18c!F157 -> 0 | G198: =SB18c!G157 -> 0 | H198: =SB18c!H157 -> 0 | I198: =SB18c!I157 -> 0 | J198: =SB18c!J157 -> 0 | K198: =SB18c!K157 -> 3277243 | L198: =SB18c!L157 -> 4100000 | M198: =SB18c!M157 -> 4305000
A199: Transport Assets | C199: =SB18c!C160 -> 1781127 | D199: =SB18c!D160 -> 0 | E199: =SB18c!E160 -> 0 | F199: =SB18c!F160 -> 0 | G199: =SB18c!G160 -> 0 | H199: =SB18c!H160 -> 0 | I199: =SB18c!I160 -> -300000 | J199: =SB18c!J160 -> -300000 | K199: =SB18c!K160 -> 1481127 | L199: =SB18c!L160 -> 1000000 | M199: =SB18c!M160 -> 1050000
A200: Land | C200: =SB18c!C163 -> 0 | D200: =SB18c!D163 -> 0 | E200: =SB18c!E163 -> 0 | F200: =SB18c!F163 -> 0 | G200: =SB18c!G163 -> 0 | H200: =SB18c!H163 -> 0 | I200: =SB18c!I163 -> 0 | J200: =SB18c!J163 -> 0 | K200: =SB18c!K163 -> 0 | L200: =SB18c!L163 -> 0 | M200: =SB18c!M163 -> 0
A201: Zoo's, Marine and Non-biological Animals | B201: 6 | C201: =SB18c!C166 -> 0 | D201: =SB18c!D166 -> 0 | E201: =SB18c!E166 -> 0 | F201: =SB18c!F166 -> 0 | G201: =SB18c!G166 -> 0 | H201: =SB18c!H166 -> 0 | I201: =SB18c!I166 -> 0 | J201: =SB18c!J166 -> 0 | K201: =SB18c!K166 -> 0 | L201: =SB18c!L166 -> 0 | M201: =SB18c!M166 -> 0
A202: TOTAL EXPENDITURE OTHER ITEMS to be adjusted | C202: =+C170+C171 -> 34957130 | D202: =+D170+D171 -> 0 | E202: 0 | F202: 0 | G202: 0 | H202: 0 | I202: -571277 | J202: -571277 | K202: 34385853 | L202: 37712155 | M202: 39547808
A204: Renewal and upgrading of Existing Assets as % of total capex | C204: =IF(ISERROR((C39+C71)/C134),0,((C39+C71)/C134)) -> 0.2070645303 | D204: =IF(ISERROR((D39+D71)/D134),0,((D39+D71)/D134)) -> 0 | K204: =IF(ISERROR((K39+K71)/K134),0,((K39+K71)/K134)) -> 0.1897088652 | L204: =IF(ISERROR((L39+L71)/L134),0,((L39+L71)/L134)) -> 0.2167110134 | M204: =IF(ISERROR((M39+M71)/M134),0,((M39+M71)/M134)) -> 0.2262589799
A205: Renewal and upgrading of Existing Assets as % of deprecn" | C205: =IF(ISERROR((C39+C71)/C170),0,((C39+C71)/C170)) -> 0.6063875303 | D205: =IF(ISERROR((D39+D71)/D170),0,((D39+D71)/D170)) -> 0 | K205: =IF(ISERROR((K39+K71)/K170),0,((K39+K71)/K170)) -> 0.6063875303 | L205: =IF(ISERROR((L39+L71)/L170),0,((L39+L71)/L170)) -> 0.7103300833 | M205: =IF(ISERROR((M39+M71)/M170),0,((M39+M71)/M170)) -> 0.6398513295
A206: R&M as a % of PPE | C206: =IF(ISERROR(C171/C167),0,(C171/C167)) -> 0.04454691947 | D206: =IF(ISERROR(D171/D167),0,(D171/D167)) -> 0 | K206: =IF(ISERROR(K171/K167),0,(K171/K167)) -> 0.04233742436 | L206: =IF(ISERROR(L171/L167),0,(L171/L167)) -> 0.0404034082 | M206: =IF(ISERROR(M171/M167),0,(M171/M167)) -> 0.04149243986
A207: Renewal and upgrading and R&M as a % of PPE | C207: =IF(ISERROR((C39+C71+C171)/C167),0,((C39+C71+C171)/C167)) -> 0.07988768265 | D207: =IF(ISERROR((D39+D71+D171)/D167),0,((D39+D71+D171)/D167)) -> 0 | K207: =IF(ISERROR((K39+K71+K171)/K167),0,((K39+K71+K171)/K167)) -> 0.07724200878 | L207: =IF(ISERROR((L39+L71+L171)/L167),0,((L39+L71+L171)/L167)) -> 0.08095059102 | M207: =IF(ISERROR((M39+M71+M171)/M167),0,((M39+M71+M171)/M167)) -> 0.07911570939
A209: =head27a -> References
A210: 1. Detail of new assets provided in Table SB18a
A211: 2. Detail of renewal of existing assets provided in Table SB18b
A212: 2a. Detail of upgrading of existing assets provided in Table SB18e
A213: 3. Detail of Repairs and Maintenance by Asset Class provided in Table SB18c
A214: 4. Must reconcile to total capital expenditure on Budgeted Capital Expenditure
A215: 5. Must reconcile to Adjustments Budget Financial Position (written down value)
... 10 more rows

Sheet B10-SerDel
A1: =muni&" - "&_ADJ10&" - "&Date -> LIM353 Molemole - Table B10 Basic service delivery measurement - 14/07/2023
A2: =desc -> Description | B2: =head27 -> Ref | C2: =Head2 -> Budget Year 2022/23 | L2: =Head10 -> Budget Year +1 2023/24 | M2: =Head11 -> Budget Year +2 2024/25
C3: =Head6 -> Original Budget | D3: =Head54 -> Prior Adjusted | E3: =Head51 -> Accum. Funds | F3: =Head52 -> Multi-year capital | G3: =Head53 -> Unfore. Unavoid. | H3: =Head55 -> Nat. or Prov. Govt | I3: =Head50 -> Other Adjusts. | J3: =Head56 -> Total Adjusts. | K3: =Head7 -> Adjusted Budget | L3: =Head7 -> Adjusted Budget | M3: =Head7 -> Adjusted Budget
D4: 7 | E4: 8 | F4: 9 | G4: 10 | H4: 11 | I4: 12 | J4: 13 | K4: 14
C5: A | D5: A1 | E5: B | F5: C | G5: D | H5: E | I5: F | J5: G | K5: H
A6: Household service targets | B6: 1
A7: Water:
A8: Piped water inside dwelling | C8: 0 | D8: 0 | E8: 0 | F8: 0 | G8: 0 | H8: 0 | I8: 0 | J8: =SUM(E8:I8) -> 0 | K8: =IF(D8=0,C8+J8,D8+J8) -> 0 | L8: 0 | M8: 0
A9: Piped water inside yard (but not in dwelling) | J9: 0 | K9: 0
A10: Using public tap (at least min.service level) | B10: 2 | J10: 0 | K10: 0
A11: Other water supply (at least min.service level) | J11: 0 | K11: 0
A12: Minimum Service Level and Above sub-total | C12: =SUM(C8:C11) -> 0 | D12: 0 | E12: 0 | F12: 0 | G12: 0 | H12: 0 | I12: 0 | J12: 0 | K12: 0 | L12: 0 | M12: 0
A13: Using public tap (< min.service level) | B13: 3 | J13: 0 | K13: 0
A14: Other water supply (< min.service level) | B14: 3,4 | J14: 0 | K14: 0
A15: No water supply | J15: 0 | K15: 0
A16: Below Minimum Servic Level sub-total | C16: =SUM(C13:C15) -> 0 | D16: 0 | E16: 0 | F16: 0 | G16: 0 | H16: 0 | I16: 0 | J16: 0 | K16: 0 | L16: 0 | M16: 0
A17: Total number of households | B17: 5 | C17: =C12+C16 -> 0 | D17: 0 | E17: 0 | F17: 0 | G17: 0 | H17: 0 | I17: 0 | J17: 0 | K17: 0 | L17: 0 | M17: 0
A18: Sanitation/sewerage:
A19: Flush toilet (connected to sewerage) | J19: =SUM(E19:I19) -> 0 | K19: =IF(D19=0,C19+J19,D19+J19) -> 0
A20: Flush toilet (with septic tank) | J20: 0 | K20: 0
A21: Chemical toilet | J21: 0 | K21: 0
A22: Pit toilet (ventilated) | J22: 0 | K22: 0
A23: Other toilet provisions (> min.service level) | J23: 0 | K23: 0
A24: =$A$12 -> Minimum Service Level and Above sub-total | C24: =SUM(C19:C23) -> 0 | D24: 0 | E24: 0 | F24: 0 | G24: 0 | H24: 0 | I24: 0 | J24: 0 | K24: 0 | L24: 0 | M24: 0
A25: Bucket toilet | J25: 0 | K25: 0
A26: Other toilet provisions (< min.service level) | J26: 0 | K26: 0
A27: No toilet provisions | J27: 0 | K27: 0
A28: =$A$16 -> Below Minimum Servic Level sub-total | C28: =SUM(C25:C27) -> 0 | D28: 0 | E28: 0 | F28: 0 | G28: 0 | H28: 0 | I28: 0 | J28: 0 | K28: 0 | L28: 0 | M28: 0
A29: =$A$17 -> Total number of households | B29: =$B$17 -> 5 | C29: =C24+C28 -> 0 | D29: 0 | E29: 0 | F29: 0 | G29: 0 | H29: 0 | I29: 0 | J29: 0 | K29: 0 | L29: 0 | M29: 0
A30: Energy:
A31: Electricity (at least min. service level) | J31: =SUM(E31:I31) -> 0 | K31: =IF(D31=0,C31+J31,D31+J31) -> 0
A32: Electricity - prepaid (> min.service level) | J32: 0 | K32: 0
A33: =$A$12 -> Minimum Service Level and Above sub-total | C33: =SUM(C31:C32) -> 0 | D33: 0 | E33: 0 | F33: 0 | G33: 0 | H33: 0 | I33: 0 | J33: 0 | K33: 0 | L33: 0 | M33: 0
A34: Electricity (< min.service level) | J34: 0 | K34: 0
A35: Electricity - prepaid (< min. service level) | J35: 0 | K35: 0
A36: Other energy sources | J36: 0 | K36: 0
A37: =$A$16 -> Below Minimum Servic Level sub-total | C37: =SUM(C34:C36) -> 0 | D37: 0 | E37: 0 | F37: 0 | G37: 0 | H37: 0 | I37: 0 | J37: 0 | K37: 0 | L37: 0 | M37: 0
A38: =$A$17 -> Total number of households | B38: =$B$17 -> 5 | C38: =C33+C37 -> 0 | D38: 0 | E38: 0 | F38: 0 | G38: 0 | H38: 0 | I38: 0 | J38: 0 | K38: 0 | L38: 0 | M38: 0
A39: Refuse:
A40: Removed at least once a week (min.service) | J40: =SUM(E40:I40) -> 0 | K40: =IF(D40=0,C40+J40,D40+J40) -> 0
A41: =$A$12 -> Minimum Service Level and Above sub-total | C41: =SUM(C40) -> 0 | D41: 0 | E41: 0 | F41: 0 | G41: 0 | H41: 0 | I41: 0 | J41: =SUM(E41:I41) -> 0 | K41: 0 | L41: =SUM(L40) -> 0 | M41: =SUM(M40) -> 0
A42: Removed less frequently than once a week | J42: 0 | K42: 0
A43: Using communal refuse dump | J43: 0 | K43: 0
A44: Using own refuse dump | J44: 0 | K44: 0
A45: Other rubbish disposal | J45: 0 | K45: 0
A46: No rubbish disposal | J46: 0 | K46: 0
A47: =$A$16 -> Below Minimum Servic Level sub-total | C47: =SUM(C42:C46) -> 0 | D47: 0 | E47: 0 | F47: 0 | G47: 0 | H47: 0 | I47: 0 | J47: 0 | K47: 0 | L47: 0 | M47: 0
A48: =$A$17 -> Total number of households | B48: =$B$17 -> 5 | C48: =C41+C47 -> 0 | D48: 0 | E48: 0 | F48: 0 | G48: 0 | H48: 0 | I48: 0 | J48: =J40+J47 -> 0 | K48: =K40+K47 -> 0 | L48: =L41+L47 -> 0 | M48: =M41+M47 -> 0
A50: Households receiving Free Basic Service | B50: 15
A51: Water (6 kilolitres per household per month) | C51: ='SB5'!E262 -> 0 | D51: ='SB5'!F262 -> 0 | E51: ='SB5'!G262 -> 0 | F51: ='SB5'!H262 -> 0 | G51: ='SB5'!I262 -> 0 | H51: ='SB5'!J262 -> 0 | I51: ='SB5'!K262 -> 0 | J51: =SUM(E51:I51) -> 0 | K51: =IF(D51=0,C51+J51,D51+J51) -> 0 | L51: ='SB5'!N262 -> 0 | M51: ='SB5'!O262 -> 0
A52: Sanitation (free minimum level service) | C52: ='SB5'!E274 -> 0 | D52: ='SB5'!F274 -> 0 | E52: ='SB5'!G274 -> 0 | F52: ='SB5'!H274 -> 0 | G52: ='SB5'!I274 -> 0 | H52: ='SB5'!J274 -> 0 | I52: ='SB5'!K274 -> 0 | J52: =SUM(E52:I52) -> 0 | K52: =IF(D52=0,C52+J52,D52+J52) -> 0 | L52: ='SB5'!N274 -> 0 | M52: ='SB5'!O274 -> 0
A53: Electricity/other energy (50kwh per household per month) | C53: ='SB5'!E250 -> 0 | D53: ='SB5'!F250 -> 0 | E53: ='SB5'!G250 -> 0 | F53: ='SB5'!H250 -> 0 | G53: ='SB5'!I250 -> 0 | H53: ='SB5'!J250 -> 0 | I53: ='SB5'!K250 -> 0 | J53: =SUM(E53:I53) -> 0 | K53: =IF(D53=0,C53+J53,D53+J53) -> 0 | L53: ='SB5'!N250 -> 0 | M53: ='SB5'!O250 -> 0
A54: Refuse (removed at least once a week) | C54: ='SB5'!E286 -> 0 | D54: ='SB5'!F286 -> 0 | E54: ='SB5'!G286 -> 0 | F54: ='SB5'!H286 -> 0 | G54: ='SB5'!I286 -> 0 | H54: ='SB5'!J286 -> 0 | I54: ='SB5'!K286 -> 0 | J54: =SUM(E54:I54) -> 0 | K54: =IF(D54=0,C54+J54,D54+J54) -> 0 | L54: ='SB5'!N286 -> 0 | M54: ='SB5'!O286 -> 0
A56: Cost of Free Basic Services provided (R'000) | B56: 16
A57: Water (6 kilolitres per indigent household per month) | C57: ='SB1'!C21 -> 0 | D57: ='SB1'!D21 -> 0 | E57: ='SB1'!E21 -> 0 | F57: ='SB1'!F21 -> 0 | G57: ='SB1'!G21 -> 0 | H57: ='SB1'!H21 -> 0 | I57: ='SB1'!I21 -> 0 | J57: =SUM(E57:I57) -> 0 | K57: =IF(D57=0,C57+J57,D57+J57) -> 0 | L57: ='SB1'!L21 -> 0 | M57: ='SB1'!M21 -> 0
A58: Sanitation (free sanitation service to indigent households) | C58: ='SB1'!C27 -> 0 | D58: ='SB1'!D27 -> 0 | E58: ='SB1'!E27 -> 0 | F58: ='SB1'!F27 -> 0 | G58: ='SB1'!G27 -> 0 | H58: ='SB1'!H27 -> 0 | I58: ='SB1'!I27 -> 0 | J58: =SUM(E58:I58) -> 0 | K58: =IF(D58=0,C58+J58,D58+J58) -> 0 | L58: ='SB1'!L27 -> 0 | M58: ='SB1'!M27 -> 0
A59: Electricity/other energy (50kwh per indigent household per month) | C59: ='SB1'!C15 -> -4400576 | D59: ='SB1'!D15 -> 0 | E59: ='SB1'!E15 -> 0 | F59: ='SB1'!F15 -> 0 | G59: ='SB1'!G15 -> 0 | H59: ='SB1'!H15 -> 0 | I59: ='SB1'!I15 -> -5500000 | J59: =SUM(E59:I59) -> -5500000 | K59: =IF(D59=0,C59+J59,D59+J59) -> -9900576 | L59: ='SB1'!L15 -> 4320000 | M59: ='SB1'!M15 -> 4536000
A60: Refuse (removed once a week for indigent households) | C60: ='SB1'!C34 -> 0 | D60: ='SB1'!D34 -> 0 | E60: ='SB1'!E34 -> 0 | F60: ='SB1'!F34 -> 0 | G60: ='SB1'!G34 -> 0 | H60: ='SB1'!H34 -> 0 | I60: ='SB1'!I34 -> 0 | J60: =SUM(E60:I60) -> 0 | K60: =IF(D60=0,C60+J60,D60+J60) -> 0 | L60: ='SB1'!L34 -> 51840 | M60: ='SB1'!M34 -> 54432
A61: Cost of Free Basic Services provided - Informal Formal Settlements (R'000) | C61: ='SB5'!E259+'SB5'!E271+'SB5'!E283+'SB5'!E295 -> 0 | D61: ='SB5'!F259+'SB5'!F271+'SB5'!F283+'SB5'!F295 -> 0 | E61: ='SB5'!G259+'SB5'!G271+'SB5'!G283+'SB5'!G295 -> 0 | F61: ='SB5'!H259+'SB5'!H271+'SB5'!H283+'SB5'!H295 -> 0 | G61: ='SB5'!I259+'SB5'!I271+'SB5'!I283+'SB5'!I295 -> 0 | H61: ='SB5'!J259+'SB5'!J271+'SB5'!J283+'SB5'!J295 -> 0 | I61: ='SB5'!K259+'SB5'!K271+'SB5'!K283+'SB5'!K295 -> 0 | J61: =SUM(E61:I61) -> 0 | K61: =IF(D61=0,C61+J61,D61+J61) -> 0 | L61: ='SB5'!N259+'SB5'!N271+'SB5'!N283+'SB5'!N295 -> 0 | M61: ='SB5'!O259+'SB5'!O271+'SB5'!O283+'SB5'!O295 -> 0
A62: Total cost of FBS provided | C62: =SUM(C57:C61) -> -4400576 | D62: =SUM(D57:D61) -> 0 | E62: 0 | F62: 0 | G62: 0 | H62: 0 | I62: -5500000 | J62: -5500000 | K62: -9900576 | L62: 4371840 | M62: 4590432
A64: Highest level of free service provided
A65: Property rates (R'000 value threshold) | J65: =SUM(E65:I65) -> 0 | K65: =IF(D65=0,C65+J65,D65+J65) -> 0
A66: Water (kilolitres per household per month) | J66: 0 | K66: 0
A67: Sanitation (kilolitres per household per month) | J67: 0 | K67: 0
A68: Sanitation (Rand per household per month) | J68: 0 | K68: 0
A69: Electricity (kw per household per month) | J69: 0 | K69: 0
A70: Refuse (average litres per week) | J70: 0 | K70: 0
A71: Revenue cost of free services provided (R'000) | B71: 17
A72: Property rates (tariff adjustment) ( impermissable values per section 17 of MPRA) | J72: =SUM(E72:I72) -> 0 | K72: =IF(D72=0,C72+J72,D72+J72) -> 0
A73: Property rates exemptions, reductions and rebates and impermissable values in excess of section 17 of MPRA) | C73: ='SB1'!C9 -> -1942860 | D73: ='SB1'!D9 -> 0 | E73: ='SB1'!E9 -> 0 | F73: ='SB1'!F9 -> 0 | G73: ='SB1'!G9 -> 0 | H73: ='SB1'!H9 -> 0 | I73: ='SB1'!I9 -> 1942860 | J73: 1942860 | K73: 0 | L73: ='SB1'!L9 -> 8145033 | M73: ='SB1'!M9 -> 8552286
A74: Water (in excess of 6 kilolitres per indigent household per month) | C74: ='SB1'!C20 -> 0 | D74: ='SB1'!D20 -> 0 | E74: ='SB1'!E20 -> 0 | F74: ='SB1'!F20 -> 0 | G74: ='SB1'!G20 -> 0 | H74: ='SB1'!H20 -> 0 | I74: ='SB1'!I20 -> 0 | J74: 0 | K74: 0 | L74: ='SB1'!L20 -> 0 | M74: ='SB1'!M20 -> 0
A75: Sanitation (in excess of free sanitation service to indigent households) | C75: ='SB1'!C26 -> 0 | D75: ='SB1'!D26 -> 0 | E75: ='SB1'!E26 -> 0 | F75: ='SB1'!F26 -> 0 | G75: ='SB1'!G26 -> 0 | H75: ='SB1'!H26 -> 0 | I75: ='SB1'!I26 -> 0 | J75: 0 | K75: 0 | L75: ='SB1'!L26 -> 0 | M75: ='SB1'!M26 -> 0
A76: Electricity/other energy (in excess of 50 kwh per indigent household per month) | C76: ='SB1'!C14 -> 0 | D76: ='SB1'!D14 -> 0 | E76: ='SB1'!E14 -> 0 | F76: ='SB1'!F14 -> 0 | G76: ='SB1'!G14 -> 0 | H76: ='SB1'!H14 -> 0 | I76: ='SB1'!I14 -> 0 | J76: 0 | K76: 0 | L76: ='SB1'!L14 -> 0 | M76: ='SB1'!M14 -> 0
A77: Refuse (in excess of one removal a week for indigent households) | C77: ='SB1'!C33 -> 0 | D77: ='SB1'!D33 -> 0 | E77: ='SB1'!E33 -> 0 | F77: ='SB1'!F33 -> 0 | G77: ='SB1'!G33 -> 0 | H77: ='SB1'!H33 -> 0 | I77: ='SB1'!I33 -> 0 | J77: 0 | K77: 0 | L77: ='SB1'!L33 -> 0 | M77: ='SB1'!M33 -> 0
A78: Municipal Housing - rental rebates | J78: 0 | K78: 0
A79: Housing - top structure subsidies | B79: 6 | J79: 0 | K79: 0
A80: Other | J80: 0 | K80: 0
A81: Total revenue cost of subsidised services provided | C81: =SUM(C72:C80) -> -1942860 | D81: 0 | E81: 0 | F81: 0 | G81: 0 | H81: 0 | I81: 1942860 | J81: 1942860 | K81: 0 | L81: 8145033 | M81: 8552286
A82: =head27a -> References
A83: 1. Include services provided by another entity; e.g. Eskom
A84: 2. Stand distance > 200m from dwelling
A85: 3. Stand distance <= 200m from dwelling
A86: 4. Borehole, spring, rain-water tank etc.
A87: 5. Must agree to total number of households in municipal area
A88: 6. Include value of subsidy provided by municipality above provincial subsidy level
A89: 7. Only complete if a previous adjusted budget has been approved in the same financial year. Reflect most recent adjusted budget.
A90: 8. Additional cash-backed accumulated funds/unspent funds (MFMA section 18(1)(b) and section 28(2)(e)) identified after the Original Budget approved and after annual financial statements audited (note: only where underspending could not reasonably have been foreseen)
A91: 9. Increases of funds approved under MFMA section 31
A92: 10. Adjustments approved in accordance with MFMA section 29
A93: 11. Adjustments to transfers from National or Provincial Government
A94: 12. Adjusts. = 'Other' Adjustments proposed to be approved; including revenue under-collection (MFMA section 28(2)(a)); additional revenue appropriation on existing programmes (section 28(2))(b); projected savings (section 28(2)(d)); error correction (section 28(2)(f))
A95: 13. G = B + C + D + E + F
A96: 14. Adjusted Budget H = (A or A1) + G
A97: 15. Show number of households receiving at least these levels of services completely free
A98: 16. Must reflect the cost to the municipality of providing the Free Basic Service
A99: 17. Reflect the cost to the municipality in terms of 'revenue foregone' of providing free services (note this will not equal 'Revenue Foregone' on SA1)

Sheet SB1
A1: =muni&" - "&ADJB1&" - "&Date -> LIM353 Molemole - Supporting Table SB1 Supporting detail to 'Budgeted Financial Performance' - 14/07/2023
A2: =desc -> Description | B2: =head27 -> Ref | C2: =Head2 -> Budget Year 2022/23 | L2: =Head10 -> Budget Year +1 2023/24 | M2: =Head11 -> Budget Year +2 2024/25
C3: =Head6 -> Original Budget | D3: =Head54 -> Prior Adjusted | E3: =Head51 -> Accum. Funds | F3: =Head52 -> Multi-year capital | G3: =Head53 -> Unfore. Unavoid. | H3: =Head55 -> Nat. or Prov. Govt | I3: =Head50 -> Other Adjusts. | J3: =Head56 -> Total Adjusts. | K3: =Head7 -> Adjusted Budget | L3: =Head7 -> Adjusted Budget | M3: =Head7 -> Adjusted Budget
D4: 6 | E4: 7 | F4: 8 | G4: 9 | H4: 10 | I4: 11 | J4: 12 | K4: 13
A5: R thousands | C5: A | D5: A1 | E5: B | F5: C | G5: D | H5: E | I5: F | J5: G | K5: H
A6: REVENUE ITEMS
A7: Property rates
A8: Total Property Rates | C8: 47453987 | D8: 0 | E8: 0 | F8: 0 | G8: 0 | H8: 0 | I8: -6368335 | J8: =SUM(E8:I8) -> -6368335 | K8: =IF(D8=0,C8+J8,D8+J8) -> 41085652 | L8: 54208477 | M8: 56918903
A9: Less Revenue Foregone (exemptions, reductions and rebates and impermissable values in excess of section 17 of MPRA) | C9: -1942860 | D9: 0 | E9: 0 | F9: 0 | G9: 0 | H9: 0 | I9: 1942860 | J9: =SUM(E9:I9) -> 1942860 | K9: =IF(D9=0,C9+J9,D9+J9) -> 0 | L9: 8145033 | M9: 8552286
A10: Net Property Rates | C10: =C8-C9 -> 49396847 | D10: =D8-D9 -> 0 | E10: 0 | F10: 0 | G10: 0 | H10: 0 | I10: -8311195 | J10: -8311195 | K10: 41085652 | L10: 46063444 | M10: 48366617
A12: Service charges - electricity revenue
A13: Total Service charges - electricity revenue | C13: 18585765 | D13: 0 | E13: 0 | F13: 0 | G13: 0 | H13: 0 | I13: -5500000 | J13: =SUM(E13:I13) -> -5500000 | K13: =IF(D13=0,C13+J13,D13+J13) -> 13085765 | L13: 16655647 | M13: 17488430
A14: Less Revenue Foregone (in excess of 50 kwh per indigent household per month) | J14: =SUM(E14:I14) -> 0 | K14: =IF(D14=0,C14+J14,D14+J14) -> 0
A15: Less Cost of Free Basis Services (50 kwh per indigent household per month) | C15: ='SB5'!E249 -> -4400576 | D15: ='SB5'!F249 -> 0 | E15: ='SB5'!G249 -> 0 | F15: ='SB5'!H249 -> 0 | G15: ='SB5'!I249 -> 0 | H15: ='SB5'!J249 -> 0 | I15: ='SB5'!K249 -> -5500000 | J15: =SUM(E15:I15) -> -5500000 | K15: =IF(D15=0,C15+J15,D15+J15) -> -9900576 | L15: ='SB5'!N249 -> 4320000 | M15: ='SB5'!O249 -> 4536000
A16: Net Service charges - electricity revenue | C16: =C13-C14-C15 -> 22986341 | D16: =D13-D14-D15 -> 0 | E16: 0 | F16: 0 | G16: 0 | H16: 0 | I16: 0 | J16: 0 | K16: 22986341 | L16: 12335647 | M16: 12952430
A18: Service charges - water revenue
A19: Total Service charges - water revenue | C19: 0 | D19: 0 | E19: 0 | F19: 0 | G19: 0 | H19: 0 | I19: 0 | J19: =SUM(E19:I19) -> 0 | K19: =IF(D19=0,C19+J19,D19+J19) -> 0 | L19: 0 | M19: 0
A20: Less Revenue Foregone (in excess of 6 kilolitres per indigent household per month) | J20: =SUM(E20:I20) -> 0 | K20: =IF(D20=0,C20+J20,D20+J20) -> 0
A21: Less Cost of Free Basis Services (6 kilolitres per indigent household per month) | C21: ='SB5'!E261 -> 0 | D21: ='SB5'!F261 -> 0 | E21: ='SB5'!G261 -> 0 | F21: ='SB5'!H261 -> 0 | G21: ='SB5'!I261 -> 0 | H21: ='SB5'!J261 -> 0 | I21: ='SB5'!K261 -> 0 | J21: =SUM(E21:I21) -> 0 | K21: =IF(D21=0,C21+J21,D21+J21) -> 0 | L21: ='SB5'!N261 -> 0 | M21: ='SB5'!O261 -> 0
A22: Net Service charges - water revenue | C22: =C19-C20-C21 -> 0 | D22: =D19-D20-D21 -> 0 | E22: 0 | F22: 0 | G22: 0 | H22: 0 | I22: 0 | J22: =J19-J20-J21 -> 0 | K22: 0 | L22: 0 | M22: 0
A24: Service charges - sanitation revenue
A25: Total Service charges - sanitation revenue | C25: 0 | D25: 0 | E25: 0 | F25: 0 | G25: 0 | H25: 0 | I25: 0 | J25: =SUM(E25:I25) -> 0 | K25: =IF(D25=0,C25+J25,D25+J25) -> 0 | L25: 0 | M25: 0
A26: Less Revenue Foregone (in excess of free sanitation service to indigent households) | J26: =SUM(E26:I26) -> 0 | K26: =IF(D26=0,C26+J26,D26+J26) -> 0
A27: Less Cost of Free Basis Services (free sanitation service to indigent households) | C27: ='SB5'!E273 -> 0 | D27: ='SB5'!F273 -> 0 | E27: ='SB5'!G273 -> 0 | F27: ='SB5'!H273 -> 0 | G27: ='SB5'!I273 -> 0 | H27: ='SB5'!J273 -> 0 | I27: ='SB5'!K273 -> 0 | J27: =SUM(E27:I27) -> 0 | K27: =IF(D27=0,C27+J27,D27+J27) -> 0 | L27: ='SB5'!N273 -> 0 | M27: ='SB5'!O273 -> 0
A28: Net Service charges - sanitation revenue | C28: =C25-C26-C27 -> 0 | D28: =D25-D26-D27 -> 0 | E28: 0 | F28: 0 | G28: 0 | H28: 0 | I28: 0 | J28: 0 | K28: 0 | L28: 0 | M28: 0
C29: .
A30: Service charges - refuse revenue
A31: Total refuse removal revenue | C31: 2603836 | D31: 0 | E31: 0 | F31: 0 | G31: 0 | H31: 0 | I31: 0 | J31: =SUM(E31:I31) -> 0 | K31: =IF(D31=0,C31+J31,D31+J31) -> 2603836 | L31: 3596549 | M31: 3776377
A32: Total landfill revenue | J32: =SUM(E32:I32) -> 0 | K32: =IF(D32=0,C32+J32,D32+J32) -> 0
A33: Less Revenue Foregone (in excess of one removal a week to indigent households) | J33: =SUM(E33:I33) -> 0 | K33: =IF(D33=0,C33+J33,D33+J33) -> 0
A34: Less Cost of Free Basis Services (removed once a week to indigent households) | C34: ='SB5'!E285 -> 0 | D34: ='SB5'!F285 -> 0 | E34: ='SB5'!G285 -> 0 | F34: ='SB5'!H285 -> 0 | G34: ='SB5'!I285 -> 0 | H34: ='SB5'!J285 -> 0 | I34: ='SB5'!K285 -> 0 | J34: =SUM(E34:I34) -> 0 | K34: =IF(D34=0,C34+J34,D34+J34) -> 0 | L34: ='SB5'!N285 -> 51840 | M34: ='SB5'!O285 -> 54432
A35: Net Service charges - refuse revenue | C35: =SUM(C31:C32)-SUM(C33:C34) -> 2603836 | D35: =SUM(D31:D32)-SUM(D33:D34) -> 0 | E35: 0 | F35: 0 | G35: 0 | H35: 0 | I35: 0 | J35: 0 | K35: 2603836 | L35: 3544709 | M35: 3721945
A37: Other Revenue By Source
A38: Fuel Levy | J38: =SUM(E38:I38) -> 0 | K38: =IF(D38=0,C38+J38,D38+J38) -> 0
A39: Other Revenue | C39: 412599 | D39: 0 | E39: 0 | F39: 0 | G39: 0 | H39: 0 | I39: 1142040 | J39: =SUM(E39:I39) -> 1142040 | K39: =IF(D39=0,C39+J39,D39+J39) -> 1554639 | L39: 1594184 | M39: 1673897
A50: Total 'Other' Revenue | B50: 1 | C50: =SUM(C38:C39) -> 412599 | D50: =SUM(D38:D39) -> 0 | E50: 0 | F50: 0 | G50: 0 | H50: 0 | I50: 1142040 | J50: 1142040 | K50: 1554639 | L50: 1594184 | M50: 1673897
A52: EXPENDITURE ITEMS
A53: Employee related costs
A54: Basic Salaries and Wages | C54: 66551180 | D54: 0 | E54: 0 | F54: 0 | G54: 0 | H54: 0 | I54: -2594603 | J54: =SUM(E54:I54) -> -2594603 | K54: =IF(D54=0,C54+J54,D54+J54) -> 63956577 | L54: 64232396 | M54: 73018630
A55: Pension and UIF Contributions | C55: 7041206 | D55: 0 | E55: 0 | F55: 0 | G55: 0 | H55: 0 | I55: 5283979 | J55: 5283979 | K55: 12325185 | L55: 11777285 | M55: 11707412
A56: Medical Aid Contributions | C56: 5622367 | D56: 0 | E56: 0 | F56: 0 | G56: 0 | H56: 0 | I56: -335203 | J56: -335203 | K56: 5287164 | L56: 5681807 | M56: 5965908
A57: Overtime | C57: 166000 | D57: 0 | E57: 0 | F57: 0 | G57: 0 | H57: 0 | I57: 425007 | J57: 425007 | K57: 591007 | L57: 825000 | M57: 866250
A58: Performance Bonus | C58: 6268366 | D58: 0 | E58: 0 | F58: 0 | G58: 0 | H58: 0 | I58: -569353 | J58: -569353 | K58: 5699013 | L58: 7994797 | M58: 8394567
A59: Motor Vehicle Allowance | C59: 8017853 | D59: 0 | E59: 0 | F59: 0 | G59: 0 | H59: 0 | I59: -286892 | J59: =SUM(E59:I59) -> -286892 | K59: =IF(D59=0,C59+J59,D59+J59) -> 7730961 | L59: 8908614 | M59: 9354056
A60: Cellphone Allowance | C60: 1398393 | D60: 0 | E60: 0 | F60: 0 | G60: 0 | H60: 0 | I60: -86085 | J60: =SUM(E60:I60) -> -86085 | K60: =IF(D60=0,C60+J60,D60+J60) -> 1312308 | L60: 1625901 | M60: 1707197
A61: Housing Allowances | C61: 175024 | D61: 0 | E61: 0 | F61: 0 | G61: 0 | H61: 0 | I61: 48198 | J61: =SUM(E61:I61) -> 48198 | K61: =IF(D61=0,C61+J61,D61+J61) -> 223222 | L61: 322205 | M61: 338321
A62: Other benefits and allowances | C62: 3752707 | D62: 0 | E62: 0 | F62: 0 | G62: 0 | H62: 0 | I62: -1762924 | J62: -1762924 | K62: 1989783 | L62: 1644176 | M62: 1726404
A63: Payments in lieu of leave | C63: 1864646 | D63: 0 | E63: 0 | F63: 0 | G63: 0 | H63: 0 | I63: -1254586 | J63: -1254586 | K63: 610060 | L63: 275000 | M63: 288750
A64: Long service awards | C64: 1358801 | D64: 0 | E64: 0 | F64: 0 | G64: 0 | H64: 0 | I64: 111169 | J64: 111169 | K64: 1469970 | L64: 1552336 | M64: 1629964
A65: Post-retirement benefit obligations | B65: 4 | C65: 2331077 | D65: 0 | E65: 0 | F65: 0 | G65: 0 | H65: 0 | I65: -511 | J65: -511 | K65: 2330566 | L65: 2447120 | M65: 2569507
A66: sub-total | C66: =SUM(C54:C65) -> 104547620 | D66: =SUM(D54:D65) -> 0 | E66: 0 | F66: 0 | G66: 0 | H66: 0 | I66: -1021804 | J66: -1021804 | K66: 103525816 | L66: 107286637 | M66: 117566966
A67: Less: Employees costs capitalised to PPE | C67: 0 | D67: 0 | E67: 0 | F67: 0 | G67: 0 | H67: 0 | I67: 0 | J67: =SUM(E67:I67) -> 0 | K67: =IF(D67=0,C67+J67,D67+J67) -> 0 | L67: 0 | M67: 0
A68: ="Total "&A53 -> Total Employee related costs | B68: 1 | C68: =C66-C67 -> 104547620 | D68: =D66-D67 -> 0 | E68: 0 | F68: 0 | G68: 0 | H68: 0 | I68: -1021804 | J68: =SUM(J66:J67) -> -1021804 | K68: =SUM(K66:K67) -> 103525816 | L68: =L66-L67 -> 107286637 | M68: =M66-M67 -> 117566966
A79: Depreciation & asset impairment
A80: Depreciation of Property, Plant & Equipment | C80: 19076809 | D80: 0 | E80: 0 | F80: 0 | G80: 0 | H80: 0 | I80: 0 | J80: =SUM(E80:I80) -> 0 | K80: =IF(D80=0,C80+J80,D80+J80) -> 19076809 | L80: 21319587 | M80: 22385608
A81: Lease amortisation | C81: 736232 | D81: 0 | E81: 0 | F81: 0 | G81: 0 | H81: 0 | I81: 0 | J81: =SUM(E81:I81) -> 0 | K81: =IF(D81=0,C81+J81,D81+J81) -> 736232 | L81: 762568 | M81: 800700
A82: Capital asset impairment | C82: 0 | D82: 0 | E82: 0 | F82: 0 | G82: 0 | H82: 0 | I82: 0 | J82: =SUM(E82:I82) -> 0 | K82: =IF(D82=0,C82+J82,D82+J82) -> 0 | L82: 0 | M82: 0
A84: ="Total "&LEFT(A79,35) -> Total Depreciation & asset impairment | B84: 1 | C84: =SUM(C80:C82) -> 19813041 | D84: =SUM(D80:D82) -> 0 | E84: 0 | F84: 0 | G84: 0 | H84: 0 | I84: 0 | J84: 0 | K84: 19813041 | L84: 22082155 | M84: 23186308
A86: Bulk purchases
A87: Electricity Bulk Purchases | C87: 11926907 | D87: 0 | E87: 0 | F87: 0 | G87: 0 | H87: 0 | I87: 1200000 | J87: =SUM(E87:I87) -> 1200000 | K87: =IF(D87=0,C87+J87,D87+J87) -> 13126907 | L87: 13783253 | M87: 14472416
A88: Water Bulk Purchases | J88: =SUM(E88:I88) -> 0 | K88: =IF(D88=0,C88+J88,D88+J88) -> 0
A89: Total bulk purchases | B89: 1 | C89: =C87 -> 11926907 | D89: =D87 -> 0 | E89: 0 | F89: 0 | G89: 0 | H89: 0 | I89: 1200000 | J89: 1200000 | K89: 13126907 | L89: 13783253 | M89: 14472416
A91: Transfers and grants
A92: Cash transfers and grants | C92: 0 | D92: 0 | E92: 0 | F92: 0 | G92: 0 | H92: 0 | I92: 0 | J92: =SUM(E92:I92) -> 0 | K92: =IF(D92=0,C92+J92,D92+J92) -> 0 | L92: 0 | M92: 0
A93: Non-cash transfers and grants | C93: 0 | D93: 0 | E93: 0 | F93: 0 | G93: 0 | H93: 0 | I93: 0 | J93: =SUM(E93:I93) -> 0 | K93: =IF(D93=0,C93+J93,D93+J93) -> 0 | L93: 0 | M93: 0
A94: Total transfers and grants | C94: =SUM(C92:C93) -> 0 | D94: 0 | E94: 0 | F94: 0 | G94: 0 | H94: 0 | I94: 0 | J94: =SUM(J92:J93) -> 0 | K94: =SUM(K92:K93) -> 0 | L94: =SUM(L92:L93) -> 0 | M94: =SUM(M92:M93) -> 0
A96: Contracted services
A97: Outsourced Services | C97: 15032527 | D97: 0 | E97: 0 | F97: 0 | G97: 0 | H97: 0 | I97: -2053740 | J97: =SUM(E97:I97) -> -2053740 | K97: =IF(D97=0,C97+J97,D97+J97) -> 12978787 | L97: 17077462 | M97: 15977867
A98: Consultants and Professional Services | C98: 9825955 | D98: 0 | E98: 0 | F98: 0 | G98: 0 | H98: 0 | I98: 1261711 | J98: =SUM(E98:I98) -> 1261711 | K98: =IF(D98=0,C98+J98,D98+J98) -> 11087666 | L98: 11116873 | M98: 9350389
A99: Contractors | C99: 17244317 | D99: 0 | E99: 0 | F99: 0 | G99: 0 | H99: 0 | I99: -1309427 | J99: =SUM(E99:I99) -> -1309427 | K99: =IF(D99=0,C99+J99,D99+J99) -> 15934890 | L99: 17574193 | M99: 17631446
A128: Total contracted services | C128: =SUM(C97:C99) -> 42102799 | D128: =SUM(D97:D99) -> 0 | E128: 0 | F128: 0 | G128: 0 | H128: 0 | I128: -2101456 | J128: -2101456 | K128: 40001343 | L128: 45768528 | M128: 42959702
A130: Other Expenditure By Type
A131: Collection costs | C131: 3375504 | D131: 0 | E131: 0 | F131: 0 | G131: 0 | H131: 0 | I131: 1410000 | J131: =SUM(E131:I131) -> 1410000 | K131: =IF(D131=0,C131+J131,D131+J131) -> 4785504 | L131: 2000000 | M131: 2100000
A132: Contributions to 'other' provisions | J132: =SUM(E132:I132) -> 0 | K132: =IF(D132=0,C132+J132,D132+J132) -> 0
A134: Audit fees | C134: 4627722 | D134: 0 | E134: 0 | F134: 0 | G134: 0 | H134: 0 | I134: -112000 | J134: =SUM(E134:I134) -> -112000 | K134: =IF(D134=0,C134+J134,D134+J134) -> 4515722 | L134: 5392537 | M134: 5662164
A137: Other Expenditure | C137: 32920054 | D137: 0 | E137: 0 | F137: 0 | G137: 0 | H137: 0 | I137: -24937 | J137: =SUM(E137:I137) -> -24937 | K137: =IF(D137=0,C137+J137,D137+J137) -> 32895117 | L137: 32624939 | M137: 32410308
A158: Total Other Expenditure | B158: 1 | C158: =+C131+C132+C134+C137 -> 40923280 | D158: =+D131+D132+D134+D137 -> 0 | E158: 0 | F158: 0 | G158: 0 | H158: 0 | I158: 1273063 | J158: 1273063 | K158: 42196343 | L158: 40017476 | M158: 40172472
A160: Repairs and Maintenance by Expenditure Item | B160: 14
A161: Employee related costs | J161: =SUM(E161:I161) -> 0 | K161: =IF(D161=0,C161+J161,D161+J161) -> 0
A162: Inventory Consumed (Project Maintenance) | C162: 0 | D162: 0 | E162: 0 | F162: 0 | G162: 0 | H162: 0 | I162: 0 | J162: =SUM(E162:I162) -> 0 | K162: =IF(D162=0,C162+J162,D162+J162) -> 0 | L162: 0 | M162: 0
A163: Contracted Services | C163: 15144089 | D163: 0 | E163: 0 | F163: 0 | G163: 0 | H163: 0 | I163: -571277 | J163: =SUM(E163:I163) -> -571277 | K163: =IF(D163=0,C163+J163,D163+J163) -> 14572812 | L163: 15630000 | M163: 16361500
A164: Other Expenditure | J164: =SUM(E164:I164) -> 0 | K164: =IF(D164=0,C164+J164,D164+J164) -> 0
A165: Total Repairs and Maintenance Expenditure | B165: 15 | C165: =SUM(C161:C164) -> 15144089 | D165: =SUM(D161:D164) -> 0 | E165: 0 | F165: 0 | G165: 0 | H165: 0 | I165: -571277 | J165: -571277 | K165: 14572812 | L165: 15630000 | M165: 16361500
A167: Inventory Consumed
A168: Inventory Consumed - Water | C168: =-'SB2'!C29 -> 0 | D168: =-'SB2'!D29 -> 0 | E168: =-'SB2'!E29 -> 0 | F168: =-'SB2'!F29 -> 0 | G168: =-'SB2'!G29 -> 0 | H168: =-'SB2'!H29 -> 0 | I168: =-'SB2'!I29 -> 0 | J168: =SUM(E168:I168) -> 0 | K168: =IF(D168=0,C168+J168,D168+J168) -> 0 | L168: =-'SB2'!L29 -> 0 | M168: =-'SB2'!M29 -> 0
A169: Inventory Consumed - Other | C169: =-'SB2'!C58-'SB2'!C67-'SB2'!C74-'SB2'!C82-'SB2'!C90 -> 7803884 | D169: =-'SB2'!D58-'SB2'!D67-'SB2'!D74-'SB2'!D82-'SB2'!D90 -> 0 | E169: =-'SB2'!E58-'SB2'!E67-'SB2'!E74-'SB2'!E82-'SB2'!E90 -> 0 | F169: =-'SB2'!F58-'SB2'!F67-'SB2'!F74-'SB2'!F82-'SB2'!F90 -> 0 | G169: =-'SB2'!G58-'SB2'!G67-'SB2'!G74-'SB2'!G82-'SB2'!G90 -> 0 | H169: =-'SB2'!H58-'SB2'!H67-'SB2'!H74-'SB2'!H82-'SB2'!H90 -> 0 | I169: =-'SB2'!I58-'SB2'!I67-'SB2'!I74-'SB2'!I82-'SB2'!I90 -> -644489 | J169: =SUM(E169:I169) -> -644489 | K169: =IF(D169=0,C169+J169,D169+J169) -> 7159395 | L169: =-'SB2'!L58-'SB2'!L67-'SB2'!L74-'SB2'!L82-'SB2'!L90 -> 8245842 | M169: =-'SB2'!M58-'SB2'!M67-'SB2'!M74-'SB2'!M82-'SB2'!M90 -> 8263500
A170: Total Inventory Consumed & Other Material | C170: =SUM(C168:C169) -> 7803884 | D170: =SUM(D168:D169) -> 0 | E170: 0 | F170: 0 | G170: 0 | H170: 0 | I170: -644489 | J170: -644489 | K170: 7159395 | L170: 8245842 | M170: 8263500
A172: =head27a -> References
A173: 1. Must reconcile with relevant line on the 'Financial Performance' budget
A174: 2. Must reconcile to supporting documentation on staff salaries
A175: 3. Insert other categories where revenue or expenditure is of a material nature
A176: 4. Expenditure to meet any unfunded obligations
A177: 5. Special consideration may have to be given to including 'goodwill arising' or 'joint venture' budgets where circumstances require this (include separately under relevant notes)
A178: 6. Only complete if a previous adjusted budget has been approved in the same financial year. Reflect most recent adjusted budget.
A179: 7. Additional cash-backed accumulated funds/unspent funds (section 18(1)(b) and section 28(2)(e) MFMA) identified after Original Budget approved and after annual financial statements audited (note: only where underspending could not reasonably be have for
A180: 8. Increases of funds approved under section 31 MFMA
A181: 9. Adjustments approved in accordance with section 29 MFMA
A182: 10. Adjustments to funding allocations from National or Provincial Government
A183: 11. Adjusts. = 'Other' Adjustments proposed to be approved; including revenue under-collection (MFMA section 28(2)(a)); additional revenue appropriation on existing programmes (section 28(2))(b); projected savings (section 28(2)(d)); error correction (sec
A184: 12. G = B + C + D + E + F
A185: 13. Adjusted Budget H = (A or A1) + G
A186: 14. Repairs and Maintenance is not a GRAP item. However to facilitate transparency, municipalities must provide a breakdown of the amounts included in the relevant GRAP items that will be spent on Repairs and Maintenance.
A187: 15. Must reconcile with Repairs and Maintenance by Asset Class (Total Repairs and Maintenance) on Table SA34c.

Sheet SB2
A1: =muni&" - "&ADJB2&" - "&Date -> LIM353 Molemole - Supporting Table SB2 Supporting detail to 'Financial Position Budget' - 14/07/2023
A2: =desc -> Description | B2: =head27 -> Ref | C2: =Head2 -> Budget Year 2022/23 | L2: =Head10 -> Budget Year +1 2023/24 | M2: =Head11 -> Budget Year +2 2024/25
C3: =Head6 -> Original Budget | D3: =Head54 -> Prior Adjusted | E3: =Head51 -> Accum. Funds | F3: =Head52 -> Multi-year capital | G3: =Head53 -> Unfore. Unavoid. | H3: =Head55 -> Nat. or Prov. Govt | I3: =Head50 -> Other Adjusts. | J3: =Head56 -> Total Adjusts. | K3: =Head7 -> Adjusted Budget | L3: =Head7 -> Adjusted Budget | M3: =Head7 -> Adjusted Budget
D4: 4 | E4: 5 | F4: 6 | G4: 7 | H4: 8 | I4: 9 | J4: 10 | K4: 11
A5: R thousands | C5: A | D5: A1 | E5: B | F5: C | G5: D | H5: E | I5: F | J5: G | K5: H
A6: ASSETS
A11: Consumer debtors
A12: =A11 -> Consumer debtors | C12: 171409010 | D12: 0 | E12: 0 | F12: 0 | G12: 0 | H12: 0 | I12: -30493073 | J12: =SUM(E12:I12) -> -30493073 | K12: =IF(D12=0,C12+J12,D12+J12) -> 140915937 | L12: 149760088 | M12: 157247560
A13: Less: provision for debt impairment | C13: =C20 -> -66069382 | D13: 0 | E13: 0 | F13: 0 | G13: 0 | H13: 0 | I13: 7719278 | J13: 7719278 | K13: -58350104 | L13: -50587709 | M13: -53117092
A14: ="Total "&A11 -> Total Consumer debtors | B14: 1 | C14: =SUM(C12:C13) -> 105339628 | D14: =SUM(D12:D13) -> 0 | E14: 0 | F14: 0 | G14: 0 | H14: 0 | I14: -22773795 | J14: -22773795 | K14: 82565833 | L14: 99172379 | M14: 104130468
A16: Debt impairment provision
A17: Balance at the beginning of the year | C17: -60819347 | D17: 0 | E17: 0 | F17: 0 | G17: 0 | H17: 0 | I17: 7719278 | J17: =SUM(E17:I17) -> 7719278 | K17: =IF(D17=0,C17+J17,D17+J17) -> -53100069 | L17: -44846306 | M17: -47088620
A18: Contributions to the provision | C18: -5250035 | D18: 0 | E18: 0 | F18: 0 | G18: 0 | H18: 0 | I18: 0 | J18: =SUM(E18:I18) -> 0 | K18: =IF(D18=0,C18+J18,D18+J18) -> -5250035 | L18: -5741403 | M18: -6028472
A19: Bad debts written off | C19: 0 | D19: 0 | E19: 0 | F19: 0 | G19: 0 | H19: 0 | I19: 0 | J19: =SUM(E19:I19) -> 0 | K19: =IF(D19=0,C19+J19,D19+J19) -> 0 | L19: 0 | M19: 0
A20: Balance at end of year | C20: =SUM(C17:C19) -> -66069382 | D20: =SUM(D17:D19) -> 0 | E20: 0 | F20: 0 | G20: 0 | H20: 0 | I20: 7719278 | J20: 7719278 | K20: =SUM(K17:K19) -> -58350104 | L20: -50587709 | M20: -53117092
A22: Inventory
A23: Water
A24: Opening Balance | C24: 0 | D24: 0 | E24: 0 | F24: 0 | G24: 0 | H24: 0 | I24: 0 | J24: =SUM(E24:I24) -> 0 | K24: =IF(D24=0,C24+J24,D24+J24) -> 0 | L24: 0 | M24: 0
A25: System Input Volume | C25: =SUM(C26:C28) -> 0 | D25: =SUM(D26:D28) -> 0 | E25: =SUM(E26:E28) -> 0 | F25: 0 | G25: 0 | H25: 0 | I25: 0 | J25: 0 | K25: 0 | L25: 0 | M25: 0
A26: Water Treatment Works | C26: 0 | D26: 0 | E26: 0 | F26: 0 | G26: 0 | H26: 0 | I26: 0 | J26: =SUM(E26:I26) -> 0 | K26: =IF(D26=0,C26+J26,D26+J26) -> 0 | L26: 0 | M26: 0
A27: Bulk Purchases | C27: 0 | D27: 0 | E27: 0 | F27: 0 | G27: 0 | H27: 0 | I27: 0 | J27: =SUM(E27:I27) -> 0 | K27: =IF(D27=0,C27+J27,D27+J27) -> 0 | L27: 0 | M27: 0
A28: Natural Sources | C28: 0 | D28: 0 | E28: 0 | F28: 0 | G28: 0 | H28: 0 | I28: 0 | J28: =SUM(E28:I28) -> 0 | K28: =IF(D28=0,C28+J28,D28+J28) -> 0 | L28: 0 | M28: 0
A29: Authorised Consumption | B29: 12 | C29: =C30+C39 -> 0 | D29: =D30+D39 -> 0 | E29: =E30+E39 -> 0 | F29: 0 | G29: 0 | H29: 0 | I29: 0 | J29: 0 | K29: 0 | L29: 0 | M29: 0
A30: Billed Authorised Consumption | C30: =C31+C35 -> 0 | D30: =D31+D35 -> 0 | E30: =E31+E35 -> 0 | F30: 0 | G30: 0 | H30: 0 | I30: 0 | J30: 0 | K30: 0 | L30: 0 | M30: 0
A31: Billed Metered Consumption | C31: =SUM(C32:C34) -> 0 | D31: =SUM(D32:D34) -> 0 | E31: =SUM(E32:E34) -> 0 | F31: 0 | G31: 0 | H31: 0 | I31: 0 | J31: 0 | K31: 0 | L31: 0 | M31: 0
A32: Free Basic Water | C32: 0 | D32: 0 | E32: 0 | F32: 0 | G32: 0 | H32: 0 | I32: 0 | J32: =SUM(E32:I32) -> 0 | K32: =IF(D32=0,C32+J32,D32+J32) -> 0 | L32: 0 | M32: 0
A33: Subsidised Water | C33: 0 | D33: 0 | E33: 0 | F33: 0 | G33: 0 | H33: 0 | I33: 0 | J33: =SUM(E33:I33) -> 0 | K33: =IF(D33=0,C33+J33,D33+J33) -> 0 | L33: 0 | M33: 0
A34: Revenue Water | C34: 0 | D34: 0 | E34: 0 | F34: 0 | G34: 0 | H34: 0 | I34: 0 | J34: =SUM(E34:I34) -> 0 | K34: =IF(D34=0,C34+J34,D34+J34) -> 0 | L34: 0 | M34: 0
A35: Billed Unmetered Consumption | C35: =SUM(C36:C38) -> 0 | D35: =SUM(D36:D38) -> 0 | E35: =SUM(E36:E38) -> 0 | F35: 0 | G35: 0 | H35: 0 | I35: 0 | J35: 0 | K35: 0 | L35: 0 | M35: 0
A36: Free Basic Water | C36: 0 | D36: 0 | E36: 0 | F36: 0 | G36: 0 | H36: 0 | I36: 0 | J36: =SUM(E36:I36) -> 0 | K36: =IF(D36=0,C36+J36,D36+J36) -> 0 | L36: 0 | M36: 0
A37: Subsidised Water | C37: 0 | D37: 0 | E37: 0 | F37: 0 | G37: 0 | H37: 0 | I37: 0 | J37: =SUM(E37:I37) -> 0 | K37: =IF(D37=0,C37+J37,D37+J37) -> 0 | L37: 0 | M37: 0
A38: Revenue Water | C38: 0 | D38: 0 | E38: 0 | F38: 0 | G38: 0 | H38: 0 | I38: 0 | J38: =SUM(E38:I38) -> 0 | K38: =IF(D38=0,C38+J38,D38+J38) -> 0 | L38: 0 | M38: 0
A39: UnBilled Authorised Consumption | C39: =SUM(C40:C41) -> 0 | D39: =SUM(D40:D41) -> 0 | E39: =SUM(E40:E41) -> 0 | F39: 0 | G39: 0 | H39: 0 | I39: 0 | J39: 0 | K39: 0 | L39: 0 | M39: 0
A40: Unbilled Metered Consumption | C40: 0 | D40: 0 | E40: 0 | F40: 0 | G40: 0 | H40: 0 | I40: 0 | J40: =SUM(E40:I40) -> 0 | K40: =IF(D40=0,C40+J40,D40+J40) -> 0 | L40: 0 | M40: 0
A41: Unbilled Unmetered Consumption | C41: 0 | D41: 0 | E41: 0 | F41: 0 | G41: 0 | H41: 0 | I41: 0 | J41: =SUM(E41:I41) -> 0 | K41: =IF(D41=0,C41+J41,D41+J41) -> 0 | L41: 0 | M41: 0
A42: Water Losses | C42: =C43+C46 -> 0 | D42: =D43+D46 -> 0 | E42: =E43+E46 -> 0 | F42: 0 | G42: 0 | H42: 0 | I42: 0 | J42: 0 | K42: 0 | L42: 0 | M42: 0
A43: Apparent losses | C43: =SUM(C44:C45) -> 0 | D43: =SUM(D44:D45) -> 0 | E43: =SUM(E44:E45) -> 0 | F43: 0 | G43: 0 | H43: 0 | I43: 0 | J43: 0 | K43: 0 | L43: 0 | M43: 0
A44: Unauthorised Consumption | C44: 0 | D44: 0 | E44: 0 | F44: 0 | G44: 0 | H44: 0 | I44: 0 | J44: =SUM(E44:I44) -> 0 | K44: =IF(D44=0,C44+J44,D44+J44) -> 0 | L44: 0 | M44: 0
A45: Customer Meter Inaccuracies | C45: 0 | D45: 0 | E45: 0 | F45: 0 | G45: 0 | H45: 0 | I45: 0 | J45: =SUM(E45:I45) -> 0 | K45: =IF(D45=0,C45+J45,D45+J45) -> 0 | L45: 0 | M45: 0
A46: Real losses | C46: =SUM(C47:C51) -> 0 | D46: =SUM(D47:D51) -> 0 | E46: =SUM(E47:E51) -> 0 | F46: 0 | G46: 0 | H46: 0 | I46: 0 | J46: 0 | K46: 0 | L46: 0 | M46: 0
A47: Leakage on Transmission and Distribution Mains | C47: 0 | D47: 0 | E47: 0 | F47: 0 | G47: 0 | H47: 0 | I47: 0 | J47: =SUM(E47:I47) -> 0 | K47: =IF(D47=0,C47+J47,D47+J47) -> 0 | L47: 0 | M47: 0
A48: Leakage and Overflows at Storage Tanks/Reservoirs | C48: 0 | D48: 0 | E48: 0 | F48: 0 | G48: 0 | H48: 0 | I48: 0 | J48: =SUM(E48:I48) -> 0 | K48: =IF(D48=0,C48+J48,D48+J48) -> 0 | L48: 0 | M48: 0
A49: Leakage on Service Connections up to the point of Customer Meter | C49: 0 | D49: 0 | E49: 0 | F49: 0 | G49: 0 | H49: 0 | I49: 0 | J49: =SUM(E49:I49) -> 0 | K49: =IF(D49=0,C49+J49,D49+J49) -> 0 | L49: 0 | M49: 0
A50: Data Transfer and Management Errors | C50: 0 | D50: 0 | E50: 0 | F50: 0 | G50: 0 | H50: 0 | I50: 0 | J50: =SUM(E50:I50) -> 0 | K50: =IF(D50=0,C50+J50,D50+J50) -> 0 | L50: 0 | M50: 0
A51: Unavoidable Annual Real Losses | C51: 0 | D51: 0 | E51: 0 | F51: 0 | G51: 0 | H51: 0 | I51: 0 | J51: =SUM(E51:I51) -> 0 | K51: =IF(D51=0,C51+J51,D51+J51) -> 0 | L51: 0 | M51: 0
A52: Non-revenue Water | C52: =C42+C39 -> 0 | D52: =D42+D39 -> 0 | E52: =E42+E39 -> 0 | F52: 0 | G52: 0 | H52: 0 | I52: 0 | J52: 0 | K52: 0 | L52: 0 | M52: 0
A53: Closing Balance Water | C53: =C24+C25+C29+C42 -> 0 | D53: =D24+D25+D29+D42 -> 0 | E53: =E24+E25+E29+E42 -> 0 | F53: 0 | G53: 0 | H53: 0 | I53: 0 | J53: 0 | K53: 0 | L53: 0 | M53: 0
A55: Agricultural
A56: Opening Balance | J56: =SUM(E56:I56) -> 0 | K56: =IF(D56=0,C56+J56,D56+J56) -> 0 | L56: =K61 -> 0 | M56: =L61 -> 0
A57: Acquisitions | J57: =SUM(E57:I57) -> 0 | K57: =IF(D57=0,C57+J57,D57+J57) -> 0 | L57: =K57*1.05 -> 0 | M57: =L57*1.06 -> 0
A58: Issues | B58: 13 | J58: =SUM(E58:I58) -> 0 | K58: =IF(D58=0,C58+J58,D58+J58) -> 0 | L58: =K58*1.05 -> 0 | M58: =L58*1.06 -> 0
A59: Adjustments | B59: 14 | J59: =SUM(E59:I59) -> 0 | K59: =IF(D59=0,C59+J59,D59+J59) -> 0 | L59: =K59*1.05 -> 0 | M59: 0
A60: Write-offs | B60: 15 | J60: =SUM(E60:I60) -> 0 | K60: =IF(D60=0,C60+J60,D60+J60) -> 0 | L60: =K60*1.05 -> 0 | M60: 0
A61: Closing balance - Agricultural | C61: =SUM(C56:C60) -> 0 | D61: 0 | E61: 0 | F61: 0 | G61: 0 | H61: 0 | I61: 0 | J61: 0 | K61: 0 | L61: 0 | M61: 0
A63: Consumables
A64: Standard Rated
A65: Opening Balance | C65: 329316 | D65: 0 | E65: 0 | F65: 0 | G65: 0 | H65: 0 | I65: 0 | J65: =SUM(E65:I65) -> 0 | K65: =IF(D65=0,C65+J65,D65+J65) -> 329316 | L65: 180347 | M65: 180347
A66: Acquisitions | C66: 1992229 | D66: 0 | E66: 0 | F66: 0 | G66: 0 | H66: 0 | I66: -200000 | J66: =SUM(E66:I66) -> -200000 | K66: =IF(D66=0,C66+J66,D66+J66) -> 1792229 | L66: 2100000 | M66: 2205000
A67: Issues | B67: 13 | C67: -1992229 | D67: 0 | E67: 0 | F67: 0 | G67: 0 | H67: 0 | I67: 200000 | J67: =SUM(E67:I67) -> 200000 | K67: =IF(D67=0,C67+J67,D67+J67) -> -1792229 | L67: -2100000 | M67: -2205000
A68: Adjustments | B68: 14 | C68: 0 | D68: 0 | E68: 0 | F68: 0 | G68: 0 | H68: 0 | I68: 0 | J68: =SUM(E68:I68) -> 0 | K68: =IF(D68=0,C68+J68,D68+J68) -> 0 | L68: 0 | M68: 0
A69: Write-offs | B69: 15 | C69: 0 | D69: 0 | E69: 0 | F69: 0 | G69: 0 | H69: 0 | I69: 0 | J69: =SUM(E69:I69) -> 0 | K69: =IF(D69=0,C69+J69,D69+J69) -> 0 | L69: 0 | M69: 0
A70: Closing balance - Consumables Standard Rated | C70: =SUM(C65:C69) -> 329316 | D70: =SUM(D65:D69) -> 0 | E70: 0 | F70: 0 | G70: 0 | H70: 0 | I70: 0 | J70: 0 | K70: 329316 | L70: 180347 | M70: 180347
A71: Zero Rated
A72: Opening Balance | C72: 0 | D72: 0 | E72: 0 | F72: 0 | G72: 0 | H72: 0 | I72: 0 | J72: =SUM(E72:I72) -> 0 | K72: =IF(D72=0,C72+J72,D72+J72) -> 0 | L72: 0 | M72: 0
A73: Acquisitions | C73: 4967944 | D73: 0 | E73: 0 | F73: 0 | G73: 0 | H73: 0 | I73: -344489 | J73: =SUM(E73:I73) -> -344489 | K73: =IF(D73=0,C73+J73,D73+J73) -> 4623455 | L73: 5625842 | M73: 5512500
A74: Issues | B74: 13 | C74: -4967944 | D74: 0 | E74: 0 | F74: 0 | G74: 0 | H74: 0 | I74: 344489 | J74: =SUM(E74:I74) -> 344489 | K74: =IF(D74=0,C74+J74,D74+J74) -> -4623455 | L74: -5625842 | M74: -5512500
A75: Adjustments | B75: 14 | C75: 0 | D75: 0 | E75: 0 | F75: 0 | G75: 0 | H75: 0 | I75: 0 | J75: =SUM(E75:I75) -> 0 | K75: =IF(D75=0,C75+J75,D75+J75) -> 0 | L75: 0 | M75: 0
A76: Write-offs | B76: 15 | C76: 0 | D76: 0 | E76: 0 | F76: 0 | G76: 0 | H76: 0 | I76: 0 | J76: =SUM(E76:I76) -> 0 | K76: =IF(D76=0,C76+J76,D76+J76) -> 0 | L76: 0 | M76: 0
A77: Closing balance - Consumables Zero Rated | C77: =SUM(C72:C76) -> 0 | D77: =SUM(D72:D76) -> 0 | E77: 0 | F77: 0 | G77: 0 | H77: 0 | I77: 0 | J77: 0 | K77: 0 | L77: 0 | M77: 0
A79: Finished Goods
A80: Opening Balance | J80: =SUM(E80:I80) -> 0 | K80: =IF(D80=0,C80+J80,D80+J80) -> 0 | L80: =K85 -> 0 | M80: =L85 -> 0
A81: Acquisitions | J81: =SUM(E81:I81) -> 0 | K81: =IF(D81=0,C81+J81,D81+J81) -> 0 | L81: =K81*1.055 -> 0 | M81: =L81*1.065 -> 0
A82: Issues | B82: 13 | J82: =SUM(E82:I82) -> 0 | K82: =IF(D82=0,C82+J82,D82+J82) -> 0 | L82: =K82*1.055 -> 0 | M82: =L82*1.065 -> 0
A83: Adjustments | B83: 14 | J83: =SUM(E83:I83) -> 0 | K83: =IF(D83=0,C83+J83,D83+J83) -> 0 | L83: =K83*1.055 -> 0 | M83: =L83*1.065 -> 0
A84: Write-offs | B84: 15 | J84: =SUM(E84:I84) -> 0 | K84: =IF(D84=0,C84+J84,D84+J84) -> 0 | L84: =K84*1.055 -> 0 | M84: =L84*1.065 -> 0
A85: Closing balance - Finished Goods | C85: =SUM(C80:C84) -> 0 | D85: =SUM(D80:D84) -> 0 | E85: 0 | F85: 0 | G85: 0 | H85: 0 | I85: 0 | J85: 0 | K85: 0 | L85: 0 | M85: 0
A87: Materials and Supplies
A88: Opening Balance | C88: 722975 | D88: 0 | E88: 0 | F88: 0 | G88: 0 | H88: 0 | I88: -356413 | J88: =SUM(E88:I88) -> -356413 | K88: =IF(D88=0,C88+J88,D88+J88) -> 366562 | L88: 366561 | M88: 366561
A89: Acquisitions | C89: 843711 | D89: 0 | E89: 0 | F89: 0 | G89: 0 | H89: 0 | I89: -100000 | J89: =SUM(E89:I89) -> -100000 | K89: =IF(D89=0,C89+J89,D89+J89) -> 743711 | L89: 520000 | M89: 546000
A90: Issues | B90: 13 | C90: -843711 | D90: 0 | E90: 0 | F90: 0 | G90: 0 | H90: 0 | I90: 100000 | J90: =SUM(E90:I90) -> 100000 | K90: =IF(D90=0,C90+J90,D90+J90) -> -743711 | L90: -520000 | M90: -546000
A91: Adjustments | B91: 14 | C91: 0 | D91: 0 | E91: 0 | F91: 0 | G91: 0 | H91: 0 | I91: 0 | J91: =SUM(E91:I91) -> 0 | K91: =IF(D91=0,C91+J91,D91+J91) -> 0 | L91: 0 | M91: 0
A92: Write-offs | B92: 15 | C92: 0 | D92: 0 | E92: 0 | F92: 0 | G92: 0 | H92: 0 | I92: 0 | J92: =SUM(E92:I92) -> 0 | K92: =IF(D92=0,C92+J92,D92+J92) -> 0 | L92: 0 | M92: 0
A93: Closing balance - Materials and Supplies | C93: =SUM(C88:C92) -> 722975 | D93: =SUM(D88:D92) -> 0 | E93: 0 | F93: 0 | G93: 0 | H93: 0 | I93: -356413 | J93: -356413 | K93: 366562 | L93: 366561 | M93: 366561
A95: Work-in-progress
A96: Opening Balance | J96: =SUM(E96:I96) -> 0 | K96: =IF(D96=0,C96+J96,D96+J96) -> 0 | L96: =K99 -> 0 | M96: =L99 -> 0
A97: Materials | J97: =SUM(E97:I97) -> 0 | K97: =IF(D97=0,C97+J97,D97+J97) -> 0 | L97: =K97*1.055 -> 0 | M97: =L97*1.065 -> 0
A98: Transfers | J98: =SUM(E98:I98) -> 0 | K98: =IF(D98=0,C98+J98,D98+J98) -> 0 | L98: =K98*1.055 -> 0 | M98: =L98*1.065 -> 0
A99: Closing balance - Work-in-progress | C99: =SUM(C96:C98) -> 0 | D99: =SUM(D96:D98) -> 0 | E99: 0 | F99: 0 | G99: 0 | H99: 0 | I99: 0 | J99: 0 | K99: 0 | L99: 0 | M99: 0
